Workbook

Sheet Guidance
C1: THE CONTENTS OF THE WORKBOOK INCLUDE ESTIMATES
C2: BASED ON SMALL SAMPLE SIZES WHICH MAY BE UNRELIABLE
C3: THEY ARE PROVIDED ON A CAVEAT EMPTOR BASIS
G5: Users should follow the guidelines set out in general terms below
G6: and in more detail in the Working Futures technical documentation available on line at:
G7: https://www.gov.uk/government/publications/working-futures-2012-to-2022
G9: If in doubt about what to do please contact:
G11: UKCES: Peter Glover, UK Commission for Employment and Skills, email: peter.glover@ukces.org.uk, tel: 01709 774942
G12: All other enquiries: Rob Wilson, IER, University of Warwick, email: r.a.wilson@warwick.ac.uk, tel: 024 7652 3530
G14: Copyright: Warwick Institute for Employment Research / Cambridge Econometrics, 2013
G17: REPORTING
G18: The projections presented in this Workbook are calculated from a number of different data sources, using
G19: a variety of econometric and statistical techniques. As a result, precise margins of error cannot be assigned
G20: to the estimates. For further details, see the Working Futures Technical Report.
G22: However, as a general rule of thumb, it is not advisable to use any statistics or analyses in published reports etc which are not
G23: based on data for at least 10,000 individuals. This should provide a reasonable degree of statistical robustness to
G24: the estimates whether historic or forecast.
G26: For unpublished analyses, a more lenient criterion can be used. However, the uncertainties associated with
G27: projections involving fewer than 1,000 individuals are probably too great to make such estimates useful.
G28: However, there is inevitably some degree of judgement required on the part of the researcher.
G30: For cases in between 1,000 and 10,000 individuals, it is difficult to prescribe general rules, and an element of
G31: judgement by on behalf of the user is needed.
G33: Thus, in summary, CE/IER advise:
G35: PUBLISHED ANALYSIS: Ideally, a minimum of 10,000 individuals per cell
G36: UNPUBLISHED ANALYSIS: A minimum of 1,000 individuals per cell

Sheet Info
A1: South West
A2: c132 | B2: <-MDM forecast identifier
A3: Occupational forecast: Friday, 9 October 2013 at 17:09

Sheet Table 3.5
A1: Table 3.5 | B1: Employment Status
E2: 000s
A3: =All!X7 -> 2012
A4: Employment by Gender | B4: FT | C4: PT | D4: SE | E4: Total
A5: Male employment | B5: =MalesFT!X8/1000 -> 923.066 | C5: =MalesPT!X8/1000 -> 208.993 | D5: =MalesSE!X8/1000 -> 278.557 | E5: =Males!X8/1000 -> 1410.616
A6: Female employment | B6: =FemalesFT!X8/1000 -> 532.551 | C6: =FemalesPT!X8/1000 -> 648.038 | D6: =FemalesSE!X8/1000 -> 149.396 | E6: =Females!X8/1000 -> 1329.985
A7: Total employment | B7: =FT!X8/1000 -> 1455.617 | C7: =PT!X8/1000 -> 857.031 | D7: =SE!X8/1000 -> 427.953 | E7: =SUM(E5:E6) -> 2740.601
A9: =All!AC7 -> 2017
A10: Employment by Gender | B10: FT | C10: PT | D10: SE | E10: Total
A11: Male employment | B11: =MalesFT!AC8/1000 -> 928.059 | C11: =MalesPT!AC8/1000 -> 228.807 | D11: =MalesSE!AC8/1000 -> 277.568 | E11: =Males!AC8/1000 -> 1434.434
A12: Female employment | B12: =FemalesFT!AC8/1000 -> 550.416 | C12: =FemalesPT!AC8/1000 -> 664.488 | D12: =FemalesSE!AC8/1000 -> 149.515 | E12: =Females!AC8/1000 -> 1364.419
A13: Total employment | B13: =FT!AC8/1000 -> 1478.475 | C13: =PT!AC8/1000 -> 893.295 | D13: =SE!AC8/1000 -> 427.083 | E13: =SUM(E11:E12) -> 2798.853
A15: =All!AH7 -> 2022
A16: Employment by Gender | B16: FT | C16: PT | D16: SE | E16: Total
A17: Male employment | B17: =MalesFT!AH8/1000 -> 940.372 | C17: =MalesPT!AH8/1000 -> 252.445 | D17: =MalesSE!AH8/1000 -> 279.036 | E17: =Males!AH8/1000 -> 1471.853
A18: Female employment | B18: =FemalesFT!AH8/1000 -> 576.865 | C18: =FemalesPT!AH8/1000 -> 695.295 | D18: =FemalesSE!AH8/1000 -> 152.379 | E18: =Females!AH8/1000 -> 1424.539
A19: Total employment | B19: =FT!AH8/1000 -> 1517.237 | C19: =PT!AH8/1000 -> 947.74 | D19: =SE!AH8/1000 -> 431.415 | E19: =SUM(E17:E18) -> 2896.392
A20: =CELL("filename",$A$1)&", "&Info!A1 -> R:\Research Info\Individual research project info\Working Futures 2012-2022\Working Futures quant projections 2012-2022\04 Reporting and outputs\Final outputs\Workbooks\Files for gov.uk\SW\[AllSWv2.xlsm]Table 3.5, South West

Sheet Table 3.6
A1: Table 3.6 | B1: Shares by Employment Status
E2: %
A3: ='Table 3.5'!A3 -> 2012
A4: Employment by Gender | B4: FT | C4: PT | D4: SE | E4: Total
A5: Male employment | B5: =MalesFT!X8/All!X8*100 -> 33.68115242 | C5: =MalesPT!X8/All!X8*100 -> 7.625809083 | D5: =MalesSE!X8/All!X8*100 -> 10.16408445 | E5: =Males!X8/All!X8*100 -> 51.47104595
A6: Female employment | B6: =FemalesFT!X8/All!X8*100 -> 19.43190563 | C6: =FemalesPT!X8/All!X8*100 -> 23.64583535 | D6: =FemalesSE!X8/All!X8*100 -> 5.451213073 | E6: =Females!X8/All!X8*100 -> 48.52895405
A7: Total employment | B7: =FT!X8/All!X8*100 -> 53.11305805 | C7: =PT!X8/All!X8*100 -> 31.27164443 | D7: =SE!X8/All!X8*100 -> 15.61529752 | E7: =All!X8/All!X8*100 -> 100
A9: ='Table 3.5'!A9 -> 2017
A10: Employment by Gender | B10: FT | C10: PT | D10: SE | E10: Total
A11: Male employment | B11: =MalesFT!AC8/All!AC8*100 -> 33.15854745 | C11: =MalesPT!AC8/All!AC8*100 -> 8.175027413 | D11: =MalesSE!AC8/All!AC8*100 -> 9.917205369 | E11: =Males!AC8/All!AC8*100 -> 51.25078023
A12: Female employment | B12: =FemalesFT!AC8/All!AC8*100 -> 19.66577023 | C12: =FemalesPT!AC8/All!AC8*100 -> 23.7414398 | D12: =FemalesSE!AC8/All!AC8*100 -> 5.342009745 | E12: =Females!AC8/All!AC8*100 -> 48.74921977
A13: Total employment | B13: =FT!AC8/All!AC8*100 -> 52.82431768 | C13: =PT!AC8/All!AC8*100 -> 31.91646721 | D13: =SE!AC8/All!AC8*100 -> 15.25921511 | E13: =All!AC8/All!AC8*100 -> 100
A15: ='Table 3.5'!A15 -> 2022
A16: Employment by Gender | B16: FT | C16: PT | D16: SE | E16: Total
A17: Male employment | B17: =MalesFT!AH8/All!AH8*100 -> 32.46701413 | C17: =MalesPT!AH8/All!AH8*100 -> 8.715843712 | D17: =MalesSE!AH8/All!AH8*100 -> 9.633916956 | E17: =Males!AH8/All!AH8*100 -> 50.8167748
A18: Female employment | B18: =FemalesFT!AH8/All!AH8*100 -> 19.91667564 | C18: =FemalesPT!AH8/All!AH8*100 -> 24.00555588 | D18: =FemalesSE!AH8/All!AH8*100 -> 5.260993678 | E18: =Females!AH8/All!AH8*100 -> 49.1832252
A19: Total employment | B19: =FT!AH8/All!AH8*100 -> 52.38368978 | C19: =PT!AH8/All!AH8*100 -> 32.72139959 | D19: =SE!AH8/All!AH8*100 -> 14.89491063 | E19: =All!AH8/All!AH8*100 -> 100
A20: =CELL("filename",$A$1)&", "&Info!A1 -> R:\Research Info\Individual research project info\Working Futures 2012-2022\Working Futures quant projections 2012-2022\04 Reporting and outputs\Final outputs\Workbooks\Files for gov.uk\SW\[AllSWv2.xlsm]Table 3.6, South West

Sheet Table 3.7
A1: Table 3.7 | B1: Changes in Employment Status
E2: 000's
A3: =CONCATENATE('Table 3.5'!A3,"-",'Table 3.5'!A9) -> 2012-2017
A4: Employment by Gender | B4: FT | C4: PT | D4: SE | E4: Total
A5: Male employment | B5: =(MalesFT!AC8-MalesFT!X8)/1000 -> 4.993 | C5: =(MalesPT!AC8-MalesPT!X8)/1000 -> 19.814 | D5: =(MalesSE!AC8-MalesSE!X8)/1000 -> -0.989 | E5: =(Males!AC8-Males!X8)/1000 -> 23.818
A6: Female employment | B6: =(FemalesFT!AC8-FemalesFT!X8)/1000 -> 17.865 | C6: =(FemalesPT!AC8-FemalesPT!X8)/1000 -> 16.45 | D6: =(FemalesSE!AC8-FemalesSE!X8)/1000 -> 0.119 | E6: =(Females!AC8-Females!X8)/1000 -> 34.434
A7: Total employment | B7: =(FT!AC8-FT!X8)/1000 -> 22.858 | C7: =(PT!AC8-PT!X8)/1000 -> 36.264 | D7: =(SE!AC8-SE!X8)/1000 -> -0.87 | E7: =(All!AC8-All!X8)/1000 -> 58.252
A9: =CONCATENATE('Table 3.5'!A9,"-",'Table 3.5'!A15) -> 2017-2022
A10: Employment by Gender | B10: FT | C10: PT | D10: SE | E10: Total
A11: Male employment | B11: =(MalesFT!AH8-MalesFT!AC8)/1000 -> 12.313 | C11: =(MalesPT!AH8-MalesPT!AC8)/1000 -> 23.638 | D11: =(MalesSE!AH8-MalesSE!AC8)/1000 -> 1.468 | E11: =(Males!AH8-Males!AC8)/1000 -> 37.419
A12: Female employment | B12: =(FemalesFT!AH8-FemalesFT!AC8)/1000 -> 26.449 | C12: =(FemalesPT!AH8-FemalesPT!AC8)/1000 -> 30.807 | D12: =(FemalesSE!AH8-FemalesSE!AC8)/1000 -> 2.864 | E12: =(Females!AH8-Females!AC8)/1000 -> 60.12
A13: Total employment | B13: =(FT!AH8-FT!AC8)/1000 -> 38.762 | C13: =(PT!AH8-PT!AC8)/1000 -> 54.445 | D13: =(SE!AH8-SE!AC8)/1000 -> 4.332 | E13: =(All!AH8-All!AC8)/1000 -> 97.539
A15: =CONCATENATE('Table 3.5'!A3,"-",'Table 3.5'!A15) -> 2012-2022
A16: Employment by Gender | B16: FT | C16: PT | D16: SE | E16: Total
A17: Male employment | B17: =(MalesFT!AH8-MalesFT!X8)/1000 -> 17.306 | C17: =(MalesPT!AH8-MalesPT!X8)/1000 -> 43.452 | D17: =(MalesSE!AH8-MalesSE!X8)/1000 -> 0.479 | E17: =(Males!AH8-Males!X8)/1000 -> 61.237
A18: Female employment | B18: =(FemalesFT!AH8-FemalesFT!X8)/1000 -> 44.314 | C18: =(FemalesPT!AH8-FemalesPT!X8)/1000 -> 47.257 | D18: =(FemalesSE!AH8-FemalesSE!X8)/1000 -> 2.983 | E18: =(Females!AH8-Females!X8)/1000 -> 94.554
A19: Total employment | B19: =(FT!AH8-FT!X8)/1000 -> 61.62 | C19: =(PT!AH8-PT!X8)/1000 -> 90.709 | D19: =(SE!AH8-SE!X8)/1000 -> 3.462 | E19: =(All!AH8-All!X8)/1000 -> 155.791
A20: =CELL("filename",$A$1)&", "&Info!A1 -> R:\Research Info\Individual research project info\Working Futures 2012-2022\Working Futures quant projections 2012-2022\04 Reporting and outputs\Final outputs\Workbooks\Files for gov.uk\SW\[AllSWv2.xlsm]Table 3.7, South West

Sheet Table 4.1 T
H1: Net changes for Figure 4.1 to 4
A2: Table 4.1 | B2: Occupational Categories SOC2010 - Major Groups
A3: All Industry Sectors
A5: Employment Levels (000s) | J5: (Order reversed for chart)
B6: =All!D7 -> 1992 | C6: =All!N7 -> 2002 | D6: =All!X7 -> 2012 | E6: =All!AC7 -> 2017 | F6: =All!AH7 -> 2022 | H6: =CONCATENATE(B6,"-",C6) -> 1992-2002 | I6: =CONCATENATE(C6,"-",D6) -> 2002-2012 | J6: =CONCATENATE(D6,"-",F6) -> 2012-2022
A7: ="1. "&names!B4 -> 1. Managers, directors and senior officials | B7: =(All!D9+All!D10)/1000 -> 189.281592 | C7: =(All!N9+All!N10)/1000 -> 238.349991 | D7: =(All!X9+All!X10)/1000 -> 285.357679 | E7: =(All!AC9+All!AC10)/1000 -> 305.711997 | F7: =(All!AH9+All!AH10)/1000 -> 331.851866 | J7: =F16-D16 -> 155.791
A8: ="2. "&names!B5 -> 2. Professional occupations | B8: =(All!D11+All!D12+All!D13+All!D14)/1000 -> 322.949885 | C8: =(All!N11+All!N12+All!N13+All!N14)/1000 -> 400.566033 | D8: =(All!X11+All!X12+All!X13+All!X14)/1000 -> 519.727596 | E8: =(All!AC11+All!AC12+All!AC13+All!AC14)/1000 -> 574.532916 | F8: =(All!AH11+All!AH12+All!AH13+All!AH14)/1000 -> 618.507754 | H8: =A15 -> 9. Elementary occupations | J8: =F15-D15 -> -8.052593
A9: ="3. "&names!B6 -> 3. Associate professional and technical | B9: =(All!D15+All!D16+All!D17+All!D18+All!D19)/1000 -> 228.803987 | C9: =(All!N15+All!N16+All!N17+All!N18+All!N19)/1000 -> 281.484975 | D9: =(All!X15+All!X16+All!X17+All!X18+All!X19)/1000 -> 323.30043 | E9: =(All!AC15+All!AC16+All!AC17+All!AC18+All!AC19)/1000 -> 345.343954 | F9: =(All!AH15+All!AH16+All!AH17+All!AH18+All!AH19)/1000 -> 369.840579 | H9: =A14 -> 8. Process, plant and machine operatives | J9: =F14-D14 -> -15.747377
A10: ="4. "&names!B7 -> 4. Administrative and secretarial | B10: =(All!D20+All!D21)/1000 -> 355.916783 | C10: =(All!N20+All!N21)/1000 -> 328.402521 | D10: =(All!X20+All!X21)/1000 -> 306.002256 | E10: =(All!AC20+All!AC21)/1000 -> 282.194279 | F10: =(All!AH20+All!AH21)/1000 -> 262.94304 | H10: =A13 -> 7. Sales and customer service | J10: =F13-D13 -> -7.029782
A11: ="5. "&names!B8 -> 5. Skilled trades occupations | B11: =(All!D22+All!D23+All!D24+All!D25)/1000 -> 369.003118 | C11: =(All!N22+All!N23+All!N24+All!N25)/1000 -> 354.488358 | D11: =(All!X22+All!X23+All!X24+All!X25)/1000 -> 342.425114 | E11: =(All!AC22+All!AC23+All!AC24+All!AC25)/1000 -> 325.319977 | F11: =(All!AH22+All!AH23+All!AH24+All!AH25)/1000 -> 315.577454 | H11: =A12 -> 6. Caring, leisure and other service | J11: =F12-D12 -> 64.713133
A12: ="6. "&names!B9 -> 6. Caring, leisure and other service | B12: =(All!D26+All!D27)/1000 -> 138.920628 | C12: =(All!N26+All!N27)/1000 -> 208.157755 | D12: =(All!X26+All!X27)/1000 -> 277.530399 | E12: =(All!AC26+All!AC27)/1000 -> 310.057176 | F12: =(All!AH26+All!AH27)/1000 -> 342.243532 | H12: =A11 -> 5. Skilled trades occupations | J12: =F11-D11 -> -26.84766
A13: ="7. "&names!B10 -> 7. Sales and customer service | B13: =(All!D28+All!D29)/1000 -> 187.33627 | C13: =(All!N28+All!N29)/1000 -> 232.706851 | D13: =(All!X28+All!X29)/1000 -> 241.449111 | E13: =(All!AC28+All!AC29)/1000 -> 234.068851 | F13: =(All!AH28+All!AH29)/1000 -> 234.419329 | H13: =A10 -> 4. Administrative and secretarial | J13: =F10-D10 -> -43.059216
A14: ="8. "&names!B11 -> 8. Process, plant and machine operatives | B14: =(All!D30+All!D31)/1000 -> 168.777731 | C14: =(All!N30+All!N31)/1000 -> 164.708709 | D14: =(All!X30+All!X31)/1000 -> 156.893522 | E14: =(All!AC30+All!AC31)/1000 -> 146.921575 | F14: =(All!AH30+All!AH31)/1000 -> 141.146145 | H14: =A9 -> 3. Associate professional and technical | J14: =F9-D9 -> 46.540149
A15: ="9. "&names!B12 -> 9. Elementary occupations | B15: =(All!D32+All!D33)/1000 -> 287.937005 | C15: =(All!N32+All!N33)/1000 -> 303.557808 | D15: =(All!X32+All!X33)/1000 -> 287.914895 | E15: =(All!AC32+All!AC33)/1000 -> 274.702276 | F15: =(All!AH32+All!AH33)/1000 -> 279.862302 | H15: =A8 -> 2. Professional occupations | J15: =F8-D8 -> 98.780158
A16: Total | B16: =All!D8/1000 -> 2248.927 | C16: =All!N8/1000 -> 2512.423 | D16: =All!X8/1000 -> 2740.601 | E16: =All!AC8/1000 -> 2798.853 | F16: =All!AH8/1000 -> 2896.392 | H16: =A7 -> 1. Managers, directors and senior officials | J16: =F7-D7 -> 46.494187
A19: Percentage Shares
B20: =B6 -> 1992 | C20: =C6 -> 2002 | D20: =D6 -> 2012 | E20: =E6 -> 2017 | F20: =F6 -> 2022
A21: =A7 -> 1. Managers, directors and senior officials | B21: =B7/B$16*100 -> 8.416528949 | C21: =C7/C$16*100 -> 9.486857547 | D21: 10.41222998 | E21: 10.92276004 | F21: 11.45742241
A22: =A8 -> 2. Professional occupations | B22: 14.36017643 | C22: =C8/C$16*100 -> 15.9434153 | D22: 18.96400082 | E22: 20.52744163 | F22: 21.35442143
A23: 3. Associate professional and technical | B23: 10.17391792 | C23: =C9/C$16*100 -> 11.20372545 | D23: 11.79669824 | E23: 12.33876713 | F23: 12.76900982
A24: 4. Administrative and secretarial | B24: 15.82607097 | C24: =C10/C$16*100 -> 13.07114769 | D24: 11.16551647 | E24: 10.08249733 | F24: 9.078296032
A25: 5. Skilled trades occupations | B25: 16.40796335 | C25: =C11/C$16*100 -> 14.10942178 | D25: 12.49452635 | E25: 11.62333202 | F25: 10.89553672
A26: 6. Caring, leisure and other service | B26: 6.177195969 | C26: =C12/C$16*100 -> 8.285139684 | D26: 10.12662547 | E26: 11.0780086 | F26: 11.81620209
A27: 7. Sales and customer service | B27: 8.330028943 | C27: =C13/C$16*100 -> 9.262248077 | D27: 8.810078921 | E27: 8.363027676 | F27: 8.093494562
A28: 8. Process, plant and machine operatives | B28: 7.50481145 | C28: =C14/C$16*100 -> 6.555771421 | D28: 5.724785257 | E28: 5.249349466 | F28: 4.873171346
A29: 9. Elementary occupations | B29: 12.80330598 | C29: =C15/C$16*100 -> 12.08227309 | D29: 10.50553857 | E29: 9.814816141 | F29: 9.662445622
A30: Total | B30: 100 | C30: =C16/C$16*100 -> 100 | D30: 100 | E30: 100 | F30: 100
A32: Net Changes | B32: =CONCATENATE(B20,"-",C20) -> 1992-2002 | C32: =CONCATENATE(C20,"-",D20) -> 2002-2012 | D32: =CONCATENATE(D20,"-",E20) -> 2012-2017 | E32: =CONCATENATE(E20,"-",F20) -> 2017-2022 | F32: =CONCATENATE(D20,"-",F20) -> 2012-2022
A34: =A21 -> 1. Managers, directors and senior officials | B34: =C7-B7 -> 49.068399 | C34: =D7-C7 -> 47.007688 | D34: =E7-D7 -> 20.354318 | E34: =F7-E7 -> 26.139869 | F34: =F7-D7 -> 46.494187
A35: =A22 -> 2. Professional occupations | B35: =C8-B8 -> 77.616148 | C35: 119.161563 | D35: =E8-D8 -> 54.80532 | E35: 43.974838 | F35: =F8-D8 -> 98.780158
A36: 3. Associate professional and technical | B36: 52.680988 | C36: 41.815455 | D36: =E9-D9 -> 22.043524 | E36: 24.496625 | F36: 46.540149
A37: 4. Administrative and secretarial | B37: -27.514262 | C37: -22.400265 | D37: =E10-D10 -> -23.807977 | E37: -19.251239 | F37: -43.059216
A38: 5. Skilled trades occupations | B38: -14.51476 | C38: -12.063244 | D38: =E11-D11 -> -17.105137 | E38: -9.742523 | F38: -26.84766
A39: 6. Caring, leisure and other service | B39: 69.237127 | C39: 69.372644 | D39: =E12-D12 -> 32.526777 | E39: 32.186356 | F39: 64.713133
A40: 7. Sales and customer service | B40: 45.370581 | C40: 8.74226 | D40: =E13-D13 -> -7.38026 | E40: 0.350478 | F40: -7.029782
A41: 8. Process, plant and machine operatives | B41: -4.069022 | C41: -7.815187 | D41: =E14-D14 -> -9.971947 | E41: -5.77543 | F41: -15.747377
A42: 9. Elementary occupations | B42: 15.620803 | C42: -15.642913 | D42: =E15-D15 -> -13.212619 | E42: 5.160026 | F42: -8.052593
A43: Total | B43: 263.496 | C43: 228.178 | D43: =E16-D16 -> 58.252 | E43: 97.539 | F43: 155.791
A44: =CELL("filename",$A$2)&", "&Info!A1 -> R:\Research Info\Individual research project info\Working Futures 2012-2022\Working Futures quant projections 2012-2022\04 Reporting and outputs\Final outputs\Workbooks\Files for gov.uk\SW\[AllSWv2.xlsm]Table 4.1 T, South West

Sheet Table 4.1 F
H1: Net changes for Figure 4.1 to 4
A2: Table 4.1 Females | B2: Occupational Categories SOC2010 - Major Groups
A3: All Industry Sectors
A5: Employment Levels (000s) | J5: (Order reversed for chart)
B6: =Females!D7 -> 1992 | C6: =Females!N7 -> 2002 | D6: =Females!X7 -> 2012 | E6: =Females!AC7 -> 2017 | F6: =Females!AH7 -> 2022 | H6: =CONCATENATE(B6,"-",C6) -> 1992-2002 | I6: =CONCATENATE(C6,"-",D6) -> 2002-2012 | J6: =CONCATENATE(D6,"-",F6) -> 2012-2022
A7: ="1. "&names!B4 -> 1. Managers, directors and senior officials | B7: =(Females!D9+Females!D10)/1000 -> 51.208687 | C7: =(Females!N9+Females!N10)/1000 -> 68.816446 | D7: =(Females!X9+Females!X10)/1000 -> 92.650417 | E7: =(Females!AC9+Females!AC10)/1000 -> 104.456519 | F7: =(Females!AH9+Females!AH10)/1000 -> 119.376125 | J7: =F16-D16 -> 94.554
A8: ="2. "&names!B5 -> 2. Professional occupations | B8: =(Females!D11+Females!D12+Females!D13+Females!D14)/1000 -> 144.068373 | C8: =(Females!N11+Females!N12+Females!N13+Females!N14)/1000 -> 181.641206 | D8: =(Females!X11+Females!X12+Females!X13+Females!X14)/1000 -> 254.265937 | E8: =(Females!AC11+Females!AC12+Females!AC13+Females!AC14)/1000 -> 289.45021 | F8: =(Females!AH11+Females!AH12+Females!AH13+Females!AH14)/1000 -> 321.740199 | J8: =F15-D15 -> -12.8152
A9: ="3. "&names!B6 -> 3. Associate professional and technical | B9: =(Females!D15+Females!D16+Females!D17+Females!D18+Females!D19)/1000 -> 74.001222 | C9: =(Females!N15+Females!N16+Females!N17+Females!N18+Females!N19)/1000 -> 105.130108 | D9: =(Females!X15+Females!X16+Females!X17+Females!X18+Females!X19)/1000 -> 138.047227 | E9: =(Females!AC15+Females!AC16+Females!AC17+Females!AC18+Females!AC19)/1000 -> 153.093494 | F9: =(Females!AH15+Females!AH16+Females!AH17+Females!AH18+Females!AH19)/1000 -> 170.439304 | J9: =F14-D14 -> -4.283221
A10: ="4. "&names!B7 -> 4. Administrative and secretarial | B10: =(Females!D20+Females!D21)/1000 -> 295.273557 | C10: =(Females!N20+Females!N21)/1000 -> 264.674458 | D10: =(Females!X20+Females!X21)/1000 -> 250.285686 | E10: =(Females!AC20+Females!AC21)/1000 -> 228.592411 | F10: =(Females!AH20+Females!AH21)/1000 -> 209.521653 | J10: =F13-D13 -> -20.703547
A11: ="5. "&names!B8 -> 5. Skilled trades occupations | B11: =(Females!D22+Females!D23+Females!D24+Females!D25)/1000 -> 60.036037 | C11: =(Females!N22+Females!N23+Females!N24+Females!N25)/1000 -> 48.335189 | D11: =(Females!X22+Females!X23+Females!X24+Females!X25)/1000 -> 47.771921 | E11: =(Females!AC22+Females!AC23+Females!AC24+Females!AC25)/1000 -> 41.162017 | F11: =(Females!AH22+Females!AH23+Females!AH24+Females!AH25)/1000 -> 38.100167 | J11: =F12-D12 -> 56.199709
A12: ="6. "&names!B9 -> 6. Caring, leisure and other service | B12: =(Females!D26+Females!D27)/1000 -> 119.834604 | C12: =(Females!N26+Females!N27)/1000 -> 174.817621 | D12: =(Females!X26+Females!X27)/1000 -> 240.905983 | E12: =(Females!AC26+Females!AC27)/1000 -> 268.965743 | F12: =(Females!AH26+Females!AH27)/1000 -> 297.105692 | J12: =F11-D11 -> -9.671754
A13: ="7. "&names!B10 -> 7. Sales and customer service | B13: =(Females!D28+Females!D29)/1000 -> 139.429778 | C13: =(Females!N28+Females!N29)/1000 -> 162.762163 | D13: =(Females!X28+Females!X29)/1000 -> 163.907447 | E13: =(Females!AC28+Females!AC29)/1000 -> 150.307964 | F13: =(Females!AH28+Females!AH29)/1000 -> 143.2039 | J13: =F10-D10 -> -40.764033
A14: ="8. "&names!B11 -> 8. Process, plant and machine operatives | B14: =(Females!D30+Females!D31)/1000 -> 31.001115 | C14: =(Females!N30+Females!N31)/1000 -> 24.520789 | D14: =(Females!X30+Females!X31)/1000 -> 19.469956 | E14: =(Females!AC30+Females!AC31)/1000 -> 17.059584 | F14: =(Females!AH30+Females!AH31)/1000 -> 15.186735 | J14: =F9-D9 -> 32.392077
A15: ="9. "&names!B12 -> 9. Elementary occupations | B15: =(Females!D32+Females!D33)/1000 -> 163.529625 | C15: =(Females!N32+Females!N33)/1000 -> 146.776018 | D15: =(Females!X32+Females!X33)/1000 -> 122.680426 | E15: =(Females!AC32+Females!AC33)/1000 -> 111.331062 | F15: =(Females!AH32+Females!AH33)/1000 -> 109.865226 | J15: =F8-D8 -> 67.474262
A16: Total | B16: =Females!D8/1000 -> 1078.383 | C16: =Females!N8/1000 -> 1177.474 | D16: =Females!X8/1000 -> 1329.985 | E16: =Females!AC8/1000 -> 1364.419 | F16: =Females!AH8/1000 -> 1424.539 | J16: =F7-D7 -> 26.725708
A19: Percentage Shares
B20: =B6 -> 1992 | C20: =C6 -> 2002 | D20: =D6 -> 2012 | E20: =E6 -> 2017 | F20: =F6 -> 2022
A21: =A7 -> 1. Managers, directors and senior officials | B21: =B7/B$16*100 -> 4.748654884 | C21: 5.84441321 | D21: 6.966275334 | E21: 7.655750836 | F21: 8.379982928
A22: =A8 -> 2. Professional occupations | B22: 13.35966656 | C22: 15.42634538 | D22: 19.11795524 | E22: 21.21417321 | F22: 22.58556621
A23: 3. Associate professional and technical | B23: 6.862239297 | C23: 8.92844411 | D23: 10.37960782 | E23: 11.22041646 | F23: 11.96452354
A24: 4. Administrative and secretarial | B24: 27.38113982 | C24: 22.47815731 | D24: 18.81868487 | E24: 16.75382789 | F24: 14.70803207
A25: 5. Skilled trades occupations | B25: 5.567227692 | C25: 4.104989919 | D25: 3.59191427 | E25: 3.016816462 | F25: 2.674561174
A26: 6. Caring, leisure and other service | B26: 11.11243445 | C26: 14.84683492 | D26: 18.11343609 | E26: 19.71284063 | F26: 20.85626943
A27: 7. Sales and customer service | B27: 12.929523 | C27: 13.82299422 | D27: 12.32400719 | E27: 11.01626143 | F27: 10.05264861
A28: 8. Process, plant and machine operatives | B28: 2.874777792 | C28: 2.082490909 | D28: 1.463922977 | E28: 1.250318561 | F28: 1.066080676
A29: 9. Elementary occupations | B29: 15.16433633 | C29: 12.46532985 | D29: 9.224196213 | E29: 8.159594817 | F29: 7.712335429
A30: Total | B30: 100 | C30: 100 | D30: 100 | E30: 100 | F30: 100
A31: =CELL("filename",$A$2)&", "&Info!A1 -> R:\Research Info\Individual research project info\Working Futures 2012-2022\Working Futures quant projections 2012-2022\04 Reporting and outputs\Final outputs\Workbooks\Files for gov.uk\SW\[AllSWv2.xlsm]Table 4.1 F, South West

Sheet Table 4.1 M
H1: Net changes for Figure 4.1 to 4
A2: Table 4.1 Males | B2: Occupational Categories SOC2010 - Major Groups
A3: All Industry Sectors
A5: Employment Levels (000s) | J5: (Order reversed for chart)
B6: =Males!D7 -> 1992 | C6: =Males!N7 -> 2002 | D6: =Males!X7 -> 2012 | E6: =Males!AC7 -> 2017 | F6: =Males!AH7 -> 2022 | H6: =CONCATENATE(B6,"-",C6) -> 1992-2002 | I6: =CONCATENATE(C6,"-",D6) -> 2002-2012 | J6: =CONCATENATE(D6,"-",F6) -> 2012-2022
A7: ="1. "&names!B4 -> 1. Managers, directors and senior officials | B7: =(Males!D9+Males!D10)/1000 -> 138.072905 | C7: =(Males!N9+Males!N10)/1000 -> 169.533545 | D7: =(Males!X9+Males!X10)/1000 -> 192.707262 | E7: =(Males!AC9+Males!AC10)/1000 -> 201.255478 | F7: =(Males!AH9+Males!AH10)/1000 -> 212.475741 | J7: =F16-D16 -> 61.237
A8: ="2. "&names!B5 -> 2. Professional occupations | B8: =(Males!D11+Males!D12+Males!D13+Males!D14)/1000 -> 178.881513 | C8: =(Males!N11+Males!N12+Males!N13+Males!N14)/1000 -> 218.924825 | D8: =(Males!X11+Males!X12+Males!X13+Males!X14)/1000 -> 265.461658 | E8: =(Males!AC11+Males!AC12+Males!AC13+Males!AC14)/1000 -> 285.082706 | F8: =(Males!AH11+Males!AH12+Males!AH13+Males!AH14)/1000 -> 296.767556 | J8: =F15-D15 -> 4.762607
A9: ="3. "&names!B6 -> 3. Associate professional and technical | B9: =(Males!D15+Males!D16+Males!D17+Males!D18+Males!D19)/1000 -> 154.802763 | C9: =(Males!N15+Males!N16+Males!N17+Males!N18+Males!N19)/1000 -> 176.354865 | D9: =(Males!X15+Males!X16+Males!X17+Males!X18+Males!X19)/1000 -> 185.253203 | E9: =(Males!AC15+Males!AC16+Males!AC17+Males!AC18+Males!AC19)/1000 -> 192.25046 | F9: =(Males!AH15+Males!AH16+Males!AH17+Males!AH18+Males!AH19)/1000 -> 199.401274 | J9: =F14-D14 -> -11.464156
A10: ="4. "&names!B7 -> 4. Administrative and secretarial | B10: =(Males!D20+Males!D21)/1000 -> 60.643225 | C10: =(Males!N20+Males!N21)/1000 -> 63.728063 | D10: =(Males!X20+Males!X21)/1000 -> 55.716569 | E10: =(Males!AC20+Males!AC21)/1000 -> 53.601867 | F10: =(Males!AH20+Males!AH21)/1000 -> 53.421387 | J10: =F13-D13 -> 13.673765
A11: ="5. "&names!B8 -> 5. Skilled trades occupations | B11: =(Males!D22+Males!D23+Males!D24+Males!D25)/1000 -> 308.967082 | C11: =(Males!N22+Males!N23+Males!N24+Males!N25)/1000 -> 306.153169 | D11: =(Males!X22+Males!X23+Males!X24+Males!X25)/1000 -> 294.653193 | E11: =(Males!AC22+Males!AC23+Males!AC24+Males!AC25)/1000 -> 284.157961 | F11: =(Males!AH22+Males!AH23+Males!AH24+Males!AH25)/1000 -> 277.477287 | J11: =F12-D12 -> 8.513423
A12: ="6. "&names!B9 -> 6. Caring, leisure and other service | B12: =(Males!D26+Males!D27)/1000 -> 19.086024 | C12: =(Males!N26+Males!N27)/1000 -> 33.340134 | D12: =(Males!X26+Males!X27)/1000 -> 36.624416 | E12: =(Males!AC26+Males!AC27)/1000 -> 41.091433 | F12: =(Males!AH26+Males!AH27)/1000 -> 45.137839 | J12: =F11-D11 -> -17.175906
A13: ="7. "&names!B10 -> 7. Sales and customer service | B13: =(Males!D28+Males!D29)/1000 -> 47.906493 | C13: =(Males!N28+Males!N29)/1000 -> 69.944687 | D13: =(Males!X28+Males!X29)/1000 -> 77.541664 | E13: =(Males!AC28+Males!AC29)/1000 -> 83.760887 | F13: =(Males!AH28+Males!AH29)/1000 -> 91.215429 | J13: =F10-D10 -> -2.295182
A14: ="8. "&names!B11 -> 8. Process, plant and machine operatives | B14: =(Males!D30+Males!D31)/1000 -> 137.776617 | C14: =(Males!N30+Males!N31)/1000 -> 140.18792 | D14: =(Males!X30+Males!X31)/1000 -> 137.423566 | E14: =(Males!AC30+Males!AC31)/1000 -> 129.861992 | F14: =(Males!AH30+Males!AH31)/1000 -> 125.95941 | J14: =F9-D9 -> 14.148071
A15: ="9. "&names!B12 -> 9. Elementary occupations | B15: =(Males!D32+Males!D33)/1000 -> 124.407379 | C15: =(Males!N32+Males!N33)/1000 -> 156.78179 | D15: =(Males!X32+Males!X33)/1000 -> 165.234468 | E15: =(Males!AC32+Males!AC33)/1000 -> 163.371214 | F15: =(Males!AH32+Males!AH33)/1000 -> 169.997075 | J15: =F8-D8 -> 31.305898
A16: Total | B16: =Males!D8/1000 -> 1170.544 | C16: =Males!N8/1000 -> 1334.949 | D16: =Males!X8/1000 -> 1410.616 | E16: =Males!AC8/1000 -> 1434.434 | F16: =Males!AH8/1000 -> 1471.853 | J16: =F7-D7 -> 19.768479
A19: Percentage Shares
B20: =B6 -> 1992 | C20: =C6 -> 2002 | D20: =D6 -> 2012 | E20: =E6 -> 2017 | F20: =F6 -> 2022
A21: =A7 -> 1. Managers, directors and senior officials | B21: =B7/B$16*100 -> 11.79561853 | C21: 12.6996271 | D21: 13.6612134 | E21: 14.03030589 | F21: 14.43593491
A22: =A8 -> 2. Professional occupations | B22: 15.28191277 | C22: 16.39948979 | D22: 18.81884638 | E22: 19.87422956 | F22: 20.16285295
A23: 3. Associate professional and technical | B23: 13.22485639 | C23: 13.21060692 | D23: 13.13278759 | E23: 13.40253089 | F23: 13.54763512
A24: 4. Administrative and secretarial | B24: 5.180772786 | C24: 4.773820049 | D24: 3.949804128 | E24: 3.736795628 | F24: 3.629532773
A25: 5. Skilled trades occupations | B25: 26.39517028 | C25: 22.93369777 | D25: 20.88826392 | E25: 19.80976197 | F25: 18.85224183
A26: 6. Caring, leisure and other service | B26: 1.630525978 | C26: 2.497483724 | D26: 2.596342024 | E26: 2.864644382 | F26: 3.066735537
A27: 7. Sales and customer service | B27: 4.092669135 | C27: 5.239502558 | D27: 5.497007265 | E27: 5.839298776 | F27: 6.19731923
A28: 8. Process, plant and machine operatives | B28: 11.77030654 | C28: 10.50136897 | D28: 9.742096077 | E28: 9.053186971 | F28: 8.557879761
A29: 9. Elementary occupations | B29: 10.62816767 | C29: 11.74440297 | D29: 11.71363915 | E29: 11.38924579 | F29: 11.54986775
A30: Total | B30: 100 | C30: 100 | D30: 100 | E30: 100 | F30: 100
A31: =CELL("filename",$A$2)&", "&Info!A1 -> R:\Research Info\Individual research project info\Working Futures 2012-2022\Working Futures quant projections 2012-2022\04 Reporting and outputs\Final outputs\Workbooks\Files for gov.uk\SW\[AllSWv2.xlsm]Table 4.1 M, South West

Sheet Table 4.1 FT
A1: Table 4.1 Total FT | B1: Occupational Categories SOC2010 - Major Groups | H1: Net changes for Figure 4.1 to 4
A3: All Industry Sectors
A5: Employment Levels (000s) | J5: (Order reversed for chart)
B6: =FT!D7 -> 1992 | C6: =FT!N7 -> 2002 | D6: =FT!X7 -> 2012 | E6: =FT!AC7 -> 2017 | F6: =FT!AH7 -> 2022 | H6: =CONCATENATE(B6,"-",C6) -> 1992-2002 | I6: =CONCATENATE(C6,"-",D6) -> 2002-2012 | J6: =CONCATENATE(D6,"-",F6) -> 2012-2022
A7: ="1. "&names!B4 -> 1. Managers, directors and senior officials | B7: =(FT!D9+FT!D10)/1000 -> 115.054785 | C7: =(FT!N9+FT!N10)/1000 -> 162.162477 | D7: =(FT!X9+FT!X10)/1000 -> 198.790515 | E7: =(FT!AC9+FT!AC10)/1000 -> 215.318237 | F7: =(FT!AH9+FT!AH10)/1000 -> 234.761021 | J7: =F16-D16 -> 61.62
A8: ="2. "&names!B5 -> 2. Professional occupations | B8: =(FT!D11+FT!D12+FT!D13+FT!D14)/1000 -> 194.075784 | C8: =(FT!N11+FT!N12+FT!N13+FT!N14)/1000 -> 249.661047 | D8: =(FT!X11+FT!X12+FT!X13+FT!X14)/1000 -> 304.662126 | E8: =(FT!AC11+FT!AC12+FT!AC13+FT!AC14)/1000 -> 331.561887 | F8: =(FT!AH11+FT!AH12+FT!AH13+FT!AH14)/1000 -> 352.272427 | J8: =F15-D15 -> -2.773375
A9: ="3. "&names!B6 -> 3. Associate professional and technical | B9: =(FT!D15+FT!D16+FT!D17+FT!D18+FT!D19)/1000 -> 165.165745 | C9: =(FT!N15+FT!N16+FT!N17+FT!N18+FT!N19)/1000 -> 193.851636 | D9: =(FT!X15+FT!X16+FT!X17+FT!X18+FT!X19)/1000 -> 202.353355 | E9: =(FT!AC15+FT!AC16+FT!AC17+FT!AC18+FT!AC19)/1000 -> 213.163397 | F9: =(FT!AH15+FT!AH16+FT!AH17+FT!AH18+FT!AH19)/1000 -> 225.924098 | J9: =F14-D14 -> -18.119182
A10: ="4. "&names!B7 -> 4. Administrative and secretarial | B10: =(FT!D20+FT!D21)/1000 -> 219.114043 | C10: =(FT!N20+FT!N21)/1000 -> 180.182873 | D10: =(FT!X20+FT!X21)/1000 -> 149.831876 | E10: =(FT!AC20+FT!AC21)/1000 -> 139.142208 | F10: =(FT!AH20+FT!AH21)/1000 -> 130.49947 | J10: =F13-D13 -> -3.558306
A11: ="5. "&names!B8 -> 5. Skilled trades occupations | B11: =(FT!D22+FT!D23+FT!D24+FT!D25)/1000 -> 197.119771 | C11: =(FT!N22+FT!N23+FT!N24+FT!N25)/1000 -> 210.389722 | D11: =(FT!X22+FT!X23+FT!X24+FT!X25)/1000 -> 185.768927 | E11: =(FT!AC22+FT!AC23+FT!AC24+FT!AC25)/1000 -> 176.331021 | F11: =(FT!AH22+FT!AH23+FT!AH24+FT!AH25)/1000 -> 168.34826 | J11: =F12-D12 -> 15.672386
A12: ="6. "&names!B9 -> 6. Caring, leisure and other service | B12: =(FT!D26+FT!D27)/1000 -> 48.353556 | C12: =(FT!N26+FT!N27)/1000 -> 74.744759 | D12: =(FT!X26+FT!X27)/1000 -> 95.790807 | E12: =(FT!AC26+FT!AC27)/1000 -> 102.77207 | F12: =(FT!AH26+FT!AH27)/1000 -> 111.463193 | J12: =F11-D11 -> -17.420667
A13: ="7. "&names!B10 -> 7. Sales and customer service | B13: =(FT!D28+FT!D29)/1000 -> 79.569908 | C13: =(FT!N28+FT!N29)/1000 -> 85.815514 | D13: =(FT!X28+FT!X29)/1000 -> 86.922523 | E13: =(FT!AC28+FT!AC29)/1000 -> 83.298635 | F13: =(FT!AH28+FT!AH29)/1000 -> 83.364217 | J13: =F10-D10 -> -19.332406
A14: ="8. "&names!B11 -> 8. Process, plant and machine operatives | B14: =(FT!D30+FT!D31)/1000 -> 134.365961 | C14: =(FT!N30+FT!N31)/1000 -> 122.272484 | D14: =(FT!X30+FT!X31)/1000 -> 112.04519 | E14: =(FT!AC30+FT!AC31)/1000 -> 101.457839 | F14: =(FT!AH30+FT!AH31)/1000 -> 93.926008 | J14: =F9-D9 -> 23.570743
A15: ="9. "&names!B12 -> 9. Elementary occupations | B15: =(FT!D32+FT!D33)/1000 -> 108.529446 | C15: =(FT!N32+FT!N33)/1000 -> 117.672489 | D15: =(FT!X32+FT!X33)/1000 -> 119.451682 | E15: =(FT!AC32+FT!AC33)/1000 -> 115.429706 | F15: =(FT!AH32+FT!AH33)/1000 -> 116.678307 | J15: =F8-D8 -> 47.610301
A16: Total | B16: =FT!D8/1000 -> 1261.349 | C16: =FT!N8/1000 -> 1396.753 | D16: =FT!X8/1000 -> 1455.617 | E16: =FT!AC8/1000 -> 1478.475 | F16: =FT!AH8/1000 -> 1517.237 | J16: =F7-D7 -> 35.970506
A19: Percentage Shares
B20: =B6 -> 1992 | C20: =C6 -> 2002 | D20: =D6 -> 2012 | E20: =E6 -> 2017 | F20: =F6 -> 2022
A21: =A7 -> 1. Managers, directors and senior officials | B21: =B7/B$16*100 -> 9.121566275 | C21: 11.60996089 | D21: 13.65678712 | E21: 14.56353587 | F21: 15.47293014
A22: =A8 -> 2. Professional occupations | B22: 15.38636682 | C22: 17.87438774 | D22: 20.93010222 | E22: 22.42593801 | F22: 23.21802243
A23: 3. Associate professional and technical | B23: 13.09437317 | C23: 13.87873418 | D23: 13.90155206 | E23: 14.4177884 | F23: 14.89049489
A24: 4. Administrative and secretarial | B24: 17.37140498 | C24: 12.90012429 | D24: 10.29335849 | E24: 9.41119789 | F24: 8.601126258
A25: 5. Skilled trades occupations | B25: 15.62769471 | C25: 15.06277216 | D25: 12.76221197 | E25: 11.92654735 | F25: 11.0957128
A26: 6. Caring, leisure and other service | B26: 3.833479552 | C26: 5.351322603 | D26: 6.58077001 | E26: 6.95122136 | F26: 7.346458925
A27: 7. Sales and customer service | B27: 6.308318158 | C27: 6.143929098 | D27: 5.971524309 | E27: 5.634091547 | F27: 5.494475616
A28: 8. Process, plant and machine operatives | B28: 10.65256016 | C28: 8.754052005 | D28: 7.697436207 | E28: 6.862330374 | F28: 6.190595668
A29: 9. Elementary occupations | B29: 8.6042361 | C29: 8.424717112 | D29: 8.20625769 | E29: 7.807349194 | F29: 7.69018334
A30: Total | B30: 100 | C30: 100 | D30: 100 | E30: 100 | F30: 100
A32: N:\Projects\SSDA Projections\workbooks\Allyy.xls, sheet Table4.1

Sheet Table 4.1 MFT
A1: Table 4.1 Males FT | B1: Occupational Categories SOC2010 - Major Groups | H1: Net changes for Figure 4.1 to 4
A3: All Industry Sectors
A5: Employment Levels (000s) | J5: (Order reversed for chart)
B6: =All!D7 -> 1992 | C6: =All!N7 -> 2002 | D6: =All!X7 -> 2012 | E6: =All!AC7 -> 2017 | F6: =All!AH7 -> 2022 | H6: =CONCATENATE(B6,"-",C6) -> 1992-2002 | I6: =CONCATENATE(C6,"-",D6) -> 2002-2012 | J6: =CONCATENATE(D6,"-",F6) -> 2012-2022
A7: ="1. "&names!B4 -> 1. Managers, directors and senior officials | B7: =(MalesFT!D9+MalesFT!D10)/1000 -> 90.863724 | C7: =(MalesFT!N9+MalesFT!N10)/1000 -> 123.771862 | D7: =(MalesFT!X9+MalesFT!X10)/1000 -> 146.983394 | E7: =(MalesFT!AC9+MalesFT!AC10)/1000 -> 155.425772 | F7: =(MalesFT!AH9+MalesFT!AH10)/1000 -> 165.566997 | J7: =F16-D16 -> 17.306
A8: ="2. "&names!B5 -> 2. Professional occupations | B8: =(MalesFT!D11+MalesFT!D12+MalesFT!D13+MalesFT!D14)/1000 -> 124.705443 | C8: =(MalesFT!N11+MalesFT!N12+MalesFT!N13+MalesFT!N14)/1000 -> 155.500726 | D8: =(MalesFT!X11+MalesFT!X12+MalesFT!X13+MalesFT!X14)/1000 -> 193.302351 | E8: =(MalesFT!AC11+MalesFT!AC12+MalesFT!AC13+MalesFT!AC14)/1000 -> 207.243535 | F8: =(MalesFT!AH11+MalesFT!AH12+MalesFT!AH13+MalesFT!AH14)/1000 -> 214.749929 | J8: =F15-D15 -> -1.922762
A9: ="3. "&names!B6 -> 3. Associate professional and technical | B9: =(MalesFT!D15+MalesFT!D16+MalesFT!D17+MalesFT!D18+MalesFT!D19)/1000 -> 122.585964 | C9: =(MalesFT!N15+MalesFT!N16+MalesFT!N17+MalesFT!N18+MalesFT!N19)/1000 -> 132.359312 | D9: =(MalesFT!X15+MalesFT!X16+MalesFT!X17+MalesFT!X18+MalesFT!X19)/1000 -> 133.275594 | E9: =(MalesFT!AC15+MalesFT!AC16+MalesFT!AC17+MalesFT!AC18+MalesFT!AC19)/1000 -> 135.966399 | F9: =(MalesFT!AH15+MalesFT!AH16+MalesFT!AH17+MalesFT!AH18+MalesFT!AH19)/1000 -> 139.80785 | J9: =F14-D14 -> -14.874629
A10: ="4. "&names!B7 -> 4. Administrative and secretarial | B10: =(MalesFT!D20+MalesFT!D21)/1000 -> 50.155648 | C10: =(MalesFT!N20+MalesFT!N21)/1000 -> 48.853089 | D10: =(MalesFT!X20+MalesFT!X21)/1000 -> 42.341235 | E10: =(MalesFT!AC20+MalesFT!AC21)/1000 -> 40.777022 | F10: =(MalesFT!AH20+MalesFT!AH21)/1000 -> 40.394963 | J10: =F13-D13 -> 1.256348
A11: ="5. "&names!B8 -> 5. Skilled trades occupations | B11: =(MalesFT!D22+MalesFT!D23+MalesFT!D24+MalesFT!D25)/1000 -> 174.755159 | C11: =(MalesFT!N22+MalesFT!N23+MalesFT!N24+MalesFT!N25)/1000 -> 189.257854 | D11: =(MalesFT!X22+MalesFT!X23+MalesFT!X24+MalesFT!X25)/1000 -> 164.345521 | E11: =(MalesFT!AC22+MalesFT!AC23+MalesFT!AC24+MalesFT!AC25)/1000 -> 156.550664 | F11: =(MalesFT!AH22+MalesFT!AH23+MalesFT!AH24+MalesFT!AH25)/1000 -> 149.769821 | J11: =F12-D12 -> 2.805575
A12: ="6. "&names!B9 -> 6. Caring, leisure and other service | B12: =(MalesFT!D26+MalesFT!D27)/1000 -> 11.064323 | C12: =(MalesFT!N26+MalesFT!N27)/1000 -> 18.182752 | D12: =(MalesFT!X26+MalesFT!X27)/1000 -> 18.080776 | E12: =(MalesFT!AC26+MalesFT!AC27)/1000 -> 19.455469 | F12: =(MalesFT!AH26+MalesFT!AH27)/1000 -> 20.886351 | J12: =F11-D11 -> -14.5757
A13: ="7. "&names!B10 -> 7. Sales and customer service | B13: =(MalesFT!D28+MalesFT!D29)/1000 -> 30.772271 | C13: =(MalesFT!N28+MalesFT!N29)/1000 -> 36.126221 | D13: =(MalesFT!X28+MalesFT!X29)/1000 -> 37.707871 | E13: =(MalesFT!AC28+MalesFT!AC29)/1000 -> 37.8131 | F13: =(MalesFT!AH28+MalesFT!AH29)/1000 -> 38.964219 | J13: =F10-D10 -> -1.946272
A14: ="8. "&names!B11 -> 8. Process, plant and machine operatives | B14: =(MalesFT!D30+MalesFT!D31)/1000 -> 115.676023 | C14: =(MalesFT!N30+MalesFT!N31)/1000 -> 108.499294 | D14: =(MalesFT!X30+MalesFT!X31)/1000 -> 102.52632 | E14: =(MalesFT!AC30+MalesFT!AC31)/1000 -> 93.638448 | F14: =(MalesFT!AH30+MalesFT!AH31)/1000 -> 87.651691 | J14: =F9-D9 -> 6.532256
A15: ="9. "&names!B12 -> 9. Elementary occupations | B15: =(MalesFT!D32+MalesFT!D33)/1000 -> 71.105443 | C15: =(MalesFT!N32+MalesFT!N33)/1000 -> 85.72789 | D15: =(MalesFT!X32+MalesFT!X33)/1000 -> 84.502939 | E15: =(MalesFT!AC32+MalesFT!AC33)/1000 -> 81.188591 | F15: =(MalesFT!AH32+MalesFT!AH33)/1000 -> 82.580177 | J15: =F8-D8 -> 21.447578
A16: Total | B16: =MalesFT!D8/1000 -> 791.684 | C16: =MalesFT!N8/1000 -> 898.279 | D16: =MalesFT!X8/1000 -> 923.066 | E16: =MalesFT!AC8/1000 -> 928.059 | F16: =MalesFT!AH8/1000 -> 940.372 | J16: =F7-D7 -> 18.583603
A19: Percentage Shares
B20: =B6 -> 1992 | C20: =C6 -> 2002 | D20: =D6 -> 2012 | E20: =E6 -> 2017 | F20: =F6 -> 2022
A21: =A7 -> 1. Managers, directors and senior officials | B21: =B7/B$16*100 -> 11.47727174 | C21: 13.7787772 | D21: 15.92338944 | E21: 16.74740205 | F21: 17.60654262
A22: =A8 -> 2. Professional occupations | B22: 15.7519216 | C22: 17.31096085 | D22: 20.94133583 | E22: 22.33085774 | F22: 22.83669963
A23: 3. Associate professional and technical | B23: 15.4842038 | C23: 14.73476637 | D23: 14.4383602 | E23: 14.65062017 | F23: 14.86729188
A24: 4. Administrative and secretarial | B24: 6.335311564 | C24: 5.43852066 | D24: 4.587021405 | E24: 4.3937963 | F24: 4.295636514
A25: 5. Skilled trades occupations | B25: 22.07385257 | C25: 21.06893894 | D25: 17.80430879 | E25: 16.86861116 | F25: 15.92665679
A26: 6. Caring, leisure and other service | B26: 1.397568095 | C26: 2.024176453 | D26: 1.958773912 | E26: 2.096361223 | F26: 2.221073256
A27: 7. Sales and customer service | B27: 3.886938602 | C27: 4.021714968 | D27: 4.085067698 | E27: 4.074428458 | F27: 4.143489917
A28: 8. Process, plant and machine operatives | B28: 14.61138826 | C28: 12.07857403 | D28: 11.10714943 | E28: 10.08970852 | F28: 9.320959259
A29: 9. Elementary occupations | B29: 8.98154352 | C29: 9.543570539 | D29: 9.154593388 | E29: 8.748214392 | F29: 8.781649922
A30: Total | B30: 100 | C30: 100 | D30: 100 | E30: 100 | F30: 100
A32: N:\Projects\SSDA Projections\workbooks\Allyy.xls, sheet Table4.1

Sheet Table 4.1 FFT
A1: Table 4.1 Females FT | B1: Occupational Categories SOC2010 - Major Groups | H1: Net changes for Figure 4.1 to 4
A3: All Industry Sectors
A5: Employment Levels (000s) | J5: (Order reversed for chart)
B6: =FemalesFT!D7 -> 1992 | C6: =FemalesFT!N7 -> 2002 | D6: =FemalesFT!X7 -> 2012 | E6: =FemalesFT!AC7 -> 2017 | F6: =FemalesFT!AH7 -> 2022 | H6: =CONCATENATE(B6,"-",C6) -> 1992-2002 | I6: =CONCATENATE(C6,"-",D6) -> 2002-2012 | J6: =CONCATENATE(D6,"-",F6) -> 2012-2022
A7: ="1. "&names!B4 -> 1. Managers, directors and senior officials | B7: =(FemalesFT!D9+FemalesFT!D10)/1000 -> 24.191062 | C7: =(FemalesFT!N9+FemalesFT!N10)/1000 -> 38.390615 | D7: =(FemalesFT!X9+FemalesFT!X10)/1000 -> 51.807123 | E7: =(FemalesFT!AC9+FemalesFT!AC10)/1000 -> 59.892465 | F7: =(FemalesFT!AH9+FemalesFT!AH10)/1000 -> 69.194025 | J7: =F16-D16 -> 44.314
A8: ="2. "&names!B5 -> 2. Professional occupations | B8: =(FemalesFT!D11+FemalesFT!D12+FemalesFT!D13+FemalesFT!D14)/1000 -> 69.370341 | C8: =(FemalesFT!N11+FemalesFT!N12+FemalesFT!N13+FemalesFT!N14)/1000 -> 94.160321 | D8: =(FemalesFT!X11+FemalesFT!X12+FemalesFT!X13+FemalesFT!X14)/1000 -> 111.359773 | E8: =(FemalesFT!AC11+FemalesFT!AC12+FemalesFT!AC13+FemalesFT!AC14)/1000 -> 124.318352 | F8: =(FemalesFT!AH11+FemalesFT!AH12+FemalesFT!AH13+FemalesFT!AH14)/1000 -> 137.522498 | J8: =F15-D15 -> -0.850614
A9: ="3. "&names!B6 -> 3. Associate professional and technical | B9: =(FemalesFT!D15+FemalesFT!D16+FemalesFT!D17+FemalesFT!D18+FemalesFT!D19)/1000 -> 42.579781 | C9: =(FemalesFT!N15+FemalesFT!N16+FemalesFT!N17+FemalesFT!N18+FemalesFT!N19)/1000 -> 61.492324 | D9: =(FemalesFT!X15+FemalesFT!X16+FemalesFT!X17+FemalesFT!X18+FemalesFT!X19)/1000 -> 69.077761 | E9: =(FemalesFT!AC15+FemalesFT!AC16+FemalesFT!AC17+FemalesFT!AC18+FemalesFT!AC19)/1000 -> 77.196999 | F9: =(FemalesFT!AH15+FemalesFT!AH16+FemalesFT!AH17+FemalesFT!AH18+FemalesFT!AH19)/1000 -> 86.116247 | J9: =F14-D14 -> -3.244551
A10: ="4. "&names!B7 -> 4. Administrative and secretarial | B10: =(FemalesFT!D20+FemalesFT!D21)/1000 -> 168.958395 | C10: =(FemalesFT!N20+FemalesFT!N21)/1000 -> 131.329785 | D10: =(FemalesFT!X20+FemalesFT!X21)/1000 -> 107.490643 | E10: =(FemalesFT!AC20+FemalesFT!AC21)/1000 -> 98.365186 | F10: =(FemalesFT!AH20+FemalesFT!AH21)/1000 -> 90.104506 | J10: =F13-D13 -> -4.814655
A11: ="5. "&names!B8 -> 5. Skilled trades occupations | B11: =(FemalesFT!D22+FemalesFT!D23+FemalesFT!D24+FemalesFT!D25)/1000 -> 22.364611 | C11: =(FemalesFT!N22+FemalesFT!N23+FemalesFT!N24+FemalesFT!N25)/1000 -> 21.131866 | D11: =(FemalesFT!X22+FemalesFT!X23+FemalesFT!X24+FemalesFT!X25)/1000 -> 21.423406 | E11: =(FemalesFT!AC22+FemalesFT!AC23+FemalesFT!AC24+FemalesFT!AC25)/1000 -> 19.780358 | F11: =(FemalesFT!AH22+FemalesFT!AH23+FemalesFT!AH24+FemalesFT!AH25)/1000 -> 18.578438 | J11: =F12-D12 -> 12.866812
A12: ="6. "&names!B9 -> 6. Caring, leisure and other service | B12: =(FemalesFT!D26+FemalesFT!D27)/1000 -> 37.289233 | C12: =(FemalesFT!N26+FemalesFT!N27)/1000 -> 56.562008 | D12: =(FemalesFT!X26+FemalesFT!X27)/1000 -> 77.71003 | E12: =(FemalesFT!AC26+FemalesFT!AC27)/1000 -> 83.316601 | F12: =(FemalesFT!AH26+FemalesFT!AH27)/1000 -> 90.576842 | J12: =F11-D11 -> -2.844968
A13: ="7. "&names!B10 -> 7. Sales and customer service | B13: =(FemalesFT!D28+FemalesFT!D29)/1000 -> 48.797636 | C13: =(FemalesFT!N28+FemalesFT!N29)/1000 -> 49.689293 | D13: =(FemalesFT!X28+FemalesFT!X29)/1000 -> 49.214652 | E13: =(FemalesFT!AC28+FemalesFT!AC29)/1000 -> 45.485535 | F13: =(FemalesFT!AH28+FemalesFT!AH29)/1000 -> 44.399997 | J13: =F10-D10 -> -17.386137
A14: ="8. "&names!B11 -> 8. Process, plant and machine operatives | B14: =(FemalesFT!D30+FemalesFT!D31)/1000 -> 18.689937 | C14: =(FemalesFT!N30+FemalesFT!N31)/1000 -> 13.773191 | D14: =(FemalesFT!X30+FemalesFT!X31)/1000 -> 9.518868 | E14: =(FemalesFT!AC30+FemalesFT!AC31)/1000 -> 7.819391 | F14: =(FemalesFT!AH30+FemalesFT!AH31)/1000 -> 6.274317 | J14: =F9-D9 -> 17.038486
A15: ="9. "&names!B12 -> 9. Elementary occupations | B15: =(FemalesFT!D32+FemalesFT!D33)/1000 -> 37.424002 | C15: =(FemalesFT!N32+FemalesFT!N33)/1000 -> 31.944599 | D15: =(FemalesFT!X32+FemalesFT!X33)/1000 -> 34.948743 | E15: =(FemalesFT!AC32+FemalesFT!AC33)/1000 -> 34.241114 | F15: =(FemalesFT!AH32+FemalesFT!AH33)/1000 -> 34.098129 | J15: =F8-D8 -> 26.162725
A16: Total | B16: =FemalesFT!D8/1000 -> 469.665 | C16: =FemalesFT!N8/1000 -> 498.474 | D16: =FemalesFT!X8/1000 -> 532.551 | E16: =FemalesFT!AC8/1000 -> 550.416 | F16: =FemalesFT!AH8/1000 -> 576.865 | J16: =F7-D7 -> 17.386902
A19: Percentage Shares
B20: =B6 -> 1992 | C20: =C6 -> 2002 | D20: =D6 -> 2012 | E20: =E6 -> 2017 | F20: =F6 -> 2022
A21: =A7 -> 1. Managers, directors and senior officials | B21: =B7/B$16*100 -> 5.150705716 | C21: 7.70162837 | D21: 9.728105477 | E21: 10.88130886 | F21: 11.99483848
A22: =A8 -> 2. Professional occupations | B22: 14.7701747 | C22: 18.88971561 | D22: 20.91063072 | E22: 22.58625331 | F22: 23.83963284
A23: 3. Associate professional and technical | B23: 9.065989801 | C23: 12.33611462 | D23: 12.97110718 | E23: 14.02520984 | F23: 14.92831893
A24: 4. Administrative and secretarial | B24: 35.97423589 | C24: 26.34636611 | D24: 20.18410312 | E24: 17.87106225 | F24: 15.61968676
A25: 5. Skilled trades occupations | B25: 4.761821937 | C25: 4.239311579 | D25: 4.022789554 | E25: 3.593710575 | F25: 3.220586792
A26: 6. Caring, leisure and other service | B26: 7.939538394 | C26: 11.34703274 | D26: 14.59203532 | E26: 15.13702381 | F26: 15.70156657
A27: 7. Sales and customer service | B27: 10.3898813 | C27: 9.968281796 | D27: 9.241303086 | E27: 8.2638468 | F27: 7.696774289
A28: 8. Process, plant and machine operatives | B28: 3.979418735 | C28: 2.763071093 | D28: 1.787409657 | E28: 1.420632939 | F28: 1.087657771
A29: 9. Elementary occupations | B29: 7.968233102 | C29: 6.408478476 | D29: 6.562515703 | E29: 6.220951789 | F29: 5.910937394
A30: Total | B30: 100 | C30: 100 | D30: 100 | E30: 100 | F30: 100
A32: N:\Projects\SSDA Projections\workbooks\Allyy.xls, sheet Table4.1

Sheet Table 4.1 PT
A1: Table 4.1 Total PT | B1: Occupational Categories SOC2010 - Major Groups | H1: Net changes for Figure 4.1 to 4
A3: All Industry Sectors
A5: Employment Levels (000s) | J5: (Order reversed for chart)
B6: =PT!D7 -> 1992 | C6: =PT!N7 -> 2002 | D6: =PT!X7 -> 2012 | E6: =PT!AC7 -> 2017 | F6: =PT!AH7 -> 2022 | H6: =CONCATENATE(B6,"-",C6) -> 1992-2002 | I6: =CONCATENATE(C6,"-",D6) -> 2002-2012 | J6: =CONCATENATE(D6,"-",F6) -> 2012-2022
A7: ="1. "&names!B4 -> 1. Managers, directors and senior officials | B7: =(PT!D9+PT!D10)/1000 -> 10.255679 | C7: =(PT!N9+PT!N10)/1000 -> 18.330152 | D7: =(PT!X9+PT!X10)/1000 -> 29.252578 | E7: =(PT!AC9+PT!AC10)/1000 -> 34.400354 | F7: =(PT!AH9+PT!AH10)/1000 -> 40.420651 | J7: =F16-D16 -> 90.709
A8: ="2. "&names!B5 -> 2. Professional occupations | B8: =(PT!D11+PT!D12+PT!D13+PT!D14)/1000 -> 69.946896 | C8: =(PT!N11+PT!N12+PT!N13+PT!N14)/1000 -> 89.940338 | D8: =(PT!X11+PT!X12+PT!X13+PT!X14)/1000 -> 127.467335 | E8: =(PT!AC11+PT!AC12+PT!AC13+PT!AC14)/1000 -> 151.506492 | F8: =(PT!AH11+PT!AH12+PT!AH13+PT!AH14)/1000 -> 171.777919 | J8: =F15-D15 -> -5.498736
A9: ="3. "&names!B6 -> 3. Associate professional and technical | B9: =(PT!D15+PT!D16+PT!D17+PT!D18+PT!D19)/1000 -> 32.187402 | C9: =(PT!N15+PT!N16+PT!N17+PT!N18+PT!N19)/1000 -> 42.988274 | D9: =(PT!X15+PT!X16+PT!X17+PT!X18+PT!X19)/1000 -> 61.188137 | E9: =(PT!AC15+PT!AC16+PT!AC17+PT!AC18+PT!AC19)/1000 -> 69.422037 | F9: =(PT!AH15+PT!AH16+PT!AH17+PT!AH18+PT!AH19)/1000 -> 78.799781 | J9: =F14-D14 -> 3.730786
A10: ="4. "&names!B7 -> 4. Administrative and secretarial | B10: =(PT!D20+PT!D21)/1000 -> 117.715663 | C10: =(PT!N20+PT!N21)/1000 -> 134.004869 | D10: =(PT!X20+PT!X21)/1000 -> 136.265902 | E10: =(PT!AC20+PT!AC21)/1000 -> 124.106022 | F10: =(PT!AH20+PT!AH21)/1000 -> 115.141997 | J10: =F13-D13 -> -2.248566
A11: ="5. "&names!B8 -> 5. Skilled trades occupations | B11: =(PT!D22+PT!D23+PT!D24+PT!D25)/1000 -> 28.923929 | C11: =(PT!N22+PT!N23+PT!N24+PT!N25)/1000 -> 32.230893 | D11: =(PT!X22+PT!X23+PT!X24+PT!X25)/1000 -> 34.120541 | E11: =(PT!AC22+PT!AC23+PT!AC24+PT!AC25)/1000 -> 32.116881 | F11: =(PT!AH22+PT!AH23+PT!AH24+PT!AH25)/1000 -> 31.391428 | J11: =F12-D12 -> 45.488233
A12: ="6. "&names!B9 -> 6. Caring, leisure and other service | B12: =(PT!D26+PT!D27)/1000 -> 71.504443 | C12: =(PT!N26+PT!N27)/1000 -> 112.570755 | D12: =(PT!X26+PT!X27)/1000 -> 153.255077 | E12: =(PT!AC26+PT!AC27)/1000 -> 176.946449 | F12: =(PT!AH26+PT!AH27)/1000 -> 198.74331 | J12: =F11-D11 -> -2.729113
A13: ="7. "&names!B10 -> 7. Sales and customer service | B13: =(PT!D28+PT!D29)/1000 -> 95.590664 | C13: =(PT!N28+PT!N29)/1000 -> 137.213791 | D13: =(PT!X28+PT!X29)/1000 -> 145.510339 | E13: =(PT!AC28+PT!AC29)/1000 -> 142.470774 | F13: =(PT!AH28+PT!AH29)/1000 -> 143.261773 | J13: =F10-D10 -> -21.123905
A14: ="8. "&names!B11 -> 8. Process, plant and machine operatives | B14: =(PT!D30+PT!D31)/1000 -> 14.121152 | C14: =(PT!N30+PT!N31)/1000 -> 22.937522 | D14: =(PT!X30+PT!X31)/1000 -> 20.591222 | E14: =(PT!AC30+PT!AC31)/1000 -> 22.299997 | F14: =(PT!AH30+PT!AH31)/1000 -> 24.322008 | J14: =F9-D9 -> 17.611644
A15: ="9. "&names!B12 -> 9. Elementary occupations | B15: =(PT!D32+PT!D33)/1000 -> 160.320173 | C15: =(PT!N32+PT!N33)/1000 -> 170.035409 | D15: =(PT!X32+PT!X33)/1000 -> 149.379868 | E15: =(PT!AC32+PT!AC33)/1000 -> 140.025994 | F15: =(PT!AH32+PT!AH33)/1000 -> 143.881132 | J15: =F8-D8 -> 44.310584
A16: Total | B16: =PT!D8/1000 -> 600.566 | C16: =PT!N8/1000 -> 760.252 | D16: =PT!X8/1000 -> 857.031 | E16: =PT!AC8/1000 -> 893.295 | F16: =PT!AH8/1000 -> 947.74 | J16: =F7-D7 -> 11.168073
A19: Percentage Shares
B20: =B6 -> 1992 | C20: =C6 -> 2002 | D20: =D6 -> 2012 | E20: =E6 -> 2017 | F20: =F6 -> 2022
A21: =A7 -> 1. Managers, directors and senior officials | B21: =B7/B$16*100 -> 1.707668932 | C21: 2.411062648 | D21: 3.413246195 | E21: 3.850951142 | F21: 4.264951463
A22: =A8 -> 2. Professional occupations | B22: 11.64682916 | C22: 11.83033231 | D22: 14.87313003 | E22: 16.96040972 | F22: 18.12500464
A23: 3. Associate professional and technical | B23: 5.359511194 | C23: 5.654476937 | D23: 7.139547694 | E23: 7.771457021 | F23: 8.314493532
A24: 4. Administrative and secretarial | B24: 19.60078709 | C24: 17.62637507 | D24: 15.89976349 | E24: 13.89306131 | F24: 12.14911231
A25: 5. Skilled trades occupations | B25: 4.816111635 | C25: 4.239501244 | D25: 3.981249336 | E25: 3.595327523 | F25: 3.312240488
A26: 6. Caring, leisure and other service | B26: 11.90617567 | C26: 14.80703175 | D26: 17.8820926 | E26: 19.8082883 | F26: 20.97023551
A27: 7. Sales and customer service | B27: 15.91676252 | C27: 18.04846169 | D27: 16.9784219 | E27: 15.94890534 | F27: 15.11614715
A28: 8. Process, plant and machine operatives | B28: 2.351307267 | C28: 3.017094595 | D28: 2.402622776 | E28: 2.496375441 | F28: 2.5663165
A29: 9. Elementary occupations | B29: 26.69484669 | C29: 22.36566415 | D29: 17.42992587 | E29: 15.6752242 | F29: 15.1814983
A30: Total | B30: 100 | C30: 100 | D30: 100 | E30: 100 | F30: 100
A32: N:\Projects\SSDA Projections\workbooks\Allyy.xls, sheet Table4.1

Sheet Table 4.1 MPT
A1: Table 4.1 Males PT | B1: Occupational Categories SOC2010 - Major Groups | H1: Net changes for Figure 4.1 to 4
A3: All Industry Sectors
A5: Employment Levels (000s) | J5: (Order reversed for chart)
B6: =MalesPT!D7 -> 1992 | C6: =MalesPT!N7 -> 2002 | D6: =MalesPT!X7 -> 2012 | E6: =MalesPT!AC7 -> 2017 | F6: =MalesPT!AH7 -> 2022 | H6: =CONCATENATE(B6,"-",C6) -> 1992-2002 | I6: =CONCATENATE(C6,"-",D6) -> 2002-2012 | J6: =CONCATENATE(D6,"-",F6) -> 2012-2022
A7: ="1. "&names!B4 -> 1. Managers, directors and senior officials | B7: =(MalesPT!D9+MalesPT!D10)/1000 -> 3.430921 | C7: =(MalesPT!N9+MalesPT!N10)/1000 -> 7.89873 | D7: =(MalesPT!X9+MalesPT!X10)/1000 -> 9.403866 | E7: =(MalesPT!AC9+MalesPT!AC10)/1000 -> 10.759561 | F7: =(MalesPT!AH9+MalesPT!AH10)/1000 -> 12.194476 | J7: =F16-D16 -> 43.452
A8: ="2. "&names!B5 -> 2. Professional occupations | B8: =(MalesPT!D11+MalesPT!D12+MalesPT!D13+MalesPT!D14)/1000 -> 12.424131 | C8: =(MalesPT!N11+MalesPT!N12+MalesPT!N13+MalesPT!N14)/1000 -> 23.540847 | D8: =(MalesPT!X11+MalesPT!X12+MalesPT!X13+MalesPT!X14)/1000 -> 24.049978 | E8: =(MalesPT!AC11+MalesPT!AC12+MalesPT!AC13+MalesPT!AC14)/1000 -> 28.621182 | F8: =(MalesPT!AH11+MalesPT!AH12+MalesPT!AH13+MalesPT!AH14)/1000 -> 32.033428 | J8: =F15-D15 -> 6.685739
A9: ="3. "&names!B6 -> 3. Associate professional and technical | B9: =(MalesPT!D15+MalesPT!D16+MalesPT!D17+MalesPT!D18+MalesPT!D19)/1000 -> 9.138894 | C9: =(MalesPT!N15+MalesPT!N16+MalesPT!N17+MalesPT!N18+MalesPT!N19)/1000 -> 13.182497 | D9: =(MalesPT!X15+MalesPT!X16+MalesPT!X17+MalesPT!X18+MalesPT!X19)/1000 -> 14.888132 | E9: =(MalesPT!AC15+MalesPT!AC16+MalesPT!AC17+MalesPT!AC18+MalesPT!AC19)/1000 -> 17.241922 | F9: =(MalesPT!AH15+MalesPT!AH16+MalesPT!AH17+MalesPT!AH18+MalesPT!AH19)/1000 -> 19.414697 | J9: =F14-D14 -> 4.596688
A10: ="4. "&names!B7 -> 4. Administrative and secretarial | B10: =(MalesPT!D20+MalesPT!D21)/1000 -> 8.050671 | C10: =(MalesPT!N20+MalesPT!N21)/1000 -> 12.435401 | D10: =(MalesPT!X20+MalesPT!X21)/1000 -> 10.506332 | E10: =(MalesPT!AC20+MalesPT!AC21)/1000 -> 9.91063 | F10: =(MalesPT!AH20+MalesPT!AH21)/1000 -> 10.145441 | J10: =F13-D13 -> 12.97947
A11: ="5. "&names!B8 -> 5. Skilled trades occupations | B11: =(MalesPT!D22+MalesPT!D23+MalesPT!D24+MalesPT!D25)/1000 -> 9.388503 | C11: =(MalesPT!N22+MalesPT!N23+MalesPT!N24+MalesPT!N25)/1000 -> 16.803266 | D11: =(MalesPT!X22+MalesPT!X23+MalesPT!X24+MalesPT!X25)/1000 -> 19.480442 | E11: =(MalesPT!AC22+MalesPT!AC23+MalesPT!AC24+MalesPT!AC25)/1000 -> 18.958399 | F11: =(MalesPT!AH22+MalesPT!AH23+MalesPT!AH24+MalesPT!AH25)/1000 -> 18.776836 | J11: =F12-D12 -> 4.953977
A12: ="6. "&names!B9 -> 6. Caring, leisure and other service | B12: =(MalesPT!D26+MalesPT!D27)/1000 -> 5.751716 | C12: =(MalesPT!N26+MalesPT!N27)/1000 -> 10.783712 | D12: =(MalesPT!X26+MalesPT!X27)/1000 -> 12.261485 | E12: =(MalesPT!AC26+MalesPT!AC27)/1000 -> 14.812555 | F12: =(MalesPT!AH26+MalesPT!AH27)/1000 -> 17.215462 | J12: =F11-D11 -> -0.703606
A13: ="7. "&names!B10 -> 7. Sales and customer service | B13: =(MalesPT!D28+MalesPT!D29)/1000 -> 10.265029 | C13: =(MalesPT!N28+MalesPT!N29)/1000 -> 28.935347 | D13: =(MalesPT!X28+MalesPT!X29)/1000 -> 34.66634 | E13: =(MalesPT!AC28+MalesPT!AC29)/1000 -> 41.099556 | F13: =(MalesPT!AH28+MalesPT!AH29)/1000 -> 47.64581 | J13: =F10-D10 -> -0.360891
A14: ="8. "&names!B11 -> 8. Process, plant and machine operatives | B14: =(MalesPT!D30+MalesPT!D31)/1000 -> 5.678469 | C14: =(MalesPT!N30+MalesPT!N31)/1000 -> 15.286734 | D14: =(MalesPT!X30+MalesPT!X31)/1000 -> 15.436821 | E14: =(MalesPT!AC30+MalesPT!AC31)/1000 -> 17.715904 | F14: =(MalesPT!AH30+MalesPT!AH31)/1000 -> 20.033509 | J14: =F9-D9 -> 4.526565
A15: ="9. "&names!B12 -> 9. Elementary occupations | B15: =(MalesPT!D32+MalesPT!D33)/1000 -> 40.902666 | C15: =(MalesPT!N32+MalesPT!N33)/1000 -> 59.065465 | D15: =(MalesPT!X32+MalesPT!X33)/1000 -> 68.299604 | E15: =(MalesPT!AC32+MalesPT!AC33)/1000 -> 69.687288 | F15: =(MalesPT!AH32+MalesPT!AH33)/1000 -> 74.985343 | J15: =F8-D8 -> 7.98345
A16: Total | B16: =MalesPT!D8/1000 -> 105.031 | C16: =MalesPT!N8/1000 -> 187.932 | D16: =MalesPT!X8/1000 -> 208.993 | E16: =MalesPT!AC8/1000 -> 228.807 | F16: =MalesPT!AH8/1000 -> 252.445 | J16: =F7-D7 -> 2.79061
A19: Percentage Shares
B20: =B6 -> 1992 | C20: =C6 -> 2002 | D20: =D6 -> 2012 | E20: =E6 -> 2017 | F20: =F6 -> 2022
A21: =A7 -> 1. Managers, directors and senior officials | B21: =B7/B$16*100 -> 3.266579391 | C21: 4.202972352 | D21: 4.499608121 | E21: 4.702461463 | F21: 4.830547644
A22: =A8 -> 2. Professional occupations | B22: 11.82901334 | C22: 12.5262579 | D22: 11.50755193 | E22: 12.50887517 | F22: 12.68927014
A23: 3. Associate professional and technical | B23: 8.701139664 | C23: 7.01450365 | D23: 7.123746728 | E23: 7.535574524 | F23: 7.690664105
A24: 4. Administrative and secretarial | B24: 7.665042702 | C24: 6.616968372 | D24: 5.027121483 | E24: 4.331436538 | F24: 4.018871833
A25: 5. Skilled trades occupations | B25: 8.938792357 | C25: 8.941141477 | D25: 9.321097836 | E25: 8.285760051 | F25: 7.437990849
A26: 6. Caring, leisure and other service | B26: 5.476207977 | C26: 5.738092502 | D26: 5.866935735 | E26: 6.473820731 | F26: 6.819490186
A27: 7. Sales and customer service | B27: 9.773332635 | C27: 15.39671104 | D27: 16.58732111 | E27: 17.9625431 | F27: 18.87373883
A28: 8. Process, plant and machine operatives | B28: 5.406469519 | C28: 8.134183641 | D28: 7.386286144 | E28: 7.742728151 | F28: 7.935791559
A29: 9. Elementary occupations | B29: 38.94342242 | C29: 31.42916853 | D29: 32.68033092 | E29: 30.45679896 | F29: 29.70363564
A30: Total | B30: 100 | C30: 100 | D30: 100 | E30: 100 | F30: 100
A32: N:\Projects\SSDA Projections\workbooks\Allyy.xls, sheet Table4.1

Sheet Table 4.1 FPT
A1: Table 4.1 Females PT | B1: Occupational Categories SOC2010 - Major Groups | H1: Net changes for Figure 4.1 to 4
A3: All Industry Sectors
A5: Employment Levels (000s) | J5: (Order reversed for chart)
B6: =FemalesPT!D7 -> 1992 | C6: =FemalesPT!N7 -> 2002 | D6: =FemalesPT!X7 -> 2012 | E6: =FemalesPT!AC7 -> 2017 | F6: =FemalesPT!AH7 -> 2022 | H6: =CONCATENATE(B6,"-",C6) -> 1992-2002 | I6: =CONCATENATE(C6,"-",D6) -> 2002-2012 | J6: =CONCATENATE(D6,"-",F6) -> 2012-2022
A7: ="1. "&names!B4 -> 1. Managers, directors and senior officials | B7: =(FemalesPT!D9+FemalesPT!D10)/1000 -> 6.824757 | C7: =(FemalesPT!N9+FemalesPT!N10)/1000 -> 10.431422 | D7: =(FemalesPT!X9+FemalesPT!X10)/1000 -> 19.848711 | E7: =(FemalesPT!AC9+FemalesPT!AC10)/1000 -> 23.640793 | F7: =(FemalesPT!AH9+FemalesPT!AH10)/1000 -> 28.226175 | J7: =F16-D16 -> 47.257
A8: ="2. "&names!B5 -> 2. Professional occupations | B8: =(FemalesPT!D11+FemalesPT!D12+FemalesPT!D13+FemalesPT!D14)/1000 -> 57.522764 | C8: =(FemalesPT!N11+FemalesPT!N12+FemalesPT!N13+FemalesPT!N14)/1000 -> 66.399489 | D8: =(FemalesPT!X11+FemalesPT!X12+FemalesPT!X13+FemalesPT!X14)/1000 -> 103.417357 | E8: =(FemalesPT!AC11+FemalesPT!AC12+FemalesPT!AC13+FemalesPT!AC14)/1000 -> 122.885309 | F8: =(FemalesPT!AH11+FemalesPT!AH12+FemalesPT!AH13+FemalesPT!AH14)/1000 -> 139.74449 | J8: =F15-D15 -> -12.184475
A9: ="3. "&names!B6 -> 3. Associate professional and technical | B9: =(FemalesPT!D15+FemalesPT!D16+FemalesPT!D17+FemalesPT!D18+FemalesPT!D19)/1000 -> 23.048508 | C9: =(FemalesPT!N15+FemalesPT!N16+FemalesPT!N17+FemalesPT!N18+FemalesPT!N19)/1000 -> 29.805776 | D9: =(FemalesPT!X15+FemalesPT!X16+FemalesPT!X17+FemalesPT!X18+FemalesPT!X19)/1000 -> 46.300004 | E9: =(FemalesPT!AC15+FemalesPT!AC16+FemalesPT!AC17+FemalesPT!AC18+FemalesPT!AC19)/1000 -> 52.180114 | F9: =(FemalesPT!AH15+FemalesPT!AH16+FemalesPT!AH17+FemalesPT!AH18+FemalesPT!AH19)/1000 -> 59.385087 | J9: =F14-D14 -> -0.865903
A10: ="4. "&names!B7 -> 4. Administrative and secretarial | B10: =(FemalesPT!D20+FemalesPT!D21)/1000 -> 109.664991 | C10: =(FemalesPT!N20+FemalesPT!N21)/1000 -> 121.569468 | D10: =(FemalesPT!X20+FemalesPT!X21)/1000 -> 125.759571 | E10: =(FemalesPT!AC20+FemalesPT!AC21)/1000 -> 114.195392 | F10: =(FemalesPT!AH20+FemalesPT!AH21)/1000 -> 104.996554 | J10: =F13-D13 -> -15.228036
A11: ="5. "&names!B8 -> 5. Skilled trades occupations | B11: =(FemalesPT!D22+FemalesPT!D23+FemalesPT!D24+FemalesPT!D25)/1000 -> 19.535426 | C11: =(FemalesPT!N22+FemalesPT!N23+FemalesPT!N24+FemalesPT!N25)/1000 -> 15.427626 | D11: =(FemalesPT!X22+FemalesPT!X23+FemalesPT!X24+FemalesPT!X25)/1000 -> 14.640101 | E11: =(FemalesPT!AC22+FemalesPT!AC23+FemalesPT!AC24+FemalesPT!AC25)/1000 -> 13.158483 | F11: =(FemalesPT!AH22+FemalesPT!AH23+FemalesPT!AH24+FemalesPT!AH25)/1000 -> 12.614593 | J11: =F12-D12 -> 40.534256
A12: ="6. "&names!B9 -> 6. Caring, leisure and other service | B12: =(FemalesPT!D26+FemalesPT!D27)/1000 -> 65.752726 | C12: =(FemalesPT!N26+FemalesPT!N27)/1000 -> 101.787042 | D12: =(FemalesPT!X26+FemalesPT!X27)/1000 -> 140.993592 | E12: =(FemalesPT!AC26+FemalesPT!AC27)/1000 -> 162.133894 | F12: =(FemalesPT!AH26+FemalesPT!AH27)/1000 -> 181.527848 | J12: =F11-D11 -> -2.025508
A13: ="7. "&names!B10 -> 7. Sales and customer service | B13: =(FemalesPT!D28+FemalesPT!D29)/1000 -> 85.325636 | C13: =(FemalesPT!N28+FemalesPT!N29)/1000 -> 108.278444 | D13: =(FemalesPT!X28+FemalesPT!X29)/1000 -> 110.843999 | E13: =(FemalesPT!AC28+FemalesPT!AC29)/1000 -> 101.371218 | F13: =(FemalesPT!AH28+FemalesPT!AH29)/1000 -> 95.615963 | J13: =F10-D10 -> -20.763017
A14: ="8. "&names!B11 -> 8. Process, plant and machine operatives | B14: =(FemalesPT!D30+FemalesPT!D31)/1000 -> 8.442683 | C14: =(FemalesPT!N30+FemalesPT!N31)/1000 -> 7.650788 | D14: =(FemalesPT!X30+FemalesPT!X31)/1000 -> 5.154401 | E14: =(FemalesPT!AC30+FemalesPT!AC31)/1000 -> 4.584093 | F14: =(FemalesPT!AH30+FemalesPT!AH31)/1000 -> 4.288498 | J14: =F9-D9 -> 13.085083
A15: ="9. "&names!B12 -> 9. Elementary occupations | B15: =(FemalesPT!D32+FemalesPT!D33)/1000 -> 119.417508 | C15: =(FemalesPT!N32+FemalesPT!N33)/1000 -> 110.969944 | D15: =(FemalesPT!X32+FemalesPT!X33)/1000 -> 81.080265 | E15: =(FemalesPT!AC32+FemalesPT!AC33)/1000 -> 70.338706 | F15: =(FemalesPT!AH32+FemalesPT!AH33)/1000 -> 68.89579 | J15: =F8-D8 -> 36.327133
A16: Total | B16: =FemalesPT!D8/1000 -> 495.535 | C16: =FemalesPT!N8/1000 -> 572.32 | D16: =FemalesPT!X8/1000 -> 648.038 | E16: =FemalesPT!AC8/1000 -> 664.488 | F16: =FemalesPT!AH8/1000 -> 695.295 | J16: =F7-D7 -> 8.377464
A19: Percentage Shares
B20: =B6 -> 1992 | C20: =C6 -> 2002 | D20: =D6 -> 2012 | E20: =E6 -> 2017 | F20: =F6 -> 2022
A21: =A7 -> 1. Managers, directors and senior officials | B21: =B7/B$16*100 -> 1.377250245 | C21: 1.822655507 | D21: 3.062893071 | E21: 3.557745663 | F21: 4.059597006
A22: =A8 -> 2. Professional occupations | B22: 11.60821415 | C22: 11.60181175 | D22: 15.95853283 | E22: 18.49323223 | F22: 20.09858981
A23: 3. Associate professional and technical | B23: 4.651237148 | C23: 5.207886497 | D23: 7.14464337 | E23: 7.852679657 | F23: 8.540991522
A24: 4. Administrative and secretarial | B24: 22.13062468 | C24: 21.24152013 | D24: 19.40620319 | E24: 17.18547092 | F24: 15.10100806
A25: 5. Skilled trades occupations | B25: 3.942289848 | C25: 2.695629368 | D25: 2.259142365 | E25: 1.980243887 | F25: 1.814279263
A26: 6. Caring, leisure and other service | B26: 13.26903771 | C26: 17.78498777 | D26: 21.7569945 | E26: 24.39982272 | F26: 26.10803299
A27: 7. Sales and customer service | B27: 17.2188919 | C27: 18.91921373 | D27: 17.10455236 | E27: 15.2555378 | F27: 13.7518554
A28: 8. Process, plant and machine operatives | B28: 1.703751097 | C28: 1.336802488 | D28: 0.7953856101 | E28: 0.6898684401 | F28: 0.6167882697
A29: 9. Elementary occupations | B29: 24.09870302 | C29: 19.38949259 | D29: 12.51165287 | E29: 10.58539898 | F29: 9.908857391
A30: Total | B30: 100 | C30: 100 | D30: 100 | E30: 100 | F30: 100
A32: N:\Projects\SSDA Projections\workbooks\Allyy.xls, sheet Table4.1

Sheet Table 4.1 SE
A1: Table 4.1 Total SE | B1: Occupational Categories SOC2010 - Major Groups | H1: Net changes for Figure 4.1 to 4
A3: All Industry Sectors
A5: Employment Levels (000s) | J5: (Order reversed for chart)
B6: =SE!D7 -> 1992 | C6: =SE!N7 -> 2002 | D6: =SE!X7 -> 2012 | E6: =SE!AC7 -> 2017 | F6: =SE!AH7 -> 2022 | H6: =CONCATENATE(B6,"-",C6) -> 1992-2002 | I6: =CONCATENATE(C6,"-",D6) -> 2002-2012 | J6: =CONCATENATE(D6,"-",F6) -> 2012-2022
A7: ="1. "&names!B4 -> 1. Managers, directors and senior officials | B7: =(SE!D9+SE!D10)/1000 -> 63.971127 | C7: =(SE!N9+SE!N10)/1000 -> 57.857362 | D7: =(SE!X9+SE!X10)/1000 -> 57.314586 | E7: =(SE!AC9+SE!AC10)/1000 -> 55.993405 | F7: =(SE!AH9+SE!AH10)/1000 -> 56.670194 | J7: =F16-D16 -> 3.462
A8: ="2. "&names!B5 -> 2. Professional occupations | B8: =(SE!D11+SE!D12+SE!D13+SE!D14)/1000 -> 58.927205 | C8: =(SE!N11+SE!N12+SE!N13+SE!N14)/1000 -> 60.964648 | D8: =(SE!X11+SE!X12+SE!X13+SE!X14)/1000 -> 87.598135 | E8: =(SE!AC11+SE!AC12+SE!AC13+SE!AC14)/1000 -> 91.464538 | F8: =(SE!AH11+SE!AH12+SE!AH13+SE!AH14)/1000 -> 94.457409 | J8: =F15-D15 -> 0.219519
A9: ="3. "&names!B6 -> 3. Associate professional and technical | B9: =(SE!D15+SE!D16+SE!D17+SE!D18+SE!D19)/1000 -> 31.450839 | C9: =(SE!N15+SE!N16+SE!N17+SE!N18+SE!N19)/1000 -> 44.645064 | D9: =(SE!X15+SE!X16+SE!X17+SE!X18+SE!X19)/1000 -> 59.758939 | E9: =(SE!AC15+SE!AC16+SE!AC17+SE!AC18+SE!AC19)/1000 -> 62.75852 | F9: =(SE!AH15+SE!AH16+SE!AH17+SE!AH18+SE!AH19)/1000 -> 65.116698 | J9: =F14-D14 -> -1.35898
A10: ="4. "&names!B7 -> 4. Administrative and secretarial | B10: =(SE!D20+SE!D21)/1000 -> 19.087077 | C10: =(SE!N20+SE!N21)/1000 -> 14.214779 | D10: =(SE!X20+SE!X21)/1000 -> 19.904476 | E10: =(SE!AC20+SE!AC21)/1000 -> 18.946049 | F10: =(SE!AH20+SE!AH21)/1000 -> 17.301575 | J10: =F13-D13 -> -1.22291
A11: ="5. "&names!B8 -> 5. Skilled trades occupations | B11: =(SE!D22+SE!D23+SE!D24+SE!D25)/1000 -> 142.959418 | C11: =(SE!N22+SE!N23+SE!N24+SE!N25)/1000 -> 111.867743 | D11: =(SE!X22+SE!X23+SE!X24+SE!X25)/1000 -> 122.535646 | E11: =(SE!AC22+SE!AC23+SE!AC24+SE!AC25)/1000 -> 116.872073 | F11: =(SE!AH22+SE!AH23+SE!AH24+SE!AH25)/1000 -> 115.837764 | J11: =F12-D12 -> 3.552512
A12: ="6. "&names!B9 -> 6. Caring, leisure and other service | B12: =(SE!D26+SE!D27)/1000 -> 19.06263 | C12: =(SE!N26+SE!N27)/1000 -> 20.842242 | D12: =(SE!X26+SE!X27)/1000 -> 28.484516 | E12: =(SE!AC26+SE!AC27)/1000 -> 30.338657 | F12: =(SE!AH26+SE!AH27)/1000 -> 32.037028 | J12: =F11-D11 -> -6.697882
A13: ="7. "&names!B10 -> 7. Sales and customer service | B13: =(SE!D28+SE!D29)/1000 -> 12.175699 | C13: =(SE!N28+SE!N29)/1000 -> 9.677546 | D13: =(SE!X28+SE!X29)/1000 -> 9.016249 | E13: =(SE!AC28+SE!AC29)/1000 -> 8.299442 | F13: =(SE!AH28+SE!AH29)/1000 -> 7.793339 | J13: =F10-D10 -> -2.602901
A14: ="8. "&names!B11 -> 8. Process, plant and machine operatives | B14: =(SE!D30+SE!D31)/1000 -> 20.290619 | C14: =(SE!N30+SE!N31)/1000 -> 19.498704 | D14: =(SE!X30+SE!X31)/1000 -> 24.257109 | E14: =(SE!AC30+SE!AC31)/1000 -> 23.163739 | F14: =(SE!AH30+SE!AH31)/1000 -> 22.898129 | J14: =F9-D9 -> 5.357759
A15: ="9. "&names!B12 -> 9. Elementary occupations | B15: =(SE!D32+SE!D33)/1000 -> 19.087386 | C15: =(SE!N32+SE!N33)/1000 -> 15.84991 | D15: =(SE!X32+SE!X33)/1000 -> 19.083344 | E15: =(SE!AC32+SE!AC33)/1000 -> 19.246575 | F15: =(SE!AH32+SE!AH33)/1000 -> 19.302863 | J15: =F8-D8 -> 6.859274
A16: Total | B16: =SE!D8/1000 -> 387.012 | C16: =SE!N8/1000 -> 355.418 | D16: =SE!X8/1000 -> 427.953 | E16: =SE!AC8/1000 -> 427.083 | F16: =SE!AH8/1000 -> 431.415 | J16: =F7-D7 -> -0.644392
A19: Percentage Shares
B20: =B6 -> 1992 | C20: =C6 -> 2002 | D20: =D6 -> 2012 | E20: =E6 -> 2017 | F20: =F6 -> 2022
A21: =A7 -> 1. Managers, directors and senior officials | B21: =B7/B$16*100 -> 16.52949443 | C21: 16.27868088 | D21: 13.39272911 | E21: 13.11066116 | F21: 13.13588865
A22: =A8 -> 2. Professional occupations | B22: 15.22619583 | C22: 17.15294329 | D22: 20.46910175 | E22: 21.41610366 | F22: 21.89479017
A23: 3. Associate professional and technical | B23: 8.126579796 | C23: 12.5612839 | D23: 13.96390234 | E23: 14.69468932 | F23: 15.09374917
A24: 4. Administrative and secretarial | B24: 4.931908313 | C24: 3.999453882 | D24: 4.651089255 | E24: 4.436151521 | F24: 4.010424997
A25: 5. Skilled trades occupations | B25: 36.93927268 | C25: 31.4749796 | D25: 28.63296811 | E25: 27.36518967 | F25: 26.85065749
A26: 6. Caring, leisure and other service | B26: 4.925591455 | C26: 5.864149255 | D26: 6.655991663 | E26: 7.103691086 | F26: 7.426034792
A27: 7. Sales and customer service | B27: 3.146077899 | C27: 2.72286322 | D27: 2.106831591 | E27: 1.943285497 | F27: 1.806459905
A28: 8. Process, plant and machine operatives | B28: 5.242891435 | C28: 5.486132948 | D28: 5.668171271 | E28: 5.423708975 | F28: 5.307680308
A29: 9. Elementary occupations | B29: 4.931988155 | C29: 4.459512461 | D29: 4.459214914 | E29: 4.506518639 | F29: 4.474314291
A30: Total | B30: 100 | C30: 100 | D30: 100 | E30: 100 | F30: 100
A32: N:\Projects\SSDA Projections\workbooks\Allyy.xls, sheet Table4.1

Sheet Table 4.1 MSE
A1: Table 4.1 Males SE | B1: Occupational Categories SOC2010 - Major Groups | H1: Net changes for Figure 4.1 to 4
A3: All Industry Sectors
A5: Employment Levels (000s) | J5: (Order reversed for chart)
B6: =MalesSE!D7 -> 1992 | C6: =MalesSE!N7 -> 2002 | D6: =MalesSE!X7 -> 2012 | E6: =MalesSE!AC7 -> 2017 | F6: =MalesSE!AH7 -> 2022 | H6: =CONCATENATE(B6,"-",C6) -> 1992-2002 | I6: =CONCATENATE(C6,"-",D6) -> 2002-2012 | J6: =CONCATENATE(D6,"-",F6) -> 2012-2022
A7: ="1. "&names!B4 -> 1. Managers, directors and senior officials | B7: =(MalesSE!D9+MalesSE!D10)/1000 -> 43.778259 | C7: =(MalesSE!N9+MalesSE!N10)/1000 -> 37.862952 | D7: =(MalesSE!X9+MalesSE!X10)/1000 -> 36.320002 | E7: =(MalesSE!AC9+MalesSE!AC10)/1000 -> 35.070144 | F7: =(MalesSE!AH9+MalesSE!AH10)/1000 -> 34.714268 | J7: =F16-D16 -> 0.479
A8: ="2. "&names!B5 -> 2. Professional occupations | B8: =(MalesSE!D11+MalesSE!D12+MalesSE!D13+MalesSE!D14)/1000 -> 41.751939 | C8: =(MalesSE!N11+MalesSE!N12+MalesSE!N13+MalesSE!N14)/1000 -> 39.883252 | D8: =(MalesSE!X11+MalesSE!X12+MalesSE!X13+MalesSE!X14)/1000 -> 48.109329 | E8: =(MalesSE!AC11+MalesSE!AC12+MalesSE!AC13+MalesSE!AC14)/1000 -> 49.217988 | F8: =(MalesSE!AH11+MalesSE!AH12+MalesSE!AH13+MalesSE!AH14)/1000 -> 49.984198 | J8: =F15-D15 -> -0.000369
A9: ="3. "&names!B6 -> 3. Associate professional and technical | B9: =(MalesSE!D15+MalesSE!D16+MalesSE!D17+MalesSE!D18+MalesSE!D19)/1000 -> 23.077904 | C9: =(MalesSE!N15+MalesSE!N16+MalesSE!N17+MalesSE!N18+MalesSE!N19)/1000 -> 30.813055 | D9: =(MalesSE!X15+MalesSE!X16+MalesSE!X17+MalesSE!X18+MalesSE!X19)/1000 -> 37.089478 | E9: =(MalesSE!AC15+MalesSE!AC16+MalesSE!AC17+MalesSE!AC18+MalesSE!AC19)/1000 -> 39.04214 | F9: =(MalesSE!AH15+MalesSE!AH16+MalesSE!AH17+MalesSE!AH18+MalesSE!AH19)/1000 -> 40.178728 | J9: =F14-D14 -> -1.186214
A10: ="4. "&names!B7 -> 4. Administrative and secretarial | B10: =(MalesSE!D20+MalesSE!D21)/1000 -> 2.436905 | C10: =(MalesSE!N20+MalesSE!N21)/1000 -> 2.439574 | D10: =(MalesSE!X20+MalesSE!X21)/1000 -> 2.869004 | E10: =(MalesSE!AC20+MalesSE!AC21)/1000 -> 2.914215 | F10: =(MalesSE!AH20+MalesSE!AH21)/1000 -> 2.880982 | J10: =F13-D13 -> -0.562052
A11: ="5. "&names!B8 -> 5. Skilled trades occupations | B11: =(MalesSE!D22+MalesSE!D23+MalesSE!D24+MalesSE!D25)/1000 -> 124.82342 | C11: =(MalesSE!N22+MalesSE!N23+MalesSE!N24+MalesSE!N25)/1000 -> 100.092048 | D11: =(MalesSE!X22+MalesSE!X23+MalesSE!X24+MalesSE!X25)/1000 -> 110.827233 | E11: =(MalesSE!AC22+MalesSE!AC23+MalesSE!AC24+MalesSE!AC25)/1000 -> 108.648897 | F11: =(MalesSE!AH22+MalesSE!AH23+MalesSE!AH24+MalesSE!AH25)/1000 -> 108.93063 | J11: =F12-D12 -> 0.75387
A12: ="6. "&names!B9 -> 6. Caring, leisure and other service | B12: =(MalesSE!D26+MalesSE!D27)/1000 -> 2.269985 | C12: =(MalesSE!N26+MalesSE!N27)/1000 -> 4.373671 | D12: =(MalesSE!X26+MalesSE!X27)/1000 -> 6.282156 | E12: =(MalesSE!AC26+MalesSE!AC27)/1000 -> 6.82341 | F12: =(MalesSE!AH26+MalesSE!AH27)/1000 -> 7.036026 | J12: =F11-D11 -> -1.896603
A13: ="7. "&names!B10 -> 7. Sales and customer service | B13: =(MalesSE!D28+MalesSE!D29)/1000 -> 6.869193 | C13: =(MalesSE!N28+MalesSE!N29)/1000 -> 4.883119 | D13: =(MalesSE!X28+MalesSE!X29)/1000 -> 5.167452 | E13: =(MalesSE!AC28+MalesSE!AC29)/1000 -> 4.848231 | F13: =(MalesSE!AH28+MalesSE!AH29)/1000 -> 4.6054 | J13: =F10-D10 -> 0.011978
A14: ="8. "&names!B11 -> 8. Process, plant and machine operatives | B14: =(MalesSE!D30+MalesSE!D31)/1000 -> 16.422123 | C14: =(MalesSE!N30+MalesSE!N31)/1000 -> 16.401893 | D14: =(MalesSE!X30+MalesSE!X31)/1000 -> 19.460424 | E14: =(MalesSE!AC30+MalesSE!AC31)/1000 -> 18.50764 | F14: =(MalesSE!AH30+MalesSE!AH31)/1000 -> 18.27421 | J14: =F9-D9 -> 3.08925
A15: ="9. "&names!B12 -> 9. Elementary occupations | B15: =(MalesSE!D32+MalesSE!D33)/1000 -> 12.399271 | C15: =(MalesSE!N32+MalesSE!N33)/1000 -> 11.988435 | D15: =(MalesSE!X32+MalesSE!X33)/1000 -> 12.431925 | E15: =(MalesSE!AC32+MalesSE!AC33)/1000 -> 12.495334 | F15: =(MalesSE!AH32+MalesSE!AH33)/1000 -> 12.431556 | J15: =F8-D8 -> 1.874869
A16: Total | B16: =MalesSE!D8/1000 -> 273.829 | C16: =MalesSE!N8/1000 -> 248.738 | D16: =MalesSE!X8/1000 -> 278.557 | E16: =MalesSE!AC8/1000 -> 277.568 | F16: =MalesSE!AH8/1000 -> 279.036 | J16: =F7-D7 -> -1.605734
A19: Percentage Shares
B20: =B6 -> 1992 | C20: =C6 -> 2002 | D20: =D6 -> 2012 | E20: =E6 -> 2017 | F20: =F6 -> 2022
A21: =A7 -> 1. Managers, directors and senior officials | B21: =B7/B$16*100 -> 15.98744435 | C21: 15.22202156 | D21: 13.03862477 | E21: 12.63479364 | F21: 12.4407847
A22: =A8 -> 2. Professional occupations | B22: 15.24744969 | C22: 16.03424165 | D22: 17.27091008 | E22: 17.73186679 | F22: 17.91317178
A23: 3. Associate professional and technical | B23: 8.427852419 | C23: 12.38775539 | D23: 13.31486123 | E23: 14.06579289 | F23: 14.39911983
A24: 4. Administrative and secretarial | B24: 0.8899367854 | C24: 0.9807805804 | D24: 1.029952218 | E24: 1.049910292 | F24: 1.032476813
A25: 5. Skilled trades occupations | B25: 45.58444138 | C25: 40.23995047 | D25: 39.78619564 | E25: 39.14316384 | F25: 39.03819937
A26: 6. Caring, leisure and other service | B26: 0.8289790344 | C26: 1.758344523 | D26: 2.255249733 | E26: 2.458284096 | F26: 2.521547757
A27: 7. Sales and customer service | B27: 2.508570312 | C27: 1.96315762 | D27: 1.855078853 | E27: 1.746682254 | F27: 1.65046804
A28: 8. Process, plant and machine operatives | B28: 5.997218337 | C28: 6.594043934 | D28: 6.986155078 | E28: 6.667785912 | F28: 6.549051019
A29: 9. Elementary occupations | B29: 4.528107322 | C29: 4.819703865 | D29: 4.462973467 | E29: 4.501719939 | F29: 4.455179977
A30: Total | B30: 100 | C30: 100 | D30: 100 | E30: 100 | F30: 100
A32: N:\Projects\SSDA Projections\workbooks\Allyy.xls, sheet Table4.1

Sheet Table 4.1 FSE
A1: Table 4.1 Females SE | B1: Occupational Categories SOC2010 - Major Groups | H1: Net changes for Figure 4.1 to 4
A3: All Industry Sectors
A5: Employment Levels (000s) | J5: (Order reversed for chart)
B6: =FemalesSE!D7 -> 1992 | C6: =FemalesSE!N7 -> 2002 | D6: =FemalesSE!X7 -> 2012 | E6: =FemalesSE!AC7 -> 2017 | F6: =FemalesSE!AH7 -> 2022 | H6: =CONCATENATE(B6,"-",C6) -> 1992-2002 | I6: =CONCATENATE(C6,"-",D6) -> 2002-2012 | J6: =CONCATENATE(D6,"-",F6) -> 2012-2022
A7: ="1. "&names!B4 -> 1. Managers, directors and senior officials | B7: =(FemalesSE!D9+FemalesSE!D10)/1000 -> 20.192869 | C7: =(FemalesSE!N9+FemalesSE!N10)/1000 -> 19.99441 | D7: =(FemalesSE!X9+FemalesSE!X10)/1000 -> 20.994584 | E7: =(FemalesSE!AC9+FemalesSE!AC10)/1000 -> 20.92326 | F7: =(FemalesSE!AH9+FemalesSE!AH10)/1000 -> 21.955925 | J7: =F16-D16 -> 2.983
A8: ="2. "&names!B5 -> 2. Professional occupations | B8: =(FemalesSE!D11+FemalesSE!D12+FemalesSE!D13+FemalesSE!D14)/1000 -> 17.175265 | C8: =(FemalesSE!N11+FemalesSE!N12+FemalesSE!N13+FemalesSE!N14)/1000 -> 21.081396 | D8: =(FemalesSE!X11+FemalesSE!X12+FemalesSE!X13+FemalesSE!X14)/1000 -> 39.488807 | E8: =(FemalesSE!AC11+FemalesSE!AC12+FemalesSE!AC13+FemalesSE!AC14)/1000 -> 42.246549 | F8: =(FemalesSE!AH11+FemalesSE!AH12+FemalesSE!AH13+FemalesSE!AH14)/1000 -> 44.47321 | J8: =F15-D15 -> 0.219889
A9: ="3. "&names!B6 -> 3. Associate professional and technical | B9: =(FemalesSE!D15+FemalesSE!D16+FemalesSE!D17+FemalesSE!D18+FemalesSE!D19)/1000 -> 8.372934 | C9: =(FemalesSE!N15+FemalesSE!N16+FemalesSE!N17+FemalesSE!N18+FemalesSE!N19)/1000 -> 13.832009 | D9: =(FemalesSE!X15+FemalesSE!X16+FemalesSE!X17+FemalesSE!X18+FemalesSE!X19)/1000 -> 22.669463 | E9: =(FemalesSE!AC15+FemalesSE!AC16+FemalesSE!AC17+FemalesSE!AC18+FemalesSE!AC19)/1000 -> 23.71638 | F9: =(FemalesSE!AH15+FemalesSE!AH16+FemalesSE!AH17+FemalesSE!AH18+FemalesSE!AH19)/1000 -> 24.937969 | J9: =F14-D14 -> -0.172766
A10: ="4. "&names!B7 -> 4. Administrative and secretarial | B10: =(FemalesSE!D20+FemalesSE!D21)/1000 -> 16.650171 | C10: =(FemalesSE!N20+FemalesSE!N21)/1000 -> 11.775206 | D10: =(FemalesSE!X20+FemalesSE!X21)/1000 -> 17.035474 | E10: =(FemalesSE!AC20+FemalesSE!AC21)/1000 -> 16.031834 | F10: =(FemalesSE!AH20+FemalesSE!AH21)/1000 -> 14.420593 | J10: =F13-D13 -> -0.660857
A11: ="5. "&names!B8 -> 5. Skilled trades occupations | B11: =(FemalesSE!D22+FemalesSE!D23+FemalesSE!D24+FemalesSE!D25)/1000 -> 18.135999 | C11: =(FemalesSE!N22+FemalesSE!N23+FemalesSE!N24+FemalesSE!N25)/1000 -> 11.775696 | D11: =(FemalesSE!X22+FemalesSE!X23+FemalesSE!X24+FemalesSE!X25)/1000 -> 11.708414 | E11: =(FemalesSE!AC22+FemalesSE!AC23+FemalesSE!AC24+FemalesSE!AC25)/1000 -> 8.223176 | F11: =(FemalesSE!AH22+FemalesSE!AH23+FemalesSE!AH24+FemalesSE!AH25)/1000 -> 6.907135 | J11: =F12-D12 -> 2.798642
A12: ="6. "&names!B9 -> 6. Caring, leisure and other service | B12: =(FemalesSE!D26+FemalesSE!D27)/1000 -> 16.792645 | C12: =(FemalesSE!N26+FemalesSE!N27)/1000 -> 16.468571 | D12: =(FemalesSE!X26+FemalesSE!X27)/1000 -> 22.20236 | E12: =(FemalesSE!AC26+FemalesSE!AC27)/1000 -> 23.515247 | F12: =(FemalesSE!AH26+FemalesSE!AH27)/1000 -> 25.001002 | J12: =F11-D11 -> -4.801279
A13: ="7. "&names!B10 -> 7. Sales and customer service | B13: =(FemalesSE!D28+FemalesSE!D29)/1000 -> 5.306506 | C13: =(FemalesSE!N28+FemalesSE!N29)/1000 -> 4.794426 | D13: =(FemalesSE!X28+FemalesSE!X29)/1000 -> 3.848796 | E13: =(FemalesSE!AC28+FemalesSE!AC29)/1000 -> 3.451212 | F13: =(FemalesSE!AH28+FemalesSE!AH29)/1000 -> 3.187939 | J13: =F10-D10 -> -2.614881
A14: ="8. "&names!B11 -> 8. Process, plant and machine operatives | B14: =(FemalesSE!D30+FemalesSE!D31)/1000 -> 3.868495 | C14: =(FemalesSE!N30+FemalesSE!N31)/1000 -> 3.096811 | D14: =(FemalesSE!X30+FemalesSE!X31)/1000 -> 4.796685 | E14: =(FemalesSE!AC30+FemalesSE!AC31)/1000 -> 4.656099 | F14: =(FemalesSE!AH30+FemalesSE!AH31)/1000 -> 4.623919 | J14: =F9-D9 -> 2.268506
A15: ="9. "&names!B12 -> 9. Elementary occupations | B15: =(FemalesSE!D32+FemalesSE!D33)/1000 -> 6.688115 | C15: =(FemalesSE!N32+FemalesSE!N33)/1000 -> 3.861476 | D15: =(FemalesSE!X32+FemalesSE!X33)/1000 -> 6.651418 | E15: =(FemalesSE!AC32+FemalesSE!AC33)/1000 -> 6.75124 | F15: =(FemalesSE!AH32+FemalesSE!AH33)/1000 -> 6.871307 | J15: =F8-D8 -> 4.984403
A16: Total | B16: =FemalesSE!D8/1000 -> 113.183 | C16: =FemalesSE!N8/1000 -> 106.68 | D16: =FemalesSE!X8/1000 -> 149.396 | E16: =FemalesSE!AC8/1000 -> 149.515 | F16: =FemalesSE!AH8/1000 -> 152.379 | J16: =F7-D7 -> 0.961341
A19: Percentage Shares
B20: =B6 -> 1992 | C20: =C6 -> 2002 | D20: =D6 -> 2012 | E20: =E6 -> 2017 | F20: =F6 -> 2022
A21: =A7 -> 1. Managers, directors and senior officials | B21: =B7/B$16*100 -> 17.84090279 | C21: 18.74241657 | D21: 14.05297598 | E21: 13.99408755 | F21: 14.40876039
A22: =A8 -> 2. Professional occupations | B22: 15.17477448 | C22: 19.76133858 | D22: 26.43230542 | E22: 28.25572618 | F22: 29.18591801
A23: 3. Associate professional and technical | B23: 7.397695767 | C23: 12.9658877 | D23: 15.17407628 | E23: 15.86220781 | F23: 16.36575184
A24: 4. Administrative and secretarial | B24: 14.71084085 | C24: 11.03787589 | D24: 11.40289834 | E24: 10.72255894 | F24: 9.463635409
A25: 5. Skilled trades occupations | B25: 16.0236069 | C25: 11.03833521 | D25: 7.837166992 | E25: 5.499900344 | F25: 4.532865421
A26: 6. Caring, leisure and other service | B26: 14.83672018 | C26: 15.43735564 | D26: 14.8614153 | E26: 15.72768418 | F26: 16.40711778
A27: 7. Sales and customer service | B27: 4.688430241 | C27: 4.494212598 | D27: 2.57623765 | E27: 2.308271411 | F27: 2.092111774
A28: 8. Process, plant and machine operatives | B28: 3.417911701 | C28: 2.90289745 | D28: 3.210718493 | E28: 3.114135037 | F28: 3.034485723
A29: 9. Elementary occupations | B29: 5.90911621 | C29: 3.61968129 | D29: 4.452206217 | E29: 4.515426546 | F29: 4.509352995
A30: Total | B30: 100 | C30: 100 | D30: 100 | E30: 100 | F30: 100
A32: N:\Projects\SSDA Projections\workbooks\Allyy.xls, sheet Table4.1

Sheet Figure 4.1a
N3: Graph title:
N4: =CONCATENATE("Figure 4.1: Occupational Profiles, ",Q6,"-",AU6) -> Figure 4.1: Occupational Profiles, 1992-2022
N6: SOC2010 Major Groups | Q6: =All!D7 -> 1992 | R6: =All!E7 -> 1993 | S6: =All!F7 -> 1994 | T6: =All!G7 -> 1995 | U6: =All!H7 -> 1996 | V6: =All!I7 -> 1997 | W6: =All!J7 -> 1998 | X6: =All!K7 -> 1999 | Y6: =All!L7 -> 2000 | Z6: =All!M7 -> 2001 | AA6: =All!N7 -> 2002 | AB6: =All!O7 -> 2003 | AC6: =All!P7 -> 2004 | AD6: =All!Q7 -> 2005 | AE6: =All!R7 -> 2006 | AF6: =All!S7 -> 2007 | AG6: =All!T7 -> 2008 | AH6: =All!U7 -> 2009 | AI6: =All!V7 -> 2010 | AJ6: =All!W7 -> 2011 | AK6: =All!X7 -> 2012 | AL6: =All!Y7 -> 2013 | AM6: =All!Z7 -> 2014 | AN6: =All!AA7 -> 2015 | AO6: =All!AB7 -> 2016 | AP6: =All!AC7 -> 2017 | AQ6: =All!AD7 -> 2018 | AR6: =All!AE7 -> 2019 | AS6: =All!AF7 -> 2020 | AT6: =All!AG7 -> 2021 | AU6: =All!AH7 -> 2022
N7: All industries
N8: ="1. "&names!B4 -> 1. Managers, directors and senior officials | Q8: =(All!D9+All!D10)/1000 -> 189.281592 | R8: =(All!E9+All!E10)/1000 -> 190.627492 | S8: =(All!F9+All!F10)/1000 -> 190.771412 | T8: =(All!G9+All!G10)/1000 -> 198.022007 | U8: =(All!H9+All!H10)/1000 -> 188.817558 | V8: =(All!I9+All!I10)/1000 -> 198.365663 | W8: =(All!J9+All!J10)/1000 -> 202.311222 | X8: =(All!K9+All!K10)/1000 -> 205.076301 | Y8: =(All!L9+All!L10)/1000 -> 207.236344 | Z8: =(All!M9+All!M10)/1000 -> 218.44706 | AA8: =(All!N9+All!N10)/1000 -> 238.349991 | AB8: =(All!O9+All!O10)/1000 -> 234.107045 | AC8: =(All!P9+All!P10)/1000 -> 243.23766 | AD8: =(All!Q9+All!Q10)/1000 -> 248.28592 | AE8: =(All!R9+All!R10)/1000 -> 245.053687 | AF8: =(All!S9+All!S10)/1000 -> 257.396033 | AG8: =(All!T9+All!T10)/1000 -> 269.723097 | AH8: =(All!U9+All!U10)/1000 -> 272.778084 | AI8: =(All!V9+All!V10)/1000 -> 272.321219 | AJ8: =(All!W9+All!W10)/1000 -> 281.635096 | AK8: =(All!X9+All!X10)/1000 -> 285.357679 | AL8: =(All!Y9+All!Y10)/1000 -> 288.388388 | AM8: =(All!Z9+All!Z10)/1000 -> 292.561861 | AN8: =(All!AA9+All!AA10)/1000 -> 296.495135 | AO8: =(All!AB9+All!AB10)/1000 -> 300.835398 | AP8: =(All!AC9+All!AC10)/1000 -> 305.711997 | AQ8: =(All!AD9+All!AD10)/1000 -> 310.781685 | AR8: =(All!AE9+All!AE10)/1000 -> 316.234939 | AS8: =(All!AF9+All!AF10)/1000 -> 321.77455 | AT8: =(All!AG9+All!AG10)/1000 -> 326.901282 | AU8: =(All!AH9+All!AH10)/1000 -> 331.851866
N9: ="2. "&names!B5 -> 2. Professional occupations | Q9: =(All!D11+All!D12+All!D13+All!D14)/1000 -> 322.949885 | R9: =(All!E11+All!E12+All!E13+All!E14)/1000 -> 326.271535 | S9: =(All!F11+All!F12+All!F13+All!F14)/1000 -> 334.132038 | T9: =(All!G11+All!G12+All!G13+All!G14)/1000 -> 344.548499 | U9: =(All!H11+All!H12+All!H13+All!H14)/1000 -> 345.428194 | V9: =(All!I11+All!I12+All!I13+All!I14)/1000 -> 358.563988 | W9: =(All!J11+All!J12+All!J13+All!J14)/1000 -> 363.415068 | X9: =(All!K11+All!K12+All!K13+All!K14)/1000 -> 371.161838 | Y9: =(All!L11+All!L12+All!L13+All!L14)/1000 -> 379.432723 | Z9: =(All!M11+All!M12+All!M13+All!M14)/1000 -> 390.028419 | AA9: =(All!N11+All!N12+All!N13+All!N14)/1000 -> 400.566033 | AB9: =(All!O11+All!O12+All!O13+All!O14)/1000 -> 416.691765 | AC9: =(All!P11+All!P12+All!P13+All!P14)/1000 -> 424.798663 | AD9: =(All!Q11+All!Q12+All!Q13+All!Q14)/1000 -> 430.838132 | AE9: =(All!R11+All!R12+All!R13+All!R14)/1000 -> 446.579595 | AF9: =(All!S11+All!S12+All!S13+All!S14)/1000 -> 458.183404 | AG9: =(All!T11+All!T12+All!T13+All!T14)/1000 -> 464.514258 | AH9: =(All!U11+All!U12+All!U13+All!U14)/1000 -> 485.976801 | AI9: =(All!V11+All!V12+All!V13+All!V14)/1000 -> 483.821799 | AJ9: =(All!W11+All!W12+All!W13+All!W14)/1000 -> 501.05025 | AK9: =(All!X11+All!X12+All!X13+All!X14)/1000 -> 519.727596 | AL9: =(All!Y11+All!Y12+All!Y13+All!Y14)/1000 -> 540.251291 | AM9: =(All!Z11+All!Z12+All!Z13+All!Z14)/1000 -> 550.782688 | AN9: =(All!AA11+All!AA12+All!AA13+All!AA14)/1000 -> 560.833365 | AO9: =(All!AB11+All!AB12+All!AB13+All!AB14)/1000 -> 567.205553 | AP9: =(All!AC11+All!AC12+All!AC13+All!AC14)/1000 -> 574.532916 | AQ9: =(All!AD11+All!AD12+All!AD13+All!AD14)/1000 -> 583.063455 | AR9: =(All!AE11+All!AE12+All!AE13+All!AE14)/1000 -> 590.609355 | AS9: =(All!AF11+All!AF12+All!AF13+All!AF14)/1000 -> 598.74025 | AT9: =(All!AG11+All!AG12+All!AG13+All!AG14)/1000 -> 608.672743 | AU9: =(All!AH11+All!AH12+All!AH13+All!AH14)/1000 -> 618.507754
N10: ="3. "&names!B6 -> 3. Associate professional and technical | Q10: =(All!D15+All!D16+All!D17+All!D18+All!D19)/1000 -> 228.803987 | R10: =(All!E15+All!E16+All!E17+All!E18+All!E19)/1000 -> 229.204489 | S10: =(All!F15+All!F16+All!F17+All!F18+All!F19)/1000 -> 237.667453 | T10: =(All!G15+All!G16+All!G17+All!G18+All!G19)/1000 -> 245.738636 | U10: =(All!H15+All!H16+All!H17+All!H18+All!H19)/1000 -> 241.734735 | V10: =(All!I15+All!I16+All!I17+All!I18+All!I19)/1000 -> 256.830506 | W10: =(All!J15+All!J16+All!J17+All!J18+All!J19)/1000 -> 257.351901 | X10: =(All!K15+All!K16+All!K17+All!K18+All!K19)/1000 -> 261.664175 | Y10: =(All!L15+All!L16+All!L17+All!L18+All!L19)/1000 -> 266.325726 | Z10: =(All!M15+All!M16+All!M17+All!M18+All!M19)/1000 -> 273.36006 | AA10: =(All!N15+All!N16+All!N17+All!N18+All!N19)/1000 -> 281.484975 | AB10: =(All!O15+All!O16+All!O17+All!O18+All!O19)/1000 -> 282.524907 | AC10: =(All!P15+All!P16+All!P17+All!P18+All!P19)/1000 -> 291.693933 | AD10: =(All!Q15+All!Q16+All!Q17+All!Q18+All!Q19)/1000 -> 296.724838 | AE10: =(All!R15+All!R16+All!R17+All!R18+All!R19)/1000 -> 296.386918 | AF10: =(All!S15+All!S16+All!S17+All!S18+All!S19)/1000 -> 307.852643 | AG10: =(All!T15+All!T16+All!T17+All!T18+All!T19)/1000 -> 315.374238 | AH10: =(All!U15+All!U16+All!U17+All!U18+All!U19)/1000 -> 314.782552 | AI10: =(All!V15+All!V16+All!V17+All!V18+All!V19)/1000 -> 310.49275 | AJ10: =(All!W15+All!W16+All!W17+All!W18+All!W19)/1000 -> 318.977546 | AK10: =(All!X15+All!X16+All!X17+All!X18+All!X19)/1000 -> 323.30043 | AL10: =(All!Y15+All!Y16+All!Y17+All!Y18+All!Y19)/1000 -> 331.212713 | AM10: =(All!Z15+All!Z16+All!Z17+All!Z18+All!Z19)/1000 -> 333.800037 | AN10: =(All!AA15+All!AA16+All!AA17+All!AA18+All!AA19)/1000 -> 337.430651 | AO10: =(All!AB15+All!AB16+All!AB17+All!AB18+All!AB19)/1000 -> 340.577599 | AP10: =(All!AC15+All!AC16+All!AC17+All!AC18+All!AC19)/1000 -> 345.343954 | AQ10: =(All!AD15+All!AD16+All!AD17+All!AD18+All!AD19)/1000 -> 350.473025 | AR10: =(All!AE15+All!AE16+All!AE17+All!AE18+All!AE19)/1000 -> 355.178511 | AS10: =(All!AF15+All!AF16+All!AF17+All!AF18+All!AF19)/1000 -> 359.737485 | AT10: =(All!AG15+All!AG16+All!AG17+All!AG18+All!AG19)/1000 -> 364.846491 | AU10: =(All!AH15+All!AH16+All!AH17+All!AH18+All!AH19)/1000 -> 369.840579
N11: ="4. "&names!B7 -> 4. Administrative and secretarial | Q11: =(All!D20+All!D21)/1000 -> 355.916783 | R11: =(All!E20+All!E21)/1000 -> 350.626221 | S11: =(All!F20+All!F21)/1000 -> 351.075825 | T11: =(All!G20+All!G21)/1000 -> 351.058628 | U11: =(All!H20+All!H21)/1000 -> 335.416622 | V11: =(All!I20+All!I21)/1000 -> 330.408549 | W11: =(All!J20+All!J21)/1000 -> 326.162866 | X11: =(All!K20+All!K21)/1000 -> 330.070219 | Y11: =(All!L20+All!L21)/1000 -> 329.261167 | Z11: =(All!M20+All!M21)/1000 -> 328.535652 | AA11: =(All!N20+All!N21)/1000 -> 328.402521 | AB11: =(All!O20+All!O21)/1000 -> 332.826911 | AC11: =(All!P20+All!P21)/1000 -> 338.099079 | AD11: =(All!Q20+All!Q21)/1000 -> 330.835214 | AE11: =(All!R20+All!R21)/1000 -> 338.190106 | AF11: =(All!S20+All!S21)/1000 -> 330.932603 | AG11: =(All!T20+All!T21)/1000 -> 317.018371 | AH11: =(All!U20+All!U21)/1000 -> 311.704669 | AI11: =(All!V20+All!V21)/1000 -> 321.669807 | AJ11: =(All!W20+All!W21)/1000 -> 299.367446 | AK11: =(All!X20+All!X21)/1000 -> 306.002256 | AL11: =(All!Y20+All!Y21)/1000 -> 302.932863 | AM11: =(All!Z20+All!Z21)/1000 -> 296.641596 | AN11: =(All!AA20+All!AA21)/1000 -> 290.886046 | AO11: =(All!AB20+All!AB21)/1000 -> 285.843073 | AP11: =(All!AC20+All!AC21)/1000 -> 282.194279 | AQ11: =(All!AD20+All!AD21)/1000 -> 278.365943 | AR11: =(All!AE20+All!AE21)/1000 -> 274.786751 | AS11: =(All!AF20+All!AF21)/1000 -> 270.900916 | AT11: =(All!AG20+All!AG21)/1000 -> 267.078944 | AU11: =(All!AH20+All!AH21)/1000 -> 262.94304
N12: ="5. "&names!B8 -> 5. Skilled trades occupations | Q12: =(All!D22+All!D23+All!D24+All!D25)/1000 -> 369.003118 | R12: =(All!E22+All!E23+All!E24+All!E25)/1000 -> 362.802973 | S12: =(All!F22+All!F23+All!F24+All!F25)/1000 -> 342.073895 | T12: =(All!G22+All!G23+All!G24+All!G25)/1000 -> 346.493979 | U12: =(All!H22+All!H23+All!H24+All!H25)/1000 -> 341.726341 | V12: =(All!I22+All!I23+All!I24+All!I25)/1000 -> 350.196142 | W12: =(All!J22+All!J23+All!J24+All!J25)/1000 -> 337.805873 | X12: =(All!K22+All!K23+All!K24+All!K25)/1000 -> 349.020919 | Y12: =(All!L22+All!L23+All!L24+All!L25)/1000 -> 327.416062 | Z12: =(All!M22+All!M23+All!M24+All!M25)/1000 -> 341.610294 | AA12: =(All!N22+All!N23+All!N24+All!N25)/1000 -> 354.488358 | AB12: =(All!O22+All!O23+All!O24+All!O25)/1000 -> 328.735482 | AC12: =(All!P22+All!P23+All!P24+All!P25)/1000 -> 345.478216 | AD12: =(All!Q22+All!Q23+All!Q24+All!Q25)/1000 -> 341.875183 | AE12: =(All!R22+All!R23+All!R24+All!R25)/1000 -> 332.121695 | AF12: =(All!S22+All!S23+All!S24+All!S25)/1000 -> 327.520213 | AG12: =(All!T22+All!T23+All!T24+All!T25)/1000 -> 342.179494 | AH12: =(All!U22+All!U23+All!U24+All!U25)/1000 -> 328.31491 | AI12: =(All!V22+All!V23+All!V24+All!V25)/1000 -> 326.992858 | AJ12: =(All!W22+All!W23+All!W24+All!W25)/1000 -> 336.847024 | AK12: =(All!X22+All!X23+All!X24+All!X25)/1000 -> 342.425114 | AL12: =(All!Y22+All!Y23+All!Y24+All!Y25)/1000 -> 330.527494 | AM12: =(All!Z22+All!Z23+All!Z24+All!Z25)/1000 -> 329.507883 | AN12: =(All!AA22+All!AA23+All!AA24+All!AA25)/1000 -> 328.4091 | AO12: =(All!AB22+All!AB23+All!AB24+All!AB25)/1000 -> 327.098145 | AP12: =(All!AC22+All!AC23+All!AC24+All!AC25)/1000 -> 325.319977 | AQ12: =(All!AD22+All!AD23+All!AD24+All!AD25)/1000 -> 323.632116 | AR12: =(All!AE22+All!AE23+All!AE24+All!AE25)/1000 -> 323.21209 | AS12: =(All!AF22+All!AF23+All!AF24+All!AF25)/1000 -> 322.358596 | AT12: =(All!AG22+All!AG23+All!AG24+All!AG25)/1000 -> 318.86699 | AU12: =(All!AH22+All!AH23+All!AH24+All!AH25)/1000 -> 315.577454
N13: ="6. "&names!B9 -> 6. Caring, leisure and other service | Q13: =(All!D26+All!D27)/1000 -> 138.920628 | R13: =(All!E26+All!E27)/1000 -> 147.09609 | S13: =(All!F26+All!F27)/1000 -> 152.057555 | T13: =(All!G26+All!G27)/1000 -> 160.432337 | U13: =(All!H26+All!H27)/1000 -> 165.078582 | V13: =(All!I26+All!I27)/1000 -> 171.963381 | W13: =(All!J26+All!J27)/1000 -> 179.418756 | X13: =(All!K26+All!K27)/1000 -> 185.007983 | Y13: =(All!L26+All!L27)/1000 -> 197.934504 | Z13: =(All!M26+All!M27)/1000 -> 198.366205 | AA13: =(All!N26+All!N27)/1000 -> 208.157755 | AB13: =(All!O26+All!O27)/1000 -> 217.511739 | AC13: =(All!P26+All!P27)/1000 -> 216.758066 | AD13: =(All!Q26+All!Q27)/1000 -> 227.345442 | AE13: =(All!R26+All!R27)/1000 -> 242.325726 | AF13: =(All!S26+All!S27)/1000 -> 247.733392 | AG13: =(All!T26+All!T27)/1000 -> 242.753001 | AH13: =(All!U26+All!U27)/1000 -> 253.630364 | AI13: =(All!V26+All!V27)/1000 -> 264.529726 | AJ13: =(All!W26+All!W27)/1000 -> 259.357691 | AK13: =(All!X26+All!X27)/1000 -> 277.530399 | AL13: =(All!Y26+All!Y27)/1000 -> 291.700309 | AM13: =(All!Z26+All!Z27)/1000 -> 297.067692 | AN13: =(All!AA26+All!AA27)/1000 -> 301.974074 | AO13: =(All!AB26+All!AB27)/1000 -> 305.262295 | AP13: =(All!AC26+All!AC27)/1000 -> 310.057176 | AQ13: =(All!AD26+All!AD27)/1000 -> 317.266787 | AR13: =(All!AE26+All!AE27)/1000 -> 323.223918 | AS13: =(All!AF26+All!AF27)/1000 -> 328.576721 | AT13: =(All!AG26+All!AG27)/1000 -> 335.443271 | AU13: =(All!AH26+All!AH27)/1000 -> 342.243532
N14: ="7. "&names!B10 -> 7. Sales and customer service | Q14: =(All!D28+All!D29)/1000 -> 187.33627 | R14: =(All!E28+All!E29)/1000 -> 187.151923 | S14: =(All!F28+All!F29)/1000 -> 193.053313 | T14: =(All!G28+All!G29)/1000 -> 198.645213 | U14: =(All!H28+All!H29)/1000 -> 211.682559 | V14: =(All!I28+All!I29)/1000 -> 228.033979 | W14: =(All!J28+All!J29)/1000 -> 223.009344 | X14: =(All!K28+All!K29)/1000 -> 223.528125 | Y14: =(All!L28+All!L29)/1000 -> 224.054004 | Z14: =(All!M28+All!M29)/1000 -> 228.462723 | AA14: =(All!N28+All!N29)/1000 -> 232.706851 | AB14: =(All!O28+All!O29)/1000 -> 239.159944 | AC14: =(All!P28+All!P29)/1000 -> 243.149142 | AD14: =(All!Q28+All!Q29)/1000 -> 242.053593 | AE14: =(All!R28+All!R29)/1000 -> 248.415553 | AF14: =(All!S28+All!S29)/1000 -> 246.088977 | AG14: =(All!T28+All!T29)/1000 -> 241.383814 | AH14: =(All!U28+All!U29)/1000 -> 248.490968 | AI14: =(All!V28+All!V29)/1000 -> 245.118177 | AJ14: =(All!W28+All!W29)/1000 -> 234.821888 | AK14: =(All!X28+All!X29)/1000 -> 241.449111 | AL14: =(All!Y28+All!Y29)/1000 -> 240.048221 | AM14: =(All!Z28+All!Z29)/1000 -> 236.862059 | AN14: =(All!AA28+All!AA29)/1000 -> 233.224672 | AO14: =(All!AB28+All!AB29)/1000 -> 233.608536 | AP14: =(All!AC28+All!AC29)/1000 -> 234.068851 | AQ14: =(All!AD28+All!AD29)/1000 -> 234.499977 | AR14: =(All!AE28+All!AE29)/1000 -> 235.366511 | AS14: =(All!AF28+All!AF29)/1000 -> 236.377087 | AT14: =(All!AG28+All!AG29)/1000 -> 235.816828 | AU14: =(All!AH28+All!AH29)/1000 -> 234.419329
N15: ="8. "&names!B11 -> 8. Process, plant and machine operatives | Q15: =(All!D30+All!D31)/1000 -> 168.777731 | R15: =(All!E30+All!E31)/1000 -> 164.717022 | S15: =(All!F30+All!F31)/1000 -> 161.19697 | T15: =(All!G30+All!G31)/1000 -> 165.29944 | U15: =(All!H30+All!H31)/1000 -> 168.77658 | V15: =(All!I30+All!I31)/1000 -> 180.02213 | W15: =(All!J30+All!J31)/1000 -> 173.982074 | X15: =(All!K30+All!K31)/1000 -> 173.40084 | Y15: =(All!L30+All!L31)/1000 -> 166.750664 | Z15: =(All!M30+All!M31)/1000 -> 168.420921 | AA15: =(All!N30+All!N31)/1000 -> 164.708709 | AB15: =(All!O30+All!O31)/1000 -> 155.028618 | AC15: =(All!P30+All!P31)/1000 -> 158.410359 | AD15: =(All!Q30+All!Q31)/1000 -> 159.583391 | AE15: =(All!R30+All!R31)/1000 -> 162.222487 | AF15: =(All!S30+All!S31)/1000 -> 159.441745 | AG15: =(All!T30+All!T31)/1000 -> 154.751856 | AH15: =(All!U30+All!U31)/1000 -> 158.310337 | AI15: =(All!V30+All!V31)/1000 -> 154.600865 | AJ15: =(All!W30+All!W31)/1000 -> 154.505841 | AK15: =(All!X30+All!X31)/1000 -> 156.893522 | AL15: =(All!Y30+All!Y31)/1000 -> 154.408048 | AM15: =(All!Z30+All!Z31)/1000 -> 151.808566 | AN15: =(All!AA30+All!AA31)/1000 -> 149.123024 | AO15: =(All!AB30+All!AB31)/1000 -> 147.943211 | AP15: =(All!AC30+All!AC31)/1000 -> 146.921575 | AQ15: =(All!AD30+All!AD31)/1000 -> 146.044708 | AR15: =(All!AE30+All!AE31)/1000 -> 145.271765 | AS15: =(All!AF30+All!AF31)/1000 -> 144.634761 | AT15: =(All!AG30+All!AG31)/1000 -> 142.954886 | AU15: =(All!AH30+All!AH31)/1000 -> 141.146145
N16: ="9. "&names!B12 -> 9. Elementary occupations | Q16: =(All!D32+All!D33)/1000 -> 287.937005 | R16: =(All!E32+All!E33)/1000 -> 280.959257 | S16: =(All!F32+All!F33)/1000 -> 275.168538 | T16: =(All!G32+All!G33)/1000 -> 278.028261 | U16: =(All!H32+All!H33)/1000 -> 293.408828 | V16: =(All!I32+All!I33)/1000 -> 294.049661 | W16: =(All!J32+All!J33)/1000 -> 292.079895 | X16: =(All!K32+All!K33)/1000 -> 291.009597 | Y16: =(All!L32+All!L33)/1000 -> 291.782805 | Z16: =(All!M32+All!M33)/1000 -> 300.507669 | AA16: =(All!N32+All!N33)/1000 -> 303.557808 | AB16: =(All!O32+All!O33)/1000 -> 306.459588 | AC16: =(All!P32+All!P33)/1000 -> 305.30988 | AD16: =(All!Q32+All!Q33)/1000 -> 304.366287 | AE16: =(All!R32+All!R33)/1000 -> 314.886233 | AF16: =(All!S32+All!S33)/1000 -> 308.793991 | AG16: =(All!T32+All!T33)/1000 -> 304.550872 | AH16: =(All!U32+All!U33)/1000 -> 295.132314 | AI16: =(All!V32+All!V33)/1000 -> 284.556798 | AJ16: =(All!W32+All!W33)/1000 -> 267.587219 | AK16: =(All!X32+All!X33)/1000 -> 287.914895 | AL16: =(All!Y32+All!Y33)/1000 -> 275.622674 | AM16: =(All!Z32+All!Z33)/1000 -> 274.806618 | AN16: =(All!AA32+All!AA33)/1000 -> 274.147936 | AO16: =(All!AB32+All!AB33)/1000 -> 274.59819 | AP16: =(All!AC32+All!AC33)/1000 -> 274.702276 | AQ16: =(All!AD32+All!AD33)/1000 -> 274.686303 | AR16: =(All!AE32+All!AE33)/1000 -> 275.953161 | AS16: =(All!AF32+All!AF33)/1000 -> 277.208632 | AT16: =(All!AG32+All!AG33)/1000 -> 278.642565 | AU16: =(All!AH32+All!AH33)/1000 -> 279.862302
N17: All occupations | Q17: =All!D8/1000 -> 2248.927 | R17: =All!E8/1000 -> 2239.457 | S17: =All!F8/1000 -> 2237.197 | T17: =All!G8/1000 -> 2288.267 | U17: =All!H8/1000 -> 2292.07 | V17: =All!I8/1000 -> 2368.434 | W17: =All!J8/1000 -> 2355.537 | X17: =All!K8/1000 -> 2389.94 | Y17: =All!L8/1000 -> 2390.194 | Z17: =All!M8/1000 -> 2447.739 | AA17: =All!N8/1000 -> 2512.423 | AB17: =All!O8/1000 -> 2513.046 | AC17: =All!P8/1000 -> 2566.935 | AD17: =All!Q8/1000 -> 2581.908 | AE17: =All!R8/1000 -> 2626.182 | AF17: =All!S8/1000 -> 2643.943 | AG17: =All!T8/1000 -> 2652.249 | AH17: =All!U8/1000 -> 2669.121 | AI17: =All!V8/1000 -> 2664.104 | AJ17: =All!W8/1000 -> 2654.15 | AK17: =All!X8/1000 -> 2740.601 | AL17: =All!Y8/1000 -> 2755.092 | AM17: =All!Z8/1000 -> 2763.839 | AN17: =All!AA8/1000 -> 2772.524 | AO17: =All!AB8/1000 -> 2782.972 | AP17: =All!AC8/1000 -> 2798.853 | AQ17: =All!AD8/1000 -> 2818.814 | AR17: =All!AE8/1000 -> 2839.837 | AS17: =All!AF8/1000 -> 2860.309 | AT17: =All!AG8/1000 -> 2879.224 | AU17: =All!AH8/1000 -> 2896.392
B45: =CELL("filename",$A$2)&", "&Info!A1 -> R:\Research Info\Individual research project info\Working Futures 2012-2022\Working Futures quant projections 2012-2022\04 Reporting and outputs\Final outputs\Workbooks\Files for gov.uk\SW\[AllSWv2.xlsm]Figure 4.1a, South West

Sheet Figure 4.1.2
C1: ="Figure 4.1.2: Occupational Change, "&All!N7&"-"&All!AH7&", Total Employment" -> Figure 4.1.2: Occupational Change, 2002-2022, Total Employment | Q1: Chart data
R2: =All!N7&"-"&All!X7 -> 2002-2012 | S2: =All!X7&"-"&All!AH7 -> 2012-2022
Q3: =names!C28 -> 92 Elementary administration and service occupations | R3: =(All!X33-All!N33)/1000 -> -15.108497 | S3: =(All!AH33-All!X33)/1000 -> -5.097559
Q4: =names!C27 -> 91 Elementary trades and related occupations | R4: =(All!X32-All!N32)/1000 -> -0.534416 | S4: =(All!AH32-All!X32)/1000 -> -2.955034
Q5: =names!C26 -> 82 Transport and mobile machine drivers and operatives | R5: =(All!X31-All!N31)/1000 -> 13.155337 | S5: =(All!AH31-All!X31)/1000 -> 3.010687
Q6: =names!C25 -> 81 Process, plant and machine operatives | R6: =(All!X30-All!N30)/1000 -> -20.970524 | S6: =(All!AH30-All!X30)/1000 -> -18.758064
Q7: =names!C24 -> 72 Customer service occupations | R7: =(All!X29-All!N29)/1000 -> 9.24378 | S7: =(All!AH29-All!X29)/1000 -> 10.696877
Q8: =names!C23 -> 71 Sales occupations | R8: =(All!X28-All!N28)/1000 -> -0.50152 | S8: =(All!AH28-All!X28)/1000 -> -17.726659
Q9: =names!C22 -> 62 Leisure, travel and related personal service occupations | R9: =(All!X27-All!N27)/1000 -> 5.031364 | S9: =(All!AH27-All!X27)/1000 -> 5.796147
Q10: =names!C21 -> 61 Caring personal service occupations | R10: =(All!X26-All!N26)/1000 -> 64.34128 | S10: =(All!AH26-All!X26)/1000 -> 58.916986
Q11: =names!C20 -> 54 Textiles, printing and other skilled trades | R11: =(All!X25-All!N25)/1000 -> -12.926799 | S11: =(All!AH25-All!X25)/1000 -> -22.095358
Q12: =names!C19 -> 53 Skilled construction and building trades | R12: =(All!X24-All!N24)/1000 -> 1.386545 | S12: =(All!AH24-All!X24)/1000 -> 10.054172
Q13: =names!C18 -> 52 Skilled metal, electrical and electronic trades | R13: =(All!X23-All!N23)/1000 -> -7.726586 | S13: =(All!AH23-All!X23)/1000 -> -8.450237
Q14: =names!C17 -> 51 Skilled agricultural and related trades | R14: =(All!X22-All!N22)/1000 -> 7.203596 | S14: =(All!AH22-All!X22)/1000 -> -6.356237
Q15: =names!C16 -> 42 Secretarial and related occupations | R15: =(All!X21-All!N21)/1000 -> -13.018839 | S15: =(All!AH21-All!X21)/1000 -> -27.836374
Q16: =names!C15 -> 41 Administrative occupations | R16: =(All!X20-All!N20)/1000 -> -9.381426 | S16: =(All!AH20-All!X20)/1000 -> -15.222842
Q17: =names!C14 -> 35 Business and public service associate professionals | R17: =(All!X19-All!N19)/1000 -> 26.364243 | S17: =(All!AH19-All!X19)/1000 -> 28.786167
Q18: =names!C13 -> 34 Culture, media and sports occupations | R18: =(All!X18-All!N18)/1000 -> 13.300052 | S18: =(All!AH18-All!X18)/1000 -> 7.966831
Q19: =names!C12 -> 33 Protective service occupations | R19: =(All!X17-All!N17)/1000 -> -4.024234 | S19: =(All!AH17-All!X17)/1000 -> -2.751797
Q20: =names!C11 -> 32 Health and social care associate professionals | R20: =(All!X16-All!N16)/1000 -> 6.466992 | S20: =(All!AH16-All!X16)/1000 -> 9.314599
Q21: =names!C10 -> 31 Science, engineering and technology associate professionals | R21: =(All!X15-All!N15)/1000 -> -0.291598 | S21: =(All!AH15-All!X15)/1000 -> 3.224349
Q22: =names!C9 -> 24 Business, media and public service professionals | R22: =(All!X14-All!N14)/1000 -> 32.520665 | S22: =(All!AH14-All!X14)/1000 -> 25.668561
Q23: =names!C8 -> 23 Teaching and educational professionals | R23: =(All!X13-All!N13)/1000 -> 31.139295 | S23: =(All!AH13-All!X13)/1000 -> 14.081788
Q24: =names!C7 -> 22 Health professionals | R24: =(All!X12-All!N12)/1000 -> 23.20272 | S24: =(All!AH12-All!X12)/1000 -> 31.73242
Q25: =names!C6 -> 21 Science, research, engineering and technology professionals | R25: =(All!X11-All!N11)/1000 -> 32.298883 | S25: =(All!AH11-All!X11)/1000 -> 27.297389
Q26: =names!C5 -> 12 Other managers and proprietors | R26: =(All!X10-All!N10)/1000 -> 10.744921 | S26: =(All!AH10-All!X10)/1000 -> 6.133293
Q27: =names!C4 -> 11 Corporate managers and directors | R27: =(All!X9-All!N9)/1000 -> 36.262767 | S27: =(All!AH9-All!X9)/1000 -> 40.360894
C40: =CELL("filename",$A$2)&", "&Info!A1 -> R:\Research Info\Individual research project info\Working Futures 2012-2022\Working Futures quant projections 2012-2022\04 Reporting and outputs\Final outputs\Workbooks\Files for gov.uk\SW\[AllSWv2.xlsm]Figure 4.1.2, South West

Sheet fig 4.1 to 4.4
B3: ="Figure 4.2 Occupational Change by Gender, "&'Table 4.1 T'!J6&", Total Employment" -> Figure 4.2 Occupational Change by Gender, 2012-2022, Total Employment
B34: =CELL("filename",$A$1)&", "&Info!A1 -> R:\Research Info\Individual research project info\Working Futures 2012-2022\Working Futures quant projections 2012-2022\04 Reporting and outputs\Final outputs\Workbooks\Files for gov.uk\SW\[AllSWv2.xlsm]fig 4.1 to 4.4, South West
B40: ="Figure 4.3 Occupational Change by Status, "&'Table 4.1 T'!J6&", Total Employment" -> Figure 4.3 Occupational Change by Status, 2012-2022, Total Employment
B72: =CELL("filename",$A$1)&", "&Info!A1 -> R:\Research Info\Individual research project info\Working Futures 2012-2022\Working Futures quant projections 2012-2022\04 Reporting and outputs\Final outputs\Workbooks\Files for gov.uk\SW\[AllSWv2.xlsm]fig 4.1 to 4.4, South West
B76: ="Figure 4.4 Occupational Change by Status, Males, "&'Table 4.1 MFT'!J6 -> Figure 4.4 Occupational Change by Status, Males, 2012-2022
B78: Male Employment
B110: =CELL("filename",$A$1)&", "&Info!A1 -> R:\Research Info\Individual research project info\Working Futures 2012-2022\Working Futures quant projections 2012-2022\04 Reporting and outputs\Final outputs\Workbooks\Files for gov.uk\SW\[AllSWv2.xlsm]fig 4.1 to 4.4, South West
B114: ="Figure 4.5 Occupational Change by Status, Females, "&'Table 4.1 FFT'!J6 -> Figure 4.5 Occupational Change by Status, Females, 2012-2022
B116: Female Employment
B147: =CELL("filename",$A$1)&", "&Info!A1 -> R:\Research Info\Individual research project info\Working Futures 2012-2022\Working Futures quant projections 2012-2022\04 Reporting and outputs\Final outputs\Workbooks\Files for gov.uk\SW\[AllSWv2.xlsm]fig 4.1 to 4.4, South West

Sheet Table 5.1
B2: UK, All industries | H2: Net | K2: =B2 -> UK, All industries | Q2: Net
B3: (Results in 000s) | C3: ="Base employment level "&Assumptions!C24 -> Base employment level 2012 | D3: Expansion demand | E3: % of base | F3: Replacement demands (retirements & mortality) | G3: % of base | H3: requirement (excluding occupational mobility) | I3: % of base | L3: =C3 -> Base employment level 2012 | M3: Expansion demand | N3: % of base | O3: Replacement demands (retirements & mortality) | P3: % of base | Q3: requirement (excluding occupational mobility) | R3: % of base
B4: =names!C4 -> 11 Corporate managers and directors | C4: =Replacement!C5 -> 179.056036 | D4: =Replacement!D5 -> 40.360894 | E4: =100*D4/C4 -> 22.54092903 | F4: =Replacement!H5 -> 68.75736213 | G4: =100*F4/C4 -> 38.39991305 | H4: =Replacement!I5 -> 109.1182561 | I4: =100*H4/C4 -> 60.94084208 | K4: =names!B4 -> Managers, directors and senior officials | L4: =C4+C5 -> 285.35768 | M4: =D4+D5 -> 46.494186 | N4: =100*M4/L4 -> 16.29330109 | O4: =F4+F5 -> 118.4746896 | P4: =100*O4/L4 -> 41.51796077 | Q4: =H4+H5 -> 164.9688756 | R4: =100*Q4/L4 -> 57.81126186
B5: =names!C5 -> 12 Other managers and proprietors | C5: =Replacement!C6 -> 106.301644 | D5: =Replacement!D6 -> 6.133292 | E5: =100*D5/C5 -> 5.769705688 | F5: =Replacement!H6 -> 49.71732751 | G5: =100*F5/C5 -> 46.77004572 | H5: =Replacement!I6 -> 55.85061951 | I5: =100*H5/C5 -> 52.53975141 | K5: =names!B5 -> Professional occupations | L5: =SUM(C6:C9) -> 519.727595 | M5: =SUM(D6:D9) -> 98.780158 | N5: 19.00614071 | O5: =SUM(F6:F9) -> 210.677882 | P5: 40.53621243 | Q5: =SUM(H6:H9) -> 309.45804 | R5: 59.54235314
B6: =names!C6 -> 21 Science, research, engineering and technology professionals | C6: =Replacement!C7 -> 141.901611 | D6: =Replacement!D7 -> 27.297388 | E6: 19.2368415 | F6: =Replacement!H7 -> 45.21431405 | G6: 31.86314358 | H6: =Replacement!I7 -> 72.51170205 | I6: 51.09998508 | K6: =names!B6 -> Associate professional and technical | L6: =SUM(C10:C14) -> 323.300432 | M6: =SUM(D10:D14) -> 46.540146 | N6: 14.39532441 | O6: =SUM(F10:F14) -> 120.7059696 | P6: 37.33554232 | Q6: =SUM(H10:H14) -> 167.2461156 | R6: 51.73086673
B7: =names!C7 -> 22 Health professionals | C7: =Replacement!C8 -> 114.098221 | D7: =Replacement!D8 -> 31.73242 | E7: 27.8114941 | F7: =Replacement!H8 -> 49.65734166 | G7: 43.52157397 | H7: =Replacement!I8 -> 81.38976166 | I7: 71.33306807 | K7: =names!B7 -> Administrative and secretarial | L7: =C15+C16 -> 306.002259 | M7: =D15+D16 -> -43.05922 | N7: -14.07153664 | O7: =F15+F16 -> 131.3219189 | P7: 42.91534296 | Q7: =H15+H16 -> 88.26269893 | R7: 28.84380632
B8: =names!C8 -> 23 Teaching and educational professionals | C8: =Replacement!C9 -> 134.220066 | D8: =Replacement!D9 -> 14.081788 | E8: 10.49156689 | F8: =Replacement!H9 -> 59.61707849 | G8: 44.4174111 | H8: =Replacement!I9 -> 73.69886649 | I8: 54.90897798 | K8: =names!B8 -> Skilled trades occupations | L8: =+C17+C18+C19+C20 -> 342.425117 | M8: =+D17+D18+D19+D20 -> -26.847664 | N8: -7.840448223 | O8: =+F17+F18+F19+F20 -> 117.8301579 | P8: 34.41048919 | Q8: =+H17+H18+H19+H20 -> 90.98249386 | R8: 26.57004096
B9: =names!C9 -> 24 Business, media and public service professionals | C9: =Replacement!C10 -> 129.507697 | D9: =Replacement!D10 -> 25.668562 | E9: 19.82010536 | F9: =Replacement!H10 -> 56.18914779 | G9: 43.38672456 | H9: =Replacement!I10 -> 81.85770979 | I9: 63.20682993 | K9: =names!B9 -> Caring, leisure and other service | L9: =+C21+C22 -> 277.530399 | M9: =+D21+D22 -> 64.713132 | N9: 23.31749323 | O9: =+F21+F22 -> 129.9726409 | P9: 46.83185746 | Q9: =+H21+H22 -> 194.6857729 | R9: 70.14935069
B10: =names!C10 -> 31 Science, engineering and technology associate professionals | C10: =Replacement!C11 -> 43.089461 | D10: =Replacement!D11 -> 3.224349 | E10: 7.482917923 | F10: =Replacement!H11 -> 13.41394636 | G10: 31.13045754 | H10: =Replacement!I11 -> 16.63829536 | I10: 38.61337546 | K10: =names!B10 -> Sales and customer service | L10: =C23+C24 -> 241.44911 | M10: =D23+D24 -> -7.029782 | N10: -2.91149634 | O10: =F23+F24 -> 86.82966996 | P10: 35.96189274 | Q10: =H23+H24 -> 79.79988796 | R10: 33.0503964
B11: =names!C11 -> 32 Health and social care associate professionals | C11: =Replacement!C12 -> 29.264719 | D11: =Replacement!D12 -> 9.314599 | E11: 31.82876624 | F11: =Replacement!H12 -> 12.17846435 | G11: 41.6148344 | H11: =Replacement!I12 -> 21.49306335 | I11: 73.44360063 | K11: =names!B11 -> Process, plant and machine operatives | L11: =C25+C26 -> 156.893519 | M11: =D25+D26 -> -15.747375 | N11: -10.03698247 | O11: =F25+F26 -> 57.46702945 | P11: 36.62804545 | Q11: =H25+H26 -> 41.71965445 | R11: 26.59106298
B12: =names!C12 -> 33 Protective service occupations | C12: =Replacement!C13 -> 25.060509 | D12: =Replacement!D13 -> -2.751798 | E12: -10.98061496 | F12: =Replacement!H13 -> 6.1691975 | G12: 24.6172075 | H12: =Replacement!I13 -> 3.4173995 | I12: 13.63659254 | K12: =names!B12 -> Elementary occupations | L12: =+C27+C28 -> 287.914894 | M12: =+D27+D28 -> -8.052592 | N12: -2.796865382 | O12: =+F27+F28 -> 106.710382 | P12: 37.0631684 | Q12: =+H27+H28 -> 98.65779001 | R12: 34.26630302
B13: =names!C13 -> 34 Culture, media and sports occupations | C13: =Replacement!C14 -> 49.907988 | D13: =Replacement!D14 -> 7.96683 | E13: 15.96303582 | F13: =Replacement!H14 -> 21.7150677 | G13: 43.51020462 | H13: =Replacement!I14 -> 29.6818977 | I13: 59.47324044 | K13: All occupations | L13: =SUM(L4:L12) -> 2740.601005 | M13: =SUM(M4:M12) -> 155.790989 | N13: 5.68455564 | O13: =SUM(O4:O12) -> 1079.99034 | P13: 39.40706211 | Q13: =SUM(Q4:Q12) -> 1235.781329 | R13: 45.09161775
B14: =names!C14 -> 35 Business and public service associate professionals | C14: =Replacement!C15 -> 175.977755 | D14: =Replacement!D15 -> 28.786166 | E14: 16.35784364 | F14: =Replacement!H15 -> 67.22929371 | G14: 38.20329093 | H14: =Replacement!I15 -> 96.01545971 | I14: 54.56113456
B15: =names!C15 -> 41 Administrative occupations | C15: =Replacement!C16 -> 226.204067 | D15: =Replacement!D16 -> -15.222844 | E15: -6.729695094 | F15: =Replacement!H16 -> 95.37586265 | G15: 42.16363742 | H15: =Replacement!I16 -> 80.15301865 | I15: 35.43394233
B16: =names!C16 -> 42 Secretarial and related occupations | C16: =Replacement!C17 -> 79.798192 | D16: =Replacement!D17 -> -27.836376 | E16: -34.88346703 | F16: =Replacement!H17 -> 35.94605628 | G16: 45.04620391 | H16: =Replacement!I17 -> 8.109680281 | I16: 10.16273687
B17: =names!C17 -> 51 Skilled agricultural and related trades | C17: =Replacement!C18 -> 45.091439 | D17: =Replacement!D18 -> -6.356238 | E17: -14.0963299 | F17: =Replacement!H18 -> 22.03312047 | G17: 48.863201 | H17: =Replacement!I18 -> 15.67688247 | I17: 34.76687109
B18: =names!C18 -> 52 Skilled metal, electrical and electronic trades | C18: =Replacement!C19 -> 129.661953 | D18: =Replacement!D19 -> -8.450238 | E18: -6.517129971 | F18: =Replacement!H19 -> 40.86805603 | G18: 31.51892679 | H18: =Replacement!I19 -> 32.41781803 | I18: 25.00179681
B19: =names!C19 -> 53 Skilled construction and building trades | C19: =Replacement!C20 -> 111.730888 | D19: =Replacement!D20 -> 10.054171 | E19: 8.998560004 | F19: =Replacement!H20 -> 38.051527 | G19: 34.05640793 | H19: =Replacement!I20 -> 48.105698 | I19: 43.05496794
B20: =names!C20 -> 54 Textiles, printing and other skilled trades | C20: =Replacement!C21 -> 55.940837 | D20: =Replacement!D21 -> -22.095359 | E20: -39.49772686 | F20: =Replacement!H21 -> 16.87745434 | G20: 30.17018559 | H20: =Replacement!I21 -> -5.217904655 | I20: -9.327541265
B21: =names!C21 -> 61 Caring personal service occupations | C21: =Replacement!C22 -> 222.651859 | D21: =Replacement!D22 -> 58.916985 | E21: 26.46148353 | F21: =Replacement!H22 -> 103.6802692 | G21: 46.56609186 | H21: =Replacement!I22 -> 162.5972542 | I21: 73.02757539
B22: =names!C22 -> 62 Leisure, travel and related personal service occupations | C22: =Replacement!C23 -> 54.87854 | D22: =Replacement!D23 -> 5.796147 | E22: 10.56177333 | F22: =Replacement!H23 -> 26.29237167 | G22: 47.91011509 | H22: =Replacement!I23 -> 32.08851867 | I22: 58.47188841
B23: =names!C23 -> 71 Sales occupations | C23: =Replacement!C24 -> 189.612255 | D23: =Replacement!D24 -> -17.726658 | E23: -9.348898888 | F23: =Replacement!H24 -> 68.35520275 | G23: 36.049992 | H23: =Replacement!I24 -> 50.62854475 | I23: 26.70109311
B24: =names!C24 -> 72 Customer service occupations | C24: =Replacement!C25 -> 51.836855 | D24: =Replacement!D25 -> 10.696876 | E24: 20.63565778 | F24: =Replacement!H25 -> 18.47446721 | G24: 35.63963749 | H24: =Replacement!I25 -> 29.17134321 | I24: 56.27529526
B25: =names!C25 -> 81 Process, plant and machine operatives | C25: =Replacement!C26 -> 67.74072 | D25: =Replacement!D26 -> -18.758064 | E25: -27.69097228 | F25: =Replacement!H26 -> 18.62820001 | G25: 27.49926486 | H25: =Replacement!I26 -> -0.1298639902 | I25: -0.1917074253
B26: =names!C26 -> 82 Transport and mobile machine drivers and operatives | C26: =Replacement!C27 -> 89.152799 | D26: =Replacement!D27 -> 3.010689 | E26: 3.376998853 | F26: =Replacement!H27 -> 38.83882944 | G26: 43.56434108 | H26: =Replacement!I27 -> 41.84951844 | I26: 46.94133993
B27: =names!C27 -> 91 Elementary trades and related occupations | C27: =Replacement!C28 -> 51.064829 | D27: =Replacement!D28 -> -2.955034 | E27: -5.786828347 | F27: =Replacement!H28 -> 17.22887322 | G27: 33.73921652 | H27: =Replacement!I28 -> 14.27383922 | I27: 27.95238817
B28: =names!C28 -> 92 Elementary administration and service occupations | C28: =Replacement!C29 -> 236.850065 | D28: =Replacement!D29 -> -5.097558 | E28: -2.152229935 | F28: =Replacement!H29 -> 89.48150879 | G28: 37.77981179 | H28: =Replacement!I29 -> 84.38395079 | I28: 35.62758186
B29: All Occupations | C29: =Replacement!C30 -> 2740.601005 | D29: =Replacement!D30 -> 155.790989 | E29: 5.68455564 | F29: =Replacement!H30 -> 1079.99034 | G29: =100*F29/C29 -> 39.40706211 | H29: =Replacement!I30 -> 1235.781329 | I29: 45.09161775
B31: =CELL("filename",$A$2)&", "&Info!A1 -> R:\Research Info\Individual research project info\Working Futures 2012-2022\Working Futures quant projections 2012-2022\04 Reporting and outputs\Final outputs\Workbooks\Files for gov.uk\SW\[AllSWv2.xlsm]Table 5.1, South West

Sheet Table 6.x.3
A1: Table 6.0.4 | B1: Changing Composition of Employment by Occupation
B2: Total | H2: =D4&" - "&F4 -> 2012 - 2022
A3: ="SOC2010 Major Groups, "&Info!A1 -> SOC2010 Major Groups, South West | H3: Net Change | I3: Replacement | J3: Total
A4: Employment Levels (000s) | B4: =All!D7 -> 1992 | C4: =All!N7 -> 2002 | D4: =All!X7 -> 2012 | E4: =All!AC7 -> 2017 | F4: =All!AH7 -> 2022 | I4: Demands | J4: Requirement
A5: =names!B4 -> Managers, directors and senior officials | B5: =(All!D9+All!D10)/1000 -> 189.281592 | C5: =(All!N9+All!N10)/1000 -> 238.349991 | D5: =(All!X9+All!X10)/1000 -> 285.357679 | E5: =(All!AC9+All!AC10)/1000 -> 305.711997 | F5: =(All!AH9+All!AH10)/1000 -> 331.851866 | H5: =F5-D5 -> 46.494187 | I5: =D5*I17/100 -> 118.4746892 | J5: =I5+H5 -> 164.9688762
A6: =names!B5 -> Professional occupations | B6: =(All!D11+All!D12+All!D13+All!D14)/1000 -> 322.949885 | C6: =(All!N11+All!N12+All!N13+All!N14)/1000 -> 400.566033 | D6: =(All!X11+All!X12+All!X13+All!X14)/1000 -> 519.727596 | E6: =(All!AC11+All!AC12+All!AC13+All!AC14)/1000 -> 574.532916 | F6: =(All!AH11+All!AH12+All!AH13+All!AH14)/1000 -> 618.507754 | H6: 98.780158 | I6: 210.6778824 | J6: 309.4580404
A7: =names!B6 -> Associate professional and technical | B7: =(All!D15+All!D16+All!D17+All!D18+All!D19)/1000 -> 228.803987 | C7: =(All!N15+All!N16+All!N17+All!N18+All!N19)/1000 -> 281.484975 | D7: =(All!X15+All!X16+All!X17+All!X18+All!X19)/1000 -> 323.30043 | E7: =(All!AC15+All!AC16+All!AC17+All!AC18+All!AC19)/1000 -> 345.343954 | F7: =(All!AH15+All!AH16+All!AH17+All!AH18+All!AH19)/1000 -> 369.840579 | H7: 46.540149 | I7: 120.7059689 | J7: 167.2461179
A8: =names!B7 -> Administrative and secretarial | B8: =(All!D20+All!D21)/1000 -> 355.916783 | C8: =(All!N20+All!N21)/1000 -> 328.402521 | D8: =(All!X20+All!X21)/1000 -> 306.002256 | E8: =(All!AC20+All!AC21)/1000 -> 282.194279 | F8: =(All!AH20+All!AH21)/1000 -> 262.94304 | H8: -43.059216 | I8: 131.3219176 | J8: 88.26270164
A9: =names!B8 -> Skilled trades occupations | B9: =(All!D22+All!D23+All!D24+All!D25)/1000 -> 369.003118 | C9: =(All!N22+All!N23+All!N24+All!N25)/1000 -> 354.488358 | D9: =(All!X22+All!X23+All!X24+All!X25)/1000 -> 342.425114 | E9: =(All!AC22+All!AC23+All!AC24+All!AC25)/1000 -> 325.319977 | F9: =(All!AH22+All!AH23+All!AH24+All!AH25)/1000 -> 315.577454 | H9: -26.84766 | I9: 117.8301568 | J9: 90.98249682
A10: =names!B9 -> Caring, leisure and other service | B10: =(All!D26+All!D27)/1000 -> 138.920628 | C10: =(All!N26+All!N27)/1000 -> 208.157755 | D10: =(All!X26+All!X27)/1000 -> 277.530399 | E10: =(All!AC26+All!AC27)/1000 -> 310.057176 | F10: =(All!AH26+All!AH27)/1000 -> 342.243532 | H10: 64.713133 | I10: 129.9726409 | J10: 194.6857739
A11: =names!B10 -> Sales and customer service | B11: =(All!D28+All!D29)/1000 -> 187.33627 | C11: =(All!N28+All!N29)/1000 -> 232.706851 | D11: =(All!X28+All!X29)/1000 -> 241.449111 | E11: =(All!AC28+All!AC29)/1000 -> 234.068851 | F11: =(All!AH28+All!AH29)/1000 -> 234.419329 | H11: -7.029782 | I11: 86.82967032 | J11: 79.79988832
A12: =names!B11 -> Process, plant and machine operatives | B12: =(All!D30+All!D31)/1000 -> 168.777731 | C12: =(All!N30+All!N31)/1000 -> 164.708709 | D12: =(All!X30+All!X31)/1000 -> 156.893522 | E12: =(All!AC30+All!AC31)/1000 -> 146.921575 | F12: =(All!AH30+All!AH31)/1000 -> 141.146145 | H12: -15.747377 | I12: 57.46703055 | J12: 41.71965355
A13: =names!B12 -> Elementary occupations | B13: =(All!D32+All!D33)/1000 -> 287.937005 | C13: =(All!N32+All!N33)/1000 -> 303.557808 | D13: =(All!X32+All!X33)/1000 -> 287.914895 | E13: =(All!AC32+All!AC33)/1000 -> 274.702276 | F13: =(All!AH32+All!AH33)/1000 -> 279.862302 | H13: -8.052593 | I13: 106.7103824 | J13: 98.65778938
A14: Total | B14: =All!D8/1000 -> 2248.927 | C14: =All!N8/1000 -> 2512.423 | D14: =All!X8/1000 -> 2740.601 | E14: =All!AC8/1000 -> 2798.853 | F14: =All!AH8/1000 -> 2896.392 | H14: 155.791 | I14: =SUM(I5:I13) -> 1079.990339 | J14: 1235.781339
H15: Percentage Changes
A16: Percentage Shares | B16: =B$4 -> 1992 | C16: =C$4 -> 2002 | D16: =D$4 -> 2012 | E16: =E$4 -> 2017 | F16: =F$4 -> 2022
A17: =A5 -> Managers, directors and senior officials | B17: =B5/B$14*100 -> 8.416528949 | C17: 9.486857547 | D17: 10.41222998 | E17: 10.92276004 | F17: 11.45742241 | H17: =H5/D5*100 -> 16.2933015 | I17: 41.51796077 | J17: =J5/D5*100 -> 57.81126227
A18: =A6 -> Professional occupations | B18: 14.36017643 | C18: 15.9434153 | D18: 18.96400082 | E18: 20.52744163 | F18: 21.35442143 | H18: 19.00614067 | I18: 40.53621243 | J18: 59.5423531
A19: Associate professional and technical | B19: 10.17391792 | C19: 11.20372545 | D19: 11.79669824 | E19: 12.33876713 | F19: 12.76900982 | H19: 14.39532543 | I19: 37.33554232 | J19: 51.73086775
A20: Administrative and secretarial | B20: 15.82607097 | C20: 13.07114769 | D20: 11.16551647 | E20: 10.08249733 | F20: 9.078296032 | H20: -14.07153547 | I20: 42.91534296 | J20: 28.84380749
A21: Skilled trades occupations | B21: 16.40796335 | C21: 14.10942178 | D21: 12.49452635 | E21: 11.62333202 | F21: 10.89553672 | H21: -7.840447123 | I21: 34.41048919 | J21: 26.57004206
A22: Caring, leisure and other service | B22: 6.177195969 | C22: 8.285139684 | D22: 10.12662547 | E22: 11.0780086 | F22: 11.81620209 | H22: 23.31749359 | I22: 46.83185746 | J22: 70.14935105
A23: Sales and customer service | B23: 8.330028943 | C23: 9.262248077 | D23: 8.810078921 | E23: 8.363027676 | F23: 8.093494562 | H23: -2.911496328 | I23: 35.96189274 | J23: 33.05039641
A24: Process, plant and machine operatives | B24: 7.50481145 | C24: 6.555771421 | D24: 5.724785257 | E24: 5.249349466 | F24: 4.873171346 | H24: -10.03698355 | I24: 36.62804545 | J24: 26.5910619
A25: Elementary occupations | B25: 12.80330598 | C25: 12.08227309 | D25: 10.50553857 | E25: 9.814816141 | F25: 9.662445622 | H25: -2.79686572 | I25: 37.0631684 | J25: 34.26630268
A26: Total | B26: 100 | C26: 100 | D26: 100 | E26: 100 | F26: 100 | H26: 5.684556052 | I26: 39.40706211 | J26: 45.09161819
A27: =CELL("filename",$A$2)&", "&Info!A1 -> R:\Research Info\Individual research project info\Working Futures 2012-2022\Working Futures quant projections 2012-2022\04 Reporting and outputs\Final outputs\Workbooks\Files for gov.uk\SW\[AllSWv2.xlsm]Table 6.x.3, South West

Sheet RD Charts(Occupations)
Z2: Values for the charts are written here by program RD_VBtab6x3PGeneratorWF5.xlsm
C4: ="Components of Replacement Demand, "&Z9&", "&AA9 -> Components of Replacement Demand, All occupations, 2012- 2022
Z9: All occupations | AA9: 2012- 2022
Z10: periods | AA10: 2012- 2013 | AB10: 2013- 2014 | AC10: 2014- 2015 | AD10: 2015- 2016 | AE10: 2016- 2017 | AF10: 2017- 2018 | AG10: 2018- 2019 | AH10: 2019- 2020 | AI10: 2020- 2021 | AJ10: 2021- 2022
Z11: labels
Z12: Expansion demand | AA12: 14.490992 | AB12: 8.747004 | AC12: 8.684996 | AD12: 10.448 | AE12: 15.880999 | AF12: 19.961002 | AG12: 21.023002 | AH12: 20.471996 | AI12: 18.915009 | AJ12: 17.167989
Z13: Replacement demand | AA13: 106.2868991 | AB13: 106.5180889 | AC13: 106.7557176 | AD13: 106.9836515 | AE13: 107.2985781 | AF13: 107.8298153 | AG13: 108.508691 | AH13: 109.2394718 | AI13: 109.9591646 | AJ13: 110.6102625
Z14: Net requirement | AA14: 120.7778911 | AB14: 115.2650929 | AC14: 115.4407136 | AD14: 117.4316515 | AE14: 123.1795771 | AF14: 127.7908173 | AG14: 129.531693 | AH14: 129.7114678 | AI14: 128.8741736 | AJ14: 127.7782515
C29: ="Components of Replacement Demand, "&Z34&", "&AA34 -> Components of Replacement Demand, Corporate managers and directors, 2012- 2022
Z34: Corporate managers and directors | AA34: 2012- 2022
Z35: periods | AA35: 2012- 2013 | AB35: 2013- 2014 | AC35: 2014- 2015 | AD35: 2015- 2016 | AE35: 2016- 2017 | AF35: 2017- 2018 | AG35: 2018- 2019 | AH35: 2019- 2020 | AI35: 2020- 2021 | AJ35: 2021- 2022
Z36: labels
Z37: Expansion demand | AA37: 5.445198 | AB37: 3.570714 | AC37: 3.701375 | AD37: 3.539073 | AE37: 4.022059 | AF37: 4.160632 | AG37: 4.156512 | AH37: 4.153564 | AI37: 3.879635 | AJ37: 3.732132
Z38: Replacement demand | AA38: 6.195888498 | AB38: 6.392624261 | AC38: 6.524148047 | AD38: 6.659910189 | AE38: 6.789736963 | AF38: 6.936900509 | AG38: 7.088953877 | AH38: 7.240523241 | AI38: 7.392430489 | AJ38: 7.536246057
Z39: Net requirement | AA39: 11.6410865 | AB39: 9.963338261 | AC39: 10.22552305 | AD39: 10.19898319 | AE39: 10.81179596 | AF39: 11.09753251 | AG39: 11.24546588 | AH39: 11.39408724 | AI39: 11.27206549 | AJ39: 11.26837806
C54: ="Components of Replacement Demand, "&Z59&", "&AA59 -> Components of Replacement Demand, Other managers and proprietors, 2012- 2022
Z59: Other managers and proprietors | AA59: 2012- 2022
Z60: periods | AA60: 2012- 2013 | AB60: 2013- 2014 | AC60: 2014- 2015 | AD60: 2015- 2016 | AE60: 2016- 2017 | AF60: 2017- 2018 | AG60: 2018- 2019 | AH60: 2019- 2020 | AI60: 2020- 2021 | AJ60: 2021- 2022
Z61: labels
Z62: Expansion demand | AA62: -2.414489 | AB62: 0.602758 | AC62: 0.231898 | AD62: 0.801191 | AE62: 0.854538 | AF62: 0.909057 | AG62: 1.296743 | AH62: 1.386048 | AI62: 1.247095 | AJ62: 1.218453
Z63: Replacement demand | AA63: 4.936820394 | AB63: 4.829117724 | AC63: 4.858302784 | AD63: 4.868607623 | AE63: 4.908558034 | AF63: 4.950907178 | AG63: 4.995701117 | AH63: 5.05845859 | AI63: 5.12512101 | AJ63: 5.185733052
Z64: Net requirement | AA64: 2.522331394 | AB64: 5.431875724 | AC64: 5.090200784 | AD64: 5.669798623 | AE64: 5.763096034 | AF64: 5.859964178 | AG64: 6.292444117 | AH64: 6.44450659 | AI64: 6.37221601 | AJ64: 6.404186052
C79: ="Components of Replacement Demand, "&Z84&", "&AA84 -> Components of Replacement Demand, Science, research, engineering and technology professionals, 2012- 2022
Z84: Science, research, engineering and technology professionals | AA84: 2012- 2022
Z85: periods | AA85: 2012- 2013 | AB85: 2013- 2014 | AC85: 2014- 2015 | AD85: 2015- 2016 | AE85: 2016- 2017 | AF85: 2017- 2018 | AG85: 2018- 2019 | AH85: 2019- 2020 | AI85: 2020- 2021 | AJ85: 2021- 2022
Z86: labels
Z87: Expansion demand | AA87: 6.066176 | AB87: 2.578111 | AC87: 2.506795 | AD87: 2.541406 | AE87: 2.620391 | AF87: 2.422573 | AG87: 2.408354 | AH87: 2.394803 | AI87: 1.928089 | AJ87: 1.83069
Z88: Replacement demand | AA88: 4.094198695 | AB88: 4.269737984 | AC88: 4.346381148 | AD88: 4.421084586 | AE88: 4.496663979 | AF88: 4.57499788 | AG88: 4.64762368 | AH88: 4.719974279 | AI88: 4.792225688 | AJ88: 4.851426133
Z89: Net requirement | AA89: 10.16037469 | AB89: 6.847848984 | AC89: 6.853176148 | AD89: 6.962490586 | AE89: 7.117054979 | AF89: 6.99757088 | AG89: 7.05597768 | AH89: 7.114777279 | AI89: 6.720314688 | AJ89: 6.682116133
C104: ="Components of Replacement Demand, "&Z109&", "&AA109 -> Components of Replacement Demand, Health professionals, 2012- 2022
Z109: Health professionals | AA109: 2012- 2022
Z110: periods | AA110: 2012- 2013 | AB110: 2013- 2014 | AC110: 2014- 2015 | AD110: 2015- 2016 | AE110: 2016- 2017 | AF110: 2017- 2018 | AG110: 2018- 2019 | AH110: 2019- 2020 | AI110: 2020- 2021 | AJ110: 2021- 2022
Z111: labels
Z112: Expansion demand | AA112: 8.096123 | AB112: 2.714649 | AC112: 2.544808 | AD112: 0.803506 | AE112: 2.076965 | AF112: 3.763552 | AG112: 2.551016 | AH112: 2.362135 | AI112: 3.43251 | AJ112: 3.387156
Z113: Replacement demand | AA113: 4.352731398 | AB113: 4.663833291 | AC113: 4.768881374 | AD113: 4.867451868 | AE113: 4.899647593 | AF113: 4.980660327 | AG113: 5.126530706 | AH113: 5.226435754 | AI113: 5.319173444 | AJ113: 5.4519959
Z114: Net requirement | AA114: 12.4488544 | AB114: 7.378482291 | AC114: 7.313689374 | AD114: 5.670957868 | AE114: 6.976612593 | AF114: 8.744212327 | AG114: 7.677546706 | AH114: 7.588570754 | AI114: 8.751683444 | AJ114: 8.8391519
C129: ="Components of Replacement Demand, "&Z134&", "&AA134 -> Components of Replacement Demand, Teaching and educational professionals, 2012- 2022
Z134: Teaching and educational professionals | AA134: 2012- 2022
Z135: periods | AA135: 2012- 2013 | AB135: 2013- 2014 | AC135: 2014- 2015 | AD135: 2015- 2016 | AE135: 2016- 2017 | AF135: 2017- 2018 | AG135: 2018- 2019 | AH135: 2019- 2020 | AI135: 2020- 2021 | AJ135: 2021- 2022
Z136: labels
Z137: Expansion demand | AA137: 2.775991 | AB137: 3.242742 | AC137: 2.676788 | AD137: 1.085878 | AE137: 0.051633 | AF137: -0.097215 | AG137: 0.276771 | AH137: 0.832746 | AI137: 1.604632 | AJ137: 1.631822
Z138: Replacement demand | AA138: 5.616241049 | AB138: 5.732723358 | AC138: 5.869967264 | AD138: 5.98304696 | AE138: 6.032732299 | AF138: 6.038751117 | AG138: 6.037871053 | AH138: 6.053325294 | AI138: 6.091496836 | AJ138: 6.160923263
Z139: Net requirement | AA139: 8.392232049 | AB139: 8.975465358 | AC139: 8.546755264 | AD139: 7.06892496 | AE139: 6.084365299 | AF139: 5.941536117 | AG139: 6.314642053 | AH139: 6.886071294 | AI139: 7.696128836 | AJ139: 7.792745263
C154: ="Components of Replacement Demand, "&Z159&", "&AA159 -> Components of Replacement Demand, Business, media and public service professionals, 2012- 2022
Z159: Business, media and public service professionals | AA159: 2012- 2022
Z160: periods | AA160: 2012- 2013 | AB160: 2013- 2014 | AC160: 2014- 2015 | AD160: 2015- 2016 | AE160: 2016- 2017 | AF160: 2017- 2018 | AG160: 2018- 2019 | AH160: 2019- 2020 | AI160: 2020- 2021 | AJ160: 2021- 2022
Z161: labels
Z162: Expansion demand | AA162: 3.585407 | AB162: 1.995895 | AC162: 2.322283 | AD162: 1.941397 | AE162: 2.578376 | AF162: 2.441631 | AG162: 2.309757 | AH162: 2.541211 | AI162: 2.967265 | AJ162: 2.98534
Z163: Replacement demand | AA163: 5.163812777 | AB163: 5.307115439 | AC163: 5.387032369 | AD163: 5.479947866 | AE163: 5.557636638 | AF163: 5.660745362 | AG163: 5.758430233 | AH163: 5.850847808 | AI163: 5.952466772 | AJ163: 6.071112522
Z164: Net requirement | AA164: 8.749219777 | AB164: 7.303010439 | AC164: 7.709315369 | AD164: 7.421344866 | AE164: 8.136012638 | AF164: 8.102376362 | AG164: 8.068187233 | AH164: 8.392058808 | AI164: 8.919731772 | AJ164: 9.056452522
C179: ="Components of Replacement Demand, "&Z184&", "&AA184 -> Components of Replacement Demand, Science, engineering and technology associate professionals, 2012- 2022
Z184: Science, engineering and technology associate professionals | AA184: 2012- 2022
Z185: periods | AA185: 2012- 2013 | AB185: 2013- 2014 | AC185: 2014- 2015 | AD185: 2015- 2016 | AE185: 2016- 2017 | AF185: 2017- 2018 | AG185: 2018- 2019 | AH185: 2019- 2020 | AI185: 2020- 2021 | AJ185: 2021- 2022
Z186: labels
Z187: Expansion demand | AA187: 0.852622 | AB187: 0.288197 | AC187: 0.283425 | AD187: 0.298187 | AE187: 0.332372 | AF187: 0.249395 | AG187: 0.279162 | AH187: 0.295934 | AI187: 0.179185 | AJ187: 0.16587
Z188: Replacement demand | AA188: 1.287617205 | AB188: 1.313083142 | AC188: 1.321746474 | AD188: 1.330312126 | AE188: 1.339112998 | AF188: 1.349020866 | AG188: 1.356373578 | AH188: 1.36461116 | AI188: 1.373338636 | AJ188: 1.378730176
Z189: Net requirement | AA189: 2.140239205 | AB189: 1.601280142 | AC189: 1.605171474 | AD189: 1.628499126 | AE189: 1.671484998 | AF189: 1.598415866 | AG189: 1.635535578 | AH189: 1.66054516 | AI189: 1.552523636 | AJ189: 1.544600176
C204: ="Components of Replacement Demand, "&Z209&", "&AA209 -> Components of Replacement Demand, Health and social care associate professionals, 2012- 2022
Z209: Health and social care associate professionals | AA209: 2012- 2022
Z210: periods | AA210: 2012- 2013 | AB210: 2013- 2014 | AC210: 2014- 2015 | AD210: 2015- 2016 | AE210: 2016- 2017 | AF210: 2017- 2018 | AG210: 2018- 2019 | AH210: 2019- 2020 | AI210: 2020- 2021 | AJ210: 2021- 2022
Z211: labels
Z212: Expansion demand | AA212: 2.357807 | AB212: 0.678055 | AC212: 0.629626 | AD212: 0.223035 | AE212: 0.620136 | AF212: 1.135162 | AG212: 0.765271 | AH212: 0.71788 | AI212: 1.092173 | AJ212: 1.095454
Z213: Replacement demand | AA213: 1.046270248 | AB213: 1.133874012 | AC213: 1.159854721 | AD213: 1.183806447 | AE213: 1.194073427 | AF213: 1.218884309 | AG213: 1.262790303 | AH213: 1.293423554 | AI213: 1.32227561 | AJ213: 1.363211719
Z214: Net requirement | AA214: 3.404077248 | AB214: 1.811929012 | AC214: 1.789480721 | AD214: 1.406841447 | AE214: 1.814209427 | AF214: 2.354046309 | AG214: 2.028061303 | AH214: 2.011303554 | AI214: 2.41444861 | AJ214: 2.458665719
C229: ="Components of Replacement Demand, "&Z234&", "&AA234 -> Components of Replacement Demand, Protective service occupations, 2012- 2022
Z234: Protective service occupations | AA234: 2012- 2022
Z235: periods | AA235: 2012- 2013 | AB235: 2013- 2014 | AC235: 2014- 2015 | AD235: 2015- 2016 | AE235: 2016- 2017 | AF235: 2017- 2018 | AG235: 2018- 2019 | AH235: 2019- 2020 | AI235: 2020- 2021 | AJ235: 2021- 2022
Z236: labels
Z237: Expansion demand | AA237: 0.162951 | AB237: -0.886969 | AC237: -0.464576 | AD237: -0.606926 | AE237: -0.168035 | AF237: -0.098734 | AG237: -0.085865 | AH237: -0.179386 | AI237: -0.194833 | AJ237: -0.229425
Z238: Replacement demand | AA238: 0.6484125152 | AB238: 0.6537646999 | AC238: 0.6325356887 | AD238: 0.6219711423 | AE238: 0.6075545894 | AF238: 0.6045647181 | AG238: 0.6032096548 | AH238: 0.6023591314 | AI238: 0.5991701288 | AJ238: 0.5956552317
Z239: Net requirement | AA239: 0.8113635152 | AB239: -0.2332043001 | AC239: 0.1679596887 | AD239: 0.01504514226 | AE239: 0.4395195894 | AF239: 0.5058307181 | AG239: 0.5173446548 | AH239: 0.4229731314 | AI239: 0.4043371288 | AJ239: 0.3662302317
C254: ="Components of Replacement Demand, "&Z259&", "&AA259 -> Components of Replacement Demand, Culture, media and sports occupations, 2012- 2022
Z259: Culture, media and sports occupations | AA259: 2012- 2022
Z260: periods | AA260: 2012- 2013 | AB260: 2013- 2014 | AC260: 2014- 2015 | AD260: 2015- 2016 | AE260: 2016- 2017 | AF260: 2017- 2018 | AG260: 2018- 2019 | AH260: 2019- 2020 | AI260: 2020- 2021 | AJ260: 2021- 2022
Z261: labels
Z262: Expansion demand | AA262: 0.49391 | AB262: 0.667778 | AC262: 1.040194 | AD262: 0.919238 | AE262: 0.996659 | AF262: 0.894295 | AG262: 0.67483 | AH262: 0.616418 | AI262: 0.832964 | AJ262: 0.830544
Z263: Replacement demand | AA263: 2.038845628 | AB263: 2.053161705 | AC263: 2.07993852 | AD263: 2.121681746 | AE263: 2.156521764 | AF263: 2.194942784 | AG263: 2.2288904 | AH263: 2.2540503 | AI263: 2.276704175 | AJ263: 2.310330677
Z264: Net requirement | AA264: 2.532755628 | AB264: 2.720939705 | AC264: 3.12013252 | AD264: 3.040919746 | AE264: 3.153180764 | AF264: 3.089237784 | AG264: 2.9037204 | AH264: 2.8704683 | AI264: 3.109668175 | AJ264: 3.140874677
C279: ="Components of Replacement Demand, "&Z284&", "&AA284 -> Components of Replacement Demand, Business and public service associate professionals, 2012- 2022
Z284: Business and public service associate professionals | AA284: 2012- 2022
Z285: periods | AA285: 2012- 2013 | AB285: 2013- 2014 | AC285: 2014- 2015 | AD285: 2015- 2016 | AE285: 2016- 2017 | AF285: 2017- 2018 | AG285: 2018- 2019 | AH285: 2019- 2020 | AI285: 2020- 2021 | AJ285: 2021- 2022
Z286: labels
Z287: Expansion demand | AA287: 4.044989 | AB287: 1.840265 | AC287: 2.141945 | AD287: 2.313411 | AE287: 2.985226 | AF287: 2.948952 | AG287: 3.072089 | AH287: 3.108128 | AI287: 3.199517 | AJ287: 3.131644
Z288: Replacement demand | AA288: 6.262466678 | AB288: 6.409255236 | AC288: 6.477713107 | AD288: 6.556812582 | AE288: 6.642421586 | AF288: 6.752263644 | AG288: 6.860668372 | AH288: 6.973674646 | AI288: 7.088076165 | AJ288: 7.205941695
Z289: Net requirement | AA289: 10.30745568 | AB289: 8.249520236 | AC289: 8.619658107 | AD289: 8.870223582 | AE289: 9.627647586 | AF289: 9.701215644 | AG289: 9.932757372 | AH289: 10.08180265 | AI289: 10.28759316 | AJ289: 10.3375857
C304: ="Components of Replacement Demand, "&Z309&", "&AA309 -> Components of Replacement Demand, Administrative occupations, 2012- 2022
Z309: Administrative occupations | AA309: 2012- 2022
Z310: periods | AA310: 2012- 2013 | AB310: 2013- 2014 | AC310: 2014- 2015 | AD310: 2015- 2016 | AE310: 2016- 2017 | AF310: 2017- 2018 | AG310: 2018- 2019 | AH310: 2019- 2020 | AI310: 2020- 2021 | AJ310: 2021- 2022
Z311: labels
Z312: Expansion demand | AA312: -0.697945 | AB312: -3.086088 | AC312: -2.568459 | AD312: -2.156032 | AE312: -1.05286 | AF312: -1.1908 | AG312: -1.019531 | AH312: -1.262827 | AI312: -0.984674 | AJ312: -1.203628
Z313: Replacement demand | AA313: 9.880519052 | AB313: 9.852118032 | AC313: 9.721195287 | AD313: 9.611824697 | AE313: 9.514375835 | AF313: 9.464925006 | AG313: 9.408643479 | AH313: 9.360708674 | AI313: 9.302277218 | AJ313: 9.25927537
Z314: Net requirement | AA314: 9.182574052 | AB314: 6.766030032 | AC314: 7.152736287 | AD314: 7.455792697 | AE314: 8.461515835 | AF314: 8.274125006 | AG314: 8.389112479 | AH314: 8.097881674 | AI314: 8.317603218 | AJ314: 8.05564737
C329: ="Components of Replacement Demand, "&Z334&", "&AA334 -> Components of Replacement Demand, Secretarial and related occupations, 2012- 2022
Z334: Secretarial and related occupations | AA334: 2012- 2022
Z335: periods | AA335: 2012- 2013 | AB335: 2013- 2014 | AC335: 2014- 2015 | AD335: 2015- 2016 | AE335: 2016- 2017 | AF335: 2017- 2018 | AG335: 2018- 2019 | AH335: 2019- 2020 | AI335: 2020- 2021 | AJ335: 2021- 2022
Z336: labels
Z337: Expansion demand | AA337: -2.371452 | AB337: -3.205178 | AC337: -3.187091 | AD337: -2.88694 | AE337: -2.595935 | AF337: -2.637535 | AG337: -2.559661 | AH337: -2.623009 | AI337: -2.837298 | AJ337: -2.932277
Z338: Replacement demand | AA338: 4.28604834 | AB338: 4.154678745 | AC338: 3.978816806 | AD338: 3.803964303 | AE338: 3.646047426 | AF338: 3.503828695 | AG338: 3.359226219 | AH338: 3.218753677 | AI338: 3.075511836 | AJ338: 2.919180234
Z339: Net requirement | AA339: 1.91459634 | AB339: 0.9495007449 | AC339: 0.7917258061 | AD339: 0.9170243029 | AE339: 1.050112426 | AF339: 0.8662936952 | AG339: 0.7995652193 | AH339: 0.5957446769 | AI339: 0.2382138361 | AJ339: -0.01309676596
C354: ="Components of Replacement Demand, "&Z359&", "&AA359 -> Components of Replacement Demand, Skilled agricultural and related trades, 2012- 2022
Z359: Skilled agricultural and related trades | AA359: 2012- 2022
Z360: periods | AA360: 2012- 2013 | AB360: 2013- 2014 | AC360: 2014- 2015 | AD360: 2015- 2016 | AE360: 2016- 2017 | AF360: 2017- 2018 | AG360: 2018- 2019 | AH360: 2019- 2020 | AI360: 2020- 2021 | AJ360: 2021- 2022
Z361: labels
Z362: Expansion demand | AA362: -7.198501 | AB362: 0.303083 | AC362: 0.317946 | AD362: 0.307615 | AE362: 0.289826 | AF362: -0.093243 | AG362: -0.012995 | AH362: -0.038108 | AI362: -0.263977 | AJ362: 0.032116
Z363: Replacement demand | AA363: 2.527893814 | AB363: 2.12230606 | AC363: 2.136759023 | AD363: 2.15252761 | AE363: 2.171448076 | AF363: 2.189472737 | AG363: 2.186069672 | AH363: 2.18736834 | AI363: 2.187232804 | AJ363: 2.172042335
Z364: Net requirement | AA364: -4.670607186 | AB364: 2.42538906 | AC364: 2.454705023 | AD364: 2.46014261 | AE364: 2.461274076 | AF364: 2.096229737 | AG364: 2.173074672 | AH364: 2.14926034 | AI364: 1.923255804 | AJ364: 2.204158335
C379: ="Components of Replacement Demand, "&Z384&", "&AA384 -> Components of Replacement Demand, Skilled metal, electrical and electronic trades, 2012- 2022
Z384: Skilled metal, electrical and electronic trades | AA384: 2012- 2022
Z385: periods | AA385: 2012- 2013 | AB385: 2013- 2014 | AC385: 2014- 2015 | AD385: 2015- 2016 | AE385: 2016- 2017 | AF385: 2017- 2018 | AG385: 2018- 2019 | AH385: 2019- 2020 | AI385: 2020- 2021 | AJ385: 2021- 2022
Z386: labels
Z387: Expansion demand | AA387: 2.315337 | AB387: -0.860323 | AC387: -1.155771 | AD387: -1.118541 | AE387: -1.073542 | AF387: -0.827651 | AG387: -0.5924 | AH387: -0.741407 | AI387: -2.200379 | AJ387: -2.195561
Z388: Replacement demand | AA388: 4.129779353 | AB388: 4.203306213 | AC388: 4.177348985 | AD388: 4.142141128 | AE388: 4.107515619 | AF388: 4.074802403 | AG388: 4.049793307 | AH388: 4.031968872 | AI388: 4.009730876 | AJ388: 3.941669279
Z389: Net requirement | AA389: 6.445116353 | AB389: 3.342983213 | AC389: 3.021577985 | AD389: 3.023600128 | AE389: 3.033973619 | AF389: 3.247151403 | AG389: 3.457393307 | AH389: 3.290561872 | AI389: 1.809351876 | AJ389: 1.746108279
C404: ="Components of Replacement Demand, "&Z409&", "&AA409 -> Components of Replacement Demand, Skilled construction and building trades, 2012- 2022
Z409: Skilled construction and building trades | AA409: 2012- 2022
Z410: periods | AA410: 2012- 2013 | AB410: 2013- 2014 | AC410: 2014- 2015 | AD410: 2015- 2016 | AE410: 2016- 2017 | AF410: 2017- 2018 | AG410: 2018- 2019 | AH410: 2019- 2020 | AI410: 2020- 2021 | AJ410: 2021- 2022
Z411: labels
Z412: Expansion demand | AA412: -1.418713 | AB412: 1.813046 | AC412: 2.21323 | AD412: 1.269509 | AE412: 0.771722 | AF412: 0.958904 | AG412: 1.705642 | AH412: 1.469735 | AI412: 0.679439 | AJ412: 0.591657
Z413: Replacement demand | AA413: 3.666410445 | AB413: 3.622058257 | AC413: 3.68166152 | AD413: 3.754211572 | AE413: 3.79609032 | AF413: 3.822046354 | AG413: 3.854259395 | AH413: 3.911050735 | AI413: 3.960197794 | AJ413: 3.983540613
Z414: Net requirement | AA414: 2.247697445 | AB414: 5.435104257 | AC414: 5.89489152 | AD414: 5.023720572 | AE414: 4.56781232 | AF414: 4.780950354 | AG414: 5.559901395 | AH414: 5.380785735 | AI414: 4.639636794 | AJ414: 4.575197613
C429: ="Components of Replacement Demand, "&Z434&", "&AA434 -> Components of Replacement Demand, Textiles, printing and other skilled trades, 2012- 2022
Z434: Textiles, printing and other skilled trades | AA434: 2012- 2022
Z435: periods | AA435: 2012- 2013 | AB435: 2013- 2014 | AC435: 2014- 2015 | AD435: 2015- 2016 | AE435: 2016- 2017 | AF435: 2017- 2018 | AG435: 2018- 2019 | AH435: 2019- 2020 | AI435: 2020- 2021 | AJ435: 2021- 2022
Z436: labels
Z437: Expansion demand | AA437: -5.595748 | AB437: -2.275415 | AC437: -2.47419 | AD437: -1.769534 | AE437: -1.766176 | AF437: -1.72587 | AG437: -1.520273 | AH437: -1.543716 | AI437: -1.706689 | AJ437: -1.717748
Z438: Replacement demand | AA438: 2.188988851 | AB438: 1.970981233 | AC438: 1.874805875 | AD438: 1.770753163 | AE438: 1.694387392 | AF438: 1.618193394 | AG438: 1.543083781 | AH438: 1.475913246 | AI438: 1.408123948 | AJ438: 1.332223463
Z439: Net requirement | AA439: -3.406759149 | AB439: -0.3044337675 | AC439: -0.5993841252 | AD439: 0.001219163056 | AE439: -0.07178860848 | AF439: -0.1076766064 | AG439: 0.02281078099 | AH439: -0.06780275355 | AI439: -0.2985650522 | AJ439: -0.3855245371
C454: ="Components of Replacement Demand, "&Z459&", "&AA459 -> Components of Replacement Demand, Caring personal service occupations, 2012- 2022
Z459: Caring personal service occupations | AA459: 2012- 2022
Z460: periods | AA460: 2012- 2013 | AB460: 2013- 2014 | AC460: 2014- 2015 | AD460: 2015- 2016 | AE460: 2016- 2017 | AF460: 2017- 2018 | AG460: 2018- 2019 | AH460: 2019- 2020 | AI460: 2020- 2021 | AJ460: 2021- 2022
Z461: labels
Z462: Expansion demand | AA462: 12.95123 | AB462: 4.982838 | AC462: 4.316273 | AD462: 2.624615 | AE462: 4.226304 | AF462: 6.646391 | AG462: 5.244663 | AH462: 4.88102 | AI462: 6.506008 | AJ462: 6.537643
Z463: Replacement demand | AA463: 9.210319016 | AB463: 9.743707911 | AC463: 9.94843276 | AD463: 10.12480411 | AE463: 10.23114339 | AF463: 10.40389735 | AG463: 10.67622551 | AH463: 10.89191983 | AI463: 11.09285736 | AJ463: 11.35696196
Z464: Net requirement | AA464: 22.16154902 | AB464: 14.72654591 | AC464: 14.26470576 | AD464: 12.74941911 | AE464: 14.45744739 | AF464: 17.05028835 | AG464: 15.92088851 | AH464: 15.77293983 | AI464: 17.59886536 | AJ464: 17.89460496
C479: ="Components of Replacement Demand, "&Z484&", "&AA484 -> Components of Replacement Demand, Leisure, travel and related personal service occupations, 2012- 2022
Z484: Leisure, travel and related personal service occupations | AA484: 2012- 2022
Z485: periods | AA485: 2012- 2013 | AB485: 2013- 2014 | AC485: 2014- 2015 | AD485: 2015- 2016 | AE485: 2016- 2017 | AF485: 2017- 2018 | AG485: 2018- 2019 | AH485: 2019- 2020 | AI485: 2020- 2021 | AJ485: 2021- 2022
Z486: labels
Z487: Expansion demand | AA487: 1.218681 | AB487: 0.384543 | AC487: 0.59011 | AD487: 0.663605 | AE487: 0.568578 | AF487: 0.563221 | AG487: 0.712467 | AH487: 0.471782 | AI487: 0.360545 | AJ487: 0.262615
Z488: Replacement demand | AA488: 2.489730338 | AB488: 2.545461246 | AC488: 2.563466144 | AD488: 2.590898836 | AE488: 2.620877469 | AF488: 2.646090523 | AG488: 2.67100005 | AH488: 2.702356287 | AI488: 2.723055671 | AJ488: 2.739435108
Z489: Net requirement | AA489: 3.708411338 | AB489: 2.930004246 | AC489: 3.153576144 | AD489: 3.254503836 | AE489: 3.189455469 | AF489: 3.209311523 | AG489: 3.38346705 | AH489: 3.174138287 | AI489: 3.083600671 | AJ489: 3.002050108
C504: ="Components of Replacement Demand, "&Z509&", "&AA509 -> Components of Replacement Demand, Sales occupations, 2012- 2022
Z509: Sales occupations | AA509: 2012- 2022
Z510: periods | AA510: 2012- 2013 | AB510: 2013- 2014 | AC510: 2014- 2015 | AD510: 2015- 2016 | AE510: 2016- 2017 | AF510: 2017- 2018 | AG510: 2018- 2019 | AH510: 2019- 2020 | AI510: 2020- 2021 | AJ510: 2021- 2022
Z511: labels
Z512: Expansion demand | AA512: -2.509518 | AB512: -4.075774 | AC512: -4.614952 | AD512: -0.659336 | AE512: -0.67621 | AF512: -0.641367 | AG512: -0.281224 | AH512: -0.050879 | AI512: -1.726058 | AJ512: -2.49134
Z513: Replacement demand | AA513: 7.335250533 | AB513: 7.208130487 | AC513: 7.023440563 | AD513: 6.816745294 | AE513: 6.77015459 | AF513: 6.722688381 | AG513: 6.67557749 | AH513: 6.644848929 | AI513: 6.624699824 | AJ513: 6.53366666
Z514: Net requirement | AA514: 4.825732533 | AB514: 3.132356487 | AC514: 2.408488563 | AD514: 6.157409294 | AE514: 6.09394459 | AF514: 6.081321381 | AG514: 6.39435349 | AH514: 6.593969929 | AI514: 4.898641824 | AJ514: 4.04232666
C529: ="Components of Replacement Demand, "&Z534&", "&AA534 -> Components of Replacement Demand, Customer service occupations, 2012- 2022
Z534: Customer service occupations | AA534: 2012- 2022
Z535: periods | AA535: 2012- 2013 | AB535: 2013- 2014 | AC535: 2014- 2015 | AD535: 2015- 2016 | AE535: 2016- 2017 | AF535: 2017- 2018 | AG535: 2018- 2019 | AH535: 2019- 2020 | AI535: 2020- 2021 | AJ535: 2021- 2022
Z536: labels
Z537: Expansion demand | AA537: 1.108627 | AB537: 0.889615 | AC537: 0.977563 | AD537: 1.043201 | AE537: 1.136526 | AF537: 1.072491 | AG537: 1.147759 | AH537: 1.061455 | AI537: 1.165799 | AJ537: 1.09384
Z538: Replacement demand | AA538: 1.704821453 | AB538: 1.738516987 | AC538: 1.764836132 | AD538: 1.793651947 | AE538: 1.825695428 | AF538: 1.861168425 | AG538: 1.894131949 | AH538: 1.929701648 | AI538: 1.963343711 | AJ538: 1.998599526
Z539: Net requirement | AA539: 2.813448453 | AB539: 2.628131987 | AC539: 2.742399132 | AD539: 2.836852947 | AE539: 2.962221428 | AF539: 2.933659425 | AG539: 3.041890949 | AH539: 2.991156648 | AI539: 3.129142711 | AJ539: 3.092439526
C554: ="Components of Replacement Demand, "&Z559&", "&AA559 -> Components of Replacement Demand, Process, plant and machine operatives, 2012- 2022
Z559: Process, plant and machine operatives | AA559: 2012- 2022
Z560: periods | AA560: 2012- 2013 | AB560: 2013- 2014 | AC560: 2014- 2015 | AD560: 2015- 2016 | AE560: 2016- 2017 | AF560: 2017- 2018 | AG560: 2018- 2019 | AH560: 2019- 2020 | AI560: 2020- 2021 | AJ560: 2021- 2022
Z561: labels
Z562: Expansion demand | AA562: -2.54308 | AB562: -1.682975 | AC562: -2.117406 | AD562: -1.52779 | AE562: -1.646131 | AF562: -1.648342 | AG562: -1.573583 | AH562: -1.633312 | AI562: -2.225375 | AJ562: -2.16007
Z563: Replacement demand | AA563: 2.161045403 | AB563: 2.07347168 | AC563: 2.013985395 | AD563: 1.941426684 | AE563: 1.886492935 | AF563: 1.828405118 | AG563: 1.770411351 | AH563: 1.714637858 | AI563: 1.657225545 | AJ563: 1.58109804
Z564: Net requirement | AA564: -0.3820345975 | AB564: 0.3904966803 | AC564: -0.1034206051 | AD564: 0.413636684 | AE564: 0.2403619346 | AF564: 0.1800631183 | AG564: 0.1968283511 | AH564: 0.08132585836 | AI564: -0.5681494547 | AJ564: -0.5789719595
C579: ="Components of Replacement Demand, "&Z584&", "&AA584 -> Components of Replacement Demand, Transport and mobile machine drivers and operatives, 2012- 2022
Z584: Transport and mobile machine drivers and operatives | AA584: 2012- 2022
Z585: periods | AA585: 2012- 2013 | AB585: 2013- 2014 | AC585: 2014- 2015 | AD585: 2015- 2016 | AE585: 2016- 2017 | AF585: 2017- 2018 | AG585: 2018- 2019 | AH585: 2019- 2020 | AI585: 2020- 2021 | AJ585: 2021- 2022
Z586: labels
Z587: Expansion demand | AA587: 0.057609 | AB587: -0.916508 | AC587: -0.568134 | AD587: 0.347977 | AE587: 0.624494 | AF587: 0.771474 | AG587: 0.80064 | AH587: 0.996309 | AI587: 0.545501 | AJ587: 0.351327
Z588: Replacement demand | AA588: 3.868888003 | AB588: 3.872488079 | AC588: 3.833691239 | AD588: 3.809985861 | AE588: 3.826012551 | AF588: 3.854014692 | AG588: 3.888482282 | AH588: 3.924059966 | AI588: 3.968249089 | AJ588: 3.992957674
Z589: Net requirement | AA589: 3.926497003 | AB589: 2.955980079 | AC589: 3.265557239 | AD589: 4.157962861 | AE589: 4.450506551 | AF589: 4.625488692 | AG589: 4.689122282 | AH589: 4.920368966 | AI589: 4.513750089 | AJ589: 4.344284674
C604: ="Components of Replacement Demand, "&Z609&", "&AA609 -> Components of Replacement Demand, Elementary trades and related occupations, 2012- 2022
Z609: Elementary trades and related occupations | AA609: 2012- 2022
Z610: periods | AA610: 2012- 2013 | AB610: 2013- 2014 | AC610: 2014- 2015 | AD610: 2015- 2016 | AE610: 2016- 2017 | AF610: 2017- 2018 | AG610: 2018- 2019 | AH610: 2019- 2020 | AI610: 2020- 2021 | AJ610: 2021- 2022
Z611: labels
Z612: Expansion demand | AA612: -2.060513 | AB612: -0.109162 | AC612: -0.280218 | AD612: -0.013959 | AE612: -0.06992 | AF612: -0.161148 | AG612: -0.034388 | AH612: -0.082589 | AI612: -0.034432 | AJ612: -0.108705
Z613: Replacement demand | AA613: 1.792337298 | AB613: 1.719651149 | AC613: 1.71947948 | AD613: 1.712626552 | AE613: 1.715133202 | AF613: 1.715528834 | AG613: 1.711912846 | AH613: 1.713211695 | AI613: 1.713193354 | AJ613: 1.715798813
Z614: Net requirement | AA614: -0.2681757023 | AB614: 1.610489149 | AC614: 1.43926148 | AD614: 1.698667552 | AE614: 1.645213202 | AF614: 1.554380834 | AG614: 1.677524846 | AH614: 1.630622695 | AI614: 1.678761354 | AJ614: 1.607093813
C629: ="Components of Replacement Demand, "&Z634&", "&AA634 -> Components of Replacement Demand, Elementary administration and service occupations, 2012- 2022
Z634: Elementary administration and service occupations | AA634: 2012- 2022
Z635: periods | AA635: 2012- 2013 | AB635: 2013- 2014 | AC635: 2014- 2015 | AD635: 2015- 2016 | AE635: 2016- 2017 | AF635: 2017- 2018 | AG635: 2018- 2019 | AH635: 2019- 2020 | AI635: 2020- 2021 | AJ635: 2021- 2022
Z636: labels
Z637: Expansion demand | AA637: -10.231707 | AB637: -0.706893 | AC637: -0.378466 | AD637: 0.464214 | AE637: 0.174003 | AF637: 0.145177 | AG637: 1.301246 | AH637: 1.338061 | AI637: 1.468367 | AJ637: 1.32844
Z638: Replacement demand | AA638: 9.4015621 | AB638: 8.932921964 | AC638: 8.891296924 | AD638: 8.863456576 | AE638: 8.868543997 | AF638: 8.862114728 | AG638: 8.852830657 | AH638: 8.895288254 | AI638: 8.940986569 | AJ638: 8.972507016
Z639: Net requirement | AA639: -0.8301448998 | AB639: 8.226028964 | AC639: 8.512830924 | AD639: 9.327670576 | AE639: 9.042546997 | AF639: 9.007291728 | AG639: 10.15407666 | AH639: 10.23334925 | AI639: 10.40935357 | AJ639: 10.30094702

Sheet Figure 7.1
DA1: Data is written here by the initial setup process and the appropriate occupation copied to BL116 when an occupation is selected
AZ2: When an occupation is selected, data for that occupation is written here.
F3: Click on an occupation from the list and the charts will be customised for that occupation | BB3: Chart data | DA3: Emp x qualification for occupation 1 for every industry
BB4: Shares of total employment for selected occupation for every sector | DA4: 2012 | DB4: =LEFT(names!$D$4,4) -> QCF8 | DC4: =LEFT(names!$D$5,4) -> QCF7 | DD4: =LEFT(names!$D$6,4) -> QCF6 | DE4: =LEFT(names!$D$7,4) -> QCF5 | DF4: =LEFT(names!$D$8,4) -> QCF4 | DG4: =LEFT(names!$D$9,4) -> QCF3 | DH4: =LEFT(names!$D$10,4) -> QCF2 | DI4: =LEFT(names!$D$11,4) -> QCF1 | DJ4: =LEFT(names!$D$12,7) -> No Qual
BB5: 1992 | BC5: 1993 | BD5: 1994 | BE5: 1995 | BF5: 1996 | BG5: 1997 | BH5: 1998 | BI5: 1999 | BJ5: 2000 | BK5: 2001 | BL5: 2002 | BM5: 2003 | BN5: 2004 | BO5: 2005 | BP5: 2006 | BQ5: 2007 | BR5: 2008 | BS5: 2009 | BT5: 2010 | BU5: 2011 | BV5: 2012 | BW5: 2013 | BX5: 2014 | BY5: 2015 | BZ5: 2016 | CA5: 2017 | CB5: 2018 | CC5: 2019 | CD5: 2020 | CE5: 2021 | CF5: 2022 | DA5: =names!$A$3 -> All industries | DB5: 1889.132937 | DC5: 15636.97713 | DD5: 46351.38392 | DE5: 10946.97938 | DF5: 15038.56657 | DG5: 34283.6909 | DH5: 29430.54951 | DI5: 18400.92975 | DJ5: 3115.403353
BA6: Males | BB6: 84.27267278 | BC6: 83.27631437 | BD6: 82.5208928 | BE6: 81.81896784 | BF6: 80.90853509 | BG6: 80.23076975 | BH6: 79.07731738 | BI6: 77.70311945 | BJ6: 77.18254596 | BK6: 76.18663601 | BL6: 76.63299537 | BM6: 75.02362312 | BN6: 74.77948804 | BO6: 74.52266445 | BP6: 73.3937129 | BQ6: 73.77156532 | BR6: 73.72346837 | BS6: 72.78808978 | BT6: 72.21064693 | BU6: 71.65367894 | BV6: 71.22149938 | BW6: 70.77060136 | BX6: 70.34721754 | BY6: 69.96360933 | BZ6: 69.57048746 | CA6: 69.16559163 | CB6: 68.74996954 | CC6: 68.33231022 | CD6: 67.92836756 | CE6: 68.33231022 | CF6: 67.92836756 | DB6: 1889.132937 | DC6: 15636.97713 | DD6: 46351.38392 | DE6: 10946.97938 | DF6: 15038.56657 | DG6: 34283.6909 | DH6: 29430.54951 | DI6: 18400.92975 | DJ6: 3115.403353
BA7: Females | BB7: 15.72732722 | BC7: 16.72368563 | BD7: 17.47910727 | BE7: 18.18103223 | BF7: 19.09146498 | BG7: 19.76923032 | BH7: 20.92268262 | BI7: 22.29688055 | BJ7: 22.81745411 | BK7: 23.81336405 | BL7: 23.36700463 | BM7: 24.97637693 | BN7: 25.22051201 | BO7: 25.4773356 | BP7: 26.60628715 | BQ7: 26.22843468 | BR7: 26.27653163 | BS7: 27.21191022 | BT7: 27.78935307 | BU7: 28.34632106 | BV7: 28.77850067 | BW7: 29.22939869 | BX7: 29.65278251 | BY7: 30.03639072 | BZ7: 30.42951258 | CA7: 30.83440837 | CB7: 31.25003046 | CC7: 31.66768978 | CD7: 32.07163248 | CE7: 31.66768978 | CF7: 32.07163248
G14: Charts all refer to the selected occupation - current selection is :-
B16: 11 Corporate managers and directors
J18: All industries
CJ25: =TableQ!A3 -> QCF group | CK25: Base year level
CK26: 2010
CJ27: =TableQ!A5 -> QCF 7-8 | CK27: 1878259.585
CJ28: =TableQ!A6 -> QCF 4-6 | CK28: 7417568.277
CJ29: =TableQ!A7 -> QCF 3 | CK29: 5973784.73
CJ30: =TableQ!A8 -> QCF 2 | CK30: 6685148.396
CJ31: =TableQ!A9 -> QCF 1 | CK31: 5357778.981
CJ32: =TableQ!A10 -> No Qual | CK32: 3124402.429
DA33: Emp x qualification for occupation 2 for every industry
DA34: 2012 | DB34: =DB4 -> QCF8 | DC34: =DC4 -> QCF7 | DD34: QCF6 | DE34: QCF5 | DF34: QCF4 | DG34: QCF3 | DH34: QCF2 | DI34: QCF1 | DJ34: No Qual
DA35: =names!$A$3 -> All industries | DB35: 736.284739 | DC35: 6499.872262 | DD35: 18869.57333 | DE35: 6800.718952 | DF35: 7199.144399 | DG35: 22394.20274 | DH35: 23590.08119 | DI35: 16027.97679 | DJ35: 4423.628979
DB36: 736.284739 | DC36: 6499.872262 | DD36: 18869.57333 | DE36: 6800.718952 | DF36: 7199.144399 | DG36: 22394.20274 | DH36: 23590.08119 | DI36: 16027.97679 | DJ36: 4423.628979
BB59: Selected occupation as % of all occupations, separately for men and women
BB60: 1992 | BC60: 1993 | BD60: 1994 | BE60: 1995 | BF60: 1996 | BG60: 1997 | BH60: 1998 | BI60: 1999 | BJ60: 2000 | BK60: 2001 | BL60: 2002 | BM60: 2003 | BN60: 2004 | BO60: 2005 | BP60: 2006 | BQ60: 2007 | BR60: 2008 | BS60: 2009 | BT60: 2010 | BU60: 2011 | BV60: 2012 | BW60: 2013 | BX60: 2014 | BY60: 2015 | BZ60: 2016 | CA60: 2017 | CB60: 2018 | CC60: 2019 | CD60: 2020 | CE60: 2021 | CF60: 2022
AZ61: =names!A3 -> All industries | BA61: Males | BB61: 7.539115394 | BC61: 7.611604693 | BD61: 7.619693542 | BE61: 7.675710471 | BF61: 7.697782521 | BG61: 7.775482772 | BH61: 7.872591098 | BI61: 7.863378136 | BJ61: 8.074644843 | BK61: 8.168683585 | BL61: 8.572284682 | BM61: 8.479979108 | BN61: 8.61635402 | BO61: 8.786344685 | BP61: 8.581268794 | BQ61: 8.931649487 | BR61: 9.093185181 | BS61: 9.103173604 | BT61: 9.024293131 | BU61: 9.103499532 | BV61: 9.181781155 | BW61: 9.26073374 | BX61: 9.342535195 | BY61: 9.428548668 | BZ61: 9.491583631 | CA61: 9.55231562 | CB61: 9.611524737 | CC61: 9.670236996 | CD61: 9.72816541 | CE61: 9.670236996 | CF61: 9.72816541
BA62: Females | BB62: 1.587500801 | BC62: 1.686287302 | BD62: 1.776967007 | BE62: 1.879646264 | BF62: 1.96245367 | BG62: 2.105153934 | BH62: 2.326579549 | BI62: 2.582752892 | BJ62: 2.683602314 | BK62: 2.889024192 | BL62: 2.928491704 | BM62: 3.202843707 | BN62: 3.281028395 | BO62: 3.360820691 | BP62: 3.500565753 | BQ62: 3.595962363 | BR62: 3.723721095 | BS62: 3.848506868 | BT62: 3.908126251 | BU62: 4.022137177 | BV62: 4.152773528 | BW62: 4.289727583 | BX62: 4.428842193 | BY62: 4.561704031 | BZ62: 4.666900644 | CA62: 4.769108248 | CB62: 4.873825846 | CC62: 4.975978052 | CD62: 5.077307502 | CE62: 4.975978052 | CF62: 5.077307502
DA63: Emp x qualification for occupation 3 for every industry
DA64: 2012 | DB64: =DB34 -> QCF8 | DC64: =DC34 -> QCF7 | DD64: QCF6 | DE64: QCF5 | DF64: QCF4 | DG64: QCF3 | DH64: QCF2 | DI64: QCF1 | DJ64: No Qual
DA65: =names!$A$3 -> All industries | DB65: 5274.460021 | DC65: 19841.09992 | DD65: 48396.46122 | DE65: 6373.485437 | DF65: 15277.98373 | DG65: 20221.42334 | DH65: 15223.58273 | DI65: 8187.28635 | DJ65: 1257.314213
DB66: 5274.460021 | DC66: 19841.09992 | DD66: 48396.46122 | DE66: 6373.485437 | DF66: 15277.98373 | DG66: 20221.42334 | DH66: 15223.58273 | DI66: 8187.28635 | DJ66: 1257.314213
B92: 11 Corporate managers and directors | I92: 34 Culture, media and sports occupations | O92: 62 Leisure, travel and related personal service occupations
B93: 12 Other managers and proprietors | I93: 35 Business and public service associate professionals | O93: 71 Sales occupations | DA93: Emp x qualification for occupation 4 for every industry
B94: 21 Science, research, engineering and technology professionals | I94: 41 Administrative occupations | O94: 72 Customer service occupations | DA94: 2012 | DB94: =DB64 -> QCF8 | DC94: =DC64 -> QCF7 | DD94: QCF6 | DE94: QCF5 | DF94: QCF4 | DG94: QCF3 | DH94: QCF2 | DI94: QCF1 | DJ94: No Qual
B95: 22 Health professionals | I95: 42 Secretarial and related occupations | O95: 81 Process, plant and machine operatives | DA95: =names!$A$3 -> All industries | DB95: 4865.214016 | DC95: 14178.64366 | DD95: 35374.53664 | DE95: 26683.071 | DF95: 2782.52814 | DG95: 9270.405873 | DH95: 7679.681994 | DI95: 4244.585691 | DJ95: 382.5418474
B96: 23 Teaching and educational professionals | I96: 51 Skilled agricultural and related trades | O96: 82 Transport and mobile machine drivers and operatives | DB96: 4865.214016 | DC96: 14178.64366 | DD96: 35374.53664 | DE96: 26683.071 | DF96: 2782.52814 | DG96: 9270.405873 | DH96: 7679.681994 | DI96: 4244.585691 | DJ96: 382.5418474
B97: 24 Business, media and public service professionals | I97: 52 Skilled metal, electrical and electronic trades | O97: 91 Elementary trades and related occupations
B98: 31 Science, engineering and technology associate professionals | I98: 53 Skilled construction and building trades | O98: 92 Elementary administration and service occupations
B99: 32 Health and social care associate professionals | I99: 54 Textiles, printing and other skilled trades
B100: 33 Protective service occupations | I100: 61 Caring personal service occupations
B106: =CELL("filename",$A$2)&", "&Info!A1 -> R:\Research Info\Individual research project info\Working Futures 2012-2022\Working Futures quant projections 2012-2022\04 Reporting and outputs\Final outputs\Workbooks\Files for gov.uk\SW\[AllSWv2.xlsm]Figure 7.1, South West
BA114: Emp x gender-status for selected occupation for every industry | BK114: Emp x qualification for selected occupation for every industry
BA115: 2012 | BB115: MFT | BC115: MPT | BD115: MSE | BE115: FSE | BF115: FPT | BG115: FFT | BK115: 2010 | BL115: =DB4 -> QCF8 | BM115: =DC4 -> QCF7 | BN115: QCF6 | BO115: QCF5 | BP115: QCF4 | BQ115: QCF3 | BR115: QCF2 | BS115: QCF1 | BT115: No Qual
BA116: =names!A3 -> All industries | BB116: 1227165.77 | BC116: 71318.499 | BD116: 180034.996 | BE116: 44219.164 | BF116: 118045.245 | BG116: 435161.481 | BK116: =BA116 -> All industries | BL116: 25643.59883 | BM116: 216271.7055 | BN116: 485360.2677 | BO116: 118474.4131 | BP116: 154748.8284 | BQ116: 371199.5091 | BR116: 333418.2309 | BS116: 251673.74 | BT116: 78136.06579
BL117: 25643.59883 | BM117: 216271.7055 | BN117: 485360.2677 | BO117: 118474.4131 | BP117: 154748.8284 | BQ117: 371199.5091 | BR117: 333418.2309 | BS117: 251673.74 | BT117: 78136.06579
DA123: Emp x qualification for occupation 5 for every industry
DA124: 2012 | DB124: =DB94 -> QCF8 | DC124: =DC94 -> QCF7 | DD124: QCF6 | DE124: QCF5 | DF124: QCF4 | DG124: QCF3 | DH124: QCF2 | DI124: QCF1 | DJ124: No Qual
DA125: =names!$A$3 -> All industries | DB125: 8462.946733 | DC125: 46902.62011 | DD125: 43148.62852 | DE125: 12864.7219 | DF125: 2422.433835 | DG125: 6274.820487 | DH125: 5024.362537 | DI125: 3260.065762 | DJ125: 469.4444347
DB126: 8462.946733 | DC126: 46902.62011 | DD126: 43148.62852 | DE126: 12864.7219 | DF126: 2422.433835 | DG126: 6274.820487 | DH126: 5024.362537 | DI126: 3260.065762 | DJ126: 469.4444347
BB144: Replacement Demand etc 2010-2020 for selected occupation | BI144: Males | BJ144: -- (as % 2010) -- | BL144: Females
BB145: job openings | BC145: replacement | BD145: net change | BH145: Ex dem | BI145: RD | BK145: Ex dem | BL145: RD
AZ146: =names!#REF! ->  | BA146: Females | BB146: 437.3966908 | BC146: 262.9343978 | BD146: 174.462293 | BH146: 16.44645223 | BI146: 32.33393789 | BK146: 28.64685793 | BL146: 43.06564131
BA147: Males | BB147: 753.5286666 | BC147: 597.1731166 | BD147: 156.35555 | BH147: 9.372266515 | BI147: 38.11491921 | BK147: 4.76224199 | BL147: 47.62828221
BH148: 16.1663655 | BI148: 28.7046654 | BK148: 26.62853437 | BL148: 39.24537257
BH149: 9.710670724 | BI149: 34.52005166 | BK149: 9.367810641 | BL149: 45.64390242
BH150: 4.034236021 | BI150: 36.85389384 | BK150: 19.72584153 | BL150: 47.92804911
BH151: 11.3916492 | BI151: 34.56867237 | BK151: 25.29520329 | BL151: 46.42393718
BH152: 9.640963711 | BI152: 28.32200613 | BK152: -1.084924056 | BL152: 40.10666833
BH153: 12.14022355 | BI153: 29.3738464 | BK153: 12.9163257 | BL153: 41.62224763 | DA153: Emp x qualification for occupation 6 for every industry
BH154: -7.021478225 | BI154: 24.51626922 | BK154: 49.74495341 | BL154: 35.63498738 | DA154: 2012 | DB154: =DB124 -> QCF8 | DC154: =DC124 -> QCF7 | DD154: QCF6 | DE154: QCF5 | DF154: QCF4 | DG154: QCF3 | DH154: QCF2 | DI154: QCF1 | DJ154: No Qual
BH155: 26.84572256 | BI155: 29.94868471 | BK155: 16.08853816 | BL155: 40.37318816 | DA155: =names!$A$3 -> All industries | DB155: 1593.868442 | DC155: 22399.79744 | DD155: 49894.60426 | DE155: 8032.842964 | DF155: 8222.447438 | DG155: 16674.40081 | DH155: 12136.26645 | DI155: 6666.873489 | DJ155: 1084.798351
BH156: 10.01456366 | BI156: 31.59551349 | BK156: 26.62670104 | BL156: 42.69691049 | DB156: 1593.868442 | DC156: 22399.79744 | DD156: 49894.60426 | DE156: 8032.842964 | DF156: 8222.447438 | DG156: 16674.40081 | DH156: 12136.26645 | DI156: 6666.873489 | DJ156: 1084.798351
BH157: 2.657811079 | BI157: 29.31891312 | BK157: -8.289034631 | BL157: 42.13414284
BH158: 8.846898747 | BI158: 41.16089809 | BK158: -29.44797713 | BL158: 47.9680203
BH159: -9.728911476 | BI159: 39.27068156 | BK159: -17.90852638 | BL159: 50.7603827
BH160: -11.44655611 | BI160: 30.77581019 | BK160: -27.90960157 | BL160: 43.10099261
BH161: 7.151409519 | BI161: 30.94506425 | BK161: 23.37931467 | BL161: 43.25168803
BH162: -14.19510593 | BI162: 29.77399679 | BK162: -38.87161354 | BL162: 41.80801052
BH163: 50.79930329 | BI163: 27.24188006 | BK163: 18.48072611 | BL163: 39.4834001
BH164: 11.481574 | BI164: 36.23657762 | BK164: 1.16626638 | BL164: 49.35325316
BH165: 7.984849334 | BI165: 24.27686307 | BK165: -3.83617877 | BL165: 37.8935252
BH166: 35.15879142 | BI166: 20.77198112 | BK166: 17.88830149 | BL166: 35.30435213
BH167: -15.09977571 | BI167: 29.99081043 | BK167: -39.438946 | BL167: 41.65407433
BH168: 8.321701516 | BI168: 37.62633014 | BK168: 16.18806061 | BL168: 47.62372213
BH169: -6.777363694 | BI169: 28.99591485 | BK169: 10.01913932 | BL169: 41.74011747
BH170: 20.50411155 | BI170: 29.20383484 | BK170: -13.07615903 | BL170: 43.44601236
BG171: All occs | BH171: 7.258293363 | BI171: 31.36931632 | BK171: 5.098813149 | BL171: 42.69230701 | BM171: not currently used
BH173: These are 'all industry values & will need updating
BH174: ? Use values for every industry separately when available?
DA183: Emp x qualification for occupation 7 for every industry
DA184: 2012 | DB184: =DB154 -> QCF8 | DC184: =DC154 -> QCF7 | DD184: QCF6 | DE184: QCF5 | DF184: QCF4 | DG184: QCF3 | DH184: QCF2 | DI184: QCF1 | DJ184: No Qual
DA185: All industries | DB185: 537.8817937 | DC185: 3225.284297 | DD185: 10006.53782 | DE185: 1987.262214 | DF185: 6089.138971 | DG185: 9312.285178 | DH185: 6675.624303 | DI185: 4276.217228 | DJ185: 696.4497587
DA186: =names!$A$3 -> All industries | DB186: 537.8817937 | DC186: 3225.284297 | DD186: 10006.53782 | DE186: 1987.262214 | DF186: 6089.138971 | DG186: 9312.285178 | DH186: 6675.624303 | DI186: 4276.217228 | DJ186: 696.4497587
DA213: Emp x qualification for occupation 8 for every industry
DA214: 2012 | DB214: =DB184 -> QCF8 | DC214: =DC184 -> QCF7 | DD214: QCF6 | DE214: QCF5 | DF214: QCF4 | DG214: QCF3 | DH214: QCF2 | DI214: QCF1 | DJ214: No Qual
DA215: =names!$A$3 -> All industries | DB215: 95.92875371 | DC215: 2199.714978 | DD215: 8071.877663 | DE215: 8387.299509 | DF215: 1192.825536 | DG215: 3345.827765 | DH215: 2857.801426 | DI215: 1461.055896 | DJ215: 134.2899808
DB216: 95.92875371 | DC216: 2199.714978 | DD216: 8071.877663 | DE216: 8387.299509 | DF216: 1192.825536 | DG216: 3345.827765 | DH216: 2857.801426 | DI216: 1461.055896 | DJ216: 134.2899808
DA243: Emp x qualification for occupation 9 for every industry
DA244: 2012 | DB244: =DB214 -> QCF8 | DC244: =DC214 -> QCF7 | DD244: QCF6 | DE244: QCF5 | DF244: QCF4 | DG244: QCF3 | DH244: QCF2 | DI244: QCF1 | DJ244: No Qual
DA245: =names!$A$3 -> All industries | DB245: 63.2013143 | DC245: 1021.203919 | DD245: 5637.91112 | DE245: 1530.954261 | DF245: 1652.181642 | DG245: 5972.931765 | DH245: 6533.874125 | DI245: 3444.239684 | DJ245: 439.5125944
DB246: 63.2013143 | DC246: 1021.203919 | DD246: 5637.91112 | DE246: 1530.954261 | DF246: 1652.181642 | DG246: 5972.931765 | DH246: 6533.874125 | DI246: 3444.239684 | DJ246: 439.5125944
DA273: Emp x qualification for occupation 10 for every industry
DA274: 2012 | DB274: =DB244 -> QCF8 | DC274: =DC244 -> QCF7 | DD274: QCF6 | DE274: QCF5 | DF274: QCF4 | DG274: QCF3 | DH274: QCF2 | DI274: QCF1 | DJ274: No Qual
DA275: =names!$A$3 -> All industries | DB275: 314.6706857 | DC275: 6109.315791 | DD275: 19529.88905 | DE275: 2830.658644 | DF275: 3611.24541 | DG275: 9268.124348 | DH275: 6217.915018 | DI275: 3756.790162 | DJ275: 759.2139729
DB276: 314.6706857 | DC276: 6109.315791 | DD276: 19529.88905 | DE276: 2830.658644 | DF276: 3611.24541 | DG276: 9268.124348 | DH276: 6217.915018 | DI276: 3756.790162 | DJ276: 759.2139729
DA303: Emp x qualification for occupation 11 for every industry
DA304: 2012 | DB304: =DB274 -> QCF8 | DC304: =DC274 -> QCF7 | DD304: QCF6 | DE304: QCF5 | DF304: QCF4 | DG304: QCF3 | DH304: QCF2 | DI304: QCF1 | DJ304: No Qual
DA305: =names!$A$3 -> All industries | DB305: 1464.660641 | DC305: 15339.43626 | DD305: 43907.23391 | DE305: 12783.78987 | DF305: 11889.04868 | DG305: 34818.45994 | DH305: 29157.48825 | DI305: 17419.42439 | DJ305: 2950.867395
DB306: 1464.660641 | DC306: 15339.43626 | DD306: 43907.23391 | DE306: 12783.78987 | DF306: 11889.04868 | DG306: 34818.45994 | DH306: 29157.48825 | DI306: 17419.42439 | DJ306: 2950.867395
DA333: Emp x qualification for occupation 12 for every industry
DA334: 2012 | DB334: =DB304 -> QCF8 | DC334: =DC304 -> QCF7 | DD334: QCF6 | DE334: QCF5 | DF334: QCF4 | DG334: QCF3 | DH334: QCF2 | DI334: QCF1 | DJ334: No Qual
DA335: =names!$A$3 -> All industries | DB335: 702.9770227 | DC335: 8498.135137 | DD335: 35241.04993 | DE335: 13929.68288 | DF335: 13668.74312 | DG335: 50568.07205 | DH335: 58963.07151 | DI335: 33499.33883 | DJ335: 6283.21727
DB336: 702.9770227 | DC336: 8498.135137 | DD336: 35241.04993 | DE336: 13929.68288 | DF336: 13668.74312 | DG336: 50568.07205 | DH336: 58963.07151 | DI336: 33499.33883 | DJ336: 6283.21727
DA363: Emp x qualification for occupation 13 for every industry
DA364: 2012 | DB364: =DB334 -> QCF8 | DC364: =DC334 -> QCF7 | DD364: QCF6 | DE364: QCF5 | DF364: QCF4 | DG364: QCF3 | DH364: QCF2 | DI364: QCF1 | DJ364: No Qual
DA365: =names!$A$3 -> All industries | DB365: 102.4233827 | DC365: 2006.178467 | DD365: 8336.446947 | DE365: 4467.884652 | DF365: 3730.543244 | DG365: 16223.27161 | DH365: 22809.11676 | DI365: 17215.25563 | DJ365: 3122.037055
DB366: 102.4233827 | DC366: 2006.178467 | DD366: 8336.446947 | DE366: 4467.884652 | DF366: 3730.543244 | DG366: 16223.27161 | DH366: 22809.11676 | DI366: 17215.25563 | DJ366: 3122.037055
DA393: Emp x qualification for occupation 14 for every industry
DA394: 2012 | DB394: =DB364 -> QCF8 | DC394: =DC364 -> QCF7 | DD394: QCF6 | DE394: QCF5 | DF394: QCF4 | DG394: QCF3 | DH394: QCF2 | DI394: QCF1 | DJ394: No Qual
DA395: =names!$A$3 -> All industries | DB395: 80.77323162 | DC395: 462.3929614 | DD395: 4125.577079 | DE395: 2090.411544 | DF395: 3549.330772 | DG395: 7667.380678 | DH395: 11447.53537 | DI395: 8618.3702 | DJ395: 4478.702716
DB396: 80.77323162 | DC396: 462.3929614 | DD396: 4125.577079 | DE396: 2090.411544 | DF396: 3549.330772 | DG396: 7667.380678 | DH396: 11447.53537 | DI396: 8618.3702 | DJ396: 4478.702716
DA423: Emp x qualification for occupation 15 for every industry
DA424: 2012 | DB424: =DB394 -> QCF8 | DC424: =DC394 -> QCF7 | DD424: QCF6 | DE424: QCF5 | DF424: QCF4 | DG424: QCF3 | DH424: QCF2 | DI424: QCF1 | DJ424: No Qual
DA425: =names!$A$3 -> All industries | DB425: 95.95415095 | DC425: 2510.746447 | DD425: 7313.800027 | DE425: 2529.066641 | DF425: 9588.375924 | DG425: 52632.49871 | DH425: 33243.76213 | DI425: 17896.93819 | DJ425: 5919.388748
DB426: 95.95415095 | DC426: 2510.746447 | DD426: 7313.800027 | DE426: 2529.066641 | DF426: 9588.375924 | DG426: 52632.49871 | DH426: 33243.76213 | DI426: 17896.93819 | DJ426: 5919.388748
DA453: Emp x qualification for occupation 16 for every industry
DA454: 2012 | DB454: =DB424 -> QCF8 | DC454: =DC424 -> QCF7 | DD454: QCF6 | DE454: QCF5 | DF454: QCF4 | DG454: QCF3 | DH454: QCF2 | DI454: QCF1 | DJ454: No Qual
DA455: =names!$A$3 -> All industries | DB455: 47.15421276 | DC455: 802.1785722 | DD455: 3788.674178 | DE455: 2070.887732 | DF455: 3801.662523 | DG455: 40161.0488 | DH455: 33421.63431 | DI455: 18135.94873 | DJ455: 7216.791853
DB456: 47.15421276 | DC456: 802.1785722 | DD456: 3788.674178 | DE456: 2070.887732 | DF456: 3801.662523 | DG456: 40161.0488 | DH456: 33421.63431 | DI456: 18135.94873 | DJ456: 7216.791853
DA483: Emp x qualification for occupation 17 for every industry
DA484: 2012 | DB484: =DB454 -> QCF8 | DC484: =DC454 -> QCF7 | DD484: QCF6 | DE484: QCF5 | DF484: QCF4 | DG484: QCF3 | DH484: QCF2 | DI484: QCF1 | DJ484: No Qual
DA485: =names!$A$3 -> All industries | DB485: 112.6876443 | DC485: 963.6291108 | DD485: 3541.017572 | DE485: 1631.499045 | DF485: 1737.218776 | DG485: 13345.21045 | DH485: 15768.73368 | DI485: 11763.88003 | DJ485: 4286.16029
DB486: 112.6876443 | DC486: 963.6291108 | DD486: 3541.017572 | DE486: 1631.499045 | DF486: 1737.218776 | DG486: 13345.21045 | DH486: 15768.73368 | DI486: 11763.88003 | DJ486: 4286.16029
DA513: Emp x qualification for occupation 18 for every industry
DA514: 2012 | DB514: =DB484 -> QCF8 | DC514: =DC484 -> QCF7 | DD514: QCF6 | DE514: QCF5 | DF514: QCF4 | DG514: QCF3 | DH514: QCF2 | DI514: QCF1 | DJ514: No Qual
DA515: =names!$A$3 -> All industries | DB515: 84.35810647 | DC515: 4343.774562 | DD515: 17280.76327 | DE515: 19344.51759 | DF515: 10276.89387 | DG515: 65634.77832 | DH515: 58780.86597 | DI515: 22824.08116 | DJ515: 5195.817509
DB516: 84.35810647 | DC516: 4343.774562 | DD516: 17280.76327 | DE516: 19344.51759 | DF516: 10276.89387 | DG516: 65634.77832 | DH516: 58780.86597 | DI516: 22824.08116 | DJ516: 5195.817509
DA543: Emp x qualification for occupation 19 for every industry
DA544: 2012 | DB544: =DB514 -> QCF8 | DC544: =DC514 -> QCF7 | DD544: QCF6 | DE544: QCF5 | DF544: QCF4 | DG544: QCF3 | DH544: QCF2 | DI544: QCF1 | DJ544: No Qual
DA545: =names!$A$3 -> All industries | DB545: 43.8554979 | DC545: 839.0131528 | DD545: 3471.8206 | DE545: 2416.451704 | DF545: 3030.729208 | DG545: 15624.58171 | DH545: 16797.91734 | DI545: 9828.306604 | DJ545: 3539.165077
DB546: 43.8554979 | DC546: 839.0131528 | DD546: 3471.8206 | DE546: 2416.451704 | DF546: 3030.729208 | DG546: 15624.58171 | DH546: 16797.91734 | DI546: 9828.306604 | DJ546: 3539.165077
DA573: Emp x qualification for occupation 20 for every industry
DA574: 2012 | DB574: =DB544 -> QCF8 | DC574: =DC544 -> QCF7 | DD574: QCF6 | DE574: QCF5 | DF574: QCF4 | DG574: QCF3 | DH574: QCF2 | DI574: QCF1 | DJ574: No Qual
DA575: =names!$A$3 -> All industries | DB575: 149.3020459 | DC575: 2948.855353 | DD575: 15805.78996 | DE575: 6104.945333 | DF575: 5725.213895 | DG575: 48400.44983 | DH575: 56444.56663 | DI575: 35266.71321 | DJ575: 13648.42045
DB576: 149.3020459 | DC576: 2948.855353 | DD576: 15805.78996 | DE576: 6104.945333 | DF576: 5725.213895 | DG576: 48400.44983 | DH576: 56444.56663 | DI576: 35266.71321 | DJ576: 13648.42045
DA603: Emp x qualification for occupation 21 for every industry
DA604: 2012 | DB604: =DB574 -> QCF8 | DC604: =DC574 -> QCF7 | DD604: QCF6 | DE604: QCF5 | DF604: QCF4 | DG604: QCF3 | DH604: QCF2 | DI604: QCF1 | DJ604: No Qual
DA605: =names!$A$3 -> All industries | DB605: 129.8224886 | DC605: 1491.601792 | DD605: 7260.430417 | DE605: 2255.137045 | DF605: 2954.7069 | DG605: 13244.48559 | DH605: 13825.89979 | DI605: 7520.230396 | DJ605: 1645.316385
DB606: 129.8224886 | DC606: 1491.601792 | DD606: 7260.430417 | DE606: 2255.137045 | DF606: 2954.7069 | DG606: 13244.48559 | DH606: 13825.89979 | DI606: 7520.230396 | DJ606: 1645.316385
DA633: Emp x qualification for occupation 22 for every industry
DA634: 2012 | DB634: =DB604 -> QCF8 | DC634: =DC604 -> QCF7 | DD634: QCF6 | DE634: QCF5 | DF634: QCF4 | DG634: QCF3 | DH634: QCF2 | DI634: QCF1 | DJ634: No Qual
DA635: =names!$A$3 -> All industries | DB635: 71.89125368 | DC635: 560.3303674 | DD635: 2070.520472 | DE635: 978.1944263 | DF635: 2457.976335 | DG635: 15847.79979 | DH635: 20861.29752 | DI635: 18024.4593 | DJ635: 7162.600243
DB636: 71.89125368 | DC636: 560.3303674 | DD636: 2070.520472 | DE636: 978.1944263 | DF636: 2457.976335 | DG636: 15847.79979 | DH636: 20861.29752 | DI636: 18024.4593 | DJ636: 7162.600243
DA663: Emp x qualification for occupation 23 for every industry
DA664: 2012 | DB664: =DB634 -> QCF8 | DC664: =DC634 -> QCF7 | DD664: QCF6 | DE664: QCF5 | DF664: QCF4 | DG664: QCF3 | DH664: QCF2 | DI664: QCF1 | DJ664: No Qual
DA665: =names!$A$3 -> All industries | DB665: 118.2730633 | DC665: 950.2250383 | DD665: 3293.871025 | DE665: 1706.598776 | DF665: 2832.051817 | DG665: 17344.39718 | DH665: 27437.08366 | DI665: 25729.00168 | DJ665: 7059.26878
DB666: 118.2730633 | DC666: 950.2250383 | DD666: 3293.871025 | DE666: 1706.598776 | DF666: 2832.051817 | DG666: 17344.39718 | DH666: 27437.08366 | DI666: 25729.00168 | DJ666: 7059.26878
DA693: Emp x qualification for occupation 24 for every industry
DA694: 2012 | DB694: =DB664 -> QCF8 | DC694: =DC664 -> QCF7 | DD694: QCF6 | DE694: QCF5 | DF694: QCF4 | DG694: QCF3 | DH694: QCF2 | DI694: QCF1 | DJ694: No Qual
DA695: =names!$A$3 -> All industries | DB695: 1.470511447 | DC695: 387.2443053 | DD695: 1962.07584 | DE695: 1263.531981 | DF695: 1573.48611 | DG695: 7915.496191 | DH695: 13400.473 | DI695: 15112.70873 | DJ695: 6553.813395
DB696: 1.470511447 | DC696: 387.2443053 | DD696: 1962.07584 | DE696: 1263.531981 | DF696: 1573.48611 | DG696: 7915.496191 | DH696: 13400.473 | DI696: 15112.70873 | DJ696: 6553.813395
DJ708: =names!$A$3 -> All industries | DK708: =names!$A$3 -> All industries | DL708: =names!$A$3 -> All industries
DJ709: =names!$A$3 -> All industries | DK709: =names!$A$3 -> All industries | DL709: =names!$A$3 -> All industries
DA723: Emp x qualification for occupation 25 for every industry
DA724: 2012 | DB724: =DB694 -> QCF8 | DC724: =DC694 -> QCF7 | DD724: QCF6 | DE724: QCF5 | DF724: QCF4 | DG724: QCF3 | DH724: QCF2 | DI724: QCF1 | DJ724: No Qual
DA725: =names!$A$3 -> All industries | DB725: 95.08484214 | DC725: 2692.656099 | DD725: 11717.12987 | DE725: 5612.183706 | DF725: 5847.790658 | DG725: 44210.59385 | DH725: 65734.72741 | DI725: 57153.20783 | DJ725: 26353.54512
DB726: 95.08484214 | DC726: 2692.656099 | DD726: 11717.12987 | DE726: 5612.183706 | DF726: 5847.790658 | DG726: 44210.59385 | DH726: 65734.72741 | DI726: 57153.20783 | DJ726: 26353.54512

Sheet Table 7.x.1
A1: Table 7.0.1 | B1: ="Industry Employment, "&B4&" to "&F4&", by Qualification Level" -> Industry Employment, 1992 to 2022, by Qualification Level
B2: All industries
A3: Qualification categories | H3: Change
A4: Employment Levels (000s) | B4: =All!D7 -> 1992 | C4: =All!N7 -> 2002 | D4: =All!X7 -> 2012 | E4: =All!AC7 -> 2017 | F4: =All!AH7 -> 2022 | H4: =D4&" - "&F4 -> 2012 - 2022
A5: =names!D4 -> QCF8 Doctorate | B5: 21730.04405 | C5: 17431.01682 | D5: 29670.0068 | E5: 39411.9764 | F5: 48989.06652 | H5: =F5-D5 -> 19319.05972
A6: =names!D5 -> QCF7 Other higher degree | B6: 84703.54659 | C6: 102316.2512 | D6: 201584.3686 | E6: 265233.9492 | F6: 324449.655 | H6: =F6-D6 -> 122865.2863
A7: =names!D6 -> QCF6 First degree | B7: 191789.7969 | C7: 289354.818 | D7: 482475.7429 | E7: 561638.1969 | F7: 645465.1351 | H7: 162989.3922
A8: =names!D7 -> QCF5 Foundation degree;Nursing;Teaching | B8: 186525.6662 | C8: 166503.8741 | D8: 174435.8729 | E8: 175953.2003 | F8: 181845.2625 | H8: 7409.389576
A9: =names!D8 -> QCF4 HE below degree level | B9: 141815.0101 | C9: 122261.4411 | D9: 152984.6512 | E9: 165740.0787 | F9: 182547.2655 | H9: 29562.61434
A10: =names!D9 -> QCF3 A level & equivalent | B10: 428057.9391 | C10: 530341.7982 | D10: 594274.0369 | E10: 589302.0087 | F10: 574208.1535 | H10: -20065.88334
A11: =names!D10 -> QCF2 GCSE(A-C) & equivalent | B11: 532541.1994 | C11: 565034.372 | D11: 610921.5367 | E11: 600366.8761 | F11: 594411.5876 | H11: -16509.94909
A12: =names!D11 -> QCF1 GCSE(below grade C) & equivalent | B12: 455707.8727 | C12: 504796.1141 | D12: 383367.9987 | E12: 331368.5011 | F12: 288140.6903 | H12: -95227.30845
A13: =names!D12 -> No Qualification | B13: 206055.9249 | C13: 214383.3146 | D13: 110886.7854 | E13: 69838.21262 | F13: 56335.18408 | H13: -54551.60128
A14: Total | B14: =SUM(B5:B13) -> 2248927 | C14: =SUM(C5:C13) -> 2512423 | D14: 2740601 | E14: 2798853 | F14: 2896392 | H14: =SUM(H5:H13) -> 155791
A16: Percentage Shares | B16: =B$4 -> 1992 | C16: =C$4 -> 2002 | D16: =D$4 -> 2012 | E16: =E$4 -> 2017 | F16: =F$4 -> 2022 | H16: % change
A17: =A5 -> QCF8 Doctorate | B17: =B5/B$14*100 -> 0.9662405249 | C17: 0.6937930763 | D17: 1.082609501 | E17: 1.408147423 | F17: 1.691382469 | H17: =IF(D5>0,H5/D5*100,0) -> 65.11309501
A18: =A6 -> QCF7 Other higher degree | B18: 3.766398224 | C18: 4.07241341 | D18: 7.355480372 | E18: 9.476523032 | F18: 11.20185579 | H18: =IF(D6>0,H6/D6*100,0) -> 60.94980833
A19: QCF6 First degree | B19: 8.52805791 | C19: 11.51696263 | D19: 17.60474228 | E19: 20.06672722 | F19: 22.28514424 | H19: 33.78188326
A20: QCF5 Foundation degree;Nursing;Teaching | B20: 8.293984919 | C20: 6.627222966 | D20: 6.364876641 | E20: 6.286618137 | F20: 6.278337409 | H20: 4.247629489
A21: QCF4 HE below degree level | B21: 6.305896548 | C21: 4.866276144 | D21: 5.582157023 | E21: 5.921714312 | F21: 6.302574566 | H21: 19.32390871
A22: QCF3 A level & equivalent | B22: 19.03387434 | C22: 21.10877819 | D22: 21.68407721 | E22: 21.05512539 | F22: 19.82494612 | H22: -3.376537101
A23: QCF2 GCSE(A-C) & equivalent | B23: 23.67979038 | C23: 22.48961946 | D23: 22.29151696 | E23: 21.45046117 | F23: 20.5224841 | H23: -2.702466372
A24: QCF1 GCSE(below grade C) & equivalent | B24: 20.2633466 | C24: 20.09200338 | D24: 13.98846453 | E24: 11.83943927 | F24: 9.948262882 | H24: -24.83966027
A25: No Qualification | B25: 9.162410561 | C25: 8.532930744 | D25: 4.046075491 | E25: 2.495244038 | F25: 1.945012418 | H25: -49.19576404
A26: Total | B26: 100 | C26: 100 | D26: 100 | E26: 100 | F26: 100 | H26: 5.684556052
A27: =CELL("filename",$A$1) -> R:\Research Info\Individual research project info\Working Futures 2012-2022\Working Futures quant projections 2012-2022\04 Reporting and outputs\Final outputs\Workbooks\Files for gov.uk\SW\[AllSWv2.xlsm]Table 7.x.1

Sheet Table 7.x.2
A1: Table 7.2.0 | B1: Occupational Employment, 1990 to 2020, by Qualification Level
B2: All Occupations
A3: Qualification categories | H3: Change
A4: Employment Levels (000s) | B4: =All!D7 -> 1992 | C4: =All!N7 -> 2002 | D4: =All!X7 -> 2012 | E4: =All!AC7 -> 2017 | F4: =All!AH7 -> 2022 | H4: =D4&" - "&F4 -> 2012 - 2022
A5: =names!D4 -> QCF8 Doctorate | B5: 21730.04405 | C5: 17431.01682 | D5: 29670.0068 | E5: 39411.9764 | F5: 48989.06652 | H5: =F5-D5 -> 19319.05972
A6: =names!D5 -> QCF7 Other higher degree | B6: 84703.54659 | C6: 102316.2512 | D6: 201584.3686 | E6: 265233.9492 | F6: 324449.655 | H6: =F6-D6 -> 122865.2863
A7: =names!D6 -> QCF6 First degree | B7: 191789.7969 | C7: 289354.818 | D7: 482475.7429 | E7: 561638.1969 | F7: 645465.1351 | H7: 162989.3922
A8: =names!D7 -> QCF5 Foundation degree;Nursing;Teaching | B8: 186525.6662 | C8: 166503.8741 | D8: 174435.8729 | E8: 175953.2003 | F8: 181845.2625 | H8: 7409.389576
A9: =names!D8 -> QCF4 HE below degree level | B9: 141815.0101 | C9: 122261.4411 | D9: 152984.6512 | E9: 165740.0787 | F9: 182547.2655 | H9: 29562.61434
A10: =names!D9 -> QCF3 A level & equivalent | B10: 428057.9391 | C10: 530341.7982 | D10: 594274.0369 | E10: 589302.0087 | F10: 574208.1535 | H10: -20065.88334
A11: =names!D10 -> QCF2 GCSE(A-C) & equivalent | B11: 532541.1994 | C11: 565034.372 | D11: 610921.5367 | E11: 600366.8761 | F11: 594411.5876 | H11: -16509.94909
A12: =names!D11 -> QCF1 GCSE(below grade C) & equivalent | B12: 455707.8727 | C12: 504796.1141 | D12: 383367.9987 | E12: 331368.5011 | F12: 288140.6903 | H12: -95227.30845
A13: =names!D12 -> No Qualification | B13: 206055.9249 | C13: 214383.3146 | D13: 110886.7854 | E13: 69838.21262 | F13: 56335.18408 | H13: -54551.60128
A14: Total | B14: =SUM(B5:B13) -> 2248927 | C14: =SUM(C5:C13) -> 2512423 | D14: =SUM(D5:D13) -> 2740601 | E14: 2798853 | F14: 2896392 | H14: =SUM(H5:H13) -> 155791
A16: Percentage Shares | B16: =B$4 -> 1992 | C16: =C$4 -> 2002 | D16: =D$4 -> 2012 | E16: =E$4 -> 2017 | F16: =F$4 -> 2022 | H16: % change
A17: =$A$5 -> QCF8 Doctorate | B17: =B5/B$14*100 -> 0.9662405249 | C17: 0.6937930763 | D17: 1.082609501 | E17: 1.408147423 | F17: 1.691382469 | H17: =IF(D5>0,H5/D5*100,0) -> 65.11309501
A18: =$A$6 -> QCF7 Other higher degree | B18: 3.766398224 | C18: 4.07241341 | D18: 7.355480372 | E18: 9.476523032 | F18: 11.20185579 | H18: =IF(D6>0,H6/D6*100,0) -> 60.94980833
A19: =$A$7 -> QCF6 First degree | B19: 8.52805791 | C19: 11.51696263 | D19: 17.60474228 | E19: 20.06672722 | F19: 22.28514424 | H19: 33.78188326
A20: =$A$8 -> QCF5 Foundation degree;Nursing;Teaching | B20: 8.293984919 | C20: 6.627222966 | D20: 6.364876641 | E20: 6.286618137 | F20: 6.278337409 | H20: 4.247629489
A21: =$A$9 -> QCF4 HE below degree level | B21: 6.305896548 | C21: 4.866276144 | D21: 5.582157023 | E21: 5.921714312 | F21: 6.302574566 | H21: 19.32390871
A22: =$A$10 -> QCF3 A level & equivalent | B22: 19.03387434 | C22: 21.10877819 | D22: 21.68407721 | E22: 21.05512539 | F22: 19.82494612 | H22: -3.376537101
A23: =$A$11 -> QCF2 GCSE(A-C) & equivalent | B23: 23.67979038 | C23: 22.48961946 | D23: 22.29151696 | E23: 21.45046117 | F23: 20.5224841 | H23: -2.702466372
A24: =$A$12 -> QCF1 GCSE(below grade C) & equivalent | B24: 20.2633466 | C24: 20.09200338 | D24: 13.98846453 | E24: 11.83943927 | F24: 9.948262882 | H24: -24.83966027
A25: =$A$13 -> No Qualification | B25: 9.162410561 | C25: 8.532930744 | D25: 4.046075491 | E25: 2.495244038 | F25: 1.945012418 | H25: -49.19576404
A26: Total | B26: 100 | C26: 100 | D26: 100 | E26: 100 | F26: 100 | H26: 5.684556052
A27: =CELL("filename",$A$2)&", "&Info!A1 -> R:\Research Info\Individual research project info\Working Futures 2012-2022\Working Futures quant projections 2012-2022\04 Reporting and outputs\Final outputs\Workbooks\Files for gov.uk\SW\[AllSWv2.xlsm]Table 7.x.2, South West
A29: Table 7.2.1 | B29: =$B$1 -> Occupational Employment, 1990 to 2020, by Qualification Level
B30: =names!C4 -> 11 Corporate managers and directors
A31: =$A$3 -> Qualification categories | H31: Change
A32: Employment Levels (000s) | B32: =B$4 -> 1992 | C32: =C$4 -> 2002 | D32: =D$4 -> 2012 | E32: =E$4 -> 2017 | F32: =F$4 -> 2022 | H32: =D32&" - "&F32 -> 2012 - 2022
A33: =$A$5 -> QCF8 Doctorate | B33: 2039.073451 | C33: 1376.642943 | D33: 2096.819902 | E33: 2939.334806 | F33: 3895.157605 | H33: =F33-D33 -> 1798.337703
A34: =$A$6 -> QCF7 Other higher degree | B34: 6991.969828 | C34: 9280.096684 | D34: 17025.54345 | E34: 23295.784 | F34: 30199.50785 | H34: =F34-D34 -> 13173.9644
A35: =$A$7 -> QCF6 First degree | B35: 16978.15505 | C35: 27339.84048 | D35: 48645.65338 | E35: 59027.58679 | F35: 69909.58083 | H35: 21263.92745
A36: =$A$8 -> QCF5 Foundation degree;Nursing;Teaching | B36: 9839.811565 | C36: 10173.17642 | D36: 11110.31065 | E36: 11609.99528 | F36: 12513.3929 | H36: 1403.082243
A37: =$A$9 -> QCF4 HE below degree level | B37: 10893.06966 | C37: 12620.03932 | D37: 15367.68944 | E37: 16557.38757 | F37: 18066.49848 | H37: 2698.809042
A38: =$A$10 -> QCF3 A level & equivalent | B38: 18880.28464 | C38: 30597.2493 | D38: 34714.13735 | E38: 35108.25947 | F38: 34278.47178 | H38: -435.665565
A39: =$A$11 -> QCF2 GCSE(A-C) & equivalent | B39: 18959.60943 | C39: 25289.74692 | D39: 29399.13482 | E39: 30598.3498 | F39: 30867.76544 | H39: 1468.63062
A40: =$A$12 -> QCF1 GCSE(below grade C) & equivalent | B40: 12352.51352 | C40: 20904.81748 | D40: 17773.07976 | E40: 18297.5579 | F40: 17902.19406 | H40: 129.1143028
A41: =$A$13 -> No Qualification | B41: 3796.992627 | C41: 5211.659567 | D41: 2923.667279 | E41: 1900.200016 | F41: 1784.361223 | H41: -1139.306056
A42: Total | B42: =SUM(B33:B41) -> 100731.4798 | C42: =SUM(C33:C41) -> 142793.2691 | D42: =SUM(D33:D41) -> 179056.036 | E42: =SUM(E33:E41) -> 199334.4556 | F42: =SUM(F33:F41) -> 219416.9302 | H42: =SUM(H33:H41) -> 40360.89414
A44: Percentage Shares | B44: =B$4 -> 1992 | C44: =C$4 -> 2002 | D44: =D$4 -> 2012 | E44: =E$4 -> 2017 | F44: =F$4 -> 2022 | H44: % change
A45: =$A$5 -> QCF8 Doctorate | B45: =B33/B$42*100 -> 2.024266352 | C45: 0.9640811167 | D45: 1.171041171 | E45: 1.474574376 | F45: 1.77523111 | H45: =IF(D33>0,H33/D33*100,0) -> 85.76500546
A46: =$A$6 -> QCF7 Other higher degree | B46: 6.94119638 | C46: 6.498973475 | D46: 9.508500147 | E46: 11.68678236 | F46: 13.76352674 | H46: =IF(D34>0,H34/D34*100,0) -> 77.37764402
A47: =$A$7 -> QCF6 First degree | B47: 16.85486512 | C47: 19.14644902 | D47: 27.16783777 | E47: 29.61233501 | F47: 31.86152535 | H47: 43.71187551
A48: =$A$8 -> QCF5 Foundation degree;Nursing;Teaching | B48: 9.768358002 | C48: 7.124408932 | D48: 6.204935002 | E48: 5.824379554 | F48: 5.703020677 | H48: 12.62864997
A49: =$A$9 -> QCF4 HE below degree level | B49: 10.81396768 | C49: 8.837979129 | D49: 8.58261457 | E49: 8.306334957 | F49: 8.233867125 | H49: 17.56157979
A50: =$A$10 -> QCF3 A level & equivalent | B50: 18.74318206 | C50: 21.42765516 | D50: 19.38730362 | E50: 17.61274003 | F50: 15.6225282 | H50: -1.255009049
A51: =$A$11 -> QCF2 GCSE(A-C) & equivalent | B51: 18.82193081 | C51: 17.7107416 | D51: 16.4189577 | E51: 15.35025628 | F51: 14.06808737 | H51: 4.995489253
A52: =$A$12 -> QCF1 GCSE(below grade C) & equivalent | B52: 12.26281352 | C52: 14.63991798 | D52: 9.925987505 | E52: 9.179325192 | F52: 8.158984838 | H52: 0.72645993
A53: =$A$13 -> No Qualification | B53: 3.769420082 | C53: 3.649793579 | D53: 1.63282252 | E53: 0.953272233 | F53: 0.8132285972 | H53: -38.9683896
A54: Total | B54: 100 | C54: 100 | D54: 100 | E54: 100 | F54: 100 | H54: 22.54092911
A55: =$A$27 -> R:\Research Info\Individual research project info\Working Futures 2012-2022\Working Futures quant projections 2012-2022\04 Reporting and outputs\Final outputs\Workbooks\Files for gov.uk\SW\[AllSWv2.xlsm]Table 7.x.2, South West
A57: Table 7.2.2 | B57: =$B$1 -> Occupational Employment, 1990 to 2020, by Qualification Level
B58: =names!C5 -> 12 Other managers and proprietors
A59: =$A$3 -> Qualification categories | H59: Change
A60: Employment Levels (000s) | B60: =B$4 -> 1992 | C60: =C$4 -> 2002 | D60: =D$4 -> 2012 | E60: =E$4 -> 2017 | F60: =F$4 -> 2022 | H60: =D60&" - "&F60 -> 2012 - 2022
A61: =$A$5 -> QCF8 Doctorate | B61: 812.9283048 | C61: 136.3274084 | D61: 847.5234325 | E61: 1191.605837 | F61: 1585.341627 | H61: =F61-D61 -> 737.8181945
A62: =$A$6 -> QCF7 Other higher degree | B62: 2888.18011 | C62: 3194.704031 | D62: 7221.230607 | E62: 9478.730394 | F62: 12182.33217 | H62: =F62-D62 -> 4961.101559
A63: =$A$7 -> QCF6 First degree | B63: 6280.929639 | C63: 9907.255585 | D63: 19879.66596 | E63: 22895.89579 | F63: 26989.07192 | H63: 7109.405961
A64: =$A$8 -> QCF5 Foundation degree;Nursing;Teaching | B64: 6121.293503 | C64: 4979.657488 | D64: 7138.716419 | E64: 7895.034926 | F64: 9276.316048 | H64: 2137.599629
A65: =$A$9 -> QCF4 HE below degree level | B65: 6289.976431 | C65: 5754.433193 | D65: 7278.385388 | E65: 7661.777859 | F65: 8488.160137 | H65: 1209.774749
A66: =$A$10 -> QCF3 A level & equivalent | B66: 19754.45062 | C66: 20578.9454 | D66: 22088.14556 | E66: 19460.5225 | F66: 17304.41149 | H66: -4783.734065
A67: =$A$11 -> QCF2 GCSE(A-C) & equivalent | B67: 21080.41617 | C67: 23385.08227 | D67: 22638.15384 | E67: 21471.98928 | F67: 21690.48869 | H67: -947.6651559
A68: =$A$12 -> QCF1 GCSE(below grade C) & equivalent | B68: 16880.66622 | C68: 19670.63199 | D68: 15297.33177 | E68: 13942.51445 | F68: 12909.30212 | H68: -2388.029647
A69: =$A$13 -> No Qualification | B69: 8441.270934 | C69: 7949.684369 | D69: 3912.489864 | E69: 2379.469925 | F69: 2009.511729 | H69: -1902.978135
A70: Total | B70: =SUM(B61:B69) -> 88550.11194 | C70: =SUM(C61:C69) -> 95556.72173 | D70: =SUM(D61:D69) -> 106301.6428 | E70: =SUM(E61:E69) -> 106377.541 | F70: =SUM(F61:F69) -> 112434.9359 | H70: =SUM(H61:H69) -> 6133.293089
A72: Percentage Shares | B72: =B$4 -> 1992 | C72: =C$4 -> 2002 | D72: =D$4 -> 2012 | E72: =E$4 -> 2017 | F72: =F$4 -> 2022 | H72: % change
A73: =$A$5 -> QCF8 Doctorate | B73: =B61/B$70*100 -> 0.9180432265 | C73: 0.1426664769 | D73: 0.797281594 | E73: 1.120166744 | F73: 1.410008032 | H73: =IF(D61>0,H61/D61*100,0) -> 87.05578703
A74: =$A$6 -> QCF7 Other higher degree | B74: 3.261633494 | C74: 3.343254115 | D74: 6.793150523 | E74: 8.910462028 | F74: 10.8350061 | H74: =IF(D62>0,H62/D62*100,0) -> 68.70160821
A75: =$A$7 -> QCF6 First degree | B75: 7.093079276 | C75: 10.36793164 | D75: 18.70118413 | E75: 21.5232422 | F75: 24.0041689 | H75: 35.76220031
A76: =$A$8 -> QCF5 Foundation degree;Nursing;Teaching | B76: 6.912801541 | C76: 5.211205866 | D76: 6.715527839 | E76: 7.421712191 | F76: 8.250385852 | H76: 29.94375323
A77: =$A$9 -> QCF4 HE below degree level | B77: 7.103295855 | C77: 6.022007755 | D77: 6.846917125 | E77: 7.20243934 | F77: 7.549397406 | H77: 16.62147144
A78: =$A$10 -> QCF3 A level & equivalent | B78: 22.30878108 | C78: 21.53584282 | D78: 20.77874336 | E78: 18.29382624 | F78: 15.39060022 | H78: -21.65747257
A79: =$A$11 -> QCF2 GCSE(A-C) & equivalent | B79: 23.80619935 | C79: 24.47246185 | D79: 21.29614674 | E79: 20.18470166 | F79: 19.29159163 | H79: -4.186141513
A80: =$A$12 -> QCF1 GCSE(below grade C) & equivalent | B80: 19.06340472 | C80: 20.58529388 | D80: 14.39049422 | E80: 13.10663353 | F80: 11.48157556 | H80: -15.61075933
A81: =$A$13 -> No Qualification | B81: 9.532761449 | C81: 8.3193356 | D81: 3.680554467 | E81: 2.236816064 | F81: 1.787266309 | H81: -48.63854479
A82: Total | B82: 100 | C82: 100 | D82: 100 | E82: 100 | F82: 100 | H82: 5.769706774
A83: =$A$27 -> R:\Research Info\Individual research project info\Working Futures 2012-2022\Working Futures quant projections 2012-2022\04 Reporting and outputs\Final outputs\Workbooks\Files for gov.uk\SW\[AllSWv2.xlsm]Table 7.x.2, South West
A85: Table 7.2.3 | B85: =$B$1 -> Occupational Employment, 1990 to 2020, by Qualification Level
B86: =names!C6 -> 21 Science, research, engineering and technology professionals
A87: =$A$3 -> Qualification categories | H87: Change
A88: Employment Levels (000s) | B88: =B$4 -> 1992 | C88: =C$4 -> 2002 | D88: =D$4 -> 2012 | E88: =E$4 -> 2017 | F88: =F$4 -> 2022 | H88: =D88&" - "&F88 -> 2012 - 2022
A89: =$A$5 -> QCF8 Doctorate | B89: 4544.585426 | C89: 3505.079368 | D89: 5647.732729 | E89: 7339.714441 | F89: 9061.891106 | H89: =F89-D89 -> 3414.158377
A90: =$A$6 -> QCF7 Other higher degree | B90: 7404.883084 | C90: 10793.02753 | D90: 21320.28937 | E90: 29948.15774 | F90: 38414.35014 | H90: =F90-D90 -> 17094.06076
A91: =$A$7 -> QCF6 First degree | B91: 25952.38163 | C91: 33454.33535 | D91: 49099.81244 | E91: 55078.17877 | F91: 58741.7228 | H91: 9641.910361
A92: =$A$8 -> QCF5 Foundation degree;Nursing;Teaching | B92: 6686.228747 | C92: 6008.040142 | D92: 6228.805424 | E92: 6147.172883 | F92: 6405.469669 | H92: 176.6642458
A93: =$A$9 -> QCF4 HE below degree level | B93: 14109.31581 | C93: 12752.82988 | D93: 15239.81758 | E93: 15531.28414 | F93: 15271.97665 | H93: 32.15906863
A94: =$A$10 -> QCF3 A level & equivalent | B94: 12562.55484 | C94: 19772.76072 | D94: 20281.55745 | E94: 19470.89629 | F94: 17374.39981 | H94: -2907.157638
A95: =$A$11 -> QCF2 GCSE(A-C) & equivalent | B95: 9398.595104 | C95: 13081.22596 | D95: 14971.49348 | E95: 15530.68485 | F95: 15211.73153 | H95: 240.2380466
A96: =$A$12 -> QCF1 GCSE(below grade C) & equivalent | B96: 5458.673297 | C96: 8877.175107 | D96: 7940.584725 | E96: 8185.850747 | F96: 7704.99866 | H96: -235.586065
A97: =$A$13 -> No Qualification | B97: 959.061464 | C97: 1358.253478 | D97: 1171.517872 | E97: 982.5513411 | F97: 1012.460014 | H97: -159.0578578
A98: Total | B98: =SUM(B89:B97) -> 87076.27941 | C98: =SUM(C89:C97) -> 109602.7275 | D98: =SUM(D89:D97) -> 141901.6111 | E98: =SUM(E89:E97) -> 158214.4912 | F98: =SUM(F89:F97) -> 169199.0004 | H98: =SUM(H89:H97) -> 27297.3893
A100: Percentage Shares | B100: =B$4 -> 1992 | C100: =C$4 -> 2002 | D100: =D$4 -> 2012 | E100: =E$4 -> 2017 | F100: =F$4 -> 2022 | H100: % change
A101: =$A$5 -> QCF8 Doctorate | B101: =B89/B$98*100 -> 5.219085446 | C101: 3.197985531 | D101: 3.980034255 | E101: 4.639091138 | F101: 5.355759246 | H101: =IF(D89>0,H89/D89*100,0) -> 60.45184042
A102: =$A$6 -> QCF7 Other higher degree | B102: 8.503903858 | C102: 9.84740779 | D102: 15.0246986 | E102: 18.92883358 | F102: 22.70365076 | H102: =IF(D90>0,H90/D90*100,0) -> 80.17743317
A103: =$A$7 -> QCF6 First degree | B103: 29.80419215 | C103: 30.52326899 | D103: 34.60130725 | E103: 34.81234769 | F103: 34.71753537 | H103: 19.63736699
A104: =$A$8 -> QCF5 Foundation degree;Nursing;Teaching | B104: 7.678588007 | C104: 5.481652034 | D104: 4.389524105 | E104: 3.885341246 | F104: 3.785760942 | H104: 2.836246017
A105: =$A$9 -> QCF4 HE below degree level | B105: 16.20339765 | C105: 11.63550412 | D105: 10.73970723 | E105: 9.816600252 | F105: 9.026044251 | H105: 0.2110200366
A106: =$A$10 -> QCF3 A level & equivalent | B106: 14.42706892 | C106: 18.04039111 | D106: 14.29269005 | E106: 12.30664533 | F106: 10.26861847 | H106: -14.33399602
A107: =$A$11 -> QCF2 GCSE(A-C) & equivalent | B107: 10.79351939 | C107: 11.93512812 | D107: 10.55061558 | E107: 9.816221467 | F107: 8.990438179 | H107: 1.604636484
A108: =$A$12 -> QCF1 GCSE(below grade C) & equivalent | B108: 6.268840762 | C108: 8.099410761 | D108: 5.595838317 | E108: 5.17389443 | F108: 4.553808618 | H108: -2.966860415
A109: =$A$13 -> No Qualification | B109: 1.101403816 | C109: 1.239251531 | D109: 0.825584617 | E109: 0.6210248718 | F109: 0.5983841585 | H109: -13.5770748
A110: Total | B110: 100 | C110: 100 | D110: 100 | E110: 100 | F110: 100 | H110: 19.23684241
A111: =$A$27 -> R:\Research Info\Individual research project info\Working Futures 2012-2022\Working Futures quant projections 2012-2022\04 Reporting and outputs\Final outputs\Workbooks\Files for gov.uk\SW\[AllSWv2.xlsm]Table 7.x.2, South West
A113: Table 7.2.4 | B113: =$B$1 -> Occupational Employment, 1990 to 2020, by Qualification Level
B114: =names!C7 -> 22 Health professionals
A115: =$A$3 -> Qualification categories | H115: Change
A116: Employment Levels (000s) | B116: =B$4 -> 1992 | C116: =C$4 -> 2002 | D116: =D$4 -> 2012 | E116: =E$4 -> 2017 | F116: =F$4 -> 2022 | H116: =D116&" - "&F116 -> 2012 - 2022
A117: =$A$5 -> QCF8 Doctorate | B117: 1262.172053 | C117: 2225.7401 | D117: 5328.141429 | E117: 7438.101777 | F117: 9659.216838 | H117: =F117-D117 -> 4331.075409
A118: =$A$6 -> QCF7 Other higher degree | B118: 6608.168274 | C118: 9036.642323 | D118: 15969.37991 | E118: 21224.63924 | F118: 26309.44795 | H118: =F118-D118 -> 10340.06805
A119: =$A$7 -> QCF6 First degree | B119: 11477.9437 | C119: 24670.91803 | D119: 39108.26524 | E119: 48684.74624 | F119: 60108.50125 | H119: 21000.23601
A120: =$A$8 -> QCF5 Foundation degree;Nursing;Teaching | B120: 43562.99475 | C120: 36615.31494 | D120: 27912.20096 | E120: 22341.28593 | F120: 15207.47692 | H120: -12704.72404
A121: =$A$9 -> QCF4 HE below degree level | B121: 2375.379059 | C121: 2377.720223 | D121: 3001.057021 | E121: 3421.521807 | F121: 3871.924835 | H121: 870.867814
A122: =$A$10 -> QCF3 A level & equivalent | B122: 2655.982023 | C122: 5372.900992 | D122: 9830.024225 | E122: 12732.60938 | F122: 15227.63491 | H122: 5397.610689
A123: =$A$11 -> QCF2 GCSE(A-C) & equivalent | B123: 3874.865092 | C123: 4963.799167 | D123: 8188.974048 | E123: 9857.166771 | F123: 11319.33713 | H123: 3130.36308
A124: =$A$12 -> QCF1 GCSE(below grade C) & equivalent | B124: 2899.492043 | C124: 5155.045259 | D124: 4381.27132 | E124: 4223.477314 | F124: 3618.248252 | H124: -763.0230684
A125: =$A$13 -> No Qualification | B125: 386.012795 | C125: 477.4204217 | D125: 378.9073125 | E125: 410.7232055 | F125: 508.8532705 | H125: 129.945958
A126: Total | B126: =SUM(B117:B125) -> 75103.0098 | C126: =SUM(C117:C125) -> 90895.50145 | D126: =SUM(D117:D125) -> 114098.2215 | E126: =SUM(E117:E125) -> 130334.2717 | F126: =SUM(F117:F125) -> 145830.6414 | H126: =SUM(H117:H125) -> 31732.4199
A128: Percentage Shares | B128: =B$4 -> 1992 | C128: =C$4 -> 2002 | D128: =D$4 -> 2012 | E128: =E$4 -> 2017 | F128: =F$4 -> 2022 | H128: % change
A129: =$A$5 -> QCF8 Doctorate | B129: =B117/B$126*100 -> 1.680587843 | C129: 2.448680148 | D129: 4.669784822 | E129: 5.706942374 | F129: 6.623585241 | H129: =IF(D117>0,H117/D117*100,0) -> 81.28679517
A130: =$A$6 -> QCF7 Other higher degree | B130: 8.798806189 | C130: 9.941792694 | D130: 13.996169 | E130: 16.2847722 | F130: 18.04109734 | H130: =IF(D118>0,H118/D118*100,0) -> 64.74933974
A131: =$A$7 -> QCF6 First degree | B131: 15.28293438 | C131: 27.14206713 | D131: 34.27596394 | E131: 37.35375632 | F131: 41.21801885 | H131: 53.69769249
A132: =$A$8 -> QCF5 Foundation degree;Nursing;Teaching | B132: 58.00432615 | C132: 40.28286808 | D132: 24.46330942 | E132: 17.1415282 | F132: 10.42817667 | H132: -45.51674037
A133: =$A$9 -> QCF4 HE below degree level | B133: 3.162828049 | C133: 2.615883278 | D133: 2.630239966 | E133: 2.625189648 | F133: 2.655083183 | H133: 29.01870267
A134: =$A$10 -> QCF3 A level & equivalent | B134: 3.536452175 | C134: 5.911074703 | D134: 8.615405305 | E134: 9.769195175 | F134: 10.44199955 | H134: 54.90943426
A135: =$A$11 -> QCF2 GCSE(A-C) & equivalent | B135: 5.159400538 | C135: 5.460995416 | D135: 7.177126814 | E135: 7.562989109 | F135: 7.761974453 | H135: 38.22656003
A136: =$A$12 -> QCF1 GCSE(below grade C) & equivalent | B136: 3.860686877 | C136: 5.671397568 | D136: 3.83991202 | E136: 3.240496349 | F136: 2.481130315 | H136: -17.41556303
A137: =$A$13 -> No Qualification | B137: 0.5139777967 | C137: 0.525240979 | D137: 0.3320887106 | E137: 0.3151306255 | F137: 0.348934398 | H137: 34.29491956
A138: Total | B138: 100 | C138: 100 | D138: 100 | E138: 100 | F138: 100 | H138: 27.81149389
A139: =$A$27 -> R:\Research Info\Individual research project info\Working Futures 2012-2022\Working Futures quant projections 2012-2022\04 Reporting and outputs\Final outputs\Workbooks\Files for gov.uk\SW\[AllSWv2.xlsm]Table 7.x.2, South West
A141: Table 7.2.5 | B141: =$B$1 -> Occupational Employment, 1990 to 2020, by Qualification Level
B142: =names!C8 -> 23 Teaching and educational professionals
A143: =$A$3 -> Qualification categories | H143: Change
A144: Employment Levels (000s) | B144: =B$4 -> 1992 | C144: =C$4 -> 2002 | D144: =D$4 -> 2012 | E144: =E$4 -> 2017 | F144: =F$4 -> 2022 | H144: =D144&" - "&F144 -> 2012 - 2022
A145: =$A$5 -> QCF8 Doctorate | B145: 4244.435163 | C145: 5986.494067 | D145: 9200.440732 | E145: 11505.38918 | F145: 13178.46512 | H145: =F145-D145 -> 3978.024393
A146: =$A$6 -> QCF7 Other higher degree | B146: 19959.84846 | C146: 28922.79568 | D146: 51380.10872 | E146: 63706.15702 | F146: 71678.08293 | H146: =F146-D146 -> 20297.97421
A147: =$A$7 -> QCF6 First degree | B147: 26730.45211 | C147: 33800.87574 | D147: 44250.57188 | E147: 44223.09271 | F147: 42611.56326 | H147: -1639.008615
A148: =$A$8 -> QCF5 Foundation degree;Nursing;Teaching | B148: 19786.83577 | C148: 19662.66348 | D148: 12113.24267 | E148: 7279.746401 | F148: 3932.729347 | H148: -8180.513327
A149: =$A$9 -> QCF4 HE below degree level | B149: 2727.420177 | C149: 2318.421348 | D149: 2402.875095 | E149: 2336.93486 | F149: 2379.897381 | H149: -22.97771318
A150: =$A$10 -> QCF3 A level & equivalent | B150: 2747.259303 | C150: 3894.343741 | D150: 6055.190682 | E150: 5942.837829 | F150: 5514.41077 | H150: -540.7799116
A151: =$A$11 -> QCF2 GCSE(A-C) & equivalent | B151: 3157.679829 | C151: 4514.243499 | D151: 5006.973651 | E151: 5259.098336 | F151: 5381.604519 | H151: 374.6308689
A152: =$A$12 -> QCF1 GCSE(below grade C) & equivalent | B152: 1850.663469 | C152: 3557.262235 | D152: 3340.711478 | E152: 3332.484312 | F152: 3113.04731 | H152: -227.6641684
A153: =$A$13 -> No Qualification | B153: 318.607923 | C153: 423.6708469 | D153: 469.9511195 | E153: 467.3572164 | F153: 512.0537879 | H153: 42.10266847
A154: Total | B154: =SUM(B145:B153) -> 81523.20221 | C154: =SUM(C145:C153) -> 103080.7706 | D154: =SUM(D145:D153) -> 134220.066 | E154: =SUM(E145:E153) -> 144053.0979 | F154: =SUM(F145:F153) -> 148301.8544 | H154: =SUM(H145:H153) -> 14081.7884
A156: Percentage Shares | B156: =B$4 -> 1992 | C156: =C$4 -> 2002 | D156: =D$4 -> 2012 | E156: =E$4 -> 2017 | F156: =F$4 -> 2022 | H156: % change
A157: =$A$5 -> QCF8 Doctorate | B157: =B145/B$154*100 -> 5.206413693 | C157: 5.807575972 | D157: 6.854743113 | E157: 7.986908541 | F157: 8.886244326 | H157: =IF(D145>0,H145/D145*100,0) -> 43.23732426
A158: =$A$6 -> QCF7 Other higher degree | B158: 24.48364137 | C158: 28.05838131 | D158: 38.28049728 | E158: 44.22407984 | F158: 48.3325601 | H158: =IF(D146>0,H146/D146*100,0) -> 39.50551043
A159: =$A$7 -> QCF6 First degree | B159: 32.78876613 | C159: 32.7906704 | D159: 32.96867092 | E159: 30.69916119 | F159: 28.73299422 | H159: -3.703926401
A160: =$A$8 -> QCF5 Foundation degree;Nursing;Teaching | B160: 24.27141628 | C160: 19.07500629 | D160: 9.024911873 | E160: 5.053516036 | F160: 2.651840978 | H160: -67.53363692
A161: =$A$9 -> QCF4 HE below degree level | B161: 3.345575373 | C161: 2.249130787 | D161: 1.79025027 | E161: 1.622273241 | F161: 1.60476576 | H161: -0.9562591592
A162: =$A$10 -> QCF3 A level & equivalent | B162: 3.369910932 | C162: 3.777953654 | D162: 4.511390034 | E162: 4.125449517 | F162: 3.718369397 | H162: -8.930848589
A163: =$A$11 -> QCF2 GCSE(A-C) & equivalent | B163: 3.873351075 | C163: 4.379326495 | D163: 3.73042109 | E163: 3.650805442 | F163: 3.628818089 | H163: 7.482181754
A164: =$A$12 -> QCF1 GCSE(below grade C) & equivalent | B164: 2.270106447 | C164: 3.450946489 | D164: 2.488980655 | E164: 2.313372195 | F164: 2.099129051 | H164: -6.814840786
A165: =$A$13 -> No Qualification | B165: 0.3908187049 | C165: 0.4110086142 | D165: 0.35013477 | E165: 0.3244339923 | F165: 0.3452780748 | H165: 8.958946308
A166: Total | B166: 100 | C166: 100 | D166: 100 | E166: 100 | F166: 100 | H166: 10.49156719
A167: =$A$27 -> R:\Research Info\Individual research project info\Working Futures 2012-2022\Working Futures quant projections 2012-2022\04 Reporting and outputs\Final outputs\Workbooks\Files for gov.uk\SW\[AllSWv2.xlsm]Table 7.x.2, South West
A169: Table 7.2.6 | B169: =$B$1 -> Occupational Employment, 1990 to 2020, by Qualification Level
B170: =names!C9 -> 24 Business, media and public service professionals
A171: =$A$3 -> Qualification categories | H171: Change
A172: Employment Levels (000s) | B172: =B$4 -> 1992 | C172: =C$4 -> 2002 | D172: =D$4 -> 2012 | E172: =E$4 -> 2017 | F172: =F$4 -> 2022 | H172: =D172&" - "&F172 -> 2012 - 2022
A173: =$A$5 -> QCF8 Doctorate | B173: 933.9918698 | C173: 888.221162 | D173: 1698.555596 | E173: 2337.580881 | F173: 3001.812892 | H173: =F173-D173 -> 1303.257296
A174: =$A$6 -> QCF7 Other higher degree | B174: 7480.241936 | C174: 11425.91539 | D174: 24497.87398 | E174: 32212.00283 | F174: 39233.39647 | H174: =F174-D174 -> 14735.52248
A175: =$A$7 -> QCF6 First degree | B175: 21703.72411 | C175: 30571.88641 | D175: 51724.49368 | E175: 57860.87251 | F175: 63968.7392 | H175: 12244.24552
A176: =$A$8 -> QCF5 Foundation degree;Nursing;Teaching | B176: 22895.80757 | C176: 15620.381 | D176: 7079.344751 | E176: 4711.972735 | F176: 3955.543548 | H176: -3123.801203
A177: =$A$9 -> QCF4 HE below degree level | B177: 5270.248323 | C177: 5891.096195 | D177: 8425.97815 | E177: 8895.061433 | F177: 9710.214016 | H177: 1284.235867
A178: =$A$10 -> QCF3 A level & equivalent | B178: 7485.221783 | C178: 12979.73172 | D178: 16627.0559 | E178: 17396.12811 | F178: 17696.03017 | H178: 1068.974275
A179: =$A$11 -> QCF2 GCSE(A-C) & equivalent | B179: 7762.52112 | C179: 10678.44377 | D179: 11964.48277 | E179: 11590.01415 | F179: 11226.54292 | H179: -737.9398521
A180: =$A$12 -> QCF1 GCSE(below grade C) & equivalent | B180: 4735.105029 | C180: 7525.339822 | D180: 6458.888372 | E180: 6079.927052 | F180: 5510.509063 | H180: -948.3793092
A181: =$A$13 -> No Qualification | B181: 980.5321619 | C181: 1406.01769 | D181: 1031.024384 | E181: 847.4955702 | F181: 873.4708154 | H181: -157.5535682
A182: Total | B182: =SUM(B173:B181) -> 79247.3939 | C182: =SUM(C173:C181) -> 96987.03315 | D182: =SUM(D173:D181) -> 129507.6976 | E182: =SUM(E173:E181) -> 141931.0553 | F182: =SUM(F173:F181) -> 155176.2591 | H182: =SUM(H173:H181) -> 25668.56151
A184: Percentage Shares | B184: =B$4 -> 1992 | C184: =C$4 -> 2002 | D184: =D$4 -> 2012 | E184: =E$4 -> 2017 | F184: =F$4 -> 2022 | H184: % change
A185: =$A$5 -> QCF8 Doctorate | B185: =B173/B$182*100 -> 1.178577394 | C185: 0.9158143446 | D185: 1.311547983 | E185: 1.646983372 | F185: 1.934453704 | H185: =IF(D173>0,H173/D173*100,0) -> 76.72738528
A186: =$A$6 -> QCF7 Other higher degree | B186: 9.439101487 | C186: 11.78086907 | D186: 18.91615282 | E186: 22.69552831 | F186: 25.28311785 | H186: =IF(D174>0,H174/D174*100,0) -> 60.15020934
A187: =$A$7 -> QCF6 First degree | B187: 27.38730328 | C187: 31.52162244 | D187: 39.93931994 | E187: 40.76688671 | F187: 41.22327705 | H187: 23.67204519
A188: =$A$8 -> QCF5 Foundation degree;Nursing;Teaching | B188: 28.891559 | C188: 16.10563855 | D188: 5.466350559 | E188: 3.319902558 | F188: 2.549064896 | H188: -44.12556971
A189: =$A$9 -> QCF4 HE below degree level | B189: 6.650374307 | C189: 6.074107026 | D189: 6.506160102 | E189: 6.267170645 | F189: 6.25753841 | H189: 15.24138615
A190: =$A$10 -> QCF3 A level & equivalent | B190: 9.445385412 | C190: 13.38295574 | D190: 12.83866226 | E190: 12.25674541 | F190: 11.40382574 | H190: 6.429125406
A191: =$A$11 -> QCF2 GCSE(A-C) & equivalent | B191: 9.795301445 | C191: 11.01017674 | D191: 9.238433694 | E191: 8.16594658 | F191: 7.234703931 | H191: -6.167753896
A192: =$A$12 -> QCF1 GCSE(below grade C) & equivalent | B192: 5.975092423 | C192: 7.759119521 | D192: 4.987262142 | E192: 4.283718627 | F192: 3.551128952 | H192: -14.68332095
A193: =$A$13 -> No Qualification | B193: 1.237305246 | C193: 1.449696567 | D193: 0.7961105038 | E193: 0.5971177827 | F193: 0.5628894656 | H193: -15.28126499
A194: Total | B194: 100 | C194: 100 | D194: 100 | E194: 100 | F194: 100 | H194: 19.8201049
A195: =$A$27 -> R:\Research Info\Individual research project info\Working Futures 2012-2022\Working Futures quant projections 2012-2022\04 Reporting and outputs\Final outputs\Workbooks\Files for gov.uk\SW\[AllSWv2.xlsm]Table 7.x.2, South West
A197: Table 7.2.7 | B197: =$B$1 -> Occupational Employment, 1990 to 2020, by Qualification Level
B198: =names!C10 -> 31 Science, engineering and technology associate professionals
A199: =$A$3 -> Qualification categories | H199: Change
A200: Employment Levels (000s) | B200: =B$4 -> 1992 | C200: =C$4 -> 2002 | D200: =D$4 -> 2012 | E200: =E$4 -> 2017 | F200: =F$4 -> 2022 | H200: =D200&" - "&F200 -> 2012 - 2022
A201: =$A$5 -> QCF8 Doctorate | B201: 577.8910369 | C201: 249.5431078 | D201: 583.3145252 | E201: 813.4167589 | F201: 1031.09576 | H201: =F201-D201 -> 447.7812347
A202: =$A$6 -> QCF7 Other higher degree | B202: 2255.76536 | C202: 2196.176623 | D202: 3556.294668 | E202: 4851.915558 | F202: 6068.005092 | H202: =F202-D202 -> 2511.710423
A203: =$A$7 -> QCF6 First degree | B203: 5421.996414 | C203: 6675.509488 | D203: 10409.09572 | E203: 11852.93565 | F203: 12745.64322 | H203: 2336.547498
A204: =$A$8 -> QCF5 Foundation degree;Nursing;Teaching | B204: 1906.795939 | C204: 1509.146982 | D204: 2042.23098 | E204: 2317.100671 | F204: 2639.058303 | H204: 596.8273226
A205: =$A$9 -> QCF4 HE below degree level | B205: 10129.766 | C205: 7866.464831 | D205: 5918.00092 | E205: 5432.725828 | F205: 5254.367841 | H205: -663.6330797
A206: =$A$10 -> QCF3 A level & equivalent | B206: 8573.80751 | C206: 12330.54383 | D206: 9084.915399 | E206: 8182.044075 | F206: 7071.739137 | H206: -2013.176262
A207: =$A$11 -> QCF2 GCSE(A-C) & equivalent | B207: 6610.887013 | C207: 6294.224307 | D207: 6537.42525 | E207: 6416.942807 | F207: 6283.870692 | H207: -253.5545579
A208: =$A$12 -> QCF1 GCSE(below grade C) & equivalent | B208: 3176.184102 | C208: 4813.995204 | D208: 4291.982071 | E208: 4646.09788 | F208: 4526.417069 | H208: 234.4349983
A209: =$A$13 -> No Qualification | B209: 1090.124307 | C209: 1445.454246 | D209: 666.2011098 | E209: 631.0839481 | F209: 693.6133326 | H209: 27.41222279
A210: Total | B210: =SUM(B201:B209) -> 39743.21768 | C210: =SUM(C201:C209) -> 43381.05861 | D210: =SUM(D201:D209) -> 43089.46065 | E210: =SUM(E201:E209) -> 45144.26317 | F210: =SUM(F201:F209) -> 46313.81045 | H210: =SUM(H201:H209) -> 3224.349801
A212: Percentage Shares | B212: =B$4 -> 1992 | C212: =C$4 -> 2002 | D212: =D$4 -> 2012 | E212: =E$4 -> 2017 | F212: =F$4 -> 2022 | H212: % change
A213: =$A$5 -> QCF8 Doctorate | B213: =B201/B$210*100 -> 1.454062028 | C213: 0.5752351736 | D213: 1.353729001 | E213: 1.801816447 | F213: 2.22632461 | H213: =IF(D201>0,H201/D201*100,0) -> 76.76497248
A214: =$A$6 -> QCF7 Other higher degree | B214: 5.675849846 | C214: 5.062524275 | D214: 8.253281928 | E214: 10.74757947 | F214: 13.10193446 | H214: =IF(D202>0,H202/D202*100,0) -> 70.627174
A215: =$A$7 -> QCF6 First degree | B215: 13.6425703 | C215: 15.3880742 | D215: 24.15694132 | E215: 26.25568525 | F215: 27.52017832 | H215: 22.44717083
... 475 more rows

Sheet Figure 7.2
AA4: ="Qualification structure, "&AC5&" - "&BG5&", "&CHAR(13)&"All industries" -> Qualification structure, 1992 - 2022, All industries
AA5: 1990 | AB5: 1991 | AC5: 1992 | AD5: 1993 | AE5: 1994 | AF5: 1995 | AG5: 1996 | AH5: 1997 | AI5: 1998 | AJ5: 1999 | AK5: 2000 | AL5: 2001 | AM5: 2002 | AN5: 2003 | AO5: 2004 | AP5: 2005 | AQ5: 2006 | AR5: 2007 | AS5: 2008 | AT5: 2009 | AU5: 2010 | AV5: 2011 | AW5: 2012 | AX5: 2013 | AY5: 2014 | AZ5: 2015 | BA5: 2016 | BB5: 2017 | BC5: 2018 | BD5: 2019 | BE5: 2020 | BF5: 2021 | BG5: 2022
Z6: =LEFT(names!$D4,4) -> QCF8 | AA6: 25264.5791 | AB6: 23815.10395 | AC6: 21730.04405 | AD6: 20632.77935 | AE6: 19935.75012 | AF6: 19672.47041 | AG6: 19199.64394 | AH6: 19375.52399 | AI6: 18459.16041 | AJ6: 17767.7873 | AK6: 16974.98071 | AL6: 17108.11024 | AM6: 17431.01682 | AN6: 18009.13785 | AO6: 20054.5446 | AP6: 19167.36891 | AQ6: 24247.97824 | AR6: 22618.75077 | AS6: 24155.85425 | AT6: 26914.41333 | AU6: 27587.79854 | AV6: 27134.27753 | AW6: 29670.0068 | AX6: 32109.43956 | AY6: 33954.16434 | AZ6: 35839.09343 | BA6: 37594.77717 | BB6: 39411.9764 | BC6: 41296.42207 | BD6: 43161.50171 | BE6: 45015.55406 | BF6: 47056.00196 | BG6: 48989.06652
Z7: =LEFT(names!$D5,4) -> QCF7 | AA7: 86179.35076 | AB7: 86233.44798 | AC7: 84703.54659 | AD7: 85402.00772 | AE7: 85980.3371 | AF7: 88900.74889 | AG7: 89430.29436 | AH7: 93362.66688 | AI7: 93827.92467 | AJ7: 95927.99625 | AK7: 96118.40457 | AL7: 99179.94423 | AM7: 102316.2512 | AN7: 115606.6048 | AO7: 121695.1655 | AP7: 137156.0029 | AQ7: 150098.4955 | AR7: 161749.732 | AS7: 159099.9952 | AT7: 176019.1818 | AU7: 195583.3816 | AV7: 182810.9271 | AW7: 201584.3686 | AX7: 216886.8639 | AY7: 229137.3805 | AZ7: 241451.7715 | BA7: 253328.9929 | BB7: 265233.9492 | BC7: 277211.8292 | BD7: 289073.693 | BE7: 300663.3807 | BF7: 312955.8787 | BG7: 324449.655
Z8: =LEFT(names!$D6,4) -> QCF6 | AA8: 193911.811 | AB8: 194995.2794 | AC8: 191789.7969 | AD8: 195366.3345 | AE8: 202861.2776 | AF8: 215275.7741 | AG8: 220338.1508 | AH8: 235414.4851 | AI8: 242948.9903 | AJ8: 254198.2051 | AK8: 261468.3947 | AL8: 284624.8555 | AM8: 289354.818 | AN8: 301889.4781 | AO8: 320425.2372 | AP8: 324126.5744 | AQ8: 348765.4355 | AR8: 366493.6152 | AS8: 375483.147 | AT8: 408615.1832 | AU8: 432432.7296 | AV8: 454397.6046 | AW8: 482475.7429 | AX8: 491367.0518 | AY8: 510286.5246 | AZ8: 528460.936 | BA8: 545111.0449 | BB8: 561638.1969 | BC8: 578266.6727 | BD8: 594397.7917 | BE8: 611661.3407 | BF8: 628285.1671 | BG8: 645465.1351
Z9: =LEFT(names!$D7,4) -> QCF5 | AA9: 192737.0193 | AB9: 191922.499 | AC9: 186525.6662 | AD9: 185105.8025 | AE9: 181507.8753 | AF9: 181191.9963 | AG9: 176860.1525 | AH9: 176302.4457 | AI9: 170271.7244 | AJ9: 167543.7139 | AK9: 164514.98 | AL9: 156436.0029 | AM9: 166503.8741 | AN9: 174418.9279 | AO9: 161719.0743 | AP9: 157066.9179 | AQ9: 173747.5969 | AR9: 161731.9205 | AS9: 154707.235 | AT9: 160980.3289 | AU9: 170619.6344 | AV9: 165622.7772 | AW9: 174435.8729 | AX9: 172077.2258 | AY9: 173065.0502 | AZ9: 173921.5253 | BA9: 174807.5683 | BB9: 175953.2003 | BC9: 177249.8098 | BD9: 178221.8977 | BE9: 179397.1892 | BF9: 180327.2277 | BG9: 181845.2625
Z10: =LEFT(names!$D8,4) -> QCF4 | AA10: 157078.0345 | AB10: 150631.9977 | AC10: 141815.0101 | AD10: 137178.8068 | AE10: 132902.1375 | AF10: 134228.5112 | AG10: 131671.3009 | AH10: 135088.3166 | AI10: 129966.5957 | AJ10: 128701.5627 | AK10: 124037.6118 | AL10: 121779.177 | AM10: 122261.4411 | AN10: 128753.4751 | AO10: 123652.2307 | AP10: 124850.6608 | AQ10: 127788.939 | AR10: 131653.7884 | AS10: 125940.9007 | AT10: 137281.7817 | AU10: 143879.8159 | AV10: 146152.2675 | AW10: 152984.6512 | AX10: 151468.0097 | AY10: 155076.9281 | AZ10: 158688.2306 | BA10: 162288.0393 | BB10: 165740.0787 | BC10: 169103.1063 | BD10: 172400.4572 | BE10: 176063.871 | BF10: 179152.107 | BG10: 182547.2655
Z11: =LEFT(names!$D9,4) -> QCF3 | AA11: 448538.8704 | AB11: 443416.0229 | AC11: 428057.9391 | AD11: 424885.3144 | AE11: 423926.4747 | AF11: 433004.4606 | AG11: 435563.3734 | AH11: 451720.0515 | AI11: 450345.061 | AJ11: 457798.8215 | AK11: 456761.8817 | AL11: 468438.6975 | AM11: 530341.7982 | AN11: 509776.9727 | AO11: 531644.4355 | AP11: 530211.613 | AQ11: 516305.2159 | AR11: 580753.5089 | AS11: 591434.7836 | AT11: 553327.1552 | AU11: 572627.1195 | AV11: 580656.6379 | AW11: 594274.0369 | AX11: 594195.701 | AY11: 593235.4827 | AZ11: 591655.7759 | BA11: 590252.7788 | BB11: 589302.0087 | BC11: 588996.7043 | BD11: 587868.4792 | BE11: 585203.7146 | BF11: 580213.9362 | BG11: 574208.1535
Z12: =LEFT(names!$D10,4) -> QCF2 | AA12: 553934.6691 | AB12: 549218.2369 | AC12: 532541.1994 | AD12: 530817.0818 | AE12: 530570.8907 | AF12: 542095.5769 | AG12: 543540.8709 | AH12: 560612.1114 | AI12: 556825.0446 | AJ12: 565271.3363 | AK12: 565963.9169 | AL12: 578491.3966 | AM12: 565034.372 | AN12: 538249.6108 | AO12: 572887.932 | AP12: 608083.3518 | AQ12: 636725.517 | AR12: 594916.0014 | AS12: 591359.674 | AT12: 599872.3865 | AU12: 596703.1995 | AV12: 593463.9126 | AW12: 610921.5367 | AX12: 611410.1271 | AY12: 608365.0212 | AZ12: 604714.1949 | BA12: 601573.1258 | BB12: 600366.8761 | BC12: 600283.2273 | BD12: 600523.9115 | BE12: 599778.4204 | BF12: 598016.4788 | BG12: 594411.5876
Z13: =LEFT(names!$D11,4) -> QCF1 | AA13: 473106.562 | AB13: 469738.8411 | AC13: 455707.8727 | AD13: 454440.358 | AE13: 454161.5319 | AF13: 464454.8085 | AG13: 465526.7053 | AH13: 479939.585 | AI13: 476889.3452 | AJ13: 483814.7635 | AK13: 484632.9371 | AL13: 497084.4905 | AM13: 504796.1141 | AN13: 520652.149 | AO13: 500860.5849 | AP13: 487298.5174 | AQ13: 475106.1599 | AR13: 459142.2342 | AS13: 469349.6347 | AT13: 460654.6869 | AU13: 398396.9567 | AV13: 385733.8857 | AW13: 383367.9987 | AX13: 384396.5677 | AY13: 369889.3496 | AZ13: 355506.1588 | BA13: 342532.1614 | BB13: 331368.5011 | BC13: 321423.5303 | BD13: 312641.5423 | BE13: 304042.7373 | BF13: 295991.6038 | BG13: 288140.6903
Z14: =LEFT(names!$D12,7) -> No Qual | AA14: 213758.1039 | AB14: 212320.5711 | AC14: 206055.9249 | AD14: 205628.5149 | AE14: 205350.7251 | AF14: 209442.653 | AG14: 209939.5079 | AH14: 216618.8136 | AI14: 216003.1539 | AJ14: 218915.8133 | AK14: 219720.8926 | AL14: 224596.3256 | AM14: 214383.3146 | AN14: 205689.6437 | AO14: 213995.7953 | AP14: 193946.9929 | AQ14: 173396.662 | AR14: 164883.4485 | AS14: 160717.7755 | AT14: 145455.8824 | AU14: 126273.3642 | AV14: 118177.7098 | AW14: 110886.7854 | AX14: 101181.0133 | AY14: 90829.0988 | AZ14: 82286.31356 | BA14: 75483.51147 | BB14: 69838.21262 | BC14: 64982.69802 | BD14: 61547.72555 | BE14: 58482.79217 | BF14: 57225.59864 | BG14: 56335.18408

Sheet ShiftShare
A1: =CONCATENATE("Table 4.6 Shift-share by occupation, ",I3) -> Table 4.6 Shift-share by occupation, 2002-2012
K2: Components of change
B3: Base year | C3: =All!N7 -> 2002 | E3: Target year | F3: =All!X7 -> 2012 | H3: Change | I3: =CONCATENATE(C3,"-",F3) -> 2002-2012 | K3: Scale effect | N3: Occupation effect | Q3: Industry mix effect
A4: SOC2010 Sub-Major Groups | B4: 000s | C4: % share | E4: =B4 -> 000s | F4: =C4 -> % share | H4: =E4 -> 000s | I4: % | K4: =H4 -> 000s | L4: =I4 -> % | N4: =K4 -> 000s | O4: =L4 -> % | Q4: =N4 -> 000s | R4: =O4 -> %
A6: =names!C4 -> 11 Corporate managers and directors | B6: 142.793269 | C6: =B6/B$31*100 -> 5.683488367 | E6: 179.056036 | F6: =E6/E$31*100 -> 6.533458751 | H6: =E6-B6 -> 36.262767 | I6: =((E6/B6)-1)*100 -> 25.39529157 | K6: =(($E$31/$B$31)-1)*B6 -> 12.96847014 | L6: =K6/B6*100 -> 9.081989813 | N6: =H6-(K6+Q6) -> 23.29429686 | O6: =N6/B6*100 -> 16.31330175 | Q6: 0 | R6: =Q6/B6*100 -> 0
A7: =names!C5 -> 12 Other managers and proprietors | B7: 95.556722 | C7: =B7/B$31*100 -> 3.803369176 | E7: 106.301643 | F7: =E7/E$31*100 -> 3.878771223 | H7: =E7-B7 -> 10.744921 | I7: =((E7/B7)-1)*100 -> 11.24454751 | K7: =(($E$31/$B$31)-1)*B7 -> 8.678451757 | L7: =K7/B7*100 -> 9.081989813 | N7: =H7-(K7+Q7) -> 2.066469243 | O7: =N7/B7*100 -> 2.162557693 | Q7: 0 | R7: =Q7/B7*100 -> 0
A8: =names!C6 -> 21 Science, research, engineering and technology professionals | B8: 109.602728 | C8: 4.362431325 | E8: 141.901611 | F8: 5.177755204 | H8: 32.298883 | I8: 29.46905026 | K8: 9.954108591 | L8: 9.081989813 | N8: 22.34477441 | O8: 20.38706045 | Q8: 0 | R8: 0
A9: =names!C7 -> 22 Health professionals | B9: 90.895501 | C9: 3.617842257 | E9: 114.098221 | F9: 4.163255465 | H9: 23.20272 | I9: 25.52680798 | K9: 8.255120141 | L9: 9.081989813 | N9: 14.94759986 | O9: 16.44481816 | Q9: 0 | R9: 0
A10: =names!C8 -> 23 Teaching and educational professionals | B10: 103.080771 | C10: 4.102842991 | E10: 134.220066 | F10: 4.897468325 | H10: 31.139295 | I10: 30.2086361 | K10: 9.361785121 | L10: 9.081989813 | N10: 21.77750988 | O10: 21.12664629 | Q10: 0 | R10: 0
A11: =names!C9 -> 24 Business, media and public service professionals | B11: 96.987033 | C11: 3.860298722 | E11: 129.507698 | F11: 4.725521807 | H11: 32.520665 | I11: 33.53094119 | K11: 8.808352457 | L11: 9.081989813 | N11: 23.71231254 | O11: 24.44895138 | Q11: 0 | R11: 0
A12: =names!C10 -> 31 Science, engineering and technology associate professionals | B12: 43.381059 | C12: 1.726662229 | E12: 43.089461 | F12: 1.5722632 | H12: -0.291598 | I12: -0.6721781504 | K12: 3.939863359 | L12: 9.081989813 | N12: -4.231461359 | O12: -9.754167963 | Q12: 0 | R12: 0
A13: =names!C11 -> 32 Health and social care associate professionals | B13: 22.797727 | C13: 0.9074000274 | E13: 29.264719 | F13: 1.067821218 | H13: 6.466992 | I13: 28.36682797 | K13: 2.070487244 | L13: 9.081989813 | N13: 4.396504756 | O13: 19.28483816 | Q13: 0 | R13: 0
A14: =names!C12 -> 33 Protective service occupations | B14: 29.084743 | C14: 1.157637189 | E14: 25.060509 | F14: 0.9144165452 | H14: -4.024234 | I14: -13.8362371 | K14: 2.641473396 | L14: 9.081989813 | N14: -6.665707396 | O14: -22.91822691 | Q14: 0 | R14: 0
A15: =names!C13 -> 34 Culture, media and sports occupations | B15: 36.607935 | C15: 1.457076893 | E15: 49.907987 | F15: 1.821059941 | H15: 13.300052 | I15: 36.3310632 | K15: 3.324728927 | L15: 9.081989813 | N15: 9.975323073 | O15: 27.24907338 | Q15: 0 | R15: 0
A16: =names!C14 -> 35 Business and public service associate professionals | B16: 149.613511 | C16: 5.954949105 | E16: 175.977754 | F16: 6.42113733 | H16: 26.364243 | I16: 17.62156561 | K16: 13.58788383 | L16: 9.081989813 | N16: 12.77635917 | O16: 8.539575796 | Q16: 0 | R16: 0
A17: =names!C15 -> 41 Administrative occupations | B17: 235.585491 | C17: 9.376824321 | E17: 226.204065 | F17: 8.253812388 | H17: -9.381426 | I17: -3.982174777 | K17: 21.39585029 | L17: 9.081989813 | N17: -30.77727629 | O17: -13.06416459 | Q17: 0 | R17: 0
A18: =names!C16 -> 42 Secretarial and related occupations | B18: 92.81703 | C18: 3.694323367 | E18: 79.798191 | F18: 2.911704073 | H18: -13.018839 | I18: -14.02634732 | K18: 8.429633209 | L18: 9.081989813 | N18: -21.44847221 | O18: -23.10833713 | Q18: 0 | R18: 0
A19: =names!C17 -> 51 Skilled agricultural and related trades | B19: 37.887842 | C19: 1.508020026 | E19: 45.091438 | F19: 1.645312031 | H19: 7.203596 | I19: 19.0129488 | K19: 3.440969951 | L19: 9.081989813 | N19: 3.762626049 | O19: 9.930958985 | Q19: 0 | R19: 0
A20: =names!C18 -> 52 Skilled metal, electrical and electronic trades | B20: 137.388538 | C20: 5.468368103 | E20: 129.661952 | F20: 4.731150281 | H20: -7.726586 | I20: -5.623894185 | K20: 12.47761302 | L20: 9.081989813 | N20: -20.20419902 | O20: -14.705884 | Q20: 0 | R20: 0
A21: =names!C19 -> 53 Skilled construction and building trades | B21: 110.344342 | C21: 4.391949204 | E21: 111.730887 | F21: 4.076875361 | H21: 1.386545 | I21: 1.256561936 | K21: 10.0214619 | L21: 9.081989813 | N21: -8.634916899 | O21: -7.825427877 | Q21: 0 | R21: 0
A22: =names!C20 -> 54 Textiles, printing and other skilled trades | B22: 68.867636 | C22: 2.741084442 | E22: 55.940837 | F22: 2.041188665 | H22: -12.926799 | I22: -18.77049911 | K22: 6.254551686 | L22: 9.081989813 | N22: -19.18135069 | O22: -27.85248892 | Q22: 0 | R22: 0
A23: =names!C21 -> 61 Caring personal service occupations | B23: 158.310579 | C23: 6.301111673 | E23: 222.651859 | F23: 8.124198263 | H23: 64.34128 | I23: 40.64243868 | K23: 14.37775066 | L23: 9.081989813 | N23: 49.96352934 | O23: 31.56044887 | Q23: 0 | R23: 0
A24: =names!C22 -> 62 Leisure, travel and related personal service occupations | B24: 49.847176 | C24: 1.984028007 | E24: 54.87854 | F24: 2.002427203 | H24: 5.031364 | I24: 10.09357882 | K24: 4.527115446 | L24: 9.081989813 | N24: 0.5042485538 | O24: 1.011589009 | Q24: 0 | R24: 0
A25: =names!C23 -> 71 Sales occupations | B25: 190.113776 | C25: 7.566949352 | E25: 189.612256 | F25: 6.918637768 | H25: -0.50152 | I25: -0.2637999258 | K25: 17.26611377 | L25: 9.081989813 | N25: -17.76763377 | O25: -9.345789738 | Q25: 0 | R25: 0
A26: =names!C24 -> 72 Customer service occupations | B26: 42.593075 | C26: 1.695298721 | E26: 51.836855 | F26: 1.891441146 | H26: 9.24378 | I26: 21.70254202 | K26: 3.868298732 | L26: 9.081989813 | N26: 5.375481268 | O26: 12.62055221 | Q26: 0 | R26: 0
A27: =names!C25 -> 81 Process, plant and machine operatives | B27: 88.711245 | C27: 3.53090403 | E27: 67.740721 | F27: 2.471746925 | H27: -20.970524 | I27: -23.63908206 | K27: 8.056746234 | L27: 9.081989813 | N27: -29.02727023 | O27: -32.72107187 | Q27: 0 | R27: 0
A28: =names!C26 -> 82 Transport and mobile machine drivers and operatives | B28: 75.997464 | C28: 3.024867388 | E28: 89.152801 | F28: 3.253038328 | H28: 13.155337 | I28: 17.31023156 | K28: 6.902081938 | L28: 9.081989813 | N28: 6.253255062 | O28: 8.22824175 | Q28: 0 | R28: 0
A29: =names!C27 -> 91 Elementary trades and related occupations | B29: 51.599245 | C29: 2.053764234 | E29: 51.064829 | F29: 1.863271194 | H29: -0.534416 | I29: -1.035705077 | K29: 4.686238174 | L29: 9.081989813 | N29: -5.220654174 | O29: -10.11769489 | Q29: 0 | R29: 0
A30: =names!C28 -> 92 Elementary administration and service occupations | B30: 251.958563 | C30: 10.02850885 | E30: 236.850066 | F30: 8.642267365 | H30: -15.108497 | I30: -5.996421324 | K30: 22.88285102 | L30: 9.081989813 | N30: -37.99134802 | O30: =N30/B30*100 -> -15.07841114 | Q30: 0 | R30: 0
A31: =names!C3 -> All occupations | B31: 2512.423001 | C31: =B31/B$31*100 -> 100 | E31: 2740.601002 | F31: =E31/E$31*100 -> 100 | H31: 228.178001 | I31: 9.081989813
A35: =CONCATENATE("Table 4.7 Shift-share by occupation, ",I37) -> Table 4.7 Shift-share by occupation, 2012-2022
K36: =K2 -> Components of change
B37: =B3 -> Base year | C37: =All!X7 -> 2012 | E37: =E3 -> Target year | F37: =All!AH7 -> 2022 | H37: =H3 -> Change | I37: =CONCATENATE(C37,"-",F37) -> 2012-2022 | K37: =K3 -> Scale effect | N37: =N3 -> Occupation effect | Q37: =Q3 -> Industry mix effect
A38: =A4 -> SOC2010 Sub-Major Groups | B38: =B4 -> 000s | C38: =C4 -> % share | E38: =E4 -> 000s | F38: =F4 -> % share | H38: =H4 -> 000s | I38: =I4 -> % | K38: =H38 -> 000s | L38: =I38 -> % | N38: =K38 -> 000s | O38: =L38 -> % | Q38: =N38 -> 000s | R38: =O38 -> %
A40: =A6 -> 11 Corporate managers and directors | B40: 179.056036 | C40: =B40/B$65*100 -> 6.533458751 | E40: 219.41693 | F40: =E40/E$65*100 -> 7.575526031 | H40: =E40-B40 -> 40.360894 | I40: =((E40/B40)-1)*100 -> 22.54092903 | K40: =(($E$65/$B$65)-1)*B40 -> 10.17854066 | L40: =K40/B40*100 -> 5.684556011 | N40: =H40-(K40+Q40) -> 30.18235334 | O40: =N40/B40*100 -> 16.85637302 | Q40: 0 | R40: =Q40/B40*100 -> 0
A41: =A7 -> 12 Other managers and proprietors | B41: 106.301643 | C41: 3.878771223 | E41: 112.434936 | F41: 3.881896372 | H41: 6.133293 | I41: 5.769706683 | K41: 6.042776437 | L41: =K41/B41*100 -> 5.684556011 | N41: =H41-(K41+Q41) -> 0.09051656292 | O41: =N41/B41*100 -> 0.08515067159 | Q41: 0 | R41: =Q41/B41*100 -> 0
A42: 21 Science, research, engineering and technology professionals | B42: 141.901611 | C42: 5.177755204 | E42: 169.199 | F42: 5.841716175 | H42: 27.297389 | I42: 19.23684221 | K42: 8.066476558 | L42: 5.684556011 | N42: 19.23091244 | O42: 13.5522862 | Q42: 0 | R42: 0
A43: 22 Health professionals | B43: 114.098221 | C43: 4.163255465 | E43: 145.830641 | F43: 5.03490691 | H43: 31.73242 | I43: 27.8114941 | K43: 6.48597728 | L43: 5.684556011 | N43: 25.24644272 | O43: 22.12693809 | Q43: 0 | R43: 0
A44: 23 Teaching and educational professionals | B44: 134.220066 | C44: 4.897468325 | E44: 148.301854 | F44: 5.120227302 | H44: 14.081788 | I44: 10.49156689 | K44: 7.62981483 | L44: 5.684556011 | N44: 6.45197317 | O44: 4.807010876 | Q44: 0 | R44: 0
A45: 24 Business, media and public service professionals | B45: 129.507698 | C45: 4.725521807 | E45: 155.176259 | F45: 5.357571038 | H45: 25.668561 | I45: 19.82010444 | K45: 7.361937632 | L45: 5.684556011 | N45: 18.30662337 | O45: 14.13554843 | Q45: 0 | R45: 0
A46: 31 Science, engineering and technology associate professionals | B46: 43.089461 | C46: 1.5722632 | E46: 46.31381 | F46: 1.599017329 | H46: 3.224349 | I46: 7.482917923 | K46: 2.449444545 | L46: 5.684556011 | N46: 0.7749044546 | O46: 1.798361912 | Q46: 0 | R46: 0
A47: 32 Health and social care associate professionals | B47: 29.264719 | C47: 1.067821218 | E47: 38.579318 | F47: 1.331978475 | H47: 9.314599 | I47: 31.82876624 | K47: 1.663569343 | L47: 5.684556011 | N47: 7.651029657 | O47: 26.14421022 | Q47: 0 | R47: 0
A48: 33 Protective service occupations | B48: 25.060509 | C48: 0.9144165452 | E48: 22.308712 | F48: 0.7702241959 | H48: -2.751797 | I48: -10.98061097 | K48: 1.424578671 | L48: 5.684556011 | N48: -4.176375671 | O48: -16.66516698 | Q48: 0 | R48: 0
A49: 34 Culture, media and sports occupations | B49: 49.907987 | C49: 1.821059941 | E49: 57.874818 | F49: 1.998169377 | H49: 7.966831 | I49: 15.96303814 | K49: 2.837047475 | L49: 5.684556011 | N49: 5.129783525 | O49: 10.27848213 | Q49: 0 | R49: 0
A50: 35 Business and public service associate professionals | B50: 175.977754 | C50: 6.42113733 | E50: 204.763921 | F50: 7.069620443 | H50: 28.786167 | I50: 16.3578443 | K50: 10.00355399 | L50: 5.684556011 | N50: 18.78261301 | O50: 10.67328829 | Q50: 0 | R50: 0
A51: 41 Administrative occupations | B51: 226.204065 | C51: 8.253812388 | E51: 210.981223 | F51: 7.284277229 | H51: -15.222842 | I51: -6.72969427 | K51: 12.85869677 | L51: 5.684556011 | N51: -28.08153877 | O51: -12.41425028 | Q51: 0 | R51: 0
A52: 42 Secretarial and related occupations | B52: 79.798191 | C52: 2.911704073 | E52: 51.961817 | F52: 1.794018799 | H52: -27.836374 | I52: -34.88346496 | K52: 4.536172863 | L52: 5.684556011 | N52: -32.37254686 | O52: -40.56802098 | Q52: 0 | R52: 0
A53: 51 Skilled agricultural and related trades | B53: 45.091438 | C53: 1.645312031 | E53: 38.735201 | F53: 1.337360447 | H53: -6.356237 | I53: -14.096328 | K53: 2.563248049 | L53: 5.684556011 | N53: -8.919485049 | O53: -19.78088401 | Q53: 0 | R53: 0
A54: 52 Skilled metal, electrical and electronic trades | B54: 129.661952 | C54: 4.731150281 | E54: 121.211715 | F54: 4.184920928 | H54: -8.450237 | I54: -6.51712925 | K54: 7.370706287 | L54: 5.684556011 | N54: -15.82094329 | O54: -12.20168526 | Q54: 0 | R54: 0
A55: 53 Skilled construction and building trades | B55: 111.730887 | C55: 4.076875361 | E55: 121.785059 | F55: 4.204716038 | H55: 10.054172 | I55: 8.99856098 | K55: 6.351404853 | L55: 5.684556011 | N55: 3.702767147 | O55: 3.314004969 | Q55: 0 | R55: 0
A56: 54 Textiles, printing and other skilled trades | B56: 55.940837 | C56: 2.041188665 | E56: 33.845479 | F56: 1.168539306 | H56: -22.095358 | I56: -39.49772507 | K56: 3.179988212 | L56: 5.684556011 | N56: -25.27534621 | O56: -45.18228108 | Q56: 0 | R56: 0
A57: 61 Caring personal service occupations | B57: 222.651859 | C57: 8.124198263 | E57: 281.568845 | F57: 9.721365233 | H57: 58.916986 | I57: 26.46148398 | K57: 12.65676963 | L57: 5.684556011 | N57: 46.26021637 | O57: 20.77692797 | Q57: 0 | R57: 0
A58: 62 Leisure, travel and related personal service occupations | B58: 54.87854 | C58: 2.002427203 | E58: 60.674687 | F58: 2.094836851 | H58: 5.796147 | I58: 10.56177333 | K58: 3.119601344 | L58: 5.684556011 | N58: 2.676545656 | O58: 4.877217316 | Q58: 0 | R58: 0
A59: 71 Sales occupations | B59: 189.612256 | C59: 6.918637768 | E59: 171.885597 | F59: 5.934472852 | H59: -17.726659 | I59: -9.348899367 | K59: 10.7786149 | L59: 5.684556011 | N59: -28.5052739 | O59: -15.03345538 | Q59: 0 | R59: 0
A60: 72 Customer service occupations | B60: 51.836855 | C60: 1.891441146 | E60: 62.533732 | F60: 2.159021706 | H60: 10.696877 | I60: 20.63565971 | K60: 2.946695057 | L60: 5.684556011 | N60: 7.750181943 | O60: 14.95110369 | Q60: 0 | R60: 0
A61: 81 Process, plant and machine operatives | B61: 67.740721 | C61: 2.471746925 | E61: 48.982657 | F61: 1.691161175 | H61: -18.758064 | I61: -27.69097187 | K61: 3.850759228 | L61: 5.684556011 | N61: -22.60882323 | O61: -33.37552789 | Q61: 0 | R61: 0
A62: 82 Transport and mobile machine drivers and operatives | B62: 89.152801 | C62: 3.253038328 | E62: 92.163488 | F62: 3.182010169 | H62: 3.010687 | I62: 3.376996534 | K62: 5.067940908 | L62: 5.684556011 | N62: -2.057253908 | O62: -2.307559477 | Q62: 0 | R62: 0
A63: 91 Elementary trades and related occupations | B63: 51.064829 | C63: 1.863271194 | E63: 48.109795 | F63: 1.661024992 | H63: -2.955034 | I63: -5.786828347 | K63: 2.902808806 | L63: 5.684556011 | N63: -5.857842806 | O63: -11.47138436 | Q63: 0 | R63: 0
A64: 92 Elementary administration and service occupations | B64: 236.850066 | C64: 8.642267365 | E64: 231.752507 | F64: 8.001420627 | H64: -5.097559 | I64: -2.152230348 | K64: 13.46387466 | L64: 5.684556011 | N64: -18.56143366 | O64: =N64/B64*100 -> -7.836786359 | Q64: 0 | R64: 0
A65: All occupations | B65: 2740.601002 | C65: 100 | E65: 2896.392001 | F65: 100 | H65: 155.790999 | I65: 5.684556011
A67: The Industry mix effect is dependent on the number of industries involved.
A68: In the All industries case the Industry mix effect is zero by definition (as there is only one industry)

Sheet TableQ
A1: ="Table 6.17: "&Info!A1 -> Table 6.17: South West | F1: 000s | I1: The results in this sheet provide illustrative
A2: Total | I2: projections of the implications of changing
A3: QCF group | B3: Base year level | C3: Change | D3: Projected level | E3: Replacement | F3: Total requirement | I3: occupational employment structure for the
B4: ='Table 7.x.1'!D4 -> 2012 | C4: ='Table 7.x.1'!H4 -> 2012 - 2022 | D4: ='Table 7.x.1'!F4 -> 2022 | E4: Demand | F4: =C4 -> 2012 - 2022 | I4: numbers employed by qualification.
A5: QCF 7-8 | B5: =('Table 7.x.1'!D5+'Table 7.x.1'!D6)*0.001 -> 231.2543754 | C5: =D5-B5 -> 142.184346 | D5: =('Table 7.x.1'!F5+'Table 7.x.1'!F6)*0.001 -> 373.4387215 | E5: =F5-C5 -> 91.13055537 | F5: =C5+('Table 6.x.3'!I26/100*TableQ!B5) -> 233.3149014
A6: QCF 4-6 | B6: =SUM('Table 7.x.1'!D7:D9)*0.001 -> 809.8962669 | C6: 199.9613961 | D6: =SUM('Table 7.x.1'!F7:F9)*0.001 -> 1009.857663 | E6: =F6-C6 -> 319.156325 | F6: =C6+('Table 6.x.3'!I26/100*TableQ!B6) -> 519.1177211
A7: QCF 3 | B7: ='Table 7.x.1'!D10*0.001 -> 594.2740369 | C7: -20.06588334 | D7: ='Table 7.x.1'!F10*0.001 -> 574.2081535 | E7: 234.1859388 | F7: =C7+('Table 6.x.3'!I26/100*TableQ!B7) -> 214.1200555
A8: QCF 2 | B8: ='Table 7.x.1'!D11*0.001 -> 610.9215367 | C8: -16.50994909 | D8: ='Table 7.x.1'!F11*0.001 -> 594.4115876 | E8: 240.7462294 | F8: =C8+('Table 6.x.3'!I26/100*TableQ!B8) -> 224.2362803
A9: QCF 1 | B9: ='Table 7.x.1'!D12*0.001 -> 383.3679987 | C9: -95.22730845 | D9: ='Table 7.x.1'!F12*0.001 -> 288.1406903 | E9: 151.0740654 | F9: =C9+('Table 6.x.3'!I26/100*TableQ!B9) -> 55.84675692
A10: No Qual | B10: ='Table 7.x.1'!D13*0.001 -> 110.8867854 | C10: -54.55160128 | D10: ='Table 7.x.1'!F13*0.001 -> 56.33518408 | E10: 43.69722438 | F10: =C10+('Table 6.x.3'!I26/100*TableQ!B10) -> -10.8543769
A12: Total | B12: =SUM(B5:B11) -> 2740.601 | C12: =SUM(C5:C11) -> 155.791 | D12: =SUM(D5:D11) -> 2896.392 | E12: =F12-C12 -> 1079.990338 | F12: =SUM(F5:F11) -> 1235.781338
B14: % share | C14: % change | D14: % share | E14: % share | F14: % of base year level
A15: =A5 -> QCF 7-8 | B15: =(B5/B12)*100 -> 8.438089873 | C15: =IF(B5>0,C5/B5*100,0) -> 61.48395928 | D15: =IF(D12>0,D5/D12*100,0) -> 12.89323826 | E15: =IF(E12>0,E5/E12*100,0) -> 8.438089873 | F15: =IF(B5>1,F5/B5*100,0) -> 100.8910214
A16: QCF 4-6 | B16: =(B6/B12)*100 -> 29.55177594 | C16: =IF(B6>0,C6/B6*100,0) -> 24.68975402 | D16: =IF(D12>0,D6/D12*100,0) -> 34.86605622 | E16: =IF(E12>0,E6/E12*100,0) -> 29.55177594 | F16: =IF(B6>1,F6/B6*100,0) -> 64.09681613
A17: QCF 3 | B17: =(B7/B12)*100 -> 21.68407721 | C17: -3.376537101 | D17: =IF(D12>0,D7/D12*100,0) -> 19.82494612 | E17: =IF(E12>0,E7/E12*100,0) -> 21.68407721 | F17: 36.03052501
A18: QCF 2 | B18: =(B8/B12)*100 -> 22.29151696 | C18: -2.702466372 | D18: =IF(D12>0,D8/D12*100,0) -> 20.5224841 | E18: =IF(E12>0,E8/E12*100,0) -> 22.29151696 | F18: 36.70459574
A19: QCF 1 | B19: =(B9/B12)*100 -> 13.98846453 | C19: -24.83966027 | D19: =IF(D12>0,D9/D12*100,0) -> 9.948262882 | E19: =IF(E12>0,E9/E12*100,0) -> 13.98846453 | F19: 14.56740185
A20: No Qual | B20: =(B10/B12)*100 -> 4.046075491 | C20: -49.19576404 | D20: =IF(D12>0,D10/D12*100,0) -> 1.945012418 | E20: =IF(E12>0,E10/E12*100,0) -> 4.046075491 | F20: -9.78870193
A22: =A12 -> Total | B22: =(B12/B12)*100 -> 100 | C22: 5.684556052 | D22: =IF(D12>0,D12/D12*100,0) -> 100 | E22: =IF(E12>0,E12/E12*100,0) -> 100 | F22: 45.09161816
A23: =CELL("filename",$A$2)&", "&Info!A1 -> R:\Research Info\Individual research project info\Working Futures 2012-2022\Working Futures quant projections 2012-2022\04 Reporting and outputs\Final outputs\Workbooks\Files for gov.uk\SW\[AllSWv2.xlsm]TableQ, South West

Sheet Replacement
B2: Replacement Demand: Total | E2: Period: 2012 - 2022
B3: All industries | K3: COPYRIGHT WIER
B4: (Results in 000s) | C4: Base year employment level | D4: Expansion demand | E4: Retirements | F4: Occupational mobility | G4: Migration | H4: Replacement demand | I4: Net requirement | AL4: Expansion Demand | AM4: Net Requirement
B5: 11 Corporate managers and directors | C5: 179.056036 | D5: 40.360894 | E5: 68.75736213 | F5: 0 | G5: 0 | H5: 68.75736213 | I5: 109.1182561 | AK5: =B29 -> 92 Elementary administration and service occupations | AL5: =D29 -> -5.097558 | AM5: =I29 -> 84.38395079
B6: 12 Other managers and proprietors | C6: 106.301644 | D6: 6.133292 | E6: 49.71732751 | F6: 0 | G6: 0 | H6: 49.71732751 | I6: 55.85061951 | K6: Because of the way the workbooks are | AK6: =B28 -> 91 Elementary trades and related occupations | AL6: =D28 -> -2.955034 | AM6: =I28 -> 14.27383922
B7: 21 Science, research, engineering and technology professionals | C7: 141.901611 | D7: 27.297388 | E7: 45.21431405 | F7: 0 | G7: 0 | H7: 45.21431405 | I7: 72.51170205 | K7: created, initial results relate to All sectors. | AK7: =B27 -> 82 Transport and mobile machine drivers and operatives | AL7: =D27 -> 3.010689 | AM7: =I27 -> 41.84951844
B8: 22 Health professionals | C8: 114.098221 | D8: 31.73242 | E8: 49.65734166 | F8: 0 | G8: 0 | H8: 49.65734166 | I8: 81.38976166 | AK8: =B26 -> 81 Process, plant and machine operatives | AL8: =D26 -> -18.758064 | AM8: =I26 -> -0.1298639902
B9: 23 Teaching and educational professionals | C9: 134.220066 | D9: 14.081788 | E9: 59.61707849 | F9: 0 | G9: 0 | H9: 59.61707849 | I9: 73.69886649 | K9: Sector specific results are produced by | AK9: =B25 -> 72 Customer service occupations | AL9: =D25 -> 10.696876 | AM9: =I25 -> 29.17134321
B10: 24 Business, media and public service professionals | C10: 129.507697 | D10: 25.668562 | E10: 56.18914779 | F10: 0 | G10: 0 | H10: 56.18914779 | I10: 81.85770979 | K10: running the module via the Start button. | AK10: =B24 -> 71 Sales occupations | AL10: =D24 -> -17.726658 | AM10: =I24 -> 50.62854475
B11: 31 Science, engineering and technology associate professionals | C11: 43.089461 | D11: 3.224349 | E11: 13.41394636 | F11: 0 | G11: 0 | H11: 13.41394636 | I11: 16.63829536 | K11: This message can then be deleted. | AK11: =B23 -> 62 Leisure, travel and related personal service occupations | AL11: =D23 -> 5.796147 | AM11: =I23 -> 32.08851867
B12: 32 Health and social care associate professionals | C12: 29.264719 | D12: 9.314599 | E12: 12.17846435 | F12: 0 | G12: 0 | H12: 12.17846435 | I12: 21.49306335 | AK12: =B22 -> 61 Caring personal service occupations | AL12: =D22 -> 58.916985 | AM12: =I22 -> 162.5972542
B13: 33 Protective service occupations | C13: 25.060509 | D13: -2.751798 | E13: 6.1691975 | F13: 0 | G13: 0 | H13: 6.1691975 | I13: 3.4173995 | AK13: =B21 -> 54 Textiles, printing and other skilled trades | AL13: =D21 -> -22.095359 | AM13: =I21 -> -5.217904655
B14: 34 Culture, media and sports occupations | C14: 49.907988 | D14: 7.96683 | E14: 21.7150677 | F14: 0 | G14: 0 | H14: 21.7150677 | I14: 29.6818977 | AK14: =B20 -> 53 Skilled construction and building trades | AL14: =D20 -> 10.054171 | AM14: =I20 -> 48.105698
B15: 35 Business and public service associate professionals | C15: 175.977755 | D15: 28.786166 | E15: 67.22929371 | F15: 0 | G15: 0 | H15: 67.22929371 | I15: 96.01545971 | AK15: =B19 -> 52 Skilled metal, electrical and electronic trades | AL15: =D19 -> -8.450238 | AM15: =I19 -> 32.41781803
B16: 41 Administrative occupations | C16: 226.204067 | D16: -15.222844 | E16: 95.37586265 | F16: 0 | G16: 0 | H16: 95.37586265 | I16: 80.15301865 | AK16: =B18 -> 51 Skilled agricultural and related trades | AL16: =D18 -> -6.356238 | AM16: =I18 -> 15.67688247
B17: 42 Secretarial and related occupations | C17: 79.798192 | D17: -27.836376 | E17: 35.94605628 | F17: 0 | G17: 0 | H17: 35.94605628 | I17: 8.109680281 | AK17: =B17 -> 42 Secretarial and related occupations | AL17: =D17 -> -27.836376 | AM17: =I17 -> 8.109680281
B18: 51 Skilled agricultural and related trades | C18: 45.091439 | D18: -6.356238 | E18: 22.03312047 | F18: 0 | G18: 0 | H18: 22.03312047 | I18: 15.67688247 | AK18: =B16 -> 41 Administrative occupations | AL18: =D16 -> -15.222844 | AM18: =I16 -> 80.15301865
B19: 52 Skilled metal, electrical and electronic trades | C19: 129.661953 | D19: -8.450238 | E19: 40.86805603 | F19: 0 | G19: 0 | H19: 40.86805603 | I19: 32.41781803 | AK19: =B15 -> 35 Business and public service associate professionals | AL19: =D15 -> 28.786166 | AM19: =I15 -> 96.01545971
B20: 53 Skilled construction and building trades | C20: 111.730888 | D20: 10.054171 | E20: 38.051527 | F20: 0 | G20: 0 | H20: 38.051527 | I20: 48.105698 | AK20: =B14 -> 34 Culture, media and sports occupations | AL20: =D14 -> 7.96683 | AM20: =I14 -> 29.6818977
B21: 54 Textiles, printing and other skilled trades | C21: 55.940837 | D21: -22.095359 | E21: 16.87745434 | F21: 0 | G21: 0 | H21: 16.87745434 | I21: -5.217904655 | AK21: =B13 -> 33 Protective service occupations | AL21: =D13 -> -2.751798 | AM21: =I13 -> 3.4173995
B22: 61 Caring personal service occupations | C22: 222.651859 | D22: 58.916985 | E22: 103.6802692 | F22: 0 | G22: 0 | H22: 103.6802692 | I22: 162.5972542 | AK22: =B12 -> 32 Health and social care associate professionals | AL22: =D12 -> 9.314599 | AM22: =I12 -> 21.49306335
B23: 62 Leisure, travel and related personal service occupations | C23: 54.87854 | D23: 5.796147 | E23: 26.29237167 | F23: 0 | G23: 0 | H23: 26.29237167 | I23: 32.08851867 | AK23: =B11 -> 31 Science, engineering and technology associate professionals | AL23: =D11 -> 3.224349 | AM23: =I11 -> 16.63829536
B24: 71 Sales occupations | C24: 189.612255 | D24: -17.726658 | E24: 68.35520275 | F24: 0 | G24: 0 | H24: 68.35520275 | I24: 50.62854475 | AK24: =B10 -> 24 Business, media and public service professionals | AL24: =D10 -> 25.668562 | AM24: =I10 -> 81.85770979
B25: 72 Customer service occupations | C25: 51.836855 | D25: 10.696876 | E25: 18.47446721 | F25: 0 | G25: 0 | H25: 18.47446721 | I25: 29.17134321 | AK25: =B9 -> 23 Teaching and educational professionals | AL25: =D9 -> 14.081788 | AM25: =I9 -> 73.69886649
B26: 81 Process, plant and machine operatives | C26: 67.74072 | D26: -18.758064 | E26: 18.62820001 | F26: 0 | G26: 0 | H26: 18.62820001 | I26: -0.1298639902 | AK26: =B8 -> 22 Health professionals | AL26: =D8 -> 31.73242 | AM26: =I8 -> 81.38976166
B27: 82 Transport and mobile machine drivers and operatives | C27: 89.152799 | D27: 3.010689 | E27: 38.83882944 | F27: 0 | G27: 0 | H27: 38.83882944 | I27: 41.84951844 | AK27: =B7 -> 21 Science, research, engineering and technology professionals | AL27: =D7 -> 27.297388 | AM27: =I7 -> 72.51170205
B28: 91 Elementary trades and related occupations | C28: 51.064829 | D28: -2.955034 | E28: 17.22887322 | F28: 0 | G28: 0 | H28: 17.22887322 | I28: 14.27383922 | AK28: =B6 -> 12 Other managers and proprietors | AL28: =D6 -> 6.133292 | AM28: =I6 -> 55.85061951
B29: 92 Elementary administration and service occupations | C29: 236.850065 | D29: -5.097558 | E29: 89.48150879 | F29: 0 | G29: 0 | H29: 89.48150879 | I29: 84.38395079 | AK29: =B5 -> 11 Corporate managers and directors | AL29: =D5 -> 40.360894 | AM29: =I5 -> 109.1182561
B30: All occupations | C30: 2740.601005 | D30: 155.790989 | E30: 1079.99034 | F30: 0 | G30: 0 | H30: 1079.99034 | I30: 1235.781329 | AK30: =B30 -> All occupations | AL30: =D30 -> 155.790989 | AM30: =I30 -> 1235.781329
C32: Replacement Demand = Retirements + Occupational Mobility + Migration
C33: Net requirement = Expansion Demand + Replacement Demand
B35: Replacement Demand: Men | E35: Period: 2012 - 2022
B36: All industries | CQ36: Replacement Demand as % base year
B37: (Results in 000s) | C37: Base year employment level | D37: Expansion demand | E37: Retirements | F37: Occupational mobility | G37: Migration | H37: Replacement demand | I37: Net requirement | AL37: Expansion Demand | AM37: Net Requirement | CQ37: written by RD_VBtab6x3PGeneratorWF5.xlsm during workbook customisation
B38: 11 Corporate managers and directors | C38: 130.127592 | D38: 18.283 | E38: 45.21747642 | F38: 0 | G38: 0 | H38: 45.21747642 | I38: 63.50047642 | AK38: =names!B12 -> Elementary occupations | AL38: =AL5+AL6 -> -8.052592 | AM38: =AM5+AM6 -> 98.65779001 | CP38: males | CQ38: 0.3474856925
B39: 12 Other managers and proprietors | C39: 62.57967 | D39: 1.485479 | E39: 25.98932096 | F39: 0 | G39: 0 | H39: 25.98932096 | I39: 27.47479996 | AK39: =names!B11 -> Process, plant and machine operatives | AL39: =AL7+AL8 -> -15.747375 | AM39: =AM7+AM8 -> 41.71965445 | CQ39: 0.4152997445
B40: 21 Science, research, engineering and technology professionals | C40: 113.77926 | D40: 18.304357 | E40: 34.00895531 | F40: 0 | G40: 0 | H40: 34.00895531 | I40: 52.31331231 | AK40: =names!B10 -> Sales and customer service | AL40: =AL9+AL10 -> -7.029782 | AM40: =AM9+AM10 -> 79.79988796 | CQ40: 0.2989029399
B41: 22 Health professionals | C41: 27.595635 | D41: 3.383448 | E41: 10.25456091 | F41: 0 | G41: 0 | H41: 10.25456091 | I41: 13.63800891 | AK41: =names!B9 -> Caring, leisure and other service | AL41: =AL11+AL12 -> 64.713132 | AM41: =AM11+AM12 -> 194.6857729 | CQ41: 0.3716008314
B42: 23 Teaching and educational professionals | C42: 46.916072 | D42: 0.99713 | E42: 18.09088482 | F42: 0 | G42: 0 | H42: 18.09088482 | I42: 19.08801482 | AK42: =names!B8 -> Skilled trades occupations | AL42: =AL13+AL14+AL15+AL16 -> -26.847664 | AM42: =AM13+AM14+AM15+AM16 -> 90.98249386 | CQ42: 0.3856010115
B43: 24 Business, media and public service professionals | C43: 77.170691 | D43: 8.620962 | E43: 32.11511459 | F43: 0 | G43: 0 | H43: 32.11511459 | I43: 40.73607659 | AK43: =names!B7 -> Administrative and secretarial | AL43: =AL17+AL18 -> -43.05922 | AM43: =AM17+AM18 -> 88.26269893 | CQ43: 0.4161568877
B44: 31 Science, engineering and technology associate professionals | C44: 31.841657 | D44: 2.419248 | E44: 9.259309058 | F44: 0 | G44: 0 | H44: 9.259309058 | I44: 11.67855706 | AK44: =names!B6 -> Associate professional and technical | AL44: =AL19+AL20+AL21+AL22+AL23 -> 46.540146 | AM44: =AM19+AM20+AM21+AM22+AM23 -> 167.2461156 | CQ44: 0.290792312
B45: 32 Health and social care associate professionals | C45: 9.07343 | D45: 1.252624 | E45: 2.45284091 | F45: 0 | G45: 0 | H45: 2.45284091 | I45: 3.70546491 | AK45: =names!B5 -> Professional occupations | AL45: =AL24+AL25+AL26+AL27 -> 98.780158 | AM45: =AM24+AM25+AM26+AM27 -> 309.45804 | CQ45: 0.270332268
B46: 33 Protective service occupations | C46: 16.127908 | D46: -3.403566 | E46: 3.302247276 | F46: 0 | G46: 0 | H46: 3.302247276 | I46: -0.1013187241 | AK46: =names!B4 -> Managers, directors and senior officials | AL46: =AL28+AL29 -> 46.494186 | AM46: =AM28+AM29 -> 164.9688756 | CQ46: 0.2047536033
B47: 34 Culture, media and sports occupations | C47: 27.742992 | D47: 5.600702 | E47: 10.03784084 | F47: 0 | G47: 0 | H47: 10.03784084 | I47: 15.63854284 | CQ47: 0.3618153674
B48: 35 Business and public service associate professionals | C48: 100.467217 | D48: 8.279063 | E48: 35.19949672 | F48: 0 | G48: 0 | H48: 35.19949672 | I48: 43.47855972 | CQ48: 0.3503580349
B49: 41 Administrative occupations | C49: 50.186604 | D49: -2.640334 | E49: 16.56165599 | F49: 0 | G49: 0 | H49: 16.56165599 | I49: 13.92132199 | CQ49: 0.3300015276
B50: 42 Secretarial and related occupations | C50: 5.529967 | D50: 0.345149 | E50: 2.281305439 | F50: 0 | G50: 0 | H50: 2.281305439 | I50: 2.626454439 | CQ50: 0.412535091
B51: 51 Skilled agricultural and related trades | C51: 35.523065 | D51: -5.289261 | E51: 16.38142161 | F51: 0 | G51: 0 | H51: 16.38142161 | I51: 11.09216061 | CQ51: 0.4611488792
B52: 52 Skilled metal, electrical and electronic trades | C52: 116.922366 | D52: -9.324473 | E52: 35.74515805 | F52: 0 | G52: 0 | H52: 35.74515805 | I52: 26.42068505 | CQ52: 0.3057170264
B53: 53 Skilled construction and building trades | C53: 107.063699 | D53: 8.945177 | E53: 35.81455508 | F53: 0 | G53: 0 | H53: 35.81455508 | I53: 44.75973208 | CQ53: 0.3345163245
B54: 54 Textiles, printing and other skilled trades | C54: 35.144066 | D54: -11.507352 | E54: 8.056856577 | F54: 0 | G54: 0 | H54: 8.056856577 | I54: -3.450495423 | CQ54: 0.2292522606
B55: 61 Caring personal service occupations | C55: 18.318539 | D55: 6.778073 | E55: 6.24748636 | F55: 0 | G55: 0 | H55: 6.24748636 | I55: 13.02555936 | CQ55: 0.341047196
B56: 62 Leisure, travel and related personal service occupations | C56: 18.305878 | D56: 1.735349 | E56: 9.589767062 | F56: 0 | G56: 0 | H56: 9.589767062 | I56: 11.32511606 | CQ56: 0.5238627211
B57: 71 Sales occupations | C57: 59.674133 | D57: 8.612168 | E57: 17.26928584 | F57: 0 | G57: 0 | H57: 17.26928584 | I57: 25.88145384 | CQ57: 0.2893931587
B58: 72 Customer service occupations | C58: 17.86753 | D58: 5.061598 | E58: 4.187447388 | F58: 0 | G58: 0 | H58: 4.187447388 | I58: 9.249045388 | CQ58: 0.2343607308
B59: 81 Process, plant and machine operatives | C59: 55.547913 | D59: -11.96196 | E59: 14.53355581 | F59: 0 | G59: 0 | H59: 14.53355581 | I59: 2.571595808 | CQ59: 0.2616399973
B60: 82 Transport and mobile machine drivers and operatives | C60: 81.875652 | D60: 0.497805 | E60: 34.9013568 | F60: 0 | G60: 0 | H60: 34.9013568 | I60: 35.3991618 | CQ60: 0.426272719
B61: 91 Elementary trades and related occupations | C61: 35.193878 | D61: -3.777955 | E61: 9.988798538 | F61: 0 | G61: 0 | H61: 9.988798538 | I61: 6.210843538 | CQ61: 0.2838220482
B62: 92 Elementary administration and service occupations | C62: 130.04059 | D62: 8.540563 | E62: 41.57276194 | F62: 0 | G62: 0 | H62: 41.57276194 | I62: 50.11332494 | CQ62: 0.3196906592
B63: All occupations | C63: 1410.616004 | D63: 61.236994 | E63: 479.0594603 | F63: 0 | G63: 0 | H63: 479.0594603 | I63: 540.2964543 | CQ63: 0.3396101128
C65: Replacement Demand = Retirements + Occupational Mobility + Migration
C66: Net requirement = Expansion Demand + Replacement Demand
B68: Replacement Demand: Women | E68: Period: 2012 - 2022
B69: All industries
B70: (Results in 000s) | C70: Base year employment level | D70: Expansion demand | E70: Retirements | F70: Occupational mobility | G70: Migration | H70: Replacement demand | I70: Net requirement
B71: 11 Corporate managers and directors | C71: 48.928444 | D71: 22.077894 | E71: 23.53988571 | F71: 0 | G71: 0 | H71: 23.53988571 | I71: 45.61777971 | CP71: females | CQ71: 0.4811084061
B72: 12 Other managers and proprietors | C72: 43.721974 | D72: 4.647813 | E72: 23.72800655 | F72: 0 | G72: 0 | H72: 23.72800655 | I72: 28.37581955 | CQ72: 0.5427020872
B73: 21 Science, research, engineering and technology professionals | C73: 28.122351 | D73: 8.993031 | E73: 11.20535874 | F73: 0 | G73: 0 | H73: 11.20535874 | I73: 20.19838974 | CQ73: 0.3984502839
B74: 22 Health professionals | C74: 86.502586 | D74: 28.348972 | E74: 39.40278075 | F74: 0 | G74: 0 | H74: 39.40278075 | I74: 67.75175275 | CQ74: 0.4555098589
B75: 23 Teaching and educational professionals | C75: 87.303994 | D75: 13.084658 | E75: 41.52619367 | F75: 0 | G75: 0 | H75: 41.52619367 | I75: 54.61085167 | CQ75: 0.4756505604
B76: 24 Business, media and public service professionals | C76: 52.337006 | D76: 17.0476 | E76: 24.0740332 | F76: 0 | G76: 0 | H76: 24.0740332 | I76: 41.1216332 | CQ76: 0.4599810925
B77: 31 Science, engineering and technology associate professionals | C77: 11.247804 | D77: 0.805101 | E77: 4.154637303 | F77: 0 | G77: 0 | H77: 4.154637303 | I77: 4.959738303 | CQ77: 0.3693731953
B78: 32 Health and social care associate professionals | C78: 20.191289 | D78: 8.061975 | E78: 9.725623438 | F78: 0 | G78: 0 | H78: 9.725623438 | I78: 17.78759844 | CQ78: 0.4816742229
B79: 33 Protective service occupations | C79: 8.932601 | D79: 0.651768 | E79: 2.866950224 | F79: 0 | G79: 0 | H79: 2.866950224 | I79: 3.518718224 | CQ79: 0.3209535749
B80: 34 Culture, media and sports occupations | C80: 22.164996 | D80: 2.366128 | E80: 11.67722686 | F80: 0 | G80: 0 | H80: 11.67722686 | I80: 14.04335486 | CQ80: 0.5268318955
B81: 35 Business and public service associate professionals | C81: 75.510538 | D81: 20.507103 | E81: 32.02979699 | F81: 0 | G81: 0 | H81: 32.02979699 | I81: 52.53689999 | CQ81: 0.4241765168
B82: 41 Administrative occupations | C82: 176.017463 | D82: -12.58251 | E82: 78.81420666 | F82: 0 | G82: 0 | H82: 78.81420666 | I82: 66.23169666 | CQ82: 0.4477635646
B83: 42 Secretarial and related occupations | C83: 74.268225 | D83: -28.181525 | E83: 33.66475084 | F83: 0 | G83: 0 | H83: 33.66475084 | I83: 5.483225842 | CQ83: 0.4532860566
B84: 51 Skilled agricultural and related trades | C84: 9.568374 | D84: -1.066977 | E84: 5.651698859 | F84: 0 | G84: 0 | H84: 5.651698859 | I84: 4.584721859 | CQ84: 0.5906645016
B85: 52 Skilled metal, electrical and electronic trades | C85: 12.739587 | D85: 0.874235 | E85: 5.122897983 | F85: 0 | G85: 0 | H85: 5.122897983 | I85: 5.997132983 | CQ85: 0.4021243376
B86: 53 Skilled construction and building trades | C86: 4.667189 | D86: 1.108994 | E86: 2.236971925 | F86: 0 | G86: 0 | H86: 2.236971925 | I86: 3.345965925 | CQ86: 0.4792974796
B87: 54 Textiles, printing and other skilled trades | C87: 20.796771 | D87: -10.588007 | E87: 8.820597767 | F87: 0 | G87: 0 | H87: 8.820597767 | I87: -1.767409233 | CQ87: 0.4241330429
B88: 61 Caring personal service occupations | C88: 204.33332 | D88: 52.138912 | E88: 97.43278283 | F88: 0 | G88: 0 | H88: 97.43278283 | I88: 149.5716948 | CQ88: 0.4768325735
B89: 62 Leisure, travel and related personal service occupations | C89: 36.572662 | D89: 4.060798 | E89: 16.70260461 | F89: 0 | G89: 0 | H89: 16.70260461 | I89: 20.76340261 | CQ89: 0.456696442
B90: 71 Sales occupations | C90: 129.938122 | D90: -26.338826 | E90: 51.08591691 | F90: 0 | G90: 0 | H90: 51.08591691 | I90: 24.74709091 | CQ90: 0.3931557277
B91: 72 Customer service occupations | C91: 33.969325 | D91: 5.635278 | E91: 14.28701982 | F91: 0 | G91: 0 | H91: 14.28701982 | I91: 19.92229782 | CQ91: 0.4205859203
B92: 81 Process, plant and machine operatives | C92: 12.192807 | D92: -6.796104 | E92: 4.094644202 | F92: 0 | G92: 0 | H92: 4.094644202 | I92: -2.701459798 | CQ92: 0.3358245728
B93: 82 Transport and mobile machine drivers and operatives | C93: 7.277147 | D93: 2.512884 | E93: 3.937472637 | F93: 0 | G93: 0 | H93: 3.937472637 | I93: 6.450356637 | CQ93: 0.5410736704
B94: 91 Elementary trades and related occupations | C94: 15.870951 | D94: 0.822921 | E94: 7.240074682 | F94: 0 | G94: 0 | H94: 7.240074682 | I94: 8.062995682 | CQ94: 0.4561840486
B95: 92 Elementary administration and service occupations | C95: 106.809475 | D95: -13.638121 | E95: 47.90874685 | F95: 0 | G95: 0 | H95: 47.90874685 | I95: 34.27062585 | CQ95: 0.4485439784
B96: All occupations | C96: 1329.985001 | D96: 94.553995 | E96: 600.93088 | F96: 0 | G96: 0 | H96: 600.93088 | I96: 695.484875 | CQ96: 0.4518328248
C98: Replacement Demand = Retirements + Occupational Mobility + Migration
C99: Net requirement = Expansion Demand + Replacement Demand

Sheet QualDemand
B2: Base Year Qualification Levels: Men and Women | F2: This is a temporary work area written by the Replacement Demand module. | U2: =B2 -> Base Year Qualification Levels: Men and Women | AD2: Expansion Demand by Qualification as per cent Base Year levels: Men and Women
B3: All industries | U3: =B3 -> All industries | AD3: =U3 -> All industries | AM3: =U2 -> Base Year Qualification Levels: Men and Women | AX3: =U2&", "&U3&", "&RIGHT(U4,4) -> Base Year Qualification Levels: Men and Women, All industries, 2012
B4: Base year: 2012 | U4: =B4 -> Base year: 2012 | AD4: =U4 -> Base year: 2012 | AM4: =U3 -> All industries
B5: (thousands) | C5: =LEFT(names!D4,4) -> QCF8 | D5: =LEFT(names!D5,4) -> QCF7 | E5: =LEFT(names!D6,4) -> QCF6 | F5: =LEFT(names!D7,4) -> QCF5 | G5: =LEFT(names!D8,4) -> QCF4 | H5: =LEFT(names!D9,4) -> QCF3 | I5: =LEFT(names!D10,4) -> QCF2 | J5: =LEFT(names!D11,4) -> QCF1 | K5: =LEFT(names!D12,4) -> No Q | L5: Total | N5: Because of the way the workbooks are | U5: =B5 -> (thousands) | V5: QCF 7-8 | W5: QCF 4-6 | X5: QCF 3 | Y5: QCF 2 | Z5: QCF 1 | AA5: No Qual | AB5: Total | AD5: (per cent) | AE5: =V5 -> QCF 7-8 | AF5: =W5 -> QCF 4-6 | AG5: QCF 3 | AH5: QCF 2 | AI5: QCF 1 | AJ5: No Qual | AK5: Total | AM5: =U4 -> Base year: 2012
N6: created, initial results relate to All sectors. | AM6: =U5 -> (thousands) | AN6: =V40 -> QCF 7-8 | AO6: QCF 4-6 | AP6: QCF 3 | AQ6: QCF 2 | AR6: QCF 1 | AS6: No Qual | AT6: Total
B8: 11 Corporate managers and directors | C8: 2.096819902 | D8: 17.02554345 | E8: 48.64565338 | F8: 11.11031065 | G8: 15.36768944 | H8: 34.71413735 | I8: 29.39913482 | J8: 17.77307976 | K8: 2.923667279 | L8: 179.056036 | N8: Sector specific results are produced by | U8: =B8 -> 11 Corporate managers and directors | V8: =C8+D8 -> 19.12236335 | W8: =E8+F8+G8 -> 75.12365347 | X8: =H8 -> 34.71413735 | Y8: =I8 -> 29.39913482 | Z8: =J8 -> 17.77307976 | AA8: =K8 -> 2.923667279 | AB8: =L8 -> 179.056036 | AD8: =U8 -> 11 Corporate managers and directors | AE8: =V42/V$8*100 -> 78.29734134 | AF8: 33.76542216 | AG8: -1.255009049 | AH8: 4.995489253 | AI8: 0.72645993 | AJ8: -38.9683896 | AK8: 22.54092911 | AM8: =names!B4 -> Managers, directors and senior officials | AN8: =V8+V9 -> 27.19111739 | AO8: 109.4204212 | AP8: 56.80228291 | AQ8: 52.03728866 | AR8: 33.07041153 | AS8: 6.836157144 | AT8: 285.3576789
B9: 12 Other managers and proprietors | C9: 0.8475234325 | D9: 7.221230607 | E9: 19.87966596 | F9: 7.138716419 | G9: 7.278385388 | H9: 22.08814556 | I9: 22.63815384 | J9: 15.29733177 | K9: 3.912489864 | L9: 106.3016428 | N9: running the module via the Start button. | U9: 12 Other managers and proprietors | V9: =C9+D9 -> 8.068754039 | W9: =E9+F9+G9 -> 34.29676777 | X9: =H9 -> 22.08814556 | Y9: 22.63815384 | Z9: 15.29733177 | AA9: 3.912489864 | AB9: 106.3016428 | AD9: 12 Other managers and proprietors | AE9: =V43/V$9*100 -> 70.62948909 | AF9: 30.48911317 | AG9: -21.65747257 | AH9: -4.186141513 | AI9: -15.61075933 | AJ9: -48.63854479 | AK9: 5.769706774 | AM9: =names!B5 -> Professional occupations | AN9: =V10+V11+V12+V13 -> 135.0425225 | AO9: 266.5864649 | AP9: 52.79382825 | AQ9: 40.13192395 | AR9: 22.1214559 | AS9: 3.051400688 | AT9: 519.7275961
B10: 21 Science, research, engineering and technology professionals | C10: 5.647732729 | D10: 21.32028937 | E10: 49.09981244 | F10: 6.228805424 | G10: 15.23981758 | H10: 20.28155745 | I10: 14.97149348 | J10: 7.940584725 | K10: 1.171517872 | L10: 141.9016111 | N10: on Sheet "Replacement". | U10: 21 Science, research, engineering and technology professionals | V10: 26.9680221 | W10: 70.56843544 | X10: 20.28155745 | Y10: 14.97149348 | Z10: 7.940584725 | AA10: 1.171517872 | AB10: 141.9016111 | AD10: 21 Science, research, engineering and technology professionals | AE10: =V44/V$10*100 -> 76.04643404 | AF10: 13.95912155 | AG10: -14.33399602 | AH10: 1.604636484 | AI10: -2.966860415 | AJ10: -13.5770748 | AK10: 19.23684241 | AM10: =names!B6 -> Associate professional and technical | AN10: =V14+V15+V16+V17+V18 -> 33.30500959 | AO10: 143.1436604 | AP10: 62.27600701 | AQ10: 50.65006726 | AR10: 29.26711036 | AS10: 4.658574826 | AT10: 323.3004294
B11: 22 Health professionals | C11: 5.328141429 | D11: 15.96937991 | E11: 39.10826524 | F11: 27.91220096 | G11: 3.001057021 | H11: 9.830024225 | I11: 8.188974048 | J11: 4.38127132 | K11: 0.3789073125 | L11: 114.0982215 | N11: This message can then be deleted. | U11: 22 Health professionals | V11: 21.29752133 | W11: 70.02152323 | X11: 9.830024225 | Y11: 8.188974048 | Z11: 4.38127132 | AA11: 0.3789073125 | AB11: 114.0982215 | AD11: 22 Health professionals | AE11: =V45/V$11*100 -> 68.88662408 | AF11: 13.09080316 | AG11: 54.90943426 | AH11: 38.22656003 | AI11: -17.41556303 | AJ11: 34.29491956 | AK11: 27.81149389 | AM11: =names!B7 -> Administrative and secretarial | AN11: =V19+V20 -> 12.66395787 | AO11: 85.20504502 | AP11: 66.44678994 | AQ11: 82.3721123 | AR11: 50.08797965 | AS11: 9.226370533 | AT11: 306.0022553
B12: 23 Teaching and educational professionals | C12: 9.200440732 | D12: 51.38010872 | E12: 44.25057188 | F12: 12.11324267 | G12: 2.402875095 | H12: 6.055190682 | I12: 5.006973651 | J12: 3.340711478 | K12: 0.4699511195 | L12: 134.220066 | U12: 23 Teaching and educational professionals | V12: 60.58054945 | W12: 58.76668965 | X12: 6.055190682 | Y12: 5.006973651 | Z12: 3.340711478 | AA12: 0.4699511195 | AB12: 134.220066 | AD12: 23 Teaching and educational professionals | AE12: =V46/V$12*100 -> 40.07226547 | AF12: -16.74843302 | AG12: -8.930848589 | AH12: 7.482181754 | AI12: -6.814840786 | AJ12: 8.958946308 | AK12: 10.49156719 | AM12: =names!B8 -> Skilled trades occupations | AN12: =V21+V22+V23+V24 -> 5.684159356 | AO12: 48.97040799 | AP12: 114.9812864 | AQ12: 96.23973936 | AR12: 56.14288562 | AS12: 20.40663509 | AT12: 342.4251138
B13: 24 Business, media and public service professionals | C13: 1.698555596 | D13: 24.49787398 | E13: 51.72449368 | F13: 7.079344751 | G13: 8.42597815 | H13: 16.6270559 | I13: 11.96448277 | J13: 6.458888372 | K13: 1.031024384 | L13: 129.5076976 | U13: 24 Business, media and public service professionals | V13: 26.19642958 | W13: 67.22981658 | X13: 16.6270559 | Y13: 11.96448277 | Z13: 6.458888372 | AA13: 1.031024384 | AB13: 129.5076976 | AD13: 24 Business, media and public service professionals | AE13: =V47/V$13*100 -> 61.2250602 | AF13: 15.47628822 | AG13: 6.429125406 | AH13: -6.167753896 | AI13: -14.68332095 | AJ13: -15.28126499 | AK13: 19.8201049 | AM13: =names!B9 -> Caring, leisure and other service | AN13: =V25+V26 -> 6.142704573 | AO13: 64.42572366 | AP13: 86.20441274 | AQ13: 80.78427168 | AR13: 32.25318346 | AS13: 7.720103358 | AT13: 277.5303995
B14: 31 Science, engineering and technology associate professionals | C14: 0.5833145252 | D14: 3.556294668 | E14: 10.40909572 | F14: 2.04223098 | G14: 5.91800092 | H14: 9.084915399 | I14: 6.53742525 | J14: 4.291982071 | K14: 0.6662011098 | L14: 43.08946065 | U14: 31 Science, engineering and technology associate professionals | V14: 4.139609193 | W14: 18.36932762 | X14: 9.084915399 | Y14: 6.53742525 | Z14: 4.291982071 | AA14: 0.6662011098 | AB14: 43.08946065 | AD14: 31 Science, engineering and technology associate professionals | AE14: =V48/V$14*100 -> 71.49205444 | AF14: 12.35615036 | AG14: -22.15954881 | AH14: -3.878507948 | AI14: 5.462161641 | AJ14: 4.114706863 | AK14: 7.482919843 | AM14: =names!B10 -> Sales and customer service | AN14: =V27+V28 -> 5.240294733 | AO14: 43.64591603 | AP14: 63.25145148 | AQ14: 72.64106398 | AR14: 42.54681454 | AS14: 14.12357037 | AT14: 241.4491111
B15: 32 Health and social care associate professionals | C15: 0.1063522617 | D15: 2.485608322 | E15: 8.895874307 | F15: 8.668719753 | G15: 1.216635287 | H15: 3.403362389 | I15: 2.906215716 | J15: 1.453599539 | K15: 0.1283513405 | L15: 29.26471891 | U15: 32 Health and social care associate professionals | V15: 2.591960584 | W15: 18.78122935 | X15: 3.403362389 | Y15: 2.906215716 | Z15: 1.453599539 | AA15: 0.1283513405 | AB15: 29.26471891 | AD15: 32 Health and social care associate professionals | AE15: =V49/V$15*100 -> 86.0492486 | AF15: 28.96351012 | AG15: 33.30451081 | AH15: 24.99667755 | AI15: -14.85353632 | AJ15: 0.3998975214 | AK15: 31.82876555 | AM15: =names!B11 -> Process, plant and machine operatives | AN15: =V29+V30 -> 2.001371904 | AO15: 14.83419645 | AP15: 34.31620481 | AQ15: 49.55844777 | AR15: 42.37135396 | AS15: 13.81194658 | AT15: 156.8935215
B16: 33 Protective service occupations | C16: 0.06950029928 | D16: 1.068531186 | E16: 5.682281897 | F16: 1.496345524 | G16: 1.559600691 | H16: 5.527969494 | I16: 6.146596556 | J16: 3.13045733 | K16: 0.3792257725 | L16: 25.06050875 | U16: 33 Protective service occupations | V16: 1.138031486 | W16: 8.738228113 | X16: 5.527969494 | Y16: 6.146596556 | Z16: 3.13045733 | AA16: 0.3792257725 | AB16: 25.06050875 | AD16: 33 Protective service occupations | AE16: =V50/V$16*100 -> 35.04091422 | AF16: 12.68722439 | AG16: -34.8421836 | AH16: -18.3666667 | AI16: -31.20422472 | AJ16: -59.96088797 | AK16: -10.98061115 | AM16: =names!B12 -> Elementary occupations | AN16: =V31+V32 -> 3.983237544 | AO16: 33.6644313 | AP16: 57.20177334 | AQ16: 86.50662173 | AR16: 75.50680369 | AS16: 31.05202676 | AT16: 287.9148944
B17: 34 Culture, media and sports occupations | C17: 0.3158806352 | D17: 6.148798025 | E17: 18.8292723 | F17: 2.746306086 | G17: 3.525693014 | H17: 8.554186197 | I17: 5.529135047 | J17: 3.546206646 | K17: 0.7125089851 | L17: 49.90798693 | U17: 34 Culture, media and sports occupations | V17: 6.46467866 | W17: 25.1012714 | X17: 8.554186197 | Y17: 5.529135047 | Z17: 3.546206646 | AA17: 0.7125089851 | AB17: 49.90798693 | AD17: 34 Culture, media and sports occupations | AE17: =V51/V$17*100 -> 55.80670157 | AF17: 21.91821814 | AG17: 5.092413097 | AH17: -16.04312783 | AI17: -16.03247217 | AJ17: -17.21633668 | AK17: 15.96303837 | AM17: Total | AN17: =V33 -> 231.2543754 | AO17: 809.8962669 | AP17: 594.2740369 | AQ17: 610.9215367 | AR17: 383.3679987 | AS17: 110.8867854 | AT17: 2740.601
B18: 35 Business and public service associate professionals | C18: 1.667784981 | D18: 17.30294469 | E18: 46.59634649 | F18: 13.44046166 | G18: 12.11679573 | H18: 35.70557353 | I18: 29.53069469 | J18: 16.84486477 | K18: 2.772287618 | L18: 175.9777542 | U18: 35 Business and public service associate professionals | V18: 18.97072967 | W18: 72.15360389 | X18: 35.70557353 | Y18: 29.53069469 | Z18: 16.84486477 | AA18: 2.772287618 | AB18: 175.9777542 | AD18: 35 Business and public service associate professionals | AE18: =V52/V$18*100 -> 70.33729053 | AF18: 29.02237417 | AG18: -0.2477115755 | AH18: -4.452971423 | AI18: -19.38771218 | AJ18: -29.89389744 | AK18: 16.35784439
B19: 41 Administrative occupations | C19: 0.7786028441 | D19: 9.430361895 | E19: 37.49366017 | F19: 15.26495465 | G19: 14.50202323 | H19: 50.39394908 | I19: 59.58854006 | J19: 32.73273973 | K19: 6.019233128 | L19: 226.2040648 | U19: 41 Administrative occupations | V19: 10.20896474 | W19: 67.26063805 | X19: 50.39394908 | Y19: 59.58854006 | Z19: 32.73273973 | AA19: 6.019233128 | AB19: 226.2040648 | AD19: 41 Administrative occupations | AE19: =V53/V$19*100 -> 43.5505135 | AF19: 25.23319653 | AG19: -11.90977593 | AH19: -17.94773398 | AI19: -51.88856259 | AJ19: -49.17171554 | AK19: -6.729694209
B20: 42 Secretarial and related occupations | C20: 0.1150631457 | D20: 2.339929989 | E20: 9.086835834 | F20: 4.835117321 | G20: 4.022453815 | H20: 16.05284087 | I20: 22.78357224 | J20: 17.35523992 | K20: 3.207137406 | L20: 79.79819053 | U20: 42 Secretarial and related occupations | V20: 2.454993135 | W20: 17.94440697 | X20: 16.05284087 | Y20: 22.78357224 | Z20: 17.35523992 | AA20: 3.207137406 | AB20: 79.79819053 | AD20: 42 Secretarial and related occupations | AE20: =V54/V$20*100 -> 15.05713214 | AF20: -3.209461421 | AG20: -39.03319931 | AH20: -43.25715453 | AI20: -59.60924825 | AJ20: -36.2727034 | AK20: -34.88346412
B21: 51 Skilled agricultural and related trades | C21: 0.1087147502 | D21: 0.4868767272 | E21: 5.062730208 | F21: 2.232940489 | G21: 3.631365692 | H21: 8.372726862 | I21: 12.5159691 | J21: 8.76139952 | K21: 3.918714856 | L21: 45.09143821 | U21: 51 Skilled agricultural and related trades | V21: 0.5955914774 | W21: 10.92703639 | X21: 8.372726862 | Y21: 12.5159691 | Z21: 8.76139952 | AA21: 3.918714856 | AB21: 45.09143821 | AD21: 51 Skilled agricultural and related trades | AE21: =V55/V$21*100 -> 0.0003478542427 | AF21: 15.98728418 | AG21: -23.39080033 | AH21: -11.82824883 | AI21: -29.96623964 | AJ21: -52.02844289 | AK21: -14.09632939 | AM21: =U37 -> Expansion Demand by Qualification: Men and Women
B22: 52 Skilled metal, electrical and electronic trades | C22: 0.09463590606 | D22: 2.702172742 | E22: 7.815599852 | F22: 2.520009299 | G22: 9.487411242 | H22: 51.90744105 | I22: 32.55200146 | J22: 17.01769445 | K22: 5.564986271 | L22: 129.6619523 | U22: 52 Skilled metal, electrical and electronic trades | V22: 2.796808648 | W22: 19.82302039 | X22: 51.90744105 | Y22: 32.55200146 | Z22: 17.01769445 | AA22: 5.564986271 | AB22: 129.6619523 | AD22: 52 Skilled metal, electrical and electronic trades | AE22: =V56/V$22*100 -> 66.40305581 | AF22: 20.05241106 | AG22: -13.29815712 | AH22: -9.460305323 | AI22: -13.81822266 | AJ22: -35.01541215 | AK22: -6.517129733 | AM22: =U38 -> All industries
B23: 53 Skilled construction and building trades | C23: 0.05724387522 | D23: 0.8931941871 | E23: 4.202804557 | F23: 2.296643032 | G23: 4.057643309 | H23: 41.23437951 | I23: 34.29969307 | J23: 17.95976585 | K23: 6.729519391 | L23: 111.7308868 | U23: 53 Skilled construction and building trades | V23: 0.9504380623 | W23: 10.5570909 | X23: 41.23437951 | Y23: 34.29969307 | Z23: 17.95976585 | AA23: 6.729519391 | AB23: 111.7308868 | AD23: 53 Skilled construction and building trades | AE23: =V57/V$23*100 -> 99.48460288 | AF23: 47.26544635 | AG23: -8.442026892 | AH23: 25.22140571 | AI23: 9.12967448 | AJ23: -39.9841212 | AK23: 8.998560975 | AM23: =U39 -> Period: 2012 - 2022
B24: 54 Textiles, printing and other skilled trades | C24: 0.156547147 | D24: 1.184774021 | E24: 3.922030743 | F24: 1.841418559 | G24: 1.899811003 | H24: 13.46673895 | I24: 16.87207574 | J24: 12.40402579 | K24: 4.193414571 | L24: 55.94083653 | U24: 54 Textiles, printing and other skilled trades | V24: 1.341321168 | W24: 7.663260306 | X24: 13.46673895 | Y24: 16.87207574 | Z24: 12.40402579 | AA24: 4.193414571 | AB24: 55.94083653 | AD24: 54 Textiles, printing and other skilled trades | AE24: =V58/V$24*100 -> -0.5675906572 | AF24: -26.10358282 | AG24: -38.39761683 | AH24: -43.08860415 | AI24: -43.7412173 | AJ24: -52.96014422 | AK24: -39.49772495 | AM24: =U40 -> (thousands) | AN24: =AN6 -> QCF 7-8 | AO24: QCF 4-6 | AP24: QCF 3 | AQ24: QCF 2 | AR24: QCF 1 | AS24: No Qual | AT24: Total
B25: 61 Caring personal service occupations | C25: 0.1015263052 | D25: 5.059987951 | E25: 20.0014395 | F25: 22.33855418 | G25: 12.2653387 | H25: 71.73617039 | I25: 64.32544543 | J25: 22.45346377 | K25: 4.369932832 | L25: 222.6518591 | U25: 61 Caring personal service occupations | V25: 5.161514256 | W25: 54.60533238 | X25: 71.73617039 | Y25: 64.32544543 | Z25: 22.45346377 | AA25: 4.369932832 | AB25: 222.6518591 | AD25: 61 Caring personal service occupations | AE25: =V59/V$25*100 -> 103.3134719 | AF25: 64.38393116 | AG25: 38.93762613 | AH25: 14.23284462 | AI25: -69.13636641 | AJ25: -71.78158941 | AK25: 26.46148374
B26: 62 Leisure, travel and related personal service occupations | C26: 0.0609113942 | D26: 0.9202789233 | E26: 3.807660544 | F26: 2.672302138 | G26: 3.340428602 | H26: 14.46824235 | I26: 16.45882625 | J26: 9.799719693 | K26: 3.350170526 | L26: 54.87854041 | U26: 62 Leisure, travel and related personal service occupations | V26: 0.9811903175 | W26: 9.820391284 | X26: 14.46824235 | Y26: 16.45882625 | Z26: 9.799719693 | AA26: 3.350170526 | AB26: 54.87854041 | AD26: 62 Leisure, travel and related personal service occupations | AE26: =V60/V$26*100 -> 68.65093164 | AF26: 72.6671734 | AG26: -7.630537059 | AH26: 6.77437183 | AI26: -7.200614841 | AJ26: -39.3707827 | AK26: 10.56177165 | AM26: =AM8 -> Managers, directors and senior officials | AN26: =V42+V43 -> 20.67122186 | AO26: 35.82259907 | AP26: -5.21939963 | AQ26: 0.5209654644 | AR26: -2.258915345 | AS26: -3.042284191 | AT26: 46.49418723
B27: 71 Sales occupations | C27: 0.159226762 | D27: 3.287767173 | E27: 17.4175366 | F27: 6.716540736 | G27: 5.987810029 | H27: 49.61980257 | I27: 58.52592718 | J27: 35.33615522 | K27: 12.56148979 | L27: 189.6122561 | U27: 71 Sales occupations | V27: 3.446993935 | W27: 30.12188737 | X27: 49.61980257 | Y27: 58.52592718 | Z27: 35.33615522 | AA27: 12.56148979 | AB27: 189.6122561 | AD27: 71 Sales occupations | AE27: =V61/V$27*100 -> 69.0190572 | AF27: 37.01594149 | AG27: -5.919888798 | AH27: -14.80864154 | AI27: -33.54092885 | AJ27: -62.08845778 | AK27: -9.348899335 | AM27: Professional occupations | AN27: =V44+V45+V46+V47 -> 75.49414098 | AO27: 19.57929398 | AP27: 3.018647415 | AQ27: 3.007292144 | AR27: -2.174652611 | AS27: -0.1445627995 | AT27: 98.78015911
B28: 72 Customer service occupations | C28: 0.1466619254 | D28: 1.646638873 | E28: 7.895426047 | F28: 2.435992034 | G28: 3.192610584 | H28: 13.63164891 | I28: 14.11513681 | J28: 7.210659314 | K28: 1.562080586 | L28: 51.83685508 | U28: 72 Customer service occupations | V28: 1.793300799 | W28: 13.52402867 | X28: 13.63164891 | Y28: 14.11513681 | Z28: 7.210659314 | AA28: 1.562080586 | AB28: 51.83685508 | AD28: 72 Customer service occupations | AE28: =V62/V$28*100 -> 78.26535217 | AF28: 57.24695008 | AG28: 10.08397561 | AH28: 16.5684819 | AI28: -28.19537039 | AJ28: -8.255269627 | AK28: 20.63565986 | AM28: Associate professional and technical | AN28: =V48+V49+V50+V51+V52 -> 22.53985207 | AO28: 35.26052393 | AP28: -2.458600688 | AQ28: -2.858061688 | AR28: -4.79268937 | AS28: -1.150874407 | AT28: 46.54014985
B29: 81 Process, plant and machine operatives | C29: 0.07464026019 | D29: 0.6282283372 | E29: 2.240907289 | F29: 1.032879017 | G29: 2.585166376 | H29: 16.14958976 | I29: 21.00259653 | J29: 17.50771539 | K29: 6.518998 | L29: 67.74072096 | U29: 81 Process, plant and machine operatives | V29: 0.7028685974 | W29: 5.858952682 | X29: 16.14958976 | Y29: 21.00259653 | Z29: 17.50771539 | AA29: 6.518998 | AB29: 67.74072096 | AD29: 81 Process, plant and machine operatives | AE29: =V63/V$29*100 -> 34.58204138 | AF29: -2.14488018 | AG29: -20.47001511 | AH29: -17.26409102 | AI29: -42.34166938 | AJ29: -69.49953472 | AK29: -27.69097232 | AM29: Administrative and secretarial | AN29: =V53+V54 -> 4.815708128 | AO29: 16.39609017 | AP29: -12.26774379 | AQ29: -20.5503177 | AR29: -27.32987619 | AS29: -4.12307563 | AT29: -43.05921501
B30: 82 Transport and mobile machine drivers and operatives | C30: 0.1434298887 | D30: 1.155073418 | E30: 3.982465838 | F30: 1.970903838 | G30: 3.021874092 | H30: 18.16661505 | I30: 28.55585124 | J30: 24.86363857 | K30: 7.292948581 | L30: 89.15280052 | U30: 82 Transport and mobile machine drivers and operatives | V30: 1.298503307 | W30: 8.975243768 | X30: 18.16661505 | Y30: 28.55585124 | Z30: 24.86363857 | AA30: 7.292948581 | AB30: 89.15280052 | AD30: 82 Transport and mobile machine drivers and operatives | AE30: =V64/V$30*100 -> 97.19584618 | AF30: 42.62575226 | AG30: 7.107694325 | AH30: 11.46272654 | AI30: -17.05762639 | AJ30: -32.91575401 | AK30: 3.376997076 | AM30: Skilled trades occupations | AN30: =V55+V56+V57+V58 -> 2.795094798 | AO30: 8.711400527 | AP30: -17.51310512 | AQ30: -3.179015876 | AR30: -8.763008604 | AS30: -8.899026794 | AT30: -26.84766107 | AX30: =U37&", "&AM22&", "&RIGHT(AM23,12) -> Expansion Demand by Qualification: Men and Women, All industries, 2012 - 2022
B31: 91 Elementary trades and related occupations | C31: 0.001505064217 | D31: 0.439921968 | E31: 2.214661331 | F31: 1.477174195 | G31: 1.818691534 | H31: 8.483411074 | I31: 14.31539093 | J31: 15.7673878 | K31: 6.546684781 | L31: 51.06482868 | U31: 91 Elementary trades and related occupations | V31: 0.4414270323 | W31: 5.51052706 | X31: 8.483411074 | Y31: 14.31539093 | Z31: 15.7673878 | AA31: 6.546684781 | AB31: 51.06482868 | AD31: 91 Elementary trades and related occupations | AE31: =V65/V$31*100 -> 111.3625248 | AF31: 46.23472385 | AG31: -12.62708492 | AH31: -4.325369673 | AI31: -11.12440925 | AJ31: -38.95048249 | AK31: -5.786828184 | AM31: Caring, leisure and other service | AN31: =V59+V60 -> 6.006135873 | AO31: 42.29326037 | AP31: 26.82835723 | AQ31: 10.27032279 | AR31: -16.22914905 | AS31: -4.455795601 | AT31: 64.71313161
B32: 92 Elementary administration and service occupations | C32: 0.1092510097 | D32: 3.432559502 | E32: 14.21065108 | F32: 6.823758502 | G32: 7.119494656 | H32: 48.71836227 | I32: 72.1912308 | J32: 59.73941589 | K32: 24.50534198 | L32: 236.8500657 | U32: 92 Elementary administration and service occupations | V32: 3.541810512 | W32: 28.15390424 | X32: 48.71836227 | Y32: 72.1912308 | Z32: 59.73941589 | AA32: 24.50534198 | AB32: 236.8500657 | AD32: 92 Elementary administration and service occupations | AE32: =V66/V$32*100 -> 115.2753523 | AF32: 59.52410425 | AG32: -16.02149559 | AH32: 4.957552929 | AI32: -10.68915073 | AJ32: -62.54401599 | AK32: -2.152230413 | AM32: Sales and customer service | AN32: =V61+V62 -> 3.782615901 | AO32: 18.89199414 | AP32: -1.562824982 | AQ32: -6.328230879 | AR32: -13.88514678 | AS32: -7.928189247 | AT32: -7.029781846
B33: All occupations | C33: 29.6700068 | D33: 201.5843686 | E33: 482.4757429 | F33: 174.4358729 | G33: 152.9846512 | H33: 594.2740369 | I33: 610.9215367 | J33: 383.3679987 | K33: 110.8867854 | L33: 2740.601 | U33: All occupations | V33: 231.2543754 | W33: 809.8962669 | X33: 594.2740369 | Y33: 610.9215367 | Z33: 383.3679987 | AA33: 110.8867854 | AB33: 2740.601 | AD33: All occupations | AE33: =V67/V$33*100 -> 61.48395928 | AF33: 24.68975402 | AG33: -3.376537101 | AH33: -2.702466372 | AI33: -24.83966027 | AJ33: -49.19576404 | AK33: 5.684556052 | AM33: Process, plant and machine operatives | AN33: =V63+V64 -> 1.505157586 | AO33: 3.700097658 | AP33: -2.014595997 | AQ33: -0.3526282407 | AR33: -11.65420554 | AS33: -6.931202293 | AT33: -15.74737683
AM34: Elementary occupations | AN34: =V65+V66 -> 4.574418833 | AO34: 19.30613628 | AP34: -8.876617781 | AQ34: 2.959724899 | AR34: -8.139664957 | AS34: -17.87659032 | AT34: -8.052593045
AM35: Total | AN35: =V67 -> 142.184346 | AO35: 199.9613961 | AP35: -20.06588334 | AQ35: -16.50994909 | AR35: -95.22730845 | AS35: -54.55160128 | AT35: 155.791
B36: Expansion Demand by Qualification: Men and Women
B37: All industries | U37: =B36 -> Expansion Demand by Qualification: Men and Women | AD37: Replacement Demand by Qualification as per cent Base Year levels: Men and Women
B38: Period: 2012 - 2022 | U38: =B37 -> All industries | AD38: =U38 -> All industries
B39: (thousands) | C39: =C5 -> QCF8 | D39: =D5 -> QCF7 | E39: QCF6 | F39: QCF5 | G39: QCF4 | H39: QCF3 | I39: QCF2 | J39: QCF1 | K39: No Q | L39: Total | U39: =B38 -> Period: 2012 - 2022 | AD39: =U39 -> Period: 2012 - 2022 | AE39: =V40 -> QCF 7-8 | AF39: QCF 4-6 | AG39: QCF 3 | AH39: QCF 2 | AI39: QCF 1 | AJ39: No Qual | AK39: Total | AM39: =U71 -> Replacement Demand by Qualification: Men and Women
U40: =B39 -> (thousands) | V40: QCF 7-8 | W40: QCF 4-6 | X40: QCF 3 | Y40: QCF 2 | Z40: QCF 1 | AA40: No Qual | AB40: Total | AD40: (per cent) | AM40: =U72 -> All industries
AM41: =U73 -> Period: 2012 - 2022
B42: 11 Corporate managers and directors | C42: 1.798337703 | D42: 13.1739644 | E42: 21.26392745 | F42: 1.403082243 | G42: 2.698809042 | H42: -0.435665565 | I42: 1.46863062 | J42: 0.1291143028 | K42: -1.139306056 | L42: 40.36089414 | U42: =B42 -> 11 Corporate managers and directors | V42: =C42+D42 -> 14.97230211 | W42: =E42+F42+G42 -> 25.36581873 | X42: =H42 -> -0.435665565 | Y42: =I42 -> 1.46863062 | Z42: =J42 -> 0.1291143028 | AA42: =K42 -> -1.139306056 | AB42: =L42 -> 40.36089414 | AD42: =U42 -> 11 Corporate managers and directors | AE42: =V76/V$8*100 -> 46.71661473 | AF42: 39.80125214 | AG42: 35.10708346 | AH42: 36.09754081 | AI42: 35.86482355 | AJ42: 25.65671672 | AK42: 38.39991304 | AM42: =U74 -> (thousands) | AN42: =AN6 -> QCF 7-8 | AO42: QCF 4-6 | AP42: QCF 3 | AQ42: QCF 2 | AR42: QCF 1 | AS42: No Qual | AT42: Total
B43: 12 Other managers and proprietors | C43: 0.7378181945 | D43: 4.961101559 | E43: 7.109405961 | F43: 2.137599629 | G43: 1.209774749 | H43: -4.783734065 | I43: -0.9476651559 | J43: -2.388029647 | K43: -1.902978135 | L43: 6.133293089 | U43: 12 Other managers and proprietors | V43: =C43+D43 -> 5.698919754 | W43: =E43+F43+G43 -> 10.45678034 | X43: =H43 -> -4.783734065 | Y43: -0.9476651559 | Z43: -2.388029647 | AA43: -1.902978135 | AB43: 6.133293089 | AD43: 12 Other managers and proprietors | AE43: =V77/V$9*100 -> 60.26593199 | AF43: 51.61764102 | AG43: 41.54854207 | AH43: 44.72235062 | AI43: 43.11739403 | AJ43: 32.05139078 | AK43: 46.77004623
B44: 21 Science, research, engineering and technology professionals | C44: 3.414158377 | D44: 17.09406076 | E44: 9.641910361 | F44: 0.1766642458 | G44: 0.03215906863 | H44: -2.907157638 | I44: 0.2402380466 | J44: -0.235586065 | K44: -0.1590578578 | L44: 27.2973893 | U44: 21 Science, research, engineering and technology professionals | V44: 20.50821914 | W44: 9.850733676 | X44: -2.907157638 | Y44: 0.2402380466 | Z44: -0.235586065 | AA44: -0.1590578578 | AB44: 27.2973893 | AD44: 21 Science, research, engineering and technology professionals | AE44: =V78/V$10*100 -> 39.00361081 | AF44: 31.06525372 | AG44: 27.77660804 | AH44: 29.87065772 | AI44: 29.80743718 | AJ44: 25.69752159 | AK44: 31.86314356 | AM44: =AM8 -> Managers, directors and senior officials | AN44: =V76+V77 -> 13.79603063 | AO44: 47.6033372 | AP44: 21.36442362 | AQ44: 20.73667922 | AR44: 12.97009451 | AS44: 2.004124447 | AT44: 118.4746896
B45: 22 Health professionals | C45: 4.331075409 | D45: 10.34006805 | E45: 21.00023601 | F45: -12.70472404 | G45: 0.870867814 | H45: 5.397610689 | I45: 3.13036308 | J45: -0.7630230684 | K45: 0.129945958 | L45: 31.7324199 | U45: 22 Health professionals | V45: 14.67114346 | W45: 9.166379778 | X45: 5.397610689 | Y45: 3.13036308 | Z45: -0.7630230684 | AA45: 0.129945958 | AB45: 31.7324199 | AD45: 22 Health professionals | AE45: =V79/V$11*100 -> 50.59005489 | AF45: 40.73499931 | AG45: 48.91525446 | AH45: 45.87193189 | AI45: 37.26641113 | AJ45: 42.7762593 | AK45: 43.5215738 | AM45: Professional occupations | AN45: =V78+V79+V80+V81 -> 65.38900844 | AO45: 101.4723212 | AP45: 19.84407634 | AQ45: 15.09234862 | AR45: 7.860145348 | AS45: 1.019982049 | AT45: 210.677882
B46: 23 Teaching and educational professionals | C46: 3.978024393 | D46: 20.29797421 | E46: -1.639008615 | F46: -8.180513327 | G46: -0.02297771318 | H46: -0.5407799116 | I46: 0.3746308689 | J46: -0.2276641684 | K46: 0.04210266847 | L46: 14.0817884 | U46: 23 Teaching and educational professionals | V46: 24.2759986 | W46: -9.842499655 | X46: -0.5407799116 | Y46: 0.3746308689 | Z46: -0.2276641684 | AA46: 0.04210266847 | AB46: 14.0817884 | AD46: 23 Teaching and educational professionals | AE46: =V80/V$12*100 -> 50.61858019 | AF46: 38.56566023 | AG46: 41.22744672 | AH46: 43.83302413 | AI46: 41.84961503 | AJ46: 42.37020603 | AK46: 44.41741109 | AM46: Associate professional and technical | AN46: =V82+V83+V84+V85+V86 -> 15.49376865 | AO46: 55.77224369 | AP46: 21.46326435 | AQ46: 17.02714882 | AR46: 9.590131026 | AS46: 1.359413086 | AT46: 120.7059696
B47: 24 Business, media and public service professionals | C47: 1.303257296 | D47: 14.73552248 | E47: 12.24424552 | F47: -3.123801203 | G47: 1.284235867 | H47: 1.068974275 | I47: -0.7379398521 | J47: -0.9483793092 | K47: -0.1575535682 | L47: 25.66856151 | U47: 24 Business, media and public service professionals | V47: 16.03877978 | W47: 10.40468018 | X47: 1.068974275 | Y47: -0.7379398521 | Z47: -0.9483793092 | AA47: -0.1575535682 | AB47: 25.66856151 | AD47: 24 Business, media and public service professionals | AE47: =V81/V$13*100 -> 51.27059121 | AF47: 42.18816927 | AG47: 41.53330444 | AH47: 39.02480839 | AI47: 38.12487422 | AJ47: 34.69649844 | AK47: 43.38672437 | AM47: Administrative and secretarial | AN47: =V87+V88 -> 6.859737895 | AO47: 42.18415192 | AP47: 28.18504508 | AQ47: 33.66905955 | AR47: 17.2831081 | AS47: 3.140816381 | AT47: 131.3219189
B48: 31 Science, engineering and technology associate professionals | C48: 0.4477812347 | D48: 2.511710423 | E48: 2.336547498 | F48: 0.5968273226 | G48: -0.6636330797 | H48: -2.013176262 | I48: -0.2535545579 | J48: 0.2344349983 | K48: 0.02741222279 | L48: 3.224349801 | U48: 31 Science, engineering and technology associate professionals | V48: 2.959491658 | W48: 2.269741741 | X48: -2.013176262 | Y48: -0.2535545579 | Z48: 0.2344349983 | AA48: 0.02741222279 | AB48: 3.224349801 | AD48: 31 Science, engineering and technology associate professionals | AE48: =V82/V$14*100 -> 39.76282667 | AF48: 31.57895439 | AG48: 27.18152347 | AH48: 29.53917362 | AI48: 31.98080028 | AJ48: 29.11269854 | AK48: 31.1304578 | AM48: Skilled trades occupations | AN48: =V89+V90+V91+V92 -> 2.445287738 | AO48: 19.67312066 | AP48: 36.78216787 | AQ48: 33.97349201 | AR48: 19.3165339 | AS48: 5.639555686 | AT48: 117.8301579
B49: 32 Health and social care associate professionals | C49: 0.1011098685 | D49: 2.129252738 | E49: 7.275414865 | F49: -2.332559297 | G49: 0.4968476944 | H49: 1.133473195 | I49: 0.7264573716 | J49: -0.2159109355 | K49: 0.0005132738293 | L49: 9.314598773 | U49: 32 Health and social care associate professionals | V49: 2.230362606 | W49: 5.439703262 | X49: 1.133473195 | Y49: 0.7264573716 | Z49: -0.2159109355 | AA49: 0.0005132738293 | AB49: 9.314598773 | AD49: 32 Health and social care associate professionals | AE49: =V83/V$15*100 -> 50.33890768 | AF49: 40.95957394 | AG49: 42.08800967 | AH49: 41.03655566 | AI49: 35.24162189 | AJ49: 34.04546263 | AK49: 41.61483452 | AM49: Caring, leisure and other service | AN49: =V93+V94 -> 3.724914222 | AO49: 34.95217621 | AP49: 42.50933065 | AQ49: 36.66458026 | AR49: 10.16095453 | AS49: 1.96068499 | AT49: 129.9726409
B50: 33 Protective service occupations | C50: 0.03202785738 | D50: 0.3667487793 | E50: 1.362233386 | F50: 0.08441419004 | G50: -0.3380089672 | H50: -1.926065281 | I50: -1.128924903 | J50: -0.9768349401 | K50: -0.2273871406 | L50: -2.751797019 | U50: 33 Protective service occupations | V50: 0.3987766367 | W50: 1.108638608 | X50: -1.926065281 | Y50: -1.128924903 | Z50: -0.9768349401 | AA50: -0.2273871406 | AB50: -2.751797019 | AD50: 33 Protective service occupations | AE50: =V84/V$16*100 -> 30.633876 | AF50: 27.5000904 | AG50: 21.26520749 | AH50: 23.96512215 | AI50: 22.53138336 | AJ50: 16.78283041 | AK50: 24.61720774 | AM50: Sales and customer service | AN50: =V95+V96 -> 2.476825182 | AO50: 18.61245785 | AP50: 23.18833449 | AQ50: 25.71124521 | AR50: 13.30041425 | AS50: 3.540392968 | AT50: 86.82966996
B51: 34 Culture, media and sports occupations | C51: 0.2661103368 | D51: 3.34161359 | E51: 4.756206192 | F51: 0.5135448675 | G51: 0.2320003608 | H51: 0.4356144982 | I51: -0.8870462034 | J51: -0.5685445938 | K51: -0.1226679458 | L51: 7.966831102 | U51: 34 Culture, media and sports occupations | V51: 3.607723927 | W51: 5.50175142 | X51: 0.4356144982 | Y51: -0.8870462034 | Z51: -0.5685445938 | AA51: -0.1226679458 | AB51: 7.966831102 | AD51: 34 Culture, media and sports occupations | AE51: =V85/V$17*100 -> 51.17026618 | AF51: 44.34825715 | AG51: 41.88824339 | AH51: 37.12177914 | AI51: 39.01375134 | AJ51: 35.91227109 | AK51: 43.51020555 | AM51: Process, plant and machine operatives | AN51: =V97+V98 -> 1.059357343 | AO51: 6.370034762 | AP51: 12.62678478 | AQ51: 19.09848123 | AR51: 14.51625265 | AS51: 3.796118685 | AT51: 57.46702945
B52: 35 Business and public service associate professionals | C52: 1.478568485 | D52: 11.86492876 | E52: 15.49062107 | F52: 3.471046538 | G52: 1.979021294 | H52: -0.08844683871 | I52: -1.314993395 | J52: -3.265833899 | K52: -0.8287448173 | L52: 28.78616719 | U52: 35 Business and public service associate professionals | V52: 13.34349724 | W52: 20.9406889 | X52: -0.08844683871 | Y52: -1.314993395 | Z52: -3.265833899 | AA52: -0.8287448173 | AB52: 28.78616719 | AD52: 35 Business and public service associate professionals | AE52: =V86/V$18*100 -> 46.84248892 | AF52: 39.83680927 | AG52: 35.85632343 | AH52: 35.14270161 | AI52: 33.34194278 | AJ52: 28.93794915 | AK52: 38.20329111 | AM52: Elementary occupations | AN52: =V99+V100 -> 2.249020484 | AO52: 15.71917992 | AP52: 20.16671145 | AQ52: 33.2731263 | AR52: 27.54336996 | AS52: 7.758973891 | AT52: 106.710382
B53: 41 Administrative occupations | C53: 0.4635035492 | D53: 3.982553018 | E53: 10.36044814 | F53: 3.811400327 | G53: 2.800160522 | H53: -6.001806416 | I53: -10.69479265 | J53: -16.98454814 | K53: -2.959760191 | L53: -15.22284185 | U53: 41 Administrative occupations | V53: 4.446056567 | W53: 16.97200898 | X53: -6.001806416 | Y53: -10.69479265 | Z53: -16.98454814 | AA53: -2.959760191 | AB53: -15.22284185 | AD53: 41 Administrative occupations | AE53: =V87/V$19*100 -> 52.78922313 | AF53: 48.39054386 | AG53: 41.75829909 | AH53: 40.16364382 | AI53: 32.5360817 | AJ53: 30.10856986 | AK53: 42.16363784 | AM53: Total | AN53: =V101 -> 113.4939506 | AO53: 342.3590234 | AP53: 226.1301386 | AQ53: 235.2461612 | AR53: 132.5410043 | AS53: 30.22006218 | AT53: 1079.99034
B54: 42 Secretarial and related occupations | C54: 0.05920885144 | D54: 0.3104427091 | E54: 0.7934837823 | F54: -0.5337699091 | G54: -0.8356326921 | H54: -6.265937371 | I54: -9.85552505 | J54: -10.34532805 | K54: -1.163315439 | L54: -27.83637316 | U54: 42 Secretarial and related occupations | V54: 0.3696515605 | W54: -0.575918819 | X54: -6.265937371 | Y54: -9.85552505 | Z54: -10.34532805 | AA54: -1.163315439 | AB54: -27.83637316 | AD54: 42 Secretarial and related occupations | AE54: =V88/V$20*100 -> 59.89852674 | AF54: 53.70120831 | AG54: 44.48676194 | AH54: 42.73311694 | AI54: 38.21991045 | AJ54: 41.42358749 | AK54: 45.04620473
B55: 51 Skilled agricultural and related trades | C55: 0.07249087305 | D55: -0.07248880126 | E55: 0.8622472721 | F55: 0.6543856787 | G55: 0.2303034091 | H55: -1.958447822 | I55: -1.480419969 | J55: -2.625461976 | K55: -2.038846321 | L55: -6.356237656 | U55: 51 Skilled agricultural and related trades | V55: 2.071790223e-06 | W55: 1.74693636 | X55: -1.958447822 | Y55: -1.480419969 | Z55: -2.625461976 | AA55: -2.038846321 | AB55: -6.356237656 | AD55: 51 Skilled agricultural and related trades | AE55: =V89/V$21*100 -> 52.15473395 | AF55: 55.97428726 | AG55: 46.54128562 | AH55: 49.76335556 | AI55: 46.21074717 | AJ55: 36.55054075 | AK55: 48.86320185
B56: 52 Skilled metal, electrical and electronic trades | C56: 0.04127345281 | D56: 1.815892955 | E56: 2.468336815 | F56: 0.3907590318 | G56: 1.115897686 | H56: -6.902733068 | I56: -3.079518727 | J56: -2.351542911 | K56: -1.948602879 | L56: -8.450237644 | U56: 52 Skilled metal, electrical and electronic trades | V56: 1.857166407 | W56: 3.974993534 | X56: -6.902733068 | Y56: -3.079518727 | Z56: -2.351542911 | AA56: -1.948602879 | AB56: -8.450237644 | AD56: 52 Skilled metal, electrical and electronic trades | AE56: =V90/V$22*100 -> 42.39017014 | AF56: 34.97022417 | AG56: 30.4587718 | AH56: 31.35974684 | AI56: 31.22254418 | AJ56: 25.48753796 | AK56: 31.51892696
B57: 53 Skilled construction and building trades | C57: 0.04481140194 | D57: 0.90072813 | E57: 1.478691825 | F57: 1.442354576 | G57: 2.068809734 | H57: -3.481017407 | I57: 8.650864746 | J57: 1.63966816 | K57: -2.69073919 | L57: 10.05417198 | U57: 53 Skilled construction and building trades | V57: 0.9455395319 | W57: 4.989856135 | X57: -3.481017407 | Y57: 8.650864746 | Z57: 1.63966816 | AA57: -2.69073919 | AB57: 10.05417198 | AD57: 53 Skilled construction and building trades | AE57: =V91/V$23*100 -> 45.73505125 | AF57: 38.85920108 | AG57: 31.5676173 | AH57: 36.54796867 | AI57: 34.81872223 | AJ57: 25.38857844 | AK57: 34.0564083 | AM57: =U105 -> Net Requirement by Qualification: Men and Women | AW57: =AM39&", "&AM40&", "&RIGHT(AM41,12) -> Replacement Demand by Qualification: Men and Women, All industries, 2012 - 2022
B58: 54 Textiles, printing and other skilled trades | C58: 0.05409896027 | D58: -0.06171217391 | E58: -0.888757075 | F58: -0.5192220386 | G58: -0.5924063873 | H58: -5.170906822 | I58: -7.269941926 | J58: -5.425671877 | K58: -2.220838405 | L58: -22.09535774 | U58: 54 Textiles, printing and other skilled trades | V58: -0.007613213635 | W58: -2.000385501 | X58: -5.170906822 | Y58: -7.269941926 | Z58: -5.425671877 | AA58: -2.220838405 | AB58: -22.09535774 | AD58: 54 Textiles, printing and other skilled trades | AE58: =V92/V$24*100 -> 38.35049505 | AF58: 32.91332896 | AG58: 30.1358259 | AH58: 29.64104449 | AI58: 29.83795443 | AJ58: 25.76270244 | AK58: 30.17018585 | AM58: =U106 -> All industries
B59: 61 Caring personal service occupations | C59: 0.0950936333 | D59: 5.237445945 | E59: 18.3492913 | F59: 9.084047225 | G59: 7.723721077 | H59: 27.93236183 | I59: 9.155340697 | J59: -15.52350898 | K59: -3.136807243 | L59: 58.91698548 | U59: 61 Caring personal service occupations | V59: 5.332539579 | W59: 35.15705961 | X59: 27.93236183 | Y59: 9.155340697 | Z59: -15.52350898 | AA59: -3.136807243 | AB59: 58.91698548 | AD59: 61 Caring personal service occupations | AE59: =V93/V$25*100 -> 60.7483693 | AF59: 53.26514337 | AG59: 50.25090762 | AH59: 44.88921015 | AI59: 25.51380606 | AJ59: 18.47009121 | AK59: 46.56609185 | AM59: =U107 -> Period: 2012 - 2022
B60: 62 Leisure, travel and related personal service occupations | C60: 0.04750451849 | D60: 0.6260917756 | E60: 2.285465352 | F60: 2.123778584 | G60: 2.726956827 | H60: -1.104004594 | I60: 1.114982089 | J60: -0.7056400706 | K60: -1.318988358 | L60: 5.796146124 | U60: 62 Leisure, travel and related personal service occupations | V60: 0.6735962941 | W60: 7.136200763 | X60: -1.104004594 | Y60: 1.114982089 | Z60: -0.7056400706 | AA60: -1.318988358 | AB60: 5.796146124 | AD60: 62 Leisure, travel and related personal service occupations | AE60: =V94/V$26*100 -> 60.06770245 | AF60: 59.73863427 | AG60: 44.65818156 | AH60: 47.32655756 | AI60: 45.22804195 | AJ60: 34.43270726 | AK60: 47.91011472 | AM60: =U108 -> (thousands) | AN60: =AN6 -> QCF 7-8 | AO60: QCF 4-6 | AP60: QCF 3 | AQ60: QCF 2 | AR60: QCF 1 | AS60: No Qual | AT60: Total
B61: 71 Sales occupations | C61: 0.07948568445 | D61: 2.299597031 | E61: 8.654435979 | F61: 1.917516337 | G61: 0.5779478871 | H61: -2.937437134 | I61: -8.666894766 | J61: -11.85207468 | K61: -7.799235283 | L61: -17.72665895 | U61: 71 Sales occupations | V61: 2.379082716 | W61: 11.1499002 | X61: -2.937437134 | Y61: -8.666894766 | Z61: -11.85207468 | AA61: -7.799235283 | AB61: -17.72665895 | AD61: 71 Sales occupations | AE61: =V95/V$27*100 -> 49.06459253 | AF61: 43.60425757 | AG61: 37.22438476 | AH61: 35.43714393 | AI61: 31.80931258 | AJ61: 24.50945374 | AK61: 36.04999179
B62: 72 Customer service occupations | C62: 0.1306477247 | D62: 1.272885461 | E62: 4.898428115 | F62: 1.63419313 | G62: 1.209472694 | H62: 1.374612152 | I62: 2.338663887 | J62: -2.033072101 | K62: -0.1289539642 | L62: 10.6968771 | U62: 72 Customer service occupations | V62: 1.403533185 | W62: 7.742093939 | X62: 1.374612152 | Y62: 2.338663887 | Z62: -2.033072101 | AA62: -0.1289539642 | AB62: 10.6968771 | AD62: 72 Customer service occupations | AE62: =V96/V$28*100 -> 43.80590552 | AF62: 40.50592199 | AG62: 34.6081996 | AH62: 35.21983693 | AI62: 28.57195289 | AJ62: 29.55292089 | AK62: 35.63963743 | AM62: =AM26 -> Managers, directors and senior officials | AN62: =V110+V111 -> 34.46725249 | AO62: 83.42593627 | AP62: 16.14502399 | AQ62: 21.25764469 | AR62: 10.71117917 | AS62: -1.038159744 | AT62: 164.9688769
B63: 81 Process, plant and machine operatives | C63: 0.05035703125 | D63: 0.1927092779 | E63: -0.09640371199 | F63: -0.03021014053 | G63: 0.000946337672 | H63: -3.305823464 | I63: -3.625907381 | J63: -7.413058965 | K63: -4.530673278 | L63: -18.75806429 | U63: 81 Process, plant and machine operatives | V63: 0.2430663092 | W63: -0.1256675148 | X63: -3.305823464 | Y63: -3.625907381 | Z63: -7.413058965 | AA63: -4.530673278 | AB63: -18.75806429 | AD63: 81 Process, plant and machine operatives | AE63: =V97/V$29*100 -> 37.250013 | AF63: 31.42296141 | AG63: 28.64438924 | AH63: 29.23881094 | AI63: 25.68574411 | AJ63: 19.35078223 | AK63: 27.49926447 | AM63: Professional occupations | AN63: =V112+V113+V114+V115 -> 140.8831494 | AO63: 121.0516152 | AP63: 22.86272375 | AQ63: 18.09964076 | AR63: 5.685492737 | AS63: 0.8754192499 | AT63: 309.4580411
B64: 82 Transport and mobile machine drivers and operatives | C64: 0.1560218329 | D64: 1.106069444 | E64: 1.753698515 | F64: 0.8620017519 | G64: 1.210064907 | H64: 1.291227467 | I64: 3.27327914 | J64: -4.241146575 | K64: -2.400529015 | L64: 3.010687467 | U64: 82 Transport and mobile machine drivers and operatives | V64: 1.262091277 | W64: 3.825765173 | X64: 1.291227467 | Y64: 3.27327914 | Z64: -4.241146575 | AA64: -2.400529015 | AB64: 3.010687467 | AD64: 82 Transport and mobile machine drivers and operatives | AE64: =V98/V$30*100 -> 61.41984353 | AF64: 50.46078344 | AG64: 44.04141007 | AH64: 45.37624049 | AI64: 40.29686018 | AJ64: 34.75468873 | AK64: 43.56434033 | AM64: Associate professional and technical | AN64: =V116+V117+V118+V119+V120 -> 38.03362072 | AO64: 91.03276763 | AP64: 19.00466366 | AQ64: 14.16908713 | AR64: 4.797441655 | AS64: 0.2085386791 | AT64: 167.2461195
B65: 91 Elementary trades and related occupations | C65: 0.001553111172 | D65: 0.490031177 | E65: 1.42173416 | F65: 0.6510833138 | G65: 0.4749594951 | H65: -1.071207521 | I65: -0.619193578 | J65: -1.754028747 | K65: -2.549965309 | L65: -2.955033899 | U65: 91 Elementary trades and related occupations | V65: 0.4915842882 | W65: 2.547776969 | X65: -1.071207521 | Y65: -0.619193578 | Z65: -1.754028747 | AA65: -2.549965309 | AB65: -2.955033899 | AD65: 91 Elementary trades and related occupations | AE65: =V99/V$31*100 -> 52.49640094 | AF65: 41.81133807 | AG65: 32.72051138 | AH65: 34.11574787 | AI65: 33.65379062 | AJ65: 26.38240628 | AK65: 33.73921673 | AM65: Administrative and secretarial | AN65: =V121+V122 -> 11.67544602 | AO65: 58.58024209 | AP65: 15.91730129 | AQ65: 13.11874185 | AR65: -10.04676809 | AS65: -0.9822592492 | AT65: 88.26270392
B66: 92 Elementary administration and service occupations | C66: 0.134739937 | D66: 3.948094608 | E66: 9.806552054 | F66: 3.879490544 | G66: 3.07231671 | H66: -7.805410261 | I66: 3.578918477 | J66: -6.38563621 | K66: -15.32662501 | L66: -5.097559146 | U66: 92 Elementary administration and service occupations | V66: 4.082834545 | W66: 16.75835931 | X66: -7.805410261 | Y66: 3.578918477 | Z66: -6.38563621 | AA66: -15.32662501 | AB66: -5.097559146 | AD66: 92 Elementary administration and service occupations | AE66: =V100/V$32*100 -> 56.95638355 | AF66: 47.6493587 | AG66: 35.69679923 | AH66: 39.32516915 | AI66: 37.22340762 | AJ66: 24.61422868 | AK66: 37.77981168 | AM66: Skilled trades occupations | AN66: =V123+V124+V125+V126 -> 5.240382536 | AO66: 28.38452119 | AP66: 19.26906275 | AQ66: 30.79447613 | AR66: 10.55352529 | AS66: -3.259471108 | AT66: 90.98249679
B67: All occupations | C67: 19.31905972 | D67: 122.8652863 | E67: 162.9893922 | F67: 7.409389576 | G67: 29.56261434 | H67: -20.06588334 | I67: -16.50994909 | J67: -95.22730845 | K67: -54.55160128 | L67: 155.791 | U67: All occupations | V67: 142.184346 | W67: 199.9613961 | X67: -20.06588334 | Y67: -16.50994909 | Z67: -95.22730845 | AA67: -54.55160128 | AB67: 155.791 | AD67: All occupations | AE67: =V101/V$33*100 -> 49.07753653 | AF67: 42.27195968 | AG67: 38.05149217 | AH67: 38.50677167 | AI67: 34.57278769 | AJ67: 27.25307807 | AK67: 39.40706218 | AM67: Caring, leisure and other service | AN67: =V127+V128 -> 9.731050095 | AO67: 77.24543658 | AP67: 69.33768788 | AQ67: 46.93490305 | AR67: -6.06819452 | AS67: -2.495110611 | AT67: 194.6857725
AM68: Sales and customer service | AN68: =V129+V130 -> 6.259441083 | AO68: 37.504452 | AP68: 21.62550951 | AQ68: 19.38301433 | AR68: -0.5847325326 | AS68: -4.387796279 | AT68: 79.79988811
AM69: Process, plant and machine operatives | AN69: =V131+V132 -> 2.564514929 | AO69: 10.07013242 | AP69: 10.61218879 | AQ69: 18.74585299 | AR69: 2.862047107 | AS69: -3.135083608 | AT69: 41.71965262
B70: Replacement Demand by Qualification: Men and Women | AM70: Elementary occupations | AN70: =V133+V134 -> 6.823439318 | AO70: 35.02531619 | AP70: 11.29009367 | AQ70: 36.2328512 | AR70: 19.403705 | AS70: -10.11761642 | AT70: 98.65778896
B71: All industries | U71: =B70 -> Replacement Demand by Qualification: Men and Women | AD71: Net Requirement by Qualification as per cent Base Year levels: Men and Women | AM71: Total | AN71: =V135 -> 255.6782966 | AO71: 542.3204195 | AP71: 206.0642553 | AQ71: 218.7362121 | AR71: 37.31369582 | AS71: -24.3315391 | AT71: 1235.78134
B72: Period: 2012 - 2022 | U72: =B71 -> All industries | AD72: =U72 -> All industries
B73: (thousands) | C73: =C5 -> QCF8 | D73: =D5 -> QCF7 | E73: QCF6 | F73: QCF5 | G73: QCF4 | H73: QCF3 | I73: QCF2 | J73: QCF1 | K73: No Q | L73: Total | U73: =B72 -> Period: 2012 - 2022 | AD73: =U73 -> Period: 2012 - 2022 | AE73: =V74 -> QCF 7-8 | AF73: QCF 4-6 | AG73: QCF 3 | AH73: QCF 2 | AI73: QCF 1 | AJ73: No Qual | AK73: Total
U74: =B73 -> (thousands) | V74: QCF 7-8 | W74: QCF 4-6 | X74: QCF 3 | Y74: QCF 2 | Z74: QCF 1 | AA74: No Qual | AB74: Total | AD74: (per cent)
B76: 11 Corporate managers and directors | C76: 1.001373349 | D76: 7.931947464 | E76: 20.16113309 | F76: 4.02195056 | G76: 5.717071076 | H76: 12.18712117 | I76: 10.61236469 | J76: 6.374283696 | K76: 0.7501170316 | L76: 68.75736213 | U76: =B76 -> 11 Corporate managers and directors | V76: =C76+D76 -> 8.933320813 | W76: =E76+F76+G76 -> 29.90015473 | X76: =H76 -> 12.18712117 | Y76: =I76 -> 10.61236469 | Z76: =J76 -> 6.374283696 | AA76: =K76 -> 0.7501170316 | AB76: =L76 -> 68.75736213 | AD76: =U76 -> 11 Corporate managers and directors | AE76: =V110/V$8*100 -> 125.0139561 | AF76: 73.56667429 | AG76: 33.85207441 | AH76: 41.09303007 | AI76: 36.59128348 | AJ76: -13.31167288 | AK76: 60.94084215
B77: 12 Other managers and proprietors | C77: 0.5403076905 | D77: 4.322402131 | E77: 10.50759834 | F77: 3.651942298 | G77: 3.543641827 | H77: 9.177302449 | I77: 10.12431454 | J77: 6.595810816 | K77: 1.254007416 | L77: 49.71732751 | U77: 12 Other managers and proprietors | V77: =C77+D77 -> 4.862709821 | W77: =E77+F77+G77 -> 17.70318247 | X77: =H77 -> 9.177302449 | Y77: 10.12431454 | Z77: 6.595810816 | AA77: 1.254007416 | AB77: 49.71732751 | AD77: 12 Other managers and proprietors | AE77: =V111/V$9*100 -> 130.8954211 | AF77: 82.10675419 | AG77: 19.8910695 | AH77: 40.5362091 | AI77: 27.5066347 | AJ77: -16.58715401 | AK77: 52.53975301
